Workbook

Sheet Definiciones
B1: 461260 | C1: Partes reporte consumo: | D1: =MAX(D3:D2002) -> 4 | E1: Año actual | F1: 2023 | G1: Etapa Ejec | H1: Fin | I1: =(L1-K1)*24*60 -> 65219320.63 | J1: min | L1: 2023-12-31T04:40:38 | W1: Energéticos: | X1: Factores de conversión | AB1: ton co2/kwh | AE1: 31
B2: id Serv | C2: Servicio | D2: Reporte Consumos N° | E2: pmg 2017 | F2: pmg 2018 | G2: pmg 2019 | H2: pmg 2020 | I2: pmg 2021 | J2: pmg 2022 | K2: pmg 2023 | L2: pmg 2024 | M2: Ministerio | N2: Etapas Ejec | O2: N° | P2: id | Q2: codigo | R2: nombre | S2: region_id | T2: region_ordgeografico | U2: Nombre Region | X2: Litro | Y2: Metros Cúbicos | Z2: Kilogramos | AA2: KiloWatt Hora | AB2: Factor emision | AD2: N° Reporte | AE2: id combustibles
B3: 1 | D3: 0 | N3: Rep1,Rep2 | O3: 1 | P3: 1 | Q3: 15101 | R3: Arica | S3: 15 | T3: 1 | U3: Aric | W3: Electricidad | AA3: 1 | AB3: 0.0004555 | AD3: 1 | AE3: -1
B4: 2 | D4: 0 | N4: Int_prom | O4: 1 | P4: 2 | Q4: 15102 | R4: Camarones | S4: 15 | T4: 1 | U4: Aric | W4: Gas Natural | Y4: 10.86 | AB4: 0.0003 | AD4: 2
B5: 3 | C5: Ejercito de Chile | D5: 4 | M5: Ministerio de Defensa Nacional | N5: Rep_int out | O5: 1 | P5: 3 | Q5: 15201 | R5: Putre | S5: 15 | T5: 1 | U5: Aric | W5: Gasolina | X5: 9.51 | AB5: 0.0003 | AD5: 3
B6: 4 | D6: 0 | N6: Rep Extendido | O6: 1 | P6: 4 | Q6: 15202 | R6: General Lagos | S6: 15 | T6: 1 | U6: Aric | W6: Gas Licuado de Petróleo | X6: 9.72 | Y6: 7.74 | Z6: 14.07 | AB6: 0.0003 | AD6: 4
B7: 5 | D7: 0 | N7: Rep Compacto | O7: 1 | P7: 5 | Q7: 01101 | R7: Iquique | S7: 1 | T7: 2 | U7: Tara | W7: Leña | Y7: =422*Z7 -> 1717.54 | Z7: 4.07 | AB7: 0.0003 | AD7: 5
B8: 6 | D8: 0 | P8: 6 | Q8: 01107 | R8: Alto Hospicio | S8: 1 | T8: 2 | U8: Tara | W8: Kerosene | X8: 9.67 | AB8: 0.0003 | AD8: 6
B9: 7 | D9: 0 | P9: 7 | Q9: 01401 | R9: Pozo Almonte | S9: 1 | T9: 2 | U9: Tara | W9: Diesel | X9: 10.02 | Y9: 10022.09 | AB9: 0.0003 | AD9: 7
B10: 8 | D10: 0 | N10: Horas cierre ejecución: | P10: 8 | Q10: 01402 | R10: Camiña | S10: 1 | T10: 2 | U10: Tara | W10: Petróleo 5-6 | X10: 11.43 | AB10: 0.0003
B11: 9 | D11: 0 | N11: Rep1,Rep2 | P11: 9 | Q11: 01403 | R11: Colchane | S11: 1 | T11: 2 | U11: Tara | W11: Pellet de leña | Z11: 4.6 | AB11: 0.0003
B12: 10 | D12: 0 | N12: Int_prom | P12: 10 | Q12: 01404 | R12: Huara | S12: 1 | T12: 2 | U12: Tara | W12: Biomasa | Z12: 5.1 | AB12: 0
B13: 11 | D13: 0 | N13: Rep_int out | P13: 11 | Q13: 01405 | R13: Pica | S13: 1 | T13: 2 | U13: Tara | W13: IFO 080K | X13: 11.23 | AB13: 0.0003
B14: 12 | D14: 0 | N14: Rep Extendido | P14: 12 | Q14: 02101 | R14: Antofagasta | S14: 2 | T14: 3 | U14: Anto | W14: Carbón | Z14: 8.37 | AB14: 0.0003
B15: 13 | D15: 0 | N15: Rep Compacto | P15: 13 | Q15: 02102 | R15: Mejillones | S15: 2 | T15: 3 | U15: Anto | W15: GLP con medidor | X15: 9.72 | Y15: 7.74 | Z15: 14.07 | AB15: 0.0003 | AK15: 9340 | AL15: kcal/m3 | AM15: 8176 | AN15: kcal/litro | AO15: 12100 | AP15: kcal/kg | AQ15: 8991 | AR15: kcal/litro | AS15: 9156 | AT15: kcal/litro
B16: 14 | D16: 0 | P16: 14 | Q16: 02103 | R16: Sierra Gorda | S16: 2 | T16: 3 | U16: Anto | AK16: 860 | AL16: kcal/kwh
B17: 15 | D17: 0 | P17: 15 | Q17: 02104 | R17: Taltal | S17: 2 | T17: 3 | U17: Anto | W17: Precios promedio energéticos por región promedio 2017 | AK17: =AK16/AK15 -> 0.09207708779 | AL17: m3/kwh | AM17: =AK16/AM15 -> 0.10518591 | AN17: litro/kwh | AO17: =AK16/AO15 -> 0.07107438017 | AP17: kg/kwh | AQ17: =AK16/AQ15 -> 0.09565120676 | AR17: litro/kwh | AS17: =AK16/AS15 -> 0.09392747925 | AT17: litro/kwh
B18: 16 | D18: 0 | P18: 16 | Q18: 02201 | R18: Calama | S18: 2 | T18: 3 | U18: Anto | Y18: $/kWh | Z18: $/kWh | AK18: $/m3 | AM18: $/litro | AO18: $/KG | AQ18: $/litro | AS18: $/litro
B19: 17 | D19: 0 | P19: 17 | Q19: 02202 | R19: Ollagüe | S19: 2 | T19: 3 | U19: Anto | W19: Regiones | X19: Región | Y19: Electricidad | Z19: GN | AA19: Gasolina | AB19: GLP | AC19: Leña | AD19: Kerosene | AE19: Diesel | AF19: Petróleo 5-6 | AG19: Pellet de leña | AH19: Biomasa | AI19: IFO 080K | AJ19: Carbón | AK19: GN | AM19: Gasolina | AO19: GLP | AQ19: Kerosene | AS19: Diesel
B20: 18 | D20: 0 | P20: 18 | Q20: 02203 | R20: San Pedro de Atacama | S20: 2 | T20: 3 | U20: Anto | W20: Región de Tarapacá | X20: 1 | Y20: 133.2642355 | AA20: =AM20*$AM$17 -> 81.35607283 | AB20: =AO20*$AO$17 -> 103.009626 | AC20: 100 | AD20: =AQ20*$AQ$17 -> 51.37266897 | AE20: =AS20*$AS$17 -> 47.11845448 | AF20: =AE20*0.92 -> 43.34897812 | AG20: 100 | AH20: 20 | AI20: 100 | AJ20: 100 | AM20: 773.4502924 | AO20: 1449.321481 | AQ20: 537.0833333 | AS20: 501.6471735
B21: 19 | D21: 0 | P21: 19 | Q21: 02301 | R21: Tocopilla | S21: 2 | T21: 3 | U21: Anto | W21: Región de Antofagasta | X21: 2 | Y21: 126.9558779 | Z21: =AK21*$AK$17 -> 67.9029608 | AA21: =AM21*$AM$17 -> 81.59116598 | AB21: =AO21*$AO$17 -> 83.04303377 | AC21: 100 | AD21: =AQ21*$AQ$17 -> 53.24583843 | AE21: =AS21*$AS$17 -> 47.46651255 | AF21: =AE21*0.92 -> 43.66919154 | AG21: 100 | AH21: 20 | AI21: 100 | AJ21: 100 | AK21: 737.4577371 | AM21: 775.6853175 | AO21: 1168.396173 | AQ21: 556.6666667 | AS21: 505.3527778
B22: 20 | D22: 0 | P22: 20 | Q22: 02302 | R22: María Elena | S22: 2 | T22: 3 | U22: Anto | W22: Región de Atacama | X22: 3 | Y22: 146.3947013 | AA22: 80.31721168 | AB22: 75.00778553 | AC22: 100 | AD22: 55.48248248 | AE22: 47.3834484 | AF22: 43.59277253 | AG22: 100 | AH22: 20 | AI22: 100 | AJ22: 100 | AM22: 763.5738636 | AO22: 1055.342099 | AQ22: 580.05 | AS22: 504.4684343
B23: 21 | C23: Armada de Chile | D23: 4 | M23: Ministerio de Defensa Nacional | P23: 21 | Q23: 03101 | R23: Copiapó | S23: 3 | T23: 4 | U23: Atac | W23: Región de Coquimbo | X23: 4 | Y23: 157.5174559 | AA23: 80.60026047 | AB23: 74.79920416 | AC23: 100 | AD23: 54.31859328 | AE23: 46.98165208 | AF23: 43.22311991 | AG23: 100 | AH23: 20 | AI23: 100 | AJ23: 100 | AM23: 766.2648019 | AO23: 1052.407407 | AQ23: 567.8819444 | AS23: 500.1907051
B24: 22 | D24: 0 | P24: 22 | Q24: 03102 | R24: Caldera | S24: 3 | T24: 4 | U24: Atac | W24: Región de Valparaíso | X24: 5 | Y24: 162.0783637 | Z24: =AK24*$AK$17 -> 81.9271764 | AA24: 79.90999724 | AB24: 74.63906744 | AC24: 100 | AD24: 54.96743938 | AE24: 45.93106375 | AF24: 42.25657865 | AG24: 100 | AH24: 20 | AI24: 100 | AJ24: 100 | AK24: 889.7672414 | AM24: 759.7024854 | AO24: 1050.154321 | AQ24: 574.665404 | AS24: 489.0056043
B25: 23 | D25: 0 | P25: 23 | Q25: 03103 | R25: Tierra Amarilla | S25: 3 | T25: 4 | U25: Atac | W25: Región del Libertador Gral. Bernardo O'Higgins | X25: 6 | Y25: 138.5776004 | AA25: 81.33656067 | AB25: 75.90044026 | AC25: 100 | AD25: 53.46747042 | AE25: 48.3052829 | AF25: 44.44086027 | AG25: 100 | AH25: 20 | AI25: 100 | AJ25: 100 | AM25: 773.2647908 | AO25: 1067.901543 | AQ25: 558.9837518 | AS25: 514.2827561
B26: 24 | D26: 0 | P26: 24 | Q26: 03201 | R26: Chañaral | S26: 3 | T26: 4 | U26: Atac | W26: Región del Maule | X26: 7 | Y26: 154.9235638 | AA26: 76.05763057 | AB26: 79.0083869 | AC26: 100 | AD26: 55.23715764 | AE26: 44.32545371 | AF26: 40.77941741 | AG26: 100 | AH26: 20 | AI26: 100 | AJ26: 100 | AM26: 723.078125 | AO26: 1111.62963 | AQ26: 577.4852143 | AS26: 471.9114583
B27: 25 | C27: Servicio de Salud Aysén | D27: 4 | M27: Ministerio de Salud | P27: 25 | Q27: 03202 | R27: Diego de Almagro | S27: 3 | T27: 4 | U27: Atac | W27: Región del Biobío | X27: 8 | Y27: 173.5539517 | Z27: =AK27*$AK$17 -> 86.55285941 | AA27: 80.62733675 | AB27: 76.33741389 | AC27: 100 | AD27: 55.18221798 | AE27: 47.33016081 | AF27: 43.54374794 | AG27: 100 | AH27: 20 | AI27: 100 | AJ27: 100 | AK27: 940.0043103 | AM27: 766.5222154 | AO27: 1074.04966 | AQ27: 576.9108394 | AS27: 503.9011074
B28: 26 | C28: Servicio de Salud Arica | D28: 4 | M28: Ministerio de Salud | P28: 26 | Q28: 03301 | R28: Vallenar | S28: 3 | T28: 4 | U28: Atac | W28: Región de la Araucanía | X28: 9 | Y28: 159.0107904 | Z28: =Z27 -> 86.55285941 | AA28: 81.9248866 | AB28: 78.72695868 | AC28: 100 | AD28: 53.75045533 | AE28: 48.23412193 | AF28: 44.37539218 | AG28: 100 | AH28: 20 | AI28: 100 | AJ28: 100 | AM28: 778.8579917 | AO28: 1107.67 | AQ28: 561.9422603 | AS28: 513.52514
B29: 27 | C29: Servicio de Salud Magallanes | D29: 4 | M29: Ministerio de Salud | P29: 27 | Q29: 03302 | R29: Alto del Carmen | S29: 3 | T29: 4 | U29: Atac | W29: Región de Los Lagos | X29: 10 | Y29: 169.5822178 | Z29: =Z27 -> 86.55285941 | AA29: 81.79728027 | AB29: 81.77394368 | AC29: 100 | AD29: 56.56852223 | AE29: 48.78768454 | AF29: 44.88466978 | AG29: 100 | AH29: 20 | AI29: 100 | AJ29: 100 | AM29: 777.6448413 | AO29: 1150.54037 | AQ29: 591.4041667 | AS29: 519.4186508
B30: 28 | D30: 0 | P30: 28 | Q30: 03303 | R30: Freirina | S30: 3 | T30: 4 | U30: Atac | W30: Región Aysén del Gral. Carlos Ibáñez del Campo | X30: 11 | Y30: 172.060878 | AA30: 84.39270086 | AB30: 83.16536068 | AC30: 100 | AD30: 56.77257813 | AE30: 49.91332338 | AF30: 45.92025751 | AG30: 100 | AH30: 20 | AI30: 100 | AJ30: 100 | AM30: 802.3194444 | AO30: 1170.117284 | AQ30: 593.5375 | AS30: 531.4027778
B31: 29 | C31: Servicio de Salud Metropolitano Sur | D31: 4 | M31: Ministerio de Salud | P31: 29 | Q31: 03304 | R31: Huasco | S31: 3 | T31: 4 | U31: Atac | W31: Región de Magallanes y de la Antártica Chilena | X31: 12 | Y31: 121.8161621 | Z31: =AK31*$AK$17 -> 9.213504212 | AA31: 81.21627231 | AB31: 63.79978574 | AC31: 100 | AD31: 56.77257813 | AE31: 48.24947873 | AF31: 44.38952043 | AG31: 100 | AH31: 20 | AI31: 100 | AJ31: 100 | AK31: 100.0629411 | AM31: 772.1212121 | AO31: 897.6481481 | AQ31: =AQ30 -> 593.5375 | AS31: 513.6886364
B32: 30 | C32: Servicio de Salud Araucanía Sur | D32: 4 | M32: Ministerio de Salud | P32: 30 | Q32: 04101 | R32: La Serena | S32: 4 | T32: 5 | U32: Coqu | W32: Región Metropolitana de Santiago | X32: 13 | Y32: 123.5369983 | Z32: =AK32*$AK$17 -> 61.23232174 | AA32: 77.61459003 | AB32: 73.3876298 | AC32: 100 | AD32: 53.09675912 | AE32: 45.64557386 | AF32: 41.99392795 | AG32: 100 | AH32: 20 | AI32: 100 | AJ32: 100 | AK32: 665.0114943 | AM32: 737.8801025 | AO32: 1032.546884 | AQ32: 555.1080945 | AS32: 485.9661329
B33: 31 | C33: Servicio de Salud Metropolitano Occidente | D33: 4 | M33: Ministerio de Salud | P33: 31 | Q33: 04102 | R33: Coquimbo | S33: 4 | T33: 5 | U33: Coqu | W33: Región de Los Ríos | X33: 14 | Y33: 168.6913905 | AA33: 83.2857254 | AB33: 81.79149291 | AC33: 100 | AD33: 60.28539084 | AE33: 49.87976091 | AF33: 45.88938004 | AG33: 100 | AH33: 20 | AI33: 100 | AJ33: 100 | AM33: 791.7954545 | AO33: 1150.787284 | AQ33: 630.2627315 | AS33: 531.0454545
B34: 32 | C34: Servicio de Salud Coquimbo | D34: 4 | M34: Ministerio de Salud | P34: 32 | Q34: 04103 | R34: Andacollo | S34: 4 | T34: 5 | U34: Coqu | W34: Región de Arica y Parinacota | X34: 15 | Y34: 110.3702694 | AA34: 79.99138011 | AB34: 92.30800918 | AC34: 100 | AD34: 54.33785637 | AE34: 46.73812444 | AF34: 42.99907449 | AG34: 100 | AH34: 20 | AI34: 100 | AJ34: 100 | AM34: 760.4761905 | AO34: 1298.752222 | AQ34: 568.0833333 | AS34: 497.5979853
B35: 33 | C35: Servicio de Salud O'Higgins | D35: 4 | M35: Ministerio de Salud | P35: 33 | Q35: 04104 | R35: La Higuera | S35: 4 | T35: 5 | U35: Coqu | W35: Ñuble | X35: 16 | Y35: =Y26 -> 154.9235638 | Z35: =Z26 -> 0 | AA35: 76.05763057 | AB35: 79.0083869 | AC35: 100 | AD35: 55.23715764 | AE35: 44.32545371 | AF35: 40.77941741 | AG35: 100 | AH35: 20 | AI35: 100 | AJ35: 100
B36: 34 | D36: 0 | P36: 34 | Q36: 04105 | R36: Paiguano | S36: 4 | T36: 5 | U36: Coqu
B37: 35 | D37: 0 | P37: 35 | Q37: 04106 | R37: Vicuña | S37: 4 | T37: 5 | U37: Coqu
B38: 36 | D38: 0 | P38: 36 | Q38: 04201 | R38: Illapel | S38: 4 | T38: 5 | U38: Coqu
B39: 37 | D39: 0 | P39: 37 | Q39: 04202 | R39: Canela | S39: 4 | T39: 5 | U39: Coqu | W39: Medidores compartidos | X39: (los consumos de estos medidores son asignados a la unidad de la derecha)
B40: 38 | D40: 0 | P40: 38 | Q40: 04203 | R40: Los Vilos | S40: 4 | T40: 5 | U40: Coqu | W40: id medidor | X40: Unidad | Y40: Esto ya no se requiere, porque a partir de 2023, en la primera macro que lee las compras, se cambia el campo de unidad por el id owner del medidor
B41: 39 | D41: 0 | P41: 39 | Q41: 04204 | R41: Salamanca | S41: 4 | T41: 5 | U41: Coqu | W41: 3800594 | X41: 3642
B42: 40 | D42: 0 | P42: 40 | Q42: 04301 | R42: Ovalle | S42: 4 | T42: 5 | U42: Coqu
B43: 41 | D43: 0 | P43: 41 | Q43: 04302 | R43: Combarbalá | S43: 4 | T43: 5 | U43: Coqu
B44: 42 | C44: Servicio de Salud Metropolitano Norte | D44: 4 | M44: Ministerio de Salud | P44: 42 | Q44: 04303 | R44: Monte Patria | S44: 4 | T44: 5 | U44: Coqu
B45: 43 | D45: 0 | P45: 43 | Q45: 04304 | R45: Punitaqui | S45: 4 | T45: 5 | U45: Coqu
B46: 44 | D46: 0 | P46: 44 | Q46: 04305 | R46: Río Hurtado | S46: 4 | T46: 5 | U46: Coqu
B47: 45 | D47: 0 | P47: 45 | Q47: 05101 | R47: Valparaíso | S47: 5 | T47: 6 | U47: Valp
B48: 46 | D48: 0 | P48: 46 | Q48: 05102 | R48: Casablanca | S48: 5 | T48: 6 | U48: Valp
B49: 47 | D49: 0 | P49: 47 | Q49: 05103 | R49: Concón | S49: 5 | T49: 6 | U49: Valp
B50: 48 | D50: 0 | P50: 48 | Q50: 05104 | R50: Juan Fernández | S50: 5 | T50: 6 | U50: Valp
B51: 49 | D51: 0 | P51: 49 | Q51: 05105 | R51: Puchuncaví | S51: 5 | T51: 6 | U51: Valp
B52: 50 | D52: 0 | P52: 50 | Q52: 05106 | R52: Quintero | S52: 5 | T52: 6 | U52: Valp
B53: 51 | D53: 0 | P53: 51 | Q53: 05107 | R53: Viña del Mar | S53: 5 | T53: 6 | U53: Valp
B54: 52 | D54: 0 | P54: 52 | Q54: 05201 | R54: Isla de Pascua | S54: 5 | T54: 6 | U54: Valp
B55: 53 | D55: 0 | P55: 53 | Q55: 05301 | R55: Los Andes | S55: 5 | T55: 6 | U55: Valp
B56: 54 | D56: 0 | P56: 54 | Q56: 05302 | R56: Calle Larga | S56: 5 | T56: 6 | U56: Valp
B57: 55 | D57: 0 | P57: 55 | Q57: 05303 | R57: Rinconada | S57: 5 | T57: 6 | U57: Valp
B58: 56 | D58: 0 | P58: 56 | Q58: 05304 | R58: San Esteban | S58: 5 | T58: 6 | U58: Valp
B59: 57 | D59: 0 | P59: 57 | Q59: 05401 | R59: La Ligua | S59: 5 | T59: 6 | U59: Valp
B60: 58 | D60: 0 | P60: 58 | Q60: 05402 | R60: Cabildo | S60: 5 | T60: 6 | U60: Valp
B61: 59 | D61: 0 | P61: 59 | Q61: 05403 | R61: Papudo | S61: 5 | T61: 6 | U61: Valp
B62: 60 | D62: 0 | P62: 60 | Q62: 05404 | R62: Petorca | S62: 5 | T62: 6 | U62: Valp
B63: 61 | D63: 0 | P63: 61 | Q63: 05405 | R63: Zapallar | S63: 5 | T63: 6 | U63: Valp
B64: 62 | D64: 0 | P64: 62 | Q64: 05501 | R64: Quillota | S64: 5 | T64: 6 | U64: Valp
B65: 63 | D65: 0 | P65: 63 | Q65: 05502 | R65: Calera | S65: 5 | T65: 6 | U65: Valp
B66: 64 | D66: 0 | P66: 64 | Q66: 05503 | R66: Hijuelas | S66: 5 | T66: 6 | U66: Valp
B67: 65 | D67: 0 | P67: 65 | Q67: 05504 | R67: La Cruz | S67: 5 | T67: 6 | U67: Valp
B68: 66 | D68: 0 | P68: 66 | Q68: 05505 | R68: Nogales | S68: 5 | T68: 6 | U68: Valp
B69: 67 | D69: 0 | P69: 67 | Q69: 05601 | R69: San Antonio | S69: 5 | T69: 6 | U69: Valp
B70: 68 | D70: 0 | P70: 68 | Q70: 05602 | R70: Algarrobo | S70: 5 | T70: 6 | U70: Valp
B71: 69 | D71: 0 | P71: 69 | Q71: 05603 | R71: Cartagena | S71: 5 | T71: 6 | U71: Valp
B72: 70 | D72: 0 | P72: 70 | Q72: 05604 | R72: El Quisco | S72: 5 | T72: 6 | U72: Valp
B73: 71 | D73: 0 | P73: 71 | Q73: 05605 | R73: El Tabo | S73: 5 | T73: 6 | U73: Valp
B74: 72 | D74: 0 | P74: 72 | Q74: 05606 | R74: Santo Domingo | S74: 5 | T74: 6 | U74: Valp
B75: 73 | D75: 0 | P75: 73 | Q75: 05701 | R75: San Felipe | S75: 5 | T75: 6 | U75: Valp
B76: 74 | D76: 0 | P76: 74 | Q76: 05702 | R76: Catemu | S76: 5 | T76: 6 | U76: Valp
B77: 75 | D77: 0 | P77: 75 | Q77: 05703 | R77: Llaillay | S77: 5 | T77: 6 | U77: Valp
B78: 76 | D78: 0 | P78: 76 | Q78: 05704 | R78: Panquehue | S78: 5 | T78: 6 | U78: Valp
B79: 77 | D79: 0 | P79: 77 | Q79: 05705 | R79: Putaendo | S79: 5 | T79: 6 | U79: Valp
B80: 78 | D80: 0 | P80: 78 | Q80: 05706 | R80: Santa María | S80: 5 | T80: 6 | U80: Valp
B81: 79 | D81: 0 | P81: 79 | Q81: 05801 | R81: Quilpué | S81: 5 | T81: 6 | U81: Valp
B82: 80 | D82: 0 | P82: 80 | Q82: 05802 | R82: Limache | S82: 5 | T82: 6 | U82: Valp
B83: 81 | D83: 0 | P83: 81 | Q83: 05803 | R83: Olmué | S83: 5 | T83: 6 | U83: Valp
B84: 82 | D84: 0 | P84: 82 | Q84: 05804 | R84: Villa Alemana | S84: 5 | T84: 6 | U84: Valp
B85: 83 | D85: 0 | P85: 83 | Q85: 06101 | R85: Rancagua | S85: 6 | T85: 8 | U85: Libe
B86: 84 | D86: 0 | P86: 84 | Q86: 06102 | R86: Codegua | S86: 6 | T86: 8 | U86: Libe
B87: 85 | D87: 0 | P87: 85 | Q87: 06103 | R87: Coinco | S87: 6 | T87: 8 | U87: Libe
B88: 86 | D88: 0 | P88: 86 | Q88: 06104 | R88: Coltauco | S88: 6 | T88: 8 | U88: Libe
B89: 87 | D89: 0 | P89: 87 | Q89: 06105 | R89: Doñihue | S89: 6 | T89: 8 | U89: Libe
B90: 88 | D90: 0 | P90: 88 | Q90: 06106 | R90: Graneros | S90: 6 | T90: 8 | U90: Libe
B91: 89 | D91: 0 | P91: 89 | Q91: 06107 | R91: Las Cabras | S91: 6 | T91: 8 | U91: Libe
B92: 90 | D92: 0 | P92: 90 | Q92: 06108 | R92: Machalí | S92: 6 | T92: 8 | U92: Libe
B93: 91 | D93: 0 | P93: 91 | Q93: 06109 | R93: Malloa | S93: 6 | T93: 8 | U93: Libe
B94: 92 | D94: 0 | P94: 92 | Q94: 06110 | R94: Mostazal | S94: 6 | T94: 8 | U94: Libe
B95: 93 | D95: 0 | P95: 93 | Q95: 06111 | R95: Olivar | S95: 6 | T95: 8 | U95: Libe
B96: 94 | D96: 0 | P96: 94 | Q96: 06112 | R96: Peumo | S96: 6 | T96: 8 | U96: Libe
B97: 95 | D97: 0 | P97: 95 | Q97: 06113 | R97: Pichidegua | S97: 6 | T97: 8 | U97: Libe
B98: 96 | D98: 0 | P98: 96 | Q98: 06114 | R98: Quinta de Tilcoco | S98: 6 | T98: 8 | U98: Libe
B99: 97 | D99: 0 | P99: 97 | Q99: 06115 | R99: Rengo | S99: 6 | T99: 8 | U99: Libe
B100: 98 | D100: 0 | P100: 98 | Q100: 06116 | R100: Requínoa | S100: 6 | T100: 8 | U100: Libe
B101: 99 | D101: 0 | P101: 99 | Q101: 06117 | R101: San Vicente | S101: 6 | T101: 8 | U101: Libe
B102: 100 | D102: 0 | P102: 100 | Q102: 06201 | R102: Pichilemu | S102: 6 | T102: 8 | U102: Libe
B103: 101 | D103: 0 | P103: 101 | Q103: 06202 | R103: La Estrella | S103: 6 | T103: 8 | U103: Libe
B104: 102 | D104: 0 | P104: 102 | Q104: 06203 | R104: Litueche | S104: 6 | T104: 8 | U104: Libe
B105: 103 | D105: 0 | P105: 103 | Q105: 06204 | R105: Marchihue | S105: 6 | T105: 8 | U105: Libe
B106: 104 | D106: 0 | P106: 104 | Q106: 06205 | R106: Navidad | S106: 6 | T106: 8 | U106: Libe
B107: 105 | D107: 0 | P107: 105 | Q107: 06206 | R107: Paredones | S107: 6 | T107: 8 | U107: Libe
B108: 106 | D108: 0 | P108: 106 | Q108: 06301 | R108: San Fernando | S108: 6 | T108: 8 | U108: Libe
B109: 107 | D109: 0 | P109: 107 | Q109: 06302 | R109: Chépica | S109: 6 | T109: 8 | U109: Libe
B110: 108 | D110: 0 | P110: 108 | Q110: 06303 | R110: Chimbarongo | S110: 6 | T110: 8 | U110: Libe
B111: 109 | D111: 0 | P111: 109 | Q111: 06304 | R111: Lolol | S111: 6 | T111: 8 | U111: Libe
B112: 110 | D112: 0 | P112: 110 | Q112: 06305 | R112: Nancagua | S112: 6 | T112: 8 | U112: Libe
B113: 111 | D113: 0 | P113: 111 | Q113: 06306 | R113: Palmilla | S113: 6 | T113: 8 | U113: Libe
B114: 112 | D114: 0 | P114: 112 | Q114: 06307 | R114: Peralillo | S114: 6 | T114: 8 | U114: Libe
B115: 113 | D115: 0 | P115: 113 | Q115: 06308 | R115: Placilla | S115: 6 | T115: 8 | U115: Libe
B116: 114 | D116: 0 | P116: 114 | Q116: 06309 | R116: Pumanque | S116: 6 | T116: 8 | U116: Libe
B117: 115 | D117: 0 | P117: 115 | Q117: 06310 | R117: Santa Cruz | S117: 6 | T117: 8 | U117: Libe
B118: 116 | D118: 0 | P118: 116 | Q118: 07101 | R118: Talca | S118: 7 | T118: 9 | U118: Maul
B119: 117 | D119: 0 | P119: 117 | Q119: 07102 | R119: Constitución | S119: 7 | T119: 9 | U119: Maul
B120: 118 | D120: 0 | P120: 118 | Q120: 07103 | R120: Curepto | S120: 7 | T120: 9 | U120: Maul
B121: 119 | D121: 0 | P121: 119 | Q121: 07104 | R121: Empedrado | S121: 7 | T121: 9 | U121: Maul
B122: 120 | D122: 0 | P122: 120 | Q122: 07105 | R122: Maule | S122: 7 | T122: 9 | U122: Maul
B123: 121 | D123: 0 | P123: 121 | Q123: 07106 | R123: Pelarco | S123: 7 | T123: 9 | U123: Maul
B124: 122 | D124: 0 | P124: 122 | Q124: 07107 | R124: Pencahue | S124: 7 | T124: 9 | U124: Maul
B125: 123 | D125: 0 | P125: 123 | Q125: 07108 | R125: Río Claro | S125: 7 | T125: 9 | U125: Maul
B126: 124 | D126: 0 | P126: 124 | Q126: 07109 | R126: San Clemente | S126: 7 | T126: 9 | U126: Maul
B127: 125 | D127: 0 | P127: 125 | Q127: 07110 | R127: San Rafael | S127: 7 | T127: 9 | U127: Maul
B128: 126 | D128: 0 | P128: 126 | Q128: 07201 | R128: Cauquenes | S128: 7 | T128: 9 | U128: Maul
B129: 127 | D129: 0 | P129: 127 | Q129: 07202 | R129: Chanco | S129: 7 | T129: 9 | U129: Maul
B130: 128 | D130: 0 | P130: 128 | Q130: 07203 | R130: Pelluhue | S130: 7 | T130: 9 | U130: Maul
B131: 129 | D131: 0 | P131: 129 | Q131: 07301 | R131: Curicó | S131: 7 | T131: 9 | U131: Maul
B132: 130 | D132: 0 | P132: 130 | Q132: 07302 | R132: Hualañé | S132: 7 | T132: 9 | U132: Maul
B133: 131 | D133: 0 | P133: 131 | Q133: 07303 | R133: Licantén | S133: 7 | T133: 9 | U133: Maul
B134: 132 | D134: 0 | P134: 132 | Q134: 07304 | R134: Molina | S134: 7 | T134: 9 | U134: Maul
B135: 133 | D135: 0 | P135: 133 | Q135: 07305 | R135: Rauco | S135: 7 | T135: 9 | U135: Maul
B136: 134 | D136: 0 | P136: 134 | Q136: 07306 | R136: Romeral | S136: 7 | T136: 9 | U136: Maul
B137: 135 | D137: 0 | P137: 135 | Q137: 07307 | R137: Sagrada Familia | S137: 7 | T137: 9 | U137: Maul
B138: 136 | D138: 0 | P138: 136 | Q138: 07308 | R138: Teno | S138: 7 | T138: 9 | U138: Maul
B139: 137 | D139: 0 | P139: 137 | Q139: 07309 | R139: Vichuquén | S139: 7 | T139: 9 | U139: Maul
B140: 138 | D140: 0 | P140: 138 | Q140: 07401 | R140: Linares | S140: 7 | T140: 9 | U140: Maul
B141: 139 | D141: 0 | P141: 139 | Q141: 07402 | R141: Colbún | S141: 7 | T141: 9 | U141: Maul
B142: 140 | D142: 0 | P142: 140 | Q142: 07403 | R142: Longaví | S142: 7 | T142: 9 | U142: Maul
B143: 141 | D143: 0 | P143: 141 | Q143: 07404 | R143: Parral | S143: 7 | T143: 9 | U143: Maul
B144: 142 | D144: 0 | P144: 142 | Q144: 07405 | R144: Retiro | S144: 7 | T144: 9 | U144: Maul
B145: 143 | D145: 0 | P145: 143 | Q145: 07406 | R145: San Javier | S145: 7 | T145: 9 | U145: Maul
B146: 144 | D146: 0 | P146: 144 | Q146: 07407 | R146: Villa Alegre | S146: 7 | T146: 9 | U146: Maul
B147: 145 | D147: 0 | P147: 145 | Q147: 07408 | R147: Yerbas Buenas | S147: 7 | T147: 9 | U147: Maul
B148: 146 | D148: 0 | P148: 146 | Q148: 08101 | R148: Concepción | S148: 8 | T148: 11 | U148: BioB
B149: 147 | D149: 0 | P149: 147 | Q149: 08102 | R149: Coronel | S149: 8 | T149: 11 | U149: BioB
B150: 148 | D150: 0 | P150: 148 | Q150: 08103 | R150: Chiguayante | S150: 8 | T150: 11 | U150: BioB
B151: 149 | D151: 0 | P151: 149 | Q151: 08104 | R151: Florida | S151: 8 | T151: 11 | U151: BioB
B152: 150 | C152: Servicio de Salud de Viña del Mar Quillota | D152: 3 | M152: Ministerio de Salud | P152: 150 | Q152: 08105 | R152: Hualqui | S152: 8 | T152: 11 | U152: BioB
B153: 151 | D153: 0 | P153: 151 | Q153: 08106 | R153: Lota | S153: 8 | T153: 11 | U153: BioB
B154: 152 | D154: 0 | P154: 152 | Q154: 08107 | R154: Penco | S154: 8 | T154: 11 | U154: BioB
B155: 153 | D155: 0 | P155: 153 | Q155: 08108 | R155: San Pedro de la Paz | S155: 8 | T155: 11 | U155: BioB
B156: 154 | D156: 0 | P156: 154 | Q156: 08109 | R156: Santa Juana | S156: 8 | T156: 11 | U156: BioB
B157: 155 | D157: 0 | P157: 155 | Q157: 08110 | R157: Talcahuano | S157: 8 | T157: 11 | U157: BioB
B158: 156 | D158: 0 | P158: 156 | Q158: 08111 | R158: Tomé | S158: 8 | T158: 11 | U158: BioB
B159: 157 | D159: 0 | P159: 157 | Q159: 08112 | R159: Hualpén | S159: 8 | T159: 11 | U159: BioB
B160: 158 | D160: 0 | P160: 158 | Q160: 08201 | R160: Lebu | S160: 8 | T160: 11 | U160: BioB
B161: 159 | C161: Servicio de Salud Valdivia | D161: 4 | M161: Ministerio de Salud | P161: 159 | Q161: 08202 | R161: Arauco | S161: 8 | T161: 11 | U161: BioB
B162: 160 | D162: 0 | P162: 160 | Q162: 08203 | R162: Cañete | S162: 8 | T162: 11 | U162: BioB
B163: 161 | C163: Servicio de Salud Aconcagua | D163: 3 | M163: Ministerio de Salud | P163: 161 | Q163: 08204 | R163: Contulmo | S163: 8 | T163: 11 | U163: BioB
B164: 162 | D164: 0 | P164: 162 | Q164: 08205 | R164: Curanilahue | S164: 8 | T164: 11 | U164: BioB
B165: 163 | D165: 0 | P165: 163 | Q165: 08206 | R165: Los Álamos | S165: 8 | T165: 11 | U165: BioB
B166: 164 | D166: 0 | P166: 164 | Q166: 08207 | R166: Tirúa | S166: 8 | T166: 11 | U166: BioB
B167: 165 | D167: 0 | P167: 165 | Q167: 08301 | R167: Los Ángeles | S167: 8 | T167: 11 | U167: BioB
B168: 166 | C168: Servicio de Salud Atacama | D168: 4 | M168: Ministerio de Salud | P168: 166 | Q168: 08302 | R168: Antuco | S168: 8 | T168: 11 | U168: BioB
B169: 167 | C169: Servicio de Salud Iquique | D169: 4 | M169: Ministerio de Salud | P169: 167 | Q169: 08303 | R169: Cabrero | S169: 8 | T169: 11 | U169: BioB
B170: 168 | D170: 0 | P170: 168 | Q170: 08304 | R170: Laja | S170: 8 | T170: 11 | U170: BioB
B171: 169 | D171: 0 | P171: 169 | Q171: 08305 | R171: Mulchén | S171: 8 | T171: 11 | U171: BioB
B172: 170 | D172: 0 | P172: 170 | Q172: 08306 | R172: Nacimiento | S172: 8 | T172: 11 | U172: BioB
B173: 171 | D173: 0 | P173: 171 | Q173: 08307 | R173: Negrete | S173: 8 | T173: 11 | U173: BioB
B174: 172 | D174: 0 | P174: 172 | Q174: 08308 | R174: Quilaco | S174: 8 | T174: 11 | U174: BioB
B175: 173 | D175: 0 | P175: 173 | Q175: 08309 | R175: Quilleco | S175: 8 | T175: 11 | U175: BioB
B176: 174 | D176: 0 | P176: 174 | Q176: 08310 | R176: San Rosendo | S176: 8 | T176: 11 | U176: BioB
B177: 175 | D177: 0 | P177: 175 | Q177: 08311 | R177: Santa Bárbara | S177: 8 | T177: 11 | U177: BioB
B178: 176 | D178: 0 | P178: 176 | Q178: 08312 | R178: Tucapel | S178: 8 | T178: 11 | U178: BioB
B179: 177 | D179: 0 | P179: 177 | Q179: 08313 | R179: Yumbel | S179: 8 | T179: 11 | U179: BioB
B180: 178 | D180: 0 | P180: 178 | Q180: 08314 | R180: Alto Biobío | S180: 8 | T180: 11 | U180: BioB
B181: 179 | D181: 0 | P181: 179 | Q181: 08401 | R181: Chillán | S181: 16 | T181: 10 | U181: Ñubl
B182: 180 | D182: 0 | P182: 180 | Q182: 08402 | R182: Bulnes | S182: 16 | T182: 10 | U182: Ñubl
B183: 181 | D183: 0 | P183: 181 | Q183: 08403 | R183: Cobquecura | S183: 16 | T183: 10 | U183: Ñubl
B184: 182 | D184: 0 | P184: 182 | Q184: 08404 | R184: Coelemu | S184: 16 | T184: 10 | U184: Ñubl
B185: 183 | D185: 0 | P185: 183 | Q185: 08405 | R185: Coihueco | S185: 16 | T185: 10 | U185: Ñubl
B186: 184 | D186: 0 | P186: 184 | Q186: 08406 | R186: Chillán Viejo | S186: 16 | T186: 10 | U186: Ñubl
B187: 185 | D187: 0 | P187: 185 | Q187: 08407 | R187: El Carmen | S187: 16 | T187: 10 | U187: Ñubl
B188: 186 | D188: 0 | P188: 186 | Q188: 08408 | R188: Ninhue | S188: 16 | T188: 10 | U188: Ñubl
B189: 187 | D189: 0 | P189: 187 | Q189: 08409 | R189: Ñiquén | S189: 16 | T189: 10 | U189: Ñubl
B190: 188 | D190: 0 | P190: 188 | Q190: 08410 | R190: Pemuco | S190: 16 | T190: 10 | U190: Ñubl
B191: 189 | D191: 0 | P191: 189 | Q191: 08411 | R191: Pinto | S191: 16 | T191: 10 | U191: Ñubl
B192: 190 | D192: 0 | P192: 190 | Q192: 08412 | R192: Portezuelo | S192: 16 | T192: 10 | U192: Ñubl
B193: 191 | D193: 0 | P193: 191 | Q193: 08413 | R193: Quillón | S193: 16 | T193: 10 | U193: Ñubl
B194: 192 | D194: 0 | P194: 192 | Q194: 08414 | R194: Quirihue | S194: 16 | T194: 10 | U194: Ñubl
B195: 193 | D195: 0 | P195: 193 | Q195: 08415 | R195: Ránquil | S195: 16 | T195: 10 | U195: Ñubl
B196: 194 | D196: 0 | P196: 194 | Q196: 08416 | R196: San Carlos | S196: 16 | T196: 10 | U196: Ñubl
B197: 195 | D197: 0 | P197: 195 | Q197: 08417 | R197: San Fabián | S197: 16 | T197: 10 | U197: Ñubl
B198: 196 | D198: 0 | P198: 196 | Q198: 08418 | R198: San Ignacio | S198: 16 | T198: 10 | U198: Ñubl
B199: 197 | D199: 0 | P199: 197 | Q199: 08419 | R199: San Nicolás | S199: 16 | T199: 10 | U199: Ñubl
B200: 198 | D200: 0 | P200: 198 | Q200: 08420 | R200: Treguaco | S200: 16 | T200: 10 | U200: Ñubl
... 1808 more rows

Sheet Base

Sheet Medidores
A1: Institucion | B1: Servicio | C1: Direccion (unidad) | D1: Id_unidad | E1: energetico | F1: Empresa distribuidora | G1: numero cliente | H1: numero cliente id | I1: Nombre Cliente | J1: numero medidor | K1: id numero medidor | L1: id_edificio | M1: tipo_tarifa | N1: potencia_suministrada | O1: medidor_inteligente | P1: medidor_compartido | Q1: AccesoFactura | R1: AccesoFactura2 | S1: IdDueño
A2: Congreso Nacional | B2: Senado | C2: Morandé, Nro. 441, Piso , Región Metropolitana de Santiago | D2: 5716 | E2: Electricidad | F2: Enel Distribución (ex Chilectra) | G2: 177911-7 | H2: 3780417 | I2: SENADO DE LA REPUBLICA | J2: 46047102 | K2: 3781416 | L2: 2364 | M2: BT-1a (BT-1) | N2: 0,00 | O2: FALSE | P2: FALSE | Q2: Sin información | S2: 5716
A3: Congreso Nacional | B3: Senado | C3: Morandé, Nro. 441, Piso , Región Metropolitana de Santiago | D3: 5716 | E3: Electricidad | F3: Enel Distribución (ex Chilectra) | G3: 177912-5 | H3: 3780418 | I3: SENADO DE LA REPUBLICA | J3: 46047116 | K3: 3781417 | L3: 2364 | M3: BT-1a (BT-1) | N3: 0,00 | O3: FALSE | P3: FALSE | Q3: Sin información | S3: 5716
A4: Congreso Nacional | B4: Senado | C4: Morandé, Nro. 441, Piso , Región Metropolitana de Santiago | D4: 5716 | E4: Gas Natural | F4: Metrogas | G4: 771020951 | H4: 3780419 | I4: SENADO DE LA REPUBLICA | J4: R70000155931997 | K4: 3781418 | L4: 2364 | M4: BT-1a (BT-1) | N4: 0,00 | O4: FALSE | P4: FALSE | Q4: Sin información | S4: 5716
A5: Congreso Nacional | B5: Senado | C5: Morandé, Nro. 441, Piso , Región Metropolitana de Santiago | D5: 5716 | E5: Gas Natural | F5: Metrogas | G5: 771021001 | H5: 3780420 | I5: SENADO DE LA REPUBLICA | J5: G20109494071997 | K5: 3781419 | L5: 2364 | M5: BT-1a (BT-1) | N5: 0,00 | O5: FALSE | P5: FALSE | Q5: Sin información | S5: 5716
A6: Ministerio de Agricultura | B6: Instituto de Desarrollo Agropecuario | C6: Ignacio Carrera Pinto, Nro. 566, Pisos 1, Región de Magallanes y de la Antártica Chilena | D6: 247 | E6: Gas Natural | F6: Gasco Magallanes | G6: 70705500 | H6: 3778175 | I6: Instituto de Desarrollo Agropecuario | J6: 268016 | K6: 3778658 | L6: 3600 | M6: BT-1a (BT-1) | N6: 0,00 | O6: FALSE | P6: FALSE | Q6: Si | S6: 247
A7: Ministerio de Agricultura | B7: Subsecretaría de Agricultura | C7: Avenida Presidente Manuel Bulnes, Nro. 309, Pisos 5to., Región de Magallanes y de la Antártica Chilena | D7: 1094 | E7: Gas Natural | F7: Gasco Magallanes | G7: 68710500 | H7: 72194 | I7: SERVICIO AGRICULA Y GANADERO | J7: 6405676 | K7: 72288 | L7: 3442 | M7: BT-1a (BT-1) | N7: 0,00 | O7: FALSE | P7: FALSE | Q7: No, Otro servicio público | S7: 1094
A8: Ministerio de Agricultura | B8: Instituto de Desarrollo Agropecuario | C8: Agustinas, Nro. 1465, Pisos -2,-1,1,2,3,4,5,6,7,8,9, Región Metropolitana de Santiago | D8: 329 | E8: Gas Natural | F8: Metrogas | G8: 567038262 | H8: 145 | I8: NIVEL CENTRAL | J8: R70097318871997 | K8: 152 | L8: 150 | M8: BT-1a (BT-1) | N8: 0,00 | O8: FALSE | P8: FALSE | Q8: Si | S8: 329
A9: Ministerio de Agricultura | B9: Instituto de Desarrollo Agropecuario | C9: José Menéndez, Nro. 1147, Pisos 1,2,3,4, Región de Magallanes y de la Antártica Chilena | D9: 243 | E9: Gas Natural | F9: Gasco Magallanes | G9: 57007200 | H9: 3776447 | I9: INDAP | J9: 147855 | K9: 3776760 | L9: 1900 | M9: BT-1a (BT-1) | N9: 0,00 | O9: FALSE | P9: FALSE | Q9: Si | S9: 243
A10: Ministerio de Agricultura | B10: Instituto de Desarrollo Agropecuario | C10: Ramón Freire, Nro. 765, Pisos Todos, Región de Valparaíso | D10: 177 | E10: Gas Natural | F10: GAS VALPO | G10: 8018923 | H10: 3777723 | I10: Gas Direccion Regional | J10: 4044690 | K10: 3778149 | L10: 3477 | M10: BT-1a (BT-1) | N10: 0,00 | O10: FALSE | P10: FALSE | Q10: Si | S10: 177
A11: Ministerio de Agricultura | B11: Instituto de Desarrollo Agropecuario | C11: Ramón Freire, Nro. 765, Pisos Todos, Región de Valparaíso | D11: 177 | E11: Gas Natural | F11: GAS VALPO | G11: 8018923 | H11: 3777723 | I11: Gas Direccion Regional | J11: 2001782 | K11: 3812601 | L11: 3477 | M11: BT-1a (BT-1) | N11: 0,00 | O11: FALSE | P11: FALSE | Q11: Si | R11: TRUE | S11: 177
A12: Ministerio de Agricultura | B12: Servicio Agrícola y Ganadero | C12: Ruta 9 Norte, Nro. S/N, Pisos 1, Región de Magallanes y de la Antártica Chilena | D12: 619 | E12: Gas Natural | F12: Gasco Magallanes | G12: 16908120 | H12: 3779440 | I12: SAG | J12: 16226725 | K12: 3780227 | L12: 3298 | M12: BT-1a (BT-1) | N12: 0,00 | O12: FALSE | P12: FALSE | Q12: Si | S12: 619
A13: Ministerio de Agricultura | B13: Servicio Agrícola y Ganadero | C13: Ruta 9 Norte, Nro. S/N, Pisos 1, Región de Magallanes y de la Antártica Chilena | D13: 619 | E13: Gas Natural | F13: Gasco Magallanes | G13: 16908120 | H13: 3779440 | I13: SAG | J13: 25367885 | K13: 3813555 | L13: 3298 | M13: BT-1a (BT-1) | N13: 0,00 | O13: FALSE | P13: FALSE | Q13: Si | R13: TRUE | S13: 619
A14: Ministerio de Agricultura | B14: Servicio Agrícola y Ganadero | C14: Ruta 9 Norte, Nro. S/N, Pisos 1, Región de Magallanes y de la Antártica Chilena | D14: 619 | E14: Gas Natural | F14: Gasco Magallanes | G14: 16908130 | H14: 3779441 | I14: SAG | J14: 18926760 | K14: 3780228 | L14: 3298 | M14: BT-1a (BT-1) | N14: 0,00 | O14: FALSE | P14: FALSE | Q14: Si | S14: 619
A15: Ministerio de Agricultura | B15: Corporación Nacional Forestal | C15: Avenida Presidente Manuel Bulnes, Nro. 333, Pisos , Región de Magallanes y de la Antártica Chilena | D15: 3376 | E15: Gas Natural | F15: Gasco Magallanes | G15: 8520800 | H15: 3779584 | I15: CORPORACION NACIONAL FORESTAL | J15: 2321449 | K15: 3780416 | L15: 815 | M15: BT-1a (BT-1) | N15: 0,00 | O15: FALSE | P15: FALSE | Q15: Si | S15: 3376
A16: Ministerio de Agricultura | B16: Subsecretaría de Agricultura | C16: Avenida Presidente Manuel Bulnes, Nro. 309, Pisos 5to., Región de Magallanes y de la Antártica Chilena | D16: 1094 | E16: Electricidad | F16: EDELMAG - Empresa eléctrica de Magallanes | G16: 4545777 | H16: 72193 | I16: SERVICIO AGRÍCOLA Y GANADERO | J16: 68473405 | K16: 72286 | L16: 3442 | M16: BT-1a (BT-1) | N16: 0,00 | O16: FALSE | P16: FALSE | Q16: No, Otro servicio público | S16: 1094
A17: Ministerio de Agricultura | B17: Subsecretaría de Agricultura | C17: Avenida Presidente Manuel Bulnes, Nro. 309, Pisos 5to., Región de Magallanes y de la Antártica Chilena | D17: 1094 | E17: Electricidad | F17: EDELMAG - Empresa eléctrica de Magallanes | G17: 4545777 | H17: 72193 | I17: SERVICIO AGRÍCOLA Y GANADERO | J17: 69915928 | K17: 72287 | L17: 3442 | M17: BT-1a (BT-1) | N17: 0,00 | O17: FALSE | P17: FALSE | Q17: No, Otro servicio público | S17: 1094
A18: Ministerio de Agricultura | B18: Instituto de Desarrollo Agropecuario | C18: Padre Mario Zavattaro, Nro. 562, Pisos 1, Región de Magallanes y de la Antártica Chilena | D18: 228 | E18: Gas Natural | F18: Gasco Magallanes | G18: 93701150 | H18: 3778172 | I18: Instituto de Desarrollo Agropecuario | J18: 200002804 | K18: 3778655 | L18: 2474 | M18: BT-1a (BT-1) | N18: 0,00 | O18: FALSE | P18: FALSE | Q18: Si | S18: 228
A19: Ministerio de Agricultura | B19: Corporación Nacional Forestal | C19: Avenida Presidente Bulnes, Nro. 285, Pisos del 2, 3, 4, 5, 6, 7, 8, Región Metropolitana de Santiago | D19: 179 | E19: Gas Natural | F19: Metrogas | G19: 545076055 | H19: 3779600 | I19: Paseo Bulnes 285 depto 801 | J19: G20094050131997 | K19: 3780438 | L19: 799 | M19: BT-1a (BT-1) | N19: 0,00 | O19: FALSE | P19: FALSE | Q19: Si | S19: 179
A20: Ministerio de Agricultura | B20: Corporación Nacional Forestal | C20: 3 norte, Nro. 541, Pisos 1,2,3, Región de Valparaíso | D20: 3443 | E20: Gas Natural | F20: GAS VALPO | G20: 841870 | H20: 3777987 | I20: CONAF | J20: 1025217-ABB6 | K20: 3778457 | L20: 99 | M20: BT-1a (BT-1) | N20: 0,00 | O20: FALSE | P20: FALSE | Q20: Si | S20: 3443
A21: Ministerio de Agricultura | B21: Servicio Agrícola y Ganadero | C21: Avenida Presidente Manuel Bulnes, Nro. 309, Pisos 1, Región de Magallanes y de la Antártica Chilena | D21: 4430 | E21: Gas Natural | F21: Gasco Magallanes | G21: 68710500 | H21: 3779084 | I21: SAG MAGALLANES BULNES 0309 | J21: 6405676 | K21: 3779795 | L21: 3442 | M21: BT-1a (BT-1) | N21: 0,00 | O21: FALSE | P21: TRUE | Q21: Si | R21: TRUE | S21: 4430
A22: Ministerio de Agricultura | B22: Servicio Agrícola y Ganadero | C22: Avenida Presidente Bulnes, Nro. 140, Pisos 1,9, Región Metropolitana de Santiago | D22: 130 | E22: Gas Natural | F22: Metrogas | G22: 767012004 | H22: 3527189 | I22: sag | J22: G10094049231997 | K22: 3527381 | L22: 790 | M22: BT-1a (BT-1) | N22: 0,00 | O22: FALSE | P22: FALSE | Q22: Si | S22: 130
A23: Ministerio de Agricultura | B23: Servicio Agrícola y Ganadero | C23: Ignacio Carrera Pinto, Nro. 566, Pisos 1, Región de Magallanes y de la Antártica Chilena | D23: 4423 | E23: Gas Natural | F23: Gasco Magallanes | G23: 70705400 | H23: 3779111 | I23: SAG Ultima Esperanza (Magallanes) | J23: 2336310 | K23: 3779843 | L23: 3600 | M23: BT-1a (BT-1) | N23: 0,00 | O23: FALSE | P23: FALSE | Q23: Si | S23: 4423
A24: Ministerio de Agricultura | B24: Servicio Agrícola y Ganadero | C24: Padre Mario Zavattaro, Nro. 482, Pisos 1, Región de Magallanes y de la Antártica Chilena | D24: 3254 | E24: Gas Natural | F24: Gasco Magallanes | G24: 93700190 | H24: 3779113 | I24: SAG TDF (Magallanes) | J24: 2334890 | K24: 3779825 | L24: 2472 | M24: BT-1a (BT-1) | N24: 0,00 | O24: FALSE | P24: FALSE | Q24: Si | S24: 3254
A25: Ministerio de Agricultura | B25: Corporación Nacional Forestal | C25: Manuel Baquedano, Nro. 847, Pisos 1,2, Región de Magallanes y de la Antártica Chilena | D25: 3377 | E25: Gas Natural | F25: Gasco Magallanes | G25: 70704880 | H25: 3776621 | I25: Corporación Nacional Forestal | J25: 200010343 | K25: 3776944 | L25: 2212 | M25: BT-1a (BT-1) | N25: 0,00 | O25: FALSE | P25: FALSE | Q25: Si | S25: 3377
A26: Ministerio de Agricultura | B26: Servicio Agrícola y Ganadero | C26: Antonio Varas, Nro. 120, Pisos 1,2,3,4, Región de Valparaíso | D26: 1026 | E26: Gas Natural | F26: GAS VALPO | G26: 47252 | H26: 201085 | I26: SERVICIO AGRICOLA Y GANADERO | J26: 23370280-RF-1 | K26: 201201 | L26: 266 | M26: BT-1a (BT-1) | N26: 0,00 | O26: FALSE | P26: FALSE | Q26: Si | S26: 1026
A27: Ministerio de Agricultura | B27: Servicio Agrícola y Ganadero | C27: Santa Teresa, Nro. 1052, Pisos 1, Región de Valparaíso | D27: 7291 | E27: Electricidad | F27: CGE - CGE Distribución | G27: 1386719 | H27: 3800970 | J27: 8622634 | K27: 3801275 | L27: 4991 | M27: BT-1b | N27: 4,00 | O27: FALSE | P27: FALSE | Q27: Si | S27: 7291
A28: Ministerio de Agricultura | B28: Instituto de Desarrollo Agropecuario | C28: Comercio, Nro. 423, Pisos 1, Región de Los Ríos | D28: 4124 | E28: Electricidad | F28: SAESA - Sociedad Austral de Electricidad S.A | G28: 11054893 | H28: 3801177 | J28: 42583 | K28: 3801483 | L28: 1324 | M28: BT-2 | N28: 13,00 | O28: FALSE | P28: FALSE | Q28: Si | R28: FALSE | S28: 4124
A29: Ministerio de Agricultura | B29: Subsecretaría de Agricultura | C29: Teatinos, Nro. 40, Pisos 1, 5, 9, 10, Región Metropolitana de Santiago | D29: 495 | E29: Electricidad | F29: Enel Distribución (ex Chilectra) | G29: 365216-5 | H29: 12 | J29: 55059049 | K29: 13 | L29: 3680 | M29: BT-2 | N29: 22,00 | O29: FALSE | P29: FALSE | Q29: Si | S29: 495
A30: Ministerio de Agricultura | B30: Subsecretaría de Agricultura | C30: Teatinos, Nro. 40, Pisos 1, 5, 9, 10, Región Metropolitana de Santiago | D30: 495 | E30: Electricidad | F30: Enel Distribución (ex Chilectra) | G30: 532969-8 | H30: 13 | J30: 61846749 | K30: 14 | L30: 3680 | M30: BT-3 | N30: 90,00 | O30: FALSE | P30: FALSE | Q30: Si | S30: 495
A31: Ministerio de Agricultura | B31: Subsecretaría de Agricultura | C31: Manuel Antonio Matta, Nro. 1999, Pisos piso 2, Región de Antofagasta | D31: 1112 | E31: Electricidad | F31: ELECDA - Empresa Eléctrica de Antofagasta S.A | G31: 9237951 | H31: 53 | J31: 46036945 | K31: 55 | L31: 3412 | M31: BT-3 | N31: 26,33 | O31: FALSE | P31: TRUE | Q31: Si | S31: 1112
A32: Ministerio de Agricultura | B32: Subsecretaría de Agricultura | C32: Teniente Coronel José Bernardo Cuevas, Nro. 480, Pisos Segundo, Región del Libertador Gral. Bernardo O’Higgins | D32: 1226 | E32: Electricidad | F32: CGE - CGE Distribución | G32: 1535654 | H32: 49 | J32: 22215957 | K32: 51 | L32: 3487 | M32: BT-3 | N32: 21,06 | O32: FALSE | P32: FALSE | Q32: Si | S32: 1226
A33: Ministerio de Agricultura | B33: Instituto de Desarrollo Agropecuario | C33: Villa O'Higgins, Nro. 288, Pisos 1, Región de Los Lagos | D33: 4133 | E33: Electricidad | F33: SAESA - Sociedad Austral de Electricidad S.A | G33: 11042058 | H33: 3800686 | J33: 51541363 | K33: 3800812 | L33: 3187 | M33: BT-3 | N33: 49,00 | O33: FALSE | P33: FALSE | Q33: Si | S33: 4133
A34: Ministerio de Agricultura | B34: Instituto de Desarrollo Agropecuario | C34: Los Espinos , Nro. 91 Oficina AA PISO 1, Pisos 1, Región del Maule | D34: 7155 | E34: Electricidad | F34: CGE - CGE Distribución | G34: 6237850 | H34: 3800873 | J34: 51541983 | K34: 3801093 | L34: 4828 | M34: BT-3 | N34: 0,00 | O34: FALSE | P34: FALSE | Q34: Si | S34: 7155
A35: Ministerio de Agricultura | B35: Instituto de Desarrollo Agropecuario | C35: Claudio Arrau, Nro. 738, Pisos 1,2, Región del Ñuble | D35: 2140 | E35: Electricidad | F35: CGE - CGE Distribución | G35: 1880511 | H35: 3778138 | J35: 59858010 | K35: 3778616 | L35: 3407 | M35: BT-3 | N35: 32,91 | O35: FALSE | P35: FALSE | Q35: Si | S35: 2140
A36: Ministerio de Agricultura | B36: Instituto de Desarrollo Agropecuario | C36: Claudio Arrau, Nro. 738, Pisos 1,2, Región del Ñuble | D36: 2140 | E36: Electricidad | F36: CGE - CGE Distribución | G36: 1880511 | H36: 3778138 | J36: 51666427 | K36: 3812621 | L36: 3407 | M36: BT-3 | N36: 32,91 | O36: FALSE | P36: FALSE | Q36: Si | R36: TRUE | S36: 2140
A37: Ministerio de Agricultura | B37: Instituto de Desarrollo Agropecuario | C37: Constitucion , Nro. 227, Pisos 1, Región del Ñuble | D37: 7353 | E37: Electricidad | F37: CGE - CGE Distribución | G37: 1885042 | H37: 3801023 | J37: 4237755 | K37: 3801315 | L37: 5068 | M37: BT-3 | N37: 11,00 | O37: FALSE | P37: FALSE | Q37: Si | S37: 7353
A38: Ministerio de Agricultura | B38: Instituto de Desarrollo Agropecuario | C38: Uno Oriente , Nro. 908, Pisos 2, Región del Maule | D38: 7515 | E38: Electricidad | F38: CGE - CGE Distribución | G38: 1805888 | H38: 3801073 | J38: 98939427 | K38: 3801360 | L38: 5219 | M38: BT-3 | N38: 19,00 | O38: FALSE | P38: FALSE | Q38: Si | S38: 7515
A39: Ministerio de Agricultura | B39: Instituto de Desarrollo Agropecuario | C39: Teodoro Schmidt, Nro. 732, Pisos 1, Región de la Araucanía | D39: 7558 | E39: Electricidad | F39: FRONTEL - Empresa eléctrica de la Frontera | G39: 10542684 | H39: 3801095 | J39: 51516566 | K39: 3801386 | L39: 5259 | M39: BT-3 | N39: 22,00 | O39: FALSE | P39: FALSE | Q39: Si | S39: 7558
A40: Ministerio de Agricultura | B40: Instituto de Desarrollo Agropecuario | C40: Arturo Prat, Nro. 35, Pisos 1,2, Región de Los Ríos | D40: 206 | E40: Electricidad | F40: SAESA - Sociedad Austral de Electricidad S.A | G40: 10986086 | H40: 3802144 | J40: 10042489 | K40: 3812616 | L40: 342 | M40: BT-3 | N40: 27,00 | O40: FALSE | P40: FALSE | Q40: Si | R40: TRUE | S40: 206
A41: Ministerio de Agricultura | B41: Corporación Nacional Forestal | C41: Avenida Echeñique , Nro. 6478, Pisos 2, Región Metropolitana de Santiago | D41: 7188 | E41: Electricidad | F41: Enel Distribución (ex Chilectra) | G41: 695099-K | H41: 3800587 | I41: Corporacion Nacional Forestal | J41: 92309 | K41: 3800688 | L41: 4867 | M41: BT-4.1 | N41: 1,00 | O41: FALSE | P41: FALSE | Q41: Si | S41: 7188
A42: Ministerio de Agricultura | B42: Corporación Nacional Forestal | C42: Avenida Echeñique , Nro. 6478, Pisos 2, Región Metropolitana de Santiago | D42: 7188 | E42: Electricidad | F42: Enel Distribución (ex Chilectra) | G42: 695099-K | H42: 3800587 | I42: Corporacion Nacional Forestal | J42: 68360848 | K42: 3800722 | L42: 4867 | M42: BT-4.1 | N42: 1,00 | O42: TRUE | P42: FALSE | Q42: Si | S42: 7188
A43: Ministerio de Agricultura | B43: Instituto de Desarrollo Agropecuario | C43: Sotomayor, Nro. 75, Pisos 2, Región de la Araucanía | D43: 237 | E43: Electricidad | F43: FRONTEL - Empresa eléctrica de la Frontera | G43: 10291935 | H43: 3777592 | J43: 107959 | K43: 3778012 | L43: 3022 | M43: BT-4.3 | N43: 40,00 | O43: FALSE | P43: FALSE | Q43: Si | S43: 237
A44: Ministerio de Agricultura | B44: Instituto de Desarrollo Agropecuario | C44: Sotomayor, Nro. 75, Pisos 2, Región de la Araucanía | D44: 237 | E44: Electricidad | F44: FRONTEL - Empresa eléctrica de la Frontera | G44: 10291935 | H44: 3777592 | J44: 51508795 | K44: 3801750 | L44: 3022 | M44: BT-4.3 | N44: 40,00 | O44: FALSE | P44: FALSE | Q44: Si | S44: 237
A45: Ministerio de Agricultura | B45: Subsecretaría de Agricultura | C45: SCHLEYER, Nro. 145, Pisos 1, Región del Ñuble | D45: 6501 | E45: Electricidad | F45: CGE - CGE Distribución | G45: 1890508 | H45: 3800020 | J45: 51542556 | K45: 3800020 | L45: 4003 | M45: BT-4.3 | N45: 13,16 | O45: FALSE | P45: FALSE | Q45: Si | S45: 6501
A46: Ministerio de Agricultura | B46: Subsecretaría de Agricultura | C46: SCHLEYER, Nro. 145, Pisos 1, Región del Ñuble | D46: 6501 | E46: Electricidad | F46: CGE - CGE Distribución | G46: 1890508 | H46: 3800020 | J46: 11038648 | K46: 3801094 | L46: 4003 | M46: BT-4.3 | N46: 13,16 | O46: FALSE | P46: FALSE | Q46: Si | S46: 6501
A47: Ministerio de Agricultura | B47: Servicio Agrícola y Ganadero | C47: Aníbal Pinto, Nro. 740, Pisos 1, Región del Biobío | D47: 3319 | E47: Electricidad | F47: FRONTEL - Empresa eléctrica de la Frontera | G47: 12031558 | H47: 3813374 | J47: 51690091 | K47: 3824071 | L47: 259 | M47: BT-4.3 | N47: 15,00 | O47: FALSE | P47: FALSE | Q47: Si | R47: TRUE | S47: 3319
A48: Ministerio de Agricultura | B48: Instituto de Desarrollo Agropecuario | C48: Ortíz de Rozas, Nro. 765, Pisos 1, Región del Ñuble | D48: 4121 | E48: Electricidad | F48: CGE - CGE Distribución | G48: 6147422 | H48: 3800882 | J48: 51509073 | K48: 3801140 | L48: 2447 | M48: BT-4.3 | N48: 26,00 | O48: FALSE | P48: FALSE | Q48: Si | S48: 4121
A49: Ministerio de Agricultura | B49: Corporación Nacional Forestal | C49: Av. Bernardo O'higgins, Nro. 3430, Pisos 1, Región del Ñuble | D49: 9376 | E49: Electricidad | F49: COPELEC - Cooperativa de Ñuble | G49: 68587 | H49: 3813341 | J49: 50340714 | K49: 3824018 | L49: 17164 | M49: AT-4.3 | N49: 150,00 | O49: FALSE | P49: FALSE | Q49: Si | R49: TRUE | S49: 9376
A50: Ministerio de Agricultura | B50: Instituto de Desarrollo Agropecuario | C50: Avenida Lastarria, Nro. 444, Pisos 1, Región de Arica y Parinacota | D50: 7584 | E50: Gas Licuado de Petróleo | F50: Lipigas | G50: 11047705 | H50: 3801215 | J50: 500002947 | K50: 3801523 | L50: 5280 | N50: 0,00 | O50: FALSE | P50: FALSE | Q50: Si | R50: TRUE | S50: 7584
A51: Ministerio de Agricultura | B51: Instituto de Desarrollo Agropecuario | C51: Rozas, Nro. 525, Pisos 1, Región del Biobío | D51: 7369 | E51: Gas Licuado de Petróleo | F51: Abastible | G51: 02521656-3 | H51: 3801035 | J51: 3814599 | K51: 3801327 | L51: 5081 | N51: 0,00 | O51: FALSE | P51: FALSE | Q51: Si | S51: 7369
A52: Ministerio de Agricultura | B52: Instituto de Desarrollo Agropecuario | C52: Presidente Jorge Montt, Nro. 972, Pisos 1, Región de Magallanes y de la Antártica Chilena | D52: 7337 | E52: Gas Natural | F52: Gasco Magallanes | G52: 57504200 | H52: 3801005 | J52: 200009396 | K52: 3801297 | L52: 5054 | N52: 0,00 | O52: FALSE | P52: FALSE | Q52: Si | S52: 7337
A53: Ministerio de Agricultura | B53: Instituto de Desarrollo Agropecuario | C53: Avenida Libertador Bernardo O'Higgins, Nro. 1316, Pisos 1, Región Metropolitana de Santiago | D53: 7324 | E53: Gas Natural | F53: Metrogas | G53: 546059502 | H53: 3801006 | J53: GA0010047921997 | K53: 3801298 | L53: 3439 | N53: 0,00 | O53: FALSE | P53: FALSE | Q53: Si | S53: 7324
A54: Ministerio de Agricultura | B54: Servicio Agrícola y Ganadero | C54: Portales, Nro. 3396, Pisos 1, Región Metropolitana de Santiago | D54: 5400 | E54: Gas Natural | F54: Metrogas | G54: 900529931 | H54: 3801147 | J54: A82120009382015 | K54: 3801436 | L54: 3474 | N54: 0,00 | O54: FALSE | P54: TRUE | Q54: Si | R54: TRUE | S54: 5400
A55: Ministerio de Agricultura | B55: Servicio Agrícola y Ganadero | C55: Florida , Nro. 1301, Pisos 3, Región de Los Lagos | D55: 3822 | E55: Gas Natural | F55: Metrogas | G55: 901682985 | H55: 3801588 | J55: A82120013972019 | K55: 3811971 | L55: 1619 | N55: 0,00 | O55: FALSE | P55: FALSE | Q55: Si | R55: TRUE | S55: 3822
A56: Ministerio de Agricultura | B56: Corporación Nacional Forestal | C56: Avenida Presidente Manuel Bulnes, Nro. 299, Pisos , Región de Magallanes y de la Antártica Chilena | D56: 3374 | E56: Gas Natural | F56: Gasco Magallanes | G56: 8521000 | H56: 3779582 | J56: 2308518 | K56: 3780414 | L56: 814 | N56: 0,00 | O56: FALSE | P56: FALSE | Q56: Si | S56: 3374
A57: Ministerio de Agricultura | B57: Corporación Nacional Forestal | C57: Avenida Echeñique , Nro. 6478, Pisos 2, Región Metropolitana de Santiago | D57: 7188 | E57: Gas Natural | F57: Metrogas | G57: 363082785 | H57: 3800586 | I57: SCHUES N. N. | J57: GE0000416912008 | K57: 3800687 | L57: 4867 | N57: 0,00 | O57: FALSE | P57: FALSE | Q57: Si | S57: 7188
A58: Ministerio de Agricultura | B58: Comisión Nacional de Riego | C58: Padre Alberto Hurtado, Nro. 910, Pisos 1,2, Región del Ñuble | D58: 5167 | E58: Gas Natural | F58: Intergas | G58: 1449 | H58: 3802664 | J58: 21389757 | K58: 3813192 | L58: 2458 | N58: 0,00 | O58: FALSE | P58: FALSE | Q58: Si | R58: TRUE | S58: 5167
A59: Ministerio de Agricultura | B59: Instituto de Desarrollo Agropecuario | C59: QUILLOTA, Nro. 869, Pisos 1, Región de Magallanes y de la Antártica Chilena | D59: 7336 | E59: Gas Natural | F59: Gasco Magallanes | G59: 57500800 | H59: 3801003 | J59: 2307078 | K59: 3801295 | L59: 5055 | N59: 0,00 | O59: FALSE | P59: FALSE | Q59: Si | S59: 7336
A60: Ministerio de Agricultura | B60: Corporación Nacional Forestal | C60: Avenida Circunvalación , Nro. s/n , Pisos 1, Región del Maule | D60: 7184 | E60: Electricidad | F60: CGE - CGE Distribución | G60: 1805905 | H60: 3800756 | J60: 98939935 | K60: 3800887 | L60: 4858 | N60: 0,00 | O60: TRUE | P60: FALSE | Q60: Si | S60: 7184
A61: Ministerio de Agricultura | B61: Corporación Nacional Forestal | C61: Avenida Circunvalación , Nro. s/n , Pisos 1, Región del Maule | D61: 7184 | E61: Electricidad | F61: CGE - CGE Distribución | G61: 1805905 | H61: 3800756 | J61: 8571822 | K61: 3811807 | L61: 4858 | N61: 0,00 | O61: TRUE | P61: FALSE | Q61: Si | R61: FALSE | S61: 7184
A62: Ministerio de Agricultura | B62: Corporación Nacional Forestal | C62: Barros Arana, Nro. 514, Pisos , Región del Biobío | D62: 7403 | E62: Electricidad | F62: CGE - CGE Distribución | G62: 2790917 | H62: 3801149 | J62: 2699141 | K62: 3801439 | L62: 5108 | N62: 0,00 | O62: FALSE | P62: FALSE | Q62: Si | S62: 7403
A63: Ministerio de Agricultura | B63: Corporación Nacional Forestal | C63: Barros Arana, Nro. 514, Pisos , Región del Biobío | D63: 7403 | E63: Electricidad | F63: CGE - CGE Distribución | G63: 2790911 | H63: 3801150 | J63: 35796409 | K63: 3801440 | L63: 5108 | N63: 0,00 | O63: FALSE | P63: FALSE | Q63: Si | S63: 7403
A64: Ministerio de Agricultura | B64: Corporación Nacional Forestal | C64: 4 Norte , Nro. 1673 oficina 2, Pisos 1, Región del Maule | D64: 7181 | E64: Electricidad | F64: CGE - CGE Distribución | G64: 1826576 | H64: 3800746 | J64: 36032809 | K64: 3800877 | L64: 4860 | N64: 0,00 | O64: TRUE | P64: FALSE | Q64: Si | S64: 7181
A65: Ministerio de Agricultura | B65: Corporación Nacional Forestal | C65: 3 Sur , Nro. 564, Pisos 2, Región del Maule | D65: 7183 | E65: Electricidad | F65: CGE - CGE Distribución | G65: 1835684 | H65: 3800747 | J65: 3273873 | K65: 3800878 | L65: 4862 | N65: 0,00 | O65: FALSE | P65: FALSE | Q65: Si | S65: 7183
A66: Ministerio de Agricultura | B66: Corporación Nacional Forestal | C66: Federico Errázuriz , Nro. 397, Pisos 2, Región del Libertador Gral. Bernardo O’Higgins | D66: 7178 | E66: Electricidad | F66: CGE - CGE Distribución | G66: 4107319 | H66: 3800677 | J66: E079226985 | K66: 3800799 | L66: 4857 | M66: BT-1a (BT-1) | N66: 10,00 | O66: FALSE | P66: FALSE | Q66: Si | S66: 7178
A67: Ministerio de Agricultura | B67: Corporación Nacional Forestal | C67: Ochagavía, Nro. 458, Pisos , Región de Los Lagos | D67: 3148 | E67: Electricidad | F67: SAESA - Sociedad Austral de Electricidad S.A | G67: 11080119 | H67: 3801881 | J67: 4207239 | K67: 3779505 | L67: 2391 | M67: BT-1a (BT-1) | N67: 2,80 | O67: FALSE | P67: FALSE | Q67: Si | R67: FALSE | S67: 3148
A68: Ministerio de Agricultura | B68: Corporación Nacional Forestal | C68: Ochagavía, Nro. 458, Pisos , Región de Los Lagos | D68: 3148 | E68: Electricidad | F68: SAESA - Sociedad Austral de Electricidad S.A | G68: 11080118 | H68: 3801882 | J68: 4207241 | K68: 3779506 | L68: 2391 | M68: BT-1a (BT-1) | N68: 3,90 | O68: FALSE | P68: FALSE | Q68: Si | R68: FALSE | S68: 3148
A69: Ministerio de Agricultura | B69: Corporación Nacional Forestal | C69: Ochagavía, Nro. 458, Pisos , Región de Los Lagos | D69: 3148 | E69: Electricidad | F69: SAESA - Sociedad Austral de Electricidad S.A | G69: 11080232 | H69: 3801878 | J69: 12562 | K69: 3779507 | L69: 2391 | M69: BT-1a (BT-1) | N69: 3,90 | O69: FALSE | P69: FALSE | Q69: Si | R69: FALSE | S69: 3148
A70: Ministerio de Agricultura | B70: Corporación Nacional Forestal | C70: Valdivia, Nro. 948, Pisos 2, Región del Libertador Gral. Bernardo O’Higgins | D70: 7673 | E70: Electricidad | F70: CGE - CGE Distribución | G70: 1605461 | H70: 3801488 | J70: 36105684 | K70: 3811865 | L70: 3685 | M70: BT-1a (BT-1) | N70: 0,00 | O70: FALSE | P70: FALSE | Q70: Si | R70: TRUE | S70: 7673
A71: Ministerio de Agricultura | B71: Corporación Nacional Forestal | C71: Arturo Prat, Nro. 1194, Pisos 1, Región de Los Ríos | D71: 8219 | E71: Electricidad | F71: SAESA - Sociedad Austral de Electricidad S.A | G71: 10625684 | H71: 3802284 | J71: 99209 | K71: 3812796 | L71: 5776 | M71: BT-1a (BT-1) | N71: 6,00 | O71: FALSE | P71: FALSE | Q71: Si | R71: TRUE | S71: 8219
A72: Ministerio de Agricultura | B72: Instituto de Desarrollo Agropecuario | C72: Hermanos Carrera, Nro. 944, Pisos 2, Región del Libertador Gral. Bernardo O’Higgins | D72: 8209 | E72: Electricidad | F72: CGE - CGE Distribución | G72: 3236282 | H72: 3802278 | J72: 124167 | K72: 3812788 | L72: 5751 | M72: BT-1a (BT-1) | N72: 8,00 | O72: FALSE | P72: FALSE | Q72: Si | R72: TRUE | S72: 8209
A73: Ministerio de Agricultura | B73: Instituto de Desarrollo Agropecuario | C73: San Martin s/n, vicuña, Región de Coquimbo, Nro. S/N , Pisos 1, Región de Coquimbo | D73: 8761 | E73: Electricidad | F73: CONAFE - Compañía Nacional de Fuerza Eléctrica S.A | G73: 1123772 | H73: 3802970 | J73: 140952511 | K73: 3813607 | L73: 6375 | M73: BT-1a (BT-1) | N73: 4,40 | O73: FALSE | P73: FALSE | Q73: Si | R73: TRUE | S73: 8761
A74: Ministerio de Agricultura | B74: Comisión Nacional de Riego | C74: Vicuña Mackenna, Nro. 41, Pisos 2, Región de la Araucanía | D74: 8091 | E74: Electricidad | F74: CGE - CGE Distribución | G74: 2659837 | H74: 3802141 | J74: 51688131 | K74: 3812613 | L74: 5637 | M74: BT-1a (BT-1) | N74: 10,53 | O74: FALSE | P74: FALSE | Q74: Si | R74: TRUE | S74: 8091
A75: Ministerio de Agricultura | B75: Comisión Nacional de Riego | C75: Calle 1 Poniente, Nro. 1258, Pisos 1, Región del Maule | D75: 7879 | E75: Electricidad | F75: CGE - CGE Distribución | G75: 9601424 | H75: 3801723 | J75: 201609005789 | K75: 3812129 | L75: 5561 | M75: BT-1a (BT-1) | N75: 5,50 | O75: FALSE | P75: FALSE | Q75: Si | R75: FALSE | S75: 7879
A76: Ministerio de Agricultura | B76: Comisión Nacional de Riego | C76: Calle 1 Poniente, Nro. 1258, Pisos 1, Región del Maule | D76: 7879 | E76: Electricidad | F76: CGE - CGE Distribución | G76: 9601425 | H76: 3801724 | J76: 201609005800 | K76: 3812130 | L76: 5561 | M76: BT-1a (BT-1) | N76: 5,50 | O76: FALSE | P76: FALSE | Q76: Si | R76: FALSE | S76: 7879
A77: Ministerio de Agricultura | B77: Comisión Nacional de Riego | C77: Padre Alberto Hurtado, Nro. 910, Pisos 1,2, Región del Ñuble | D77: 5167 | E77: Electricidad | F77: CGE - CGE Distribución | G77: 6301229 | H77: 3801122 | J77: 201906155789 | K77: 3801413 | L77: 2458 | M77: BT-1a (BT-1) | N77: 9,00 | O77: FALSE | P77: FALSE | Q77: Si | S77: 5167
A78: Ministerio de Agricultura | B78: Comisión Nacional de Riego | C78: Nueva York, Nro. 631, Pisos 1, Región de Coquimbo | D78: 3042 | E78: Electricidad | F78: CGE - CGE Distribución | G78: 6248635 | H78: 3800737 | J78: 6679772 | K78: 3800868 | L78: 2379 | M78: BT-1a (BT-1) | N78: 4,00 | O78: FALSE | P78: FALSE | Q78: Si | R78: FALSE | S78: 3042
A79: Ministerio de Agricultura | B79: Comisión Nacional de Riego | C79: Padre Alberto Hurtado, Nro. 910, Pisos 1,2, Región del Ñuble | D79: 5167 | E79: Electricidad | F79: CGE - CGE Distribución | G79: 1912683 | H79: 3779703 | J79: 244764 | K79: 3780585 | L79: 2458 | M79: BT-1a (BT-1) | N79: 9,00 | O79: FALSE | P79: FALSE | Q79: Si | S79: 5167
A80: Ministerio de Agricultura | B80: Comisión Nacional de Riego | C80: Avenida Libertador Bernardo O'Higgins, Nro. 1449, Pisos 4 y 5, Región Metropolitana de Santiago | D80: 740 | E80: Electricidad | F80: Enel Distribución (ex Chilectra) | G80: 1634351-K | H80: 3366953 | I80: COMISIÓN NACIONAL DE RIEGO | J80: 10049204 | K80: 3367140 | L80: 3351 | M80: BT-1a (BT-1) | N80: 0,00 | O80: FALSE | P80: FALSE | Q80: Si | S80: 740
A81: Ministerio de Agricultura | B81: Comisión Nacional de Riego | C81: Avenida Libertador Bernardo O'Higgins, Nro. 1449, Pisos 4 y 5, Región Metropolitana de Santiago | D81: 740 | E81: Electricidad | F81: Enel Distribución (ex Chilectra) | G81: 1634352-8 | H81: 3366954 | J81: 10049245 | K81: 3367141 | L81: 3351 | M81: BT-1a (BT-1) | N81: 0,00 | O81: FALSE | P81: FALSE | Q81: Si | S81: 740
A82: Ministerio de Agricultura | B82: Comisión Nacional de Riego | C82: Avenida Libertador Bernardo O'Higgins, Nro. 1449, Pisos 4 y 5, Región Metropolitana de Santiago | D82: 740 | E82: Electricidad | F82: Enel Distribución (ex Chilectra) | G82: 1634353-6 | H82: 3366955 | J82: 10049217 | K82: 3367142 | L82: 3351 | M82: BT-1a (BT-1) | N82: 0,00 | O82: FALSE | P82: FALSE | Q82: Si | S82: 740
A83: Ministerio de Agricultura | B83: Comisión Nacional de Riego | C83: Avenida Libertador Bernardo O'Higgins, Nro. 1449, Pisos 4 y 5, Región Metropolitana de Santiago | D83: 740 | E83: Electricidad | F83: Enel Distribución (ex Chilectra) | G83: 1634386-2 | H83: 3366956 | J83: 299118 | K83: 3367143 | L83: 3351 | M83: BT-1a (BT-1) | N83: 0,00 | O83: FALSE | P83: FALSE | Q83: Si | S83: 740
A84: Ministerio de Agricultura | B84: Comisión Nacional de Riego | C84: Avenida Libertador Bernardo O'Higgins, Nro. 1449, Pisos 4 y 5, Región Metropolitana de Santiago | D84: 740 | E84: Electricidad | F84: Enel Distribución (ex Chilectra) | G84: 1634356-0 | H84: 3366957 | J84: 10049208 | K84: 3367144 | L84: 3351 | M84: BT-1a (BT-1) | N84: 0,00 | O84: FALSE | P84: FALSE | Q84: Si | S84: 740
A85: Ministerio de Agricultura | B85: Comisión Nacional de Riego | C85: Avenida Libertador Bernardo O'Higgins, Nro. 1449, Pisos 4 y 5, Región Metropolitana de Santiago | D85: 740 | E85: Electricidad | F85: Enel Distribución (ex Chilectra) | G85: 1634387-0 | H85: 3366958 | J85: 22215929 | K85: 3367145 | L85: 3351 | M85: BT-1a (BT-1) | N85: 0,00 | O85: FALSE | P85: FALSE | Q85: Si | S85: 740
A86: Ministerio de Agricultura | B86: Comisión Nacional de Riego | C86: Pudeto, Nro. 267, Pisos 2, Región de Valparaíso | D86: 3043 | E86: Electricidad | F86: Chilquinta S.A. | G86: 162885-2 | H86: 3589322 | I86: Comisión Nacional de Riego | J86: 151590 | K86: 3589529 | L86: 2655 | M86: BT-1a (BT-1) | N86: 0,00 | O86: FALSE | P86: FALSE | Q86: Si | S86: 3043
A87: Ministerio de Agricultura | B87: Comisión Nacional de Riego | C87: 21 de Mayo, Nro. 670, Pisos 2, Región de Arica y Parinacota | D87: 8701 | E87: Electricidad | F87: CGE - CGE Distribución | G87: 9076003 | H87: 3802960 | J87: 9024081 | K87: 3813597 | L87: 6294 | M87: BT-1a (BT-1) | N87: 8,80 | O87: FALSE | P87: FALSE | Q87: Si | R87: TRUE | S87: 8701
A88: Ministerio de Agricultura | B88: Servicio Agrícola y Ganadero | C88: Presidente Salvador Allende Gossen, Nro. 522, Pisos 1,2, Región de Coquimbo | D88: 2977 | E88: Electricidad | F88: CONAFE - Compañía Nacional de Fuerza Eléctrica S.A | G88: 1321410 | H88: 3366969 | I88: Pedro Flores Rojo | J88: 8045155 | K88: 3367157 | L88: 2644 | M88: BT-1a (BT-1) | N88: 0,00 | O88: FALSE | P88: FALSE | Q88: Si | S88: 2977
A89: Ministerio de Agricultura | B89: Servicio Agrícola y Ganadero | C89: Presidente Salvador Allende Gossen, Nro. 522, Pisos 1,2, Región de Coquimbo | D89: 2977 | E89: Electricidad | F89: CONAFE - Compañía Nacional de Fuerza Eléctrica S.A | G89: 1312267 | H89: 3366920 | I89: Pedro Flores Rojo | J89: 3982290 | K89: 3367104 | L89: 2644 | M89: BT-1a (BT-1) | N89: 0,00 | O89: FALSE | P89: FALSE | Q89: Si | S89: 2977
A90: Ministerio de Agricultura | B90: Corporación Nacional Forestal | C90: Avenida Diagonal Francisco Bilbao, Nro. 3692, Pisos 1 ,2, Región de Tarapacá | D90: 598 | E90: Electricidad | F90: ELIQSA - Empresa Eléctrica de Iquique S.A | G90: 9416925 | H90: 43334 | I90: Francisco Soto Zamorano | J90: 5006825 | K90: 43392 | L90: 3521 | M90: BT-1a (BT-1) | N90: 0,00 | O90: FALSE | P90: FALSE | Q90: Si | S90: 598
A91: Ministerio de Agricultura | B91: Corporación Nacional Forestal | C91: Avenida Presidente Bulnes, Nro. 317, Pisos 2 y 5, Región Metropolitana de Santiago | D91: 194 | E91: Electricidad | F91: Enel Distribución (ex Chilectra) | G91: 468692-6 | H91: 3775573 | I91: PASEO BULNES 317 - Depto 512 | J91: 202733996 | K91: 3775810 | L91: 3544 | M91: BT-1a (BT-1) | N91: 0,00 | O91: FALSE | P91: FALSE | Q91: Si | S91: 194
A92: Ministerio de Agricultura | B92: Corporación Nacional Forestal | C92: Avenida Presidente Bulnes, Nro. 317, Pisos 2 y 5, Región Metropolitana de Santiago | D92: 194 | E92: Electricidad | F92: Enel Distribución (ex Chilectra) | G92: 468735-3 | H92: 3775574 | I92: PASEO BULNES 377 - Depto 505 | J92: 202723222 | K92: 3775811 | L92: 3544 | M92: BT-1a (BT-1) | N92: 0,00 | O92: FALSE | P92: FALSE | Q92: Si | S92: 194
A93: Ministerio de Agricultura | B93: Corporación Nacional Forestal | C93: Avenida Presidente Bulnes, Nro. 317, Pisos 2 y 5, Región Metropolitana de Santiago | D93: 194 | E93: Electricidad | F93: Enel Distribución (ex Chilectra) | G93: 468729-9 | H93: 3775575 | I93: PASEO BULNES 377 - Depto 207 | J93: 202732422 | K93: 3775812 | L93: 3544 | M93: BT-1a (BT-1) | N93: 0,00 | O93: FALSE | P93: FALSE | Q93: Si | S93: 194
A94: Ministerio de Agricultura | B94: Corporación Nacional Forestal | C94: Avenida Presidente Bulnes, Nro. 285, Pisos del 2, 3, 4, 5, 6, 7, 8, Región Metropolitana de Santiago | D94: 179 | E94: Electricidad | F94: Enel Distribución (ex Chilectra) | G94: 291477-8 | H94: 3775583 | I94: PASEO BULNES 285 - Depto 501 | J94: 202730454 | K94: 3775821 | L94: 799 | M94: BT-1a (BT-1) | N94: 0,00 | O94: FALSE | P94: FALSE | Q94: Si | S94: 179
A95: Ministerio de Agricultura | B95: Corporación Nacional Forestal | C95: Avenida Presidente Bulnes, Nro. 285, Pisos del 2, 3, 4, 5, 6, 7, 8, Región Metropolitana de Santiago | D95: 179 | E95: Electricidad | F95: Enel Distribución (ex Chilectra) | G95: 291392-5 | H95: 3775584 | I95: PASEO BULNES 259 - Depto 306 | J95: 202732177 | K95: 3775822 | L95: 799 | M95: BT-1a (BT-1) | N95: 0,00 | O95: FALSE | P95: FALSE | Q95: Si | S95: 179
A96: Ministerio de Agricultura | B96: Corporación Nacional Forestal | C96: Avenida Presidente Bulnes, Nro. 285, Pisos del 2, 3, 4, 5, 6, 7, 8, Región Metropolitana de Santiago | D96: 179 | E96: Electricidad | F96: Enel Distribución (ex Chilectra) | G96: 291392-5 | H96: 3775584 | I96: PASEO BULNES 259 - Depto 306 | J96: 306096471 | K96: 3824116 | L96: 799 | M96: BT-1a (BT-1) | N96: 0,00 | O96: FALSE | P96: FALSE | Q96: Si | R96: FALSE | S96: 179
A97: Ministerio de Agricultura | B97: Corporación Nacional Forestal | C97: Avenida Presidente Bulnes, Nro. 285, Pisos del 2, 3, 4, 5, 6, 7, 8, Región Metropolitana de Santiago | D97: 179 | E97: Electricidad | F97: Enel Distribución (ex Chilectra) | G97: 291445-K | H97: 3775585 | I97: PASEO BULNES 259 - Depto 205 | J97: 202732168 | K97: 3775823 | L97: 799 | M97: BT-1a (BT-1) | N97: 0,00 | O97: FALSE | P97: FALSE | Q97: Si | S97: 179
A98: Ministerio de Agricultura | B98: Corporación Nacional Forestal | C98: Avenida Presidente Bulnes, Nro. 285, Pisos del 2, 3, 4, 5, 6, 7, 8, Región Metropolitana de Santiago | D98: 179 | E98: Electricidad | F98: Enel Distribución (ex Chilectra) | G98: 291446-8 | H98: 3775586 | I98: PASEO BULNES 259 - Depto 206 | J98: 202724977 | K98: 3775824 | L98: 799 | M98: BT-1a (BT-1) | N98: 0,00 | O98: FALSE | P98: FALSE | Q98: Si | S98: 179
A99: Ministerio de Agricultura | B99: Corporación Nacional Forestal | C99: Avenida Presidente Bulnes, Nro. 285, Pisos del 2, 3, 4, 5, 6, 7, 8, Región Metropolitana de Santiago | D99: 179 | E99: Electricidad | F99: Enel Distribución (ex Chilectra) | G99: 291447-6 | H99: 3775587 | I99: PASEO BULNES 259 - Depto 304 | J99: 202732184 | K99: 3775825 | L99: 799 | M99: BT-1a (BT-1) | N99: 0,00 | O99: FALSE | P99: FALSE | Q99: Si | R99: FALSE | S99: 179
A100: Ministerio de Agricultura | B100: Corporación Nacional Forestal | C100: Avenida Presidente Bulnes, Nro. 285, Pisos del 2, 3, 4, 5, 6, 7, 8, Región Metropolitana de Santiago | D100: 179 | E100: Electricidad | F100: Enel Distribución (ex Chilectra) | G100: 291449-2 | H100: 3775588 | I100: PASEO BULNES 259 - Depto 404 | J100: 202731933 | K100: 3775826 | L100: 799 | M100: BT-1a (BT-1) | N100: 0,00 | O100: FALSE | P100: FALSE | Q100: Si | S100: 179
A101: Ministerio de Agricultura | B101: Corporación Nacional Forestal | C101: Avenida Presidente Bulnes, Nro. 285, Pisos del 2, 3, 4, 5, 6, 7, 8, Región Metropolitana de Santiago | D101: 179 | E101: Electricidad | F101: Enel Distribución (ex Chilectra) | G101: 291451-4 | H101: 3775589 | I101: PASEO BULNES 259 - Depto 406 | J101: 202726988 | K101: 3775827 | L101: 799 | M101: BT-1a (BT-1) | N101: 0,00 | O101: FALSE | P101: FALSE | Q101: Si | S101: 179
A102: Ministerio de Agricultura | B102: Corporación Nacional Forestal | C102: Avenida Presidente Bulnes, Nro. 285, Pisos del 2, 3, 4, 5, 6, 7, 8, Región Metropolitana de Santiago | D102: 179 | E102: Electricidad | F102: Enel Distribución (ex Chilectra) | G102: 291452-2 | H102: 3775590 | I102: PASEO BULNES 259 - Depto 504 | J102: 202727256 | K102: 3775828 | L102: 799 | M102: BT-1a (BT-1) | N102: 0,00 | O102: FALSE | P102: FALSE | Q102: Si | S102: 179
A103: Ministerio de Agricultura | B103: Corporación Nacional Forestal | C103: Avenida Presidente Bulnes, Nro. 285, Pisos del 2, 3, 4, 5, 6, 7, 8, Región Metropolitana de Santiago | D103: 179 | E103: Electricidad | F103: Enel Distribución (ex Chilectra) | G103: 291454-9 | H103: 3775591 | I103: PASEO BULNES 259 - Depto 506 | J103: 202726998 | K103: 3775829 | L103: 799 | M103: BT-1a (BT-1) | N103: 0,00 | O103: FALSE | P103: FALSE | Q103: Si | S103: 179
A104: Ministerio de Agricultura | B104: Corporación Nacional Forestal | C104: Avenida Presidente Bulnes, Nro. 285, Pisos del 2, 3, 4, 5, 6, 7, 8, Región Metropolitana de Santiago | D104: 179 | E104: Electricidad | F104: Enel Distribución (ex Chilectra) | G104: 291455-7 | H104: 3775592 | I104: PASEO BULNES 259 - Depto 604 | J104: 202735139 | K104: 3775830 | L104: 799 | M104: BT-1a (BT-1) | N104: 0,00 | O104: FALSE | P104: FALSE | Q104: Si | S104: 179
A105: Ministerio de Agricultura | B105: Corporación Nacional Forestal | C105: Avenida Presidente Bulnes, Nro. 285, Pisos del 2, 3, 4, 5, 6, 7, 8, Región Metropolitana de Santiago | D105: 179 | E105: Electricidad | F105: Enel Distribución (ex Chilectra) | G105: 291456-5 | H105: 3775593 | I105: PASEO BULNES 259 - Depto 605 | J105: 202735126 | K105: 3775831 | L105: 799 | M105: BT-1a (BT-1) | N105: 0,00 | O105: FALSE | P105: FALSE | Q105: Si | S105: 179
A106: Ministerio de Agricultura | B106: Corporación Nacional Forestal | C106: Avenida Presidente Bulnes, Nro. 285, Pisos del 2, 3, 4, 5, 6, 7, 8, Región Metropolitana de Santiago | D106: 179 | E106: Electricidad | F106: Enel Distribución (ex Chilectra) | G106: 291457-3 | H106: 3775594 | I106: PASEO BULNES 259 - 606 | J106: 202725085 | K106: 3775832 | L106: 799 | M106: BT-1a (BT-1) | N106: 0,00 | O106: FALSE | P106: FALSE | Q106: Si | S106: 179
A107: Ministerio de Agricultura | B107: Corporación Nacional Forestal | C107: Avenida Presidente Bulnes, Nro. 285, Pisos del 2, 3, 4, 5, 6, 7, 8, Región Metropolitana de Santiago | D107: 179 | E107: Electricidad | F107: Enel Distribución (ex Chilectra) | G107: 291458-1 | H107: 3775595 | I107: PASEO BULNES 259 - 704 | J107: 202735706 | K107: 3775833 | L107: 799 | M107: BT-1a (BT-1) | N107: 0,00 | O107: FALSE | P107: FALSE | Q107: Si | S107: 179
A108: Ministerio de Agricultura | B108: Corporación Nacional Forestal | C108: Avenida Presidente Bulnes, Nro. 285, Pisos del 2, 3, 4, 5, 6, 7, 8, Región Metropolitana de Santiago | D108: 179 | E108: Electricidad | F108: Enel Distribución (ex Chilectra) | G108: 291459-K | H108: 3775596 | I108: PASEO BULNES 259 - Depto 705 | J108: 202737471 | K108: 3775834 | L108: 799 | M108: BT-1a (BT-1) | N108: 0,00 | O108: FALSE | P108: FALSE | Q108: Si | S108: 179
A109: Ministerio de Agricultura | B109: Corporación Nacional Forestal | C109: Avenida Presidente Bulnes, Nro. 285, Pisos del 2, 3, 4, 5, 6, 7, 8, Región Metropolitana de Santiago | D109: 179 | E109: Electricidad | F109: Enel Distribución (ex Chilectra) | G109: 291460-3 | H109: 3775597 | I109: PASEO BULNES 259 - Depto 706 | J109: 202754582 | K109: 3775835 | L109: 799 | M109: BT-1a (BT-1) | N109: 0,00 | O109: FALSE | P109: FALSE | Q109: Si | S109: 179
A110: Ministerio de Agricultura | B110: Corporación Nacional Forestal | C110: Avenida Presidente Bulnes, Nro. 285, Pisos del 2, 3, 4, 5, 6, 7, 8, Región Metropolitana de Santiago | D110: 179 | E110: Electricidad | F110: Enel Distribución (ex Chilectra) | G110: 291468-9 | H110: 3775598 | I110: PASEO BULNES 285 - Depto 201 | J110: 202731692 | K110: 3775836 | L110: 799 | M110: BT-1a (BT-1) | N110: 0,00 | O110: FALSE | P110: FALSE | Q110: Si | S110: 179
A111: Ministerio de Agricultura | B111: Corporación Nacional Forestal | C111: Avenida Presidente Bulnes, Nro. 285, Pisos del 2, 3, 4, 5, 6, 7, 8, Región Metropolitana de Santiago | D111: 179 | E111: Electricidad | F111: Enel Distribución (ex Chilectra) | G111: 291469-7 | H111: 3775599 | I111: PASEO BULNES 285 - Depto 202 | J111: 6814380 | K111: 3775837 | L111: 799 | M111: BT-1a (BT-1) | N111: 0,00 | O111: FALSE | P111: FALSE | Q111: Si | S111: 179
A112: Ministerio de Agricultura | B112: Corporación Nacional Forestal | C112: Avenida Presidente Bulnes, Nro. 285, Pisos del 2, 3, 4, 5, 6, 7, 8, Región Metropolitana de Santiago | D112: 179 | E112: Electricidad | F112: Enel Distribución (ex Chilectra) | G112: 291469-7 | H112: 3775599 | I112: PASEO BULNES 285 - Depto 202 | J112: 10139383 | K112: 3824075 | L112: 799 | M112: BT-1a (BT-1) | N112: 0,00 | O112: FALSE | P112: FALSE | Q112: Si | R112: FALSE | S112: 179
A113: Ministerio de Agricultura | B113: Corporación Nacional Forestal | C113: Avenida Presidente Bulnes, Nro. 285, Pisos del 2, 3, 4, 5, 6, 7, 8, Región Metropolitana de Santiago | D113: 179 | E113: Electricidad | F113: Enel Distribución (ex Chilectra) | G113: 291470-0 | H113: 3775600 | I113: PASEO BULNES 285 - Depto 203 | J113: 64014248 | K113: 3775838 | L113: 799 | M113: BT-1a (BT-1) | N113: 0,00 | O113: FALSE | P113: FALSE | Q113: Si | S113: 179
A114: Ministerio de Agricultura | B114: Corporación Nacional Forestal | C114: Avenida Presidente Bulnes, Nro. 285, Pisos del 2, 3, 4, 5, 6, 7, 8, Región Metropolitana de Santiago | D114: 179 | E114: Electricidad | F114: Enel Distribución (ex Chilectra) | G114: 291471-9 | H114: 3775601 | I114: PASEO BULNES 285 - Depto 301 | J114: 202733697 | K114: 3775839 | L114: 799 | M114: BT-1a (BT-1) | N114: 0,00 | O114: FALSE | P114: FALSE | Q114: Si | S114: 179
A115: Ministerio de Agricultura | B115: Corporación Nacional Forestal | C115: Avenida Presidente Bulnes, Nro. 285, Pisos del 2, 3, 4, 5, 6, 7, 8, Región Metropolitana de Santiago | D115: 179 | E115: Electricidad | F115: Enel Distribución (ex Chilectra) | G115: 291472-7 | H115: 3775602 | I115: PASEO BULNES 285 - Depto 302 | J115: 202733688 | K115: 3775840 | L115: 799 | M115: BT-1a (BT-1) | N115: 0,00 | O115: FALSE | P115: FALSE | Q115: Si | S115: 179
A116: Ministerio de Agricultura | B116: Corporación Nacional Forestal | C116: Avenida Presidente Bulnes, Nro. 285, Pisos del 2, 3, 4, 5, 6, 7, 8, Región Metropolitana de Santiago | D116: 179 | E116: Electricidad | F116: Enel Distribución (ex Chilectra) | G116: 291473-5 | H116: 3775603 | I116: PASEO BULNES 285 - Depto 303 | J116: 21025026 | K116: 3775841 | L116: 799 | M116: BT-1a (BT-1) | N116: 0,00 | O116: FALSE | P116: FALSE | Q116: Si | S116: 179
A117: Ministerio de Agricultura | B117: Corporación Nacional Forestal | C117: Avenida Presidente Bulnes, Nro. 285, Pisos del 2, 3, 4, 5, 6, 7, 8, Región Metropolitana de Santiago | D117: 179 | E117: Electricidad | F117: Enel Distribución (ex Chilectra) | G117: 291474-3 | H117: 3775604 | I117: PASEO BULNES 285 - Depto 401 | J117: 202730814 | K117: 3775842 | L117: 799 | M117: BT-1a (BT-1) | N117: 0,00 | O117: FALSE | P117: FALSE | Q117: Si | S117: 179
A118: Ministerio de Agricultura | B118: Corporación Nacional Forestal | C118: Avenida Presidente Bulnes, Nro. 285, Pisos del 2, 3, 4, 5, 6, 7, 8, Región Metropolitana de Santiago | D118: 179 | E118: Electricidad | F118: Enel Distribución (ex Chilectra) | G118: 291475-1 | H118: 3775605 | I118: PASEO BULNES 285 - Depto 402 | J118: 202737367 | K118: 3775843 | L118: 799 | M118: BT-1a (BT-1) | N118: 0,00 | O118: FALSE | P118: FALSE | Q118: Si | S118: 179
A119: Ministerio de Agricultura | B119: Corporación Nacional Forestal | C119: Avenida Presidente Bulnes, Nro. 285, Pisos del 2, 3, 4, 5, 6, 7, 8, Región Metropolitana de Santiago | D119: 179 | E119: Electricidad | F119: Enel Distribución (ex Chilectra) | G119: 291476-K | H119: 3775607 | I119: PASEO BULNES 285 - Depto 403 | J119: 202725354 | K119: 3775845 | L119: 799 | M119: BT-1a (BT-1) | N119: 0,00 | O119: FALSE | P119: FALSE | Q119: Si | S119: 179
A120: Ministerio de Agricultura | B120: Corporación Nacional Forestal | C120: Avenida Presidente Bulnes, Nro. 285, Pisos del 2, 3, 4, 5, 6, 7, 8, Región Metropolitana de Santiago | D120: 179 | E120: Electricidad | F120: Enel Distribución (ex Chilectra) | G120: 291479-4 | H120: 3775608 | I120: PASEO BULNES 285 - Depto 503 | J120: 202730332 | K120: 3775846 | L120: 799 | M120: BT-1a (BT-1) | N120: 0,00 | O120: FALSE | P120: FALSE | Q120: Si | S120: 179
A121: Ministerio de Agricultura | B121: Corporación Nacional Forestal | C121: Avenida Presidente Bulnes, Nro. 285, Pisos del 2, 3, 4, 5, 6, 7, 8, Región Metropolitana de Santiago | D121: 179 | E121: Electricidad | F121: Enel Distribución (ex Chilectra) | G121: 291480-8 | H121: 3775609 | I121: PASEO BULNES 285 - Depto 601 | J121: 202733685 | K121: 3775847 | L121: 799 | M121: BT-1a (BT-1) | N121: 0,00 | O121: FALSE | P121: FALSE | Q121: Si | S121: 179
A122: Ministerio de Agricultura | B122: Corporación Nacional Forestal | C122: Avenida Presidente Bulnes, Nro. 285, Pisos del 2, 3, 4, 5, 6, 7, 8, Región Metropolitana de Santiago | D122: 179 | E122: Electricidad | F122: Enel Distribución (ex Chilectra) | G122: 291481-6 | H122: 3775611 | I122: PASEO BULNES 285 - Depto 602 | J122: 202733698 | K122: 3775849 | L122: 799 | M122: BT-1a (BT-1) | N122: 0,00 | O122: FALSE | P122: FALSE | Q122: Si | S122: 179
A123: Ministerio de Agricultura | B123: Corporación Nacional Forestal | C123: Avenida Presidente Bulnes, Nro. 285, Pisos del 2, 3, 4, 5, 6, 7, 8, Región Metropolitana de Santiago | D123: 179 | E123: Electricidad | F123: Enel Distribución (ex Chilectra) | G123: 291482-4 | H123: 3775612 | I123: PASEO BULNES 285 - Depto 603 | J123: 202737345 | K123: 3775850 | L123: 799 | M123: BT-1a (BT-1) | N123: 0,00 | O123: FALSE | P123: FALSE | Q123: Si | S123: 179
A124: Ministerio de Agricultura | B124: Corporación Nacional Forestal | C124: Avenida Presidente Bulnes, Nro. 285, Pisos del 2, 3, 4, 5, 6, 7, 8, Región Metropolitana de Santiago | D124: 179 | E124: Electricidad | F124: Enel Distribución (ex Chilectra) | G124: 291483-2 | H124: 3775613 | J124: 202727648 | K124: 3775851 | L124: 799 | M124: BT-1a (BT-1) | N124: 0,00 | O124: FALSE | P124: FALSE | Q124: Si | S124: 179
A125: Ministerio de Agricultura | B125: Corporación Nacional Forestal | C125: Avenida Presidente Bulnes, Nro. 285, Pisos del 2, 3, 4, 5, 6, 7, 8, Región Metropolitana de Santiago | D125: 179 | E125: Electricidad | F125: Enel Distribución (ex Chilectra) | G125: 291483-2 | H125: 3775613 | J125: 700781900 | K125: 3812602 | L125: 799 | M125: BT-1a (BT-1) | N125: 0,00 | O125: FALSE | P125: FALSE | Q125: Si | R125: TRUE | S125: 179
A126: Ministerio de Agricultura | B126: Corporación Nacional Forestal | C126: Avenida Presidente Bulnes, Nro. 285, Pisos del 2, 3, 4, 5, 6, 7, 8, Región Metropolitana de Santiago | D126: 179 | E126: Electricidad | F126: Enel Distribución (ex Chilectra) | G126: 291484-0 | H126: 3775615 | I126: PASEO BULNES 285 - Depto 702 | J126: 202732507 | K126: 3775853 | L126: 799 | M126: BT-1a (BT-1) | N126: 0,00 | O126: FALSE | P126: FALSE | Q126: Si | S126: 179
A127: Ministerio de Agricultura | B127: Corporación Nacional Forestal | C127: Avenida Presidente Bulnes, Nro. 285, Pisos del 2, 3, 4, 5, 6, 7, 8, Región Metropolitana de Santiago | D127: 179 | E127: Electricidad | F127: Enel Distribución (ex Chilectra) | G127: 291485-9 | H127: 3775618 | I127: PASEO BULNES 285 - Depto 703 | J127: 202737371 | K127: 3775856 | L127: 799 | M127: BT-1a (BT-1) | N127: 0,00 | O127: FALSE | P127: FALSE | Q127: Si | S127: 179
A128: Ministerio de Agricultura | B128: Corporación Nacional Forestal | C128: Avenida Presidente Bulnes, Nro. 285, Pisos del 2, 3, 4, 5, 6, 7, 8, Región Metropolitana de Santiago | D128: 179 | E128: Electricidad | F128: Enel Distribución (ex Chilectra) | G128: 291486-7 | H128: 3775620 | I128: PASEO BULNES 285 - Depto 801 | J128: 202730387 | K128: 3775858 | L128: 799 | M128: BT-1a (BT-1) | N128: 0,00 | O128: FALSE | P128: FALSE | Q128: Si | S128: 179
A129: Ministerio de Agricultura | B129: Corporación Nacional Forestal | C129: Avenida Presidente Bulnes, Nro. 285, Pisos del 2, 3, 4, 5, 6, 7, 8, Región Metropolitana de Santiago | D129: 179 | E129: Electricidad | F129: Enel Distribución (ex Chilectra) | G129: 291487-5 | H129: 3775621 | I129: PASEO BULNES 285 - Depto 802 | J129: 202732513 | K129: 3775859 | L129: 799 | M129: BT-1a (BT-1) | N129: 0,00 | O129: FALSE | P129: FALSE | Q129: Si | S129: 179
A130: Ministerio de Agricultura | B130: Corporación Nacional Forestal | C130: Avenida Presidente Bulnes, Nro. 285, Pisos del 2, 3, 4, 5, 6, 7, 8, Región Metropolitana de Santiago | D130: 179 | E130: Electricidad | F130: Enel Distribución (ex Chilectra) | G130: 291488-3 | H130: 3775622 | I130: PASEO BULNES 285 - Depto 803 | J130: 202732218 | K130: 3775860 | L130: 799 | M130: BT-1a (BT-1) | N130: 0,00 | O130: FALSE | P130: FALSE | Q130: Si | S130: 179
A131: Ministerio de Agricultura | B131: Corporación Nacional Forestal | C131: Avenida Presidente Bulnes, Nro. 285, Pisos del 2, 3, 4, 5, 6, 7, 8, Región Metropolitana de Santiago | D131: 179 | E131: Electricidad | F131: Enel Distribución (ex Chilectra) | G131: 291444-1 | H131: 3775623 | I131: PASEO BULNES 259 - Depto 204 | J131: 202732179 | K131: 3775861 | L131: 799 | M131: BT-1a (BT-1) | N131: 0,00 | O131: FALSE | P131: FALSE | Q131: Si | S131: 179
A132: Ministerio de Agricultura | B132: Corporación Nacional Forestal | C132: Avenida Presidente Bulnes, Nro. 285, Pisos del 2, 3, 4, 5, 6, 7, 8, Región Metropolitana de Santiago | D132: 179 | E132: Electricidad | F132: Enel Distribución (ex Chilectra) | G132: 291463-8 | H132: 3775624 | I132: PASEO BULNES 259 - 806 | J132: 202737464 | K132: 3775862 | L132: 799 | M132: BT-1a (BT-1) | N132: 0,00 | O132: FALSE | P132: FALSE | Q132: Si | S132: 179
A133: Ministerio de Agricultura | B133: Corporación Nacional Forestal | C133: Claudina Urrutia, Nro. 94, Pisos 1, Región del Maule | D133: 3353 | E133: Electricidad | F133: CGE - CGE Distribución | G133: 4419956 | H133: 3775780 | J133: 3469145 | K133: 3801085 | L133: 1286 | M133: BT-1a (BT-1) | N133: 0,00 | O133: FALSE | P133: FALSE | Q133: Si | S133: 3353
A134: Ministerio de Agricultura | B134: Corporación Nacional Forestal | C134: Argomedo, Nro. 380, Pisos 2, Región del Maule | D134: 3355 | E134: Electricidad | F134: CGE - CGE Distribución | G134: 5666787 | H134: 3775781 | I134: ELSA MARIA URZUA CREIXELL | J134: 239247 | K134: 3776040 | L134: 296 | M134: BT-1a (BT-1) | N134: 0,00 | O134: FALSE | P134: FALSE | Q134: Si | S134: 3355
A135: Ministerio de Agricultura | B135: Corporación Nacional Forestal | C135: Avenida San Juan, Nro. S/N, Pisos 1, Región del Libertador Gral. Bernardo O’Higgins | D135: 404 | E135: Electricidad | F135: CGE - CGE Distribución | G135: 1470850 | H135: 3776213 | I135: Corporación Nacional Forestal | J135: 62013459 | K135: 3776510 | L135: 859 | M135: BT-1a (BT-1) | N135: 0,00 | O135: FALSE | P135: FALSE | Q135: Si | S135: 404
A136: Ministerio de Agricultura | B136: Corporación Nacional Forestal | C136: Uribe, Nro. 26, Pisos 1, Región de Valparaíso | D136: 3394 | E136: Electricidad | F136: CONAFE - Compañía Nacional de Fuerza Eléctrica S.A | G136: 1346634 | H136: 3776000 | I136: CONAF | J136: 94011518 | K136: 3776273 | L136: 3099 | M136: BT-1a (BT-1) | N136: 0,00 | O136: FALSE | P136: FALSE | Q136: Si | S136: 3394
A137: Ministerio de Agricultura | B137: Corporación Nacional Forestal | C137: Avenida Benjamín Vicuña Mackenna, Nro. 310, Pisos 3, Región de Coquimbo | D137: 3459 | E137: Electricidad | F137: CONAFE - Compañía Nacional de Fuerza Eléctrica S.A | G137: 1260973 | H137: 3776071 | I137: CORPORACIÓN NACIONAL FORESTAL | J137: 9965053 | K137: 3776345 | L137: 3380 | M137: BT-1a (BT-1) | N137: 0,00 | O137: FALSE | P137: FALSE | Q137: Si | S137: 3459
A138: Ministerio de Agricultura | B138: Corporación Nacional Forestal | C138: Merced, Nro. 731, Pisos , Región de Atacama | D138: 3455 | E138: Electricidad | F138: EMELAT - Empresa Eléctrica de Atacama | G138: 9365220 | H138: 3777083 | I138: Corporacion Nacional Forestal | J138: 8571517 | K138: 3777443 | L138: 2299 | M138: BT-1a (BT-1) | N138: 0,00 | O138: FALSE | P138: FALSE | Q138: Si | S138: 3455
A139: Ministerio de Agricultura | B139: Corporación Nacional Forestal | C139: Avenida Granaderos, Nro. 2230, Pisos 1, Región de Antofagasta | D139: 4149 | E139: Electricidad | F139: ELECDA - Empresa Eléctrica de Antofagasta S.A | G139: 9241134 | H139: 3776908 | I139: Secretaria Regional Ministerial | J139: 9010545 | K139: 3777259 | L139: 635 | M139: BT-1a (BT-1) | N139: 0,00 | O139: FALSE | P139: FALSE | Q139: Si | S139: 4149
A140: Ministerio de Agricultura | B140: Corporación Nacional Forestal | C140: Padre Juan Todesco, Nro. 67, Pisos 1,2,3, Región de Los Lagos | D140: 603 | E140: Electricidad | F140: EDELAYSEN - Empresa Eléctrica de Aysén S.A | G140: 10127190 | H140: 3776764 | J140: 125428 | K140: 3777095 | L140: 2469 | M140: BT-1a (BT-1) | N140: 0,00 | O140: FALSE | P140: FALSE | Q140: Si | S140: 603
A141: Ministerio de Agricultura | B141: Corporación Nacional Forestal | C141: Manuel Montt, Nro. 1151, Pisos , Región de la Araucanía | D141: 3521 | E141: Electricidad | F141: CGE - CGE Distribución | G141: 2652047 | H141: 3776248 | I141: CORPORACION NACIONAL FORESTAL | J141: 3338487 | K141: 3776547 | L141: 2224 | M141: BT-1a (BT-1) | N141: 0,00 | O141: FALSE | P141: FALSE | Q141: Si | R141: TRUE | S141: 3521
A142: Ministerio de Agricultura | B142: Corporación Nacional Forestal | C142: 6 norte, Nro. 1240, Pisos 2, Región del Maule | D142: 3457 | E142: Electricidad | F142: CGE - CGE Distribución | G142: 2904405 | H142: 3776283 | I142: MARIA LAGOS FERNANDEZ | J142: 92096122 | K142: 3776587 | L142: 125 | M142: BT-1a (BT-1) | N142: 0,00 | O142: FALSE | P142: FALSE | Q142: Si | S142: 3457
A143: Ministerio de Agricultura | B143: Servicio Agrícola y Ganadero | C143: Ruta 7, Nro. S/N, Pisos 1, Región Aysén del Gral. Carlos Ibáñez del Campo | D143: 4340 | E143: Electricidad | F143: EDELAYSEN - Empresa Eléctrica de Aysén S.A | G143: 10124728 | H143: 3779091 | J143: 93174 | K143: 3779802 | L143: 2800 | M143: BT-1a (BT-1) | N143: 0,00 | O143: FALSE | P143: FALSE | Q143: Si | S143: 4340
A144: Ministerio de Agricultura | B144: Servicio Agrícola y Ganadero | C144: Los Coihues, Nro. 306, Pisos 1, Región Aysén del Gral. Carlos Ibáñez del Campo | D144: 4330 | E144: Electricidad | F144: EDELAYSEN - Empresa Eléctrica de Aysén S.A | G144: 10135464 | H144: 3779092 | J144: 204014299 | K144: 3779803 | L144: 2129 | M144: BT-1a (BT-1) | N144: 0,00 | O144: FALSE | P144: FALSE | Q144: Si | S144: 4330
A145: Ministerio de Agricultura | B145: Servicio Agrícola y Ganadero | C145: Los Coihues, Nro. 306, Pisos 1, Región Aysén del Gral. Carlos Ibáñez del Campo | D145: 4330 | E145: Electricidad | F145: EDELAYSEN - Empresa Eléctrica de Aysén S.A | G145: 10135464 | H145: 3779092 | J145: 1990027336 | K145: 3813168 | L145: 2129 | M145: BT-1a (BT-1) | N145: 0,00 | O145: FALSE | P145: FALSE | Q145: Si | R145: TRUE | S145: 4330
A146: Ministerio de Agricultura | B146: Servicio Agrícola y Ganadero | C146: Patricio Lynch, Nro. 31, Pisos 1, Región Aysén del Gral. Carlos Ibáñez del Campo | D146: 4313 | E146: Electricidad | F146: EDELAYSEN - Empresa Eléctrica de Aysén S.A | G146: 10097616 | H146: 3779093 | J146: 410099 | K146: 3779804 | L146: 2543 | M146: BT-1a (BT-1) | N146: 0,00 | O146: FALSE | P146: FALSE | Q146: Si | S146: 4313
A147: Ministerio de Agricultura | B147: Servicio Agrícola y Ganadero | C147: Teniente Merino, Nro. 1635, Pisos 1, Región Aysén del Gral. Carlos Ibáñez del Campo | D147: 4202 | E147: Electricidad | F147: EDELAYSEN - Empresa Eléctrica de Aysén S.A | G147: 10114957 | H147: 3779094 | J147: 1990032318 | K147: 3779805 | L147: 3062 | M147: BT-1a (BT-1) | N147: 0,00 | O147: FALSE | P147: FALSE | Q147: Si | R147: TRUE | S147: 4202
A148: Ministerio de Agricultura | B148: Servicio Agrícola y Ganadero | C148: Teniente Merino, Nro. S/N, Pisos 1, Región Aysén del Gral. Carlos Ibáñez del Campo | D148: 4317 | E148: Electricidad | F148: EDELAYSEN - Empresa Eléctrica de Aysén S.A | G148: 10091370 | H148: 3779095 | J148: 97246083 | K148: 3779806 | L148: 3064 | M148: BT-1a (BT-1) | N148: 0,00 | O148: FALSE | P148: FALSE | Q148: Si | S148: 4317
A149: Ministerio de Agricultura | B149: Servicio Agrícola y Ganadero | C149: Teniente Merino, Nro. S/N, Pisos 1, Región Aysén del Gral. Carlos Ibáñez del Campo | D149: 4317 | E149: Electricidad | F149: EDELAYSEN - Empresa Eléctrica de Aysén S.A | G149: 10091472 | H149: 3779096 | J149: 8722396 | K149: 3779807 | L149: 3064 | M149: BT-1a (BT-1) | N149: 0,00 | O149: FALSE | P149: FALSE | Q149: Si | S149: 4317
A150: Ministerio de Agricultura | B150: Servicio Agrícola y Ganadero | C150: Teniente Merino, Nro. S/N, Pisos 1, Región Aysén del Gral. Carlos Ibáñez del Campo | D150: 4317 | E150: Electricidad | F150: EDELAYSEN - Empresa Eléctrica de Aysén S.A | G150: 10091369 | H150: 3779097 | J150: 12039462 | K150: 3779808 | L150: 3064 | M150: BT-1a (BT-1) | N150: 0,00 | O150: FALSE | P150: FALSE | Q150: Si | S150: 4317
A151: Ministerio de Agricultura | B151: Servicio Agrícola y Ganadero | C151: Avenida Presidente Bulnes, Nro. 241, Pisos 7, Región Metropolitana de Santiago | D151: 4390 | E151: Electricidad | F151: Enel Distribución (ex Chilectra) | G151: 574691-4 | H151: 3779149 | I151: ENEL | J151: 6818274 | K151: 3779866 | L151: 797 | M151: BT-1a (BT-1) | N151: 0,00 | O151: FALSE | P151: FALSE | Q151: Si | S151: 4390
A152: Ministerio de Agricultura | B152: Servicio Agrícola y Ganadero | C152: Avenida Ogana, Nro. 1060, Pisos 5, Región Aysén del Gral. Carlos Ibáñez del Campo | D152: 3760 | E152: Electricidad | F152: EDELAYSEN - Empresa Eléctrica de Aysén S.A | G152: 10100328 | H152: 3779132 | J152: 12008120 | K152: 3779847 | L152: 3401 | M152: BT-1a (BT-1) | N152: 6,00 | O152: FALSE | P152: FALSE | Q152: Si | R152: FALSE | S152: 3760
A153: Ministerio de Agricultura | B153: Servicio Agrícola y Ganadero | C153: Avenida Ogana, Nro. 1060, Pisos 5, Región Aysén del Gral. Carlos Ibáñez del Campo | D153: 3760 | E153: Electricidad | F153: EDELAYSEN - Empresa Eléctrica de Aysén S.A | G153: 10100328 | H153: 3779132 | J153: 1990027335 | K153: 3813169 | L153: 3401 | M153: BT-1a (BT-1) | N153: 6,00 | O153: FALSE | P153: FALSE | Q153: Si | R153: TRUE | S153: 3760
A154: Ministerio de Agricultura | B154: Servicio Agrícola y Ganadero | C154: José Miguel Carrera, Nro. 517, Pisos 2, Región de Los Ríos | D154: 3194 | E154: Electricidad | F154: SAESA - Sociedad Austral de Electricidad S.A | G154: 10579691 | H154: 3776477 | J154: 51508490 | K154: 3776793 | L154: 1913 | M154: BT-1a (BT-1) | N154: 0,00 | O154: FALSE | P154: FALSE | Q154: Si | S154: 3194
A155: Ministerio de Agricultura | B155: Servicio Agrícola y Ganadero | C155: Tucapel, Nro. 140, Pisos 1,2, Región de Los Lagos | D155: 3511 | E155: Electricidad | F155: SAESA - Sociedad Austral de Electricidad S.A | G155: 10705748 | H155: 3776229 | J155: 180036 | K155: 3776527 | L155: 3084 | M155: BT-1a (BT-1) | N155: 0,00 | O155: FALSE | P155: FALSE | Q155: Si | S155: 3511
A156: Ministerio de Agricultura | B156: Servicio Agrícola y Ganadero | C156: Tucapel, Nro. 140, Pisos 1,2, Región de Los Lagos | D156: 3511 | E156: Electricidad | F156: SAESA - Sociedad Austral de Electricidad S.A | G156: 11080157 | H156: 3776231 | J156: 180034 | K156: 3776528 | L156: 3084 | M156: BT-1a (BT-1) | N156: 6,00 | O156: FALSE | P156: FALSE | Q156: Si | S156: 3511
A157: Ministerio de Agricultura | B157: Servicio Agrícola y Ganadero | C157: Tucapel, Nro. 140, Pisos 1,2, Región de Los Lagos | D157: 3511 | E157: Electricidad | F157: SAESA - Sociedad Austral de Electricidad S.A | G157: 11080157 | H157: 3776231 | J157: 17974 | K157: 3776529 | L157: 3084 | M157: BT-1a (BT-1) | N157: 6,00 | O157: FALSE | P157: FALSE | Q157: Si | S157: 3511
A158: Ministerio de Agricultura | B158: Servicio Agrícola y Ganadero | C158: Brasil, Nro. 834, Pisos 2, Región del Ñuble | D158: 1048 | E158: Electricidad | F158: CGE - CGE Distribución | G158: 3455043 | H158: 3776232 | I158: Servicio Agrícola y Ganadero | J158: 51516251 | K158: 3776530 | L158: 1044 | M158: BT-1a (BT-1) | N158: 0,00 | O158: FALSE | P158: FALSE | Q158: Si | S158: 1048
A159: Ministerio de Agricultura | B159: Servicio Agrícola y Ganadero | C159: Avenida Libertador Bernardo O'Higgins, Nro. 886, Pisos 7, 8, Región Metropolitana de Santiago | D159: 3970 | E159: Electricidad | F159: Enel Distribución (ex Chilectra) | G159: 1161405-1 | H159: 3776754 | I159: Inmobiliaria Cautín S.A. | J159: 61843855 | K159: 3777085 | L159: 3537 | M159: BT-1a (BT-1) | N159: 0,00 | O159: FALSE | P159: FALSE | Q159: Si | S159: 3970
A160: Ministerio de Agricultura | B160: Servicio Agrícola y Ganadero | C160: Avenida Libertador Bernardo O'Higgins, Nro. 886, Pisos 7, 8, Región Metropolitana de Santiago | D160: 3970 | E160: Electricidad | F160: Enel Distribución (ex Chilectra) | G160: 1541871-0 | H160: 3776756 | I160: Inmobiliaria Cautín S.A. | J160: 10815257 | K160: 3777087 | L160: 3537 | M160: BT-1a (BT-1) | N160: 0,00 | O160: FALSE | P160: FALSE | Q160: Si | S160: 3970
A161: Ministerio de Agricultura | B161: Servicio Agrícola y Ganadero | C161: Avenida Libertador Bernardo O'Higgins, Nro. 886, Pisos 7, 8, Región Metropolitana de Santiago | D161: 3970 | E161: Electricidad | F161: Enel Distribución (ex Chilectra) | G161: 1161391-8 | H161: 3776757 | I161: Inmobiliaria Cautín S.A. | J161: 65502463 | K161: 3777088 | L161: 3537 | M161: BT-1a (BT-1) | N161: 0,00 | O161: FALSE | P161: FALSE | Q161: Si | S161: 3970
A162: Ministerio de Agricultura | B162: Servicio Agrícola y Ganadero | C162: San Agustín, Nro. 171, Pisos 1, 2, Región Metropolitana de Santiago | D162: 876 | E162: Electricidad | F162: EMELECTRIC - Empresa Eléctrica de Melipilla, Colchagua y Maule S.A | G162: 3002254 | H162: 3776899 | I162: SAG | J162: 4467995 | K162: 3777250 | L162: 2846 | M162: BT-1a (BT-1) | N162: 0,00 | O162: FALSE | P162: FALSE | Q162: Si | S162: 876
A163: Ministerio de Agricultura | B163: Servicio Agrícola y Ganadero | C163: Camino La Polvora, Nro. S/N, Pisos 2, Región de Valparaíso | D163: 4021 | E163: Electricidad | F163: Chilquinta S.A. | G163: 300044 | H163: 3776840 | I163: SERVICIO AGRICOLA Y GANADERO | J163: 647505 | K163: 3777188 | L163: 1137 | M163: BT-1a (BT-1) | N163: 0,00 | O163: FALSE | P163: FALSE | Q163: Si | S163: 4021
A164: Ministerio de Agricultura | B164: Servicio Agrícola y Ganadero | C164: Camino La Polvora, Nro. S/N, Pisos 2, Región de Valparaíso | D164: 4021 | E164: Electricidad | F164: Chilquinta S.A. | G164: 300044 | H164: 3776840 | I164: SERVICIO AGRICOLA Y GANADERO | J164: 8240149 | K164: 3777189 | L164: 1137 | M164: BT-1a (BT-1) | N164: 0,00 | O164: FALSE | P164: FALSE | Q164: Si | S164: 4021
A165: Ministerio de Agricultura | B165: Servicio Agrícola y Ganadero | C165: Camino La Polvora, Nro. S/N, Pisos 2, Región de Valparaíso | D165: 4021 | E165: Electricidad | F165: Chilquinta S.A. | G165: 300044 | H165: 3776840 | I165: SERVICIO AGRICOLA Y GANADERO | J165: 647504 | K165: 3777190 | L165: 1137 | M165: BT-1a (BT-1) | N165: 0,00 | O165: FALSE | P165: FALSE | Q165: Si | S165: 4021
A166: Ministerio de Agricultura | B166: Servicio Agrícola y Ganadero | C166: Avenida Presidente Bulnes, Nro. 107, Pisos 4, Región Metropolitana de Santiago | D166: 4379 | E166: Electricidad | F166: Enel Distribución (ex Chilectra) | G166: 380669-3 | H166: 3777137 | J166: 202732943 | K166: 3777504 | L166: 3402 | M166: BT-1a (BT-1) | N166: 0,00 | O166: FALSE | P166: FALSE | Q166: Si | S166: 4379
A167: Ministerio de Agricultura | B167: Servicio Agrícola y Ganadero | C167: Avenida Presidente Bulnes, Nro. 107, Pisos 4, Región Metropolitana de Santiago | D167: 4379 | E167: Electricidad | F167: Enel Distribución (ex Chilectra) | G167: 380669-3 | H167: 3777137 | J167: 700811219 | K167: 3800996 | L167: 3402 | M167: BT-1a (BT-1) | N167: 0,00 | O167: FALSE | P167: FALSE | Q167: Si | S167: 4379
A168: Ministerio de Agricultura | B168: Servicio Agrícola y Ganadero | C168: Aníbal Pinto, Nro. 438, Pisos 1, Región del Ñuble | D168: 2401 | E168: Electricidad | F168: FRONTEL - Empresa eléctrica de la Frontera | G168: 10150358 | H168: 3775892 | J168: 51516290 | K168: 3776159 | L168: 3503 | M168: BT-1a (BT-1) | N168: 0,00 | O168: FALSE | P168: FALSE | Q168: Si | S168: 2401
A169: Ministerio de Agricultura | B169: Servicio Agrícola y Ganadero | C169: Arturo Prat, Nro. 571, Pisos 1,2, Región de Atacama | D169: 320 | E169: Electricidad | F169: EMELAT - Empresa Eléctrica de Atacama | G169: 9366208 | H169: 3775879 | I169: Servagric Ganadero (Sag) | J169: 9014051 | K169: 3776145 | L169: 356 | M169: BT-1a (BT-1) | N169: 0,00 | O169: FALSE | P169: FALSE | Q169: Si | R169: FALSE | S169: 320
A170: Ministerio de Agricultura | B170: Servicio Agrícola y Ganadero | C170: Avenida Presidente Frei, Nro. 198, Pisos 1, Región del Biobío | D170: 3180 | E170: Electricidad | F170: FRONTEL - Empresa eléctrica de la Frontera | G170: 10218710 | H170: 3775806 | J170: 97083051 | K170: 3776067 | L170: 3546 | M170: BT-1a (BT-1) | N170: 0,00 | O170: FALSE | P170: FALSE | Q170: Si | S170: 3180
A171: Ministerio de Agricultura | B171: Servicio Agrícola y Ganadero | C171: Avenida Presidente Frei, Nro. 198, Pisos 1, Región del Biobío | D171: 3180 | E171: Electricidad | F171: FRONTEL - Empresa eléctrica de la Frontera | G171: 10218710 | H171: 3775806 | J171: 220403951 | K171: 3824212 | L171: 3546 | M171: BT-1a (BT-1) | N171: 0,00 | O171: FALSE | P171: FALSE | Q171: Si | R171: TRUE | S171: 3180
A172: Ministerio de Agricultura | B172: Servicio Agrícola y Ganadero | C172: Nicolás Palacios, Nro. 277, Pisos 1,2, Región del Libertador Gral. Bernardo O’Higgins | D172: 3060 | E172: Electricidad | F172: CGE - CGE Distribución | G172: 4315332 | H172: 3775791 | J172: 96518918 | K172: 3776050 | L172: 2371 | M172: BT-1a (BT-1) | N172: 0,00 | O172: FALSE | P172: FALSE | Q172: Si | S172: 3060
A173: Ministerio de Agricultura | B173: Servicio Agrícola y Ganadero | C173: Esmeralda, Nro. 1160, Pisos 2, Región de Los Ríos | D173: 2505 | E173: Electricidad | F173: SAESA - Sociedad Austral de Electricidad S.A | G173: 10777011 | H173: 3775556 | J173: 98000344 | K173: 3775790 | L173: 1560 | M173: BT-1a (BT-1) | N173: 0,00 | O173: FALSE | P173: FALSE | Q173: Si | S173: 2505
A174: Ministerio de Agricultura | B174: Servicio Agrícola y Ganadero | C174: Esmeralda, Nro. 1160, Pisos 2, Región de Los Ríos | D174: 2505 | E174: Electricidad | F174: SAESA - Sociedad Austral de Electricidad S.A | G174: 10777011 | H174: 3775556 | J174: 98016431 | K174: 3780434 | L174: 1560 | M174: BT-1a (BT-1) | N174: 0,00 | O174: FALSE | P174: FALSE | Q174: Si | S174: 2505
A175: Ministerio de Agricultura | B175: Servicio Agrícola y Ganadero | C175: Esmeralda, Nro. 1160, Pisos 2, Región de Los Ríos | D175: 2505 | E175: Electricidad | F175: SAESA - Sociedad Austral de Electricidad S.A | G175: 10777011 | H175: 3775556 | J175: 98016440 | K175: 3780435 | L175: 1560 | M175: BT-1a (BT-1) | N175: 0,00 | O175: FALSE | P175: FALSE | Q175: Si | S175: 2505
A176: Ministerio de Agricultura | B176: Servicio Agrícola y Ganadero | C176: Cachapoal, Nro. 330, Pisos , Región del Libertador Gral. Bernardo O’Higgins | D176: 3084 | E176: Electricidad | F176: CGE - CGE Distribución | G176: 1459223 | H176: 3775582 | I176: Mario Paut B. | J176: 28850748 | K176: 3775819 | L176: 1066 | M176: BT-1a (BT-1) | N176: 0,00 | O176: FALSE | P176: FALSE | Q176: Si | S176: 3084
A177: Ministerio de Agricultura | B177: Servicio Agrícola y Ganadero | C177: Cachapoal, Nro. 330, Pisos , Región del Libertador Gral. Bernardo O’Higgins | D177: 3084 | E177: Electricidad | F177: CGE - CGE Distribución | G177: 1459223 | H177: 3775582 | I177: Mario Paut B. | J177: 28850819 | K177: 3775820 | L177: 1066 | M177: BT-1a (BT-1) | N177: 0,00 | O177: FALSE | P177: FALSE | Q177: Si | S177: 3084
A178: Ministerio de Agricultura | B178: Servicio Agrícola y Ganadero | C178: Oficiales Gamero, Nro. 133, Pisos 1, Región del Libertador Gral. Bernardo O’Higgins | D178: 2928 | E178: Electricidad | F178: CGE - CGE Distribución | G178: 1487177 | H178: 3775707 | I178: Alberto Luis Gonzalez Ferrand | J178: 97233331 | K178: 3775962 | L178: 2396 | M178: BT-1a (BT-1) | N178: 0,00 | O178: FALSE | P178: FALSE | Q178: Si | S178: 2928
A179: Ministerio de Agricultura | B179: Servicio Agrícola y Ganadero | C179: Ramón Freire, Nro. 765, Pisos 1, Región de Valparaíso | D179: 3328 | E179: Electricidad | F179: Chilquinta S.A. | G179: 176730-5 | H179: 3775720 | I179: Dirección Regional | J179: 10012968 | K179: 3775975 | L179: 3477 | M179: BT-1a (BT-1) | N179: 0,00 | O179: FALSE | P179: FALSE | Q179: Si | S179: 3328
A180: Ministerio de Agricultura | B180: Servicio Agrícola y Ganadero | C180: Chacabuco, Nro. 462, Pisos 1, Región del Libertador Gral. Bernardo O’Higgins | D180: 3329 | E180: Electricidad | F180: CGE - CGE Distribución | G180: 5459384 | H180: 3775721 | I180: SERVICIO AGRICOLA Y GANADERO | J180: 96973886 | K180: 3775976 | L180: 1254 | M180: BT-1a (BT-1) | N180: 0,00 | O180: FALSE | P180: FALSE | Q180: Si | S180: 3329
A181: Ministerio de Agricultura | B181: Servicio Agrícola y Ganadero | C181: Padre Juan Todesco, Nro. 241, Pisos 1, Región de Los Lagos | D181: 3331 | E181: Electricidad | F181: EDELAYSEN - Empresa Eléctrica de Aysén S.A | G181: 10123202 | H181: 3775722 | J181: 6106230 | K181: 3775977 | L181: 2468 | M181: BT-1a (BT-1) | N181: 0,00 | O181: FALSE | P181: FALSE | Q181: Si | S181: 3331
A182: Ministerio de Agricultura | B182: Servicio Agrícola y Ganadero | C182: Chacabuco, Nro. 327, Pisos , Región del Libertador Gral. Bernardo O’Higgins | D182: 3292 | E182: Electricidad | F182: CGE - CGE Distribución | G182: 1603572 | H182: 3775679 | I182: Nibaldo Enrique Vidal Bozo | J182: 87049252 | K182: 3778787 | L182: 1248 | M182: BT-1a (BT-1) | N182: 0,00 | O182: FALSE | P182: FALSE | Q182: Si | S182: 3292
A183: Ministerio de Agricultura | B183: Servicio Agrícola y Ganadero | C183: 1 oriente, Nro. 1150, Pisos 2, Región del Maule | D183: 690 | E183: Electricidad | F183: CGE - CGE Distribución | G183: 1792814 | H183: 3775684 | I183: Servicio Agrícola y Ganadero | J183: 22162197 | K183: 3775935 | L183: 3362 | M183: BT-1a (BT-1) | N183: 0,00 | O183: FALSE | P183: FALSE | Q183: Si | S183: 690
A184: Ministerio de Agricultura | B184: Servicio Agrícola y Ganadero | C184: Aníbal Pinto, Nro. 740, Pisos 1, Región del Biobío | D184: 3319 | E184: Electricidad | F184: FRONTEL - Empresa eléctrica de la Frontera | G184: 10230958 | H184: 3775685 | J184: 7067789 | K184: 3775936 | L184: 259 | M184: BT-1a (BT-1) | N184: 0,00 | O184: FALSE | P184: FALSE | Q184: Si | R184: FALSE | S184: 3319
A185: Ministerio de Agricultura | B185: Servicio Agrícola y Ganadero | C185: Arturo Prat, Nro. 191, Pisos 1, Región de la Araucanía | D185: 3228 | E185: Electricidad | F185: FRONTEL - Empresa eléctrica de la Frontera | G185: 10238190 | H185: 3775627 | J185: 50893634 | K185: 3775865 | L185: 3431 | M185: BT-1a (BT-1) | N185: 0,00 | O185: FALSE | P185: FALSE | Q185: Si | S185: 3228
A186: Ministerio de Agricultura | B186: Servicio Agrícola y Ganadero | C186: Arturo Prat, Nro. 191, Pisos 1, Región de la Araucanía | D186: 3228 | E186: Electricidad | F186: FRONTEL - Empresa eléctrica de la Frontera | G186: 10238190 | H186: 3775627 | J186: 10038534 | K186: 3800154 | L186: 3431 | M186: BT-1a (BT-1) | N186: 0,00 | O186: FALSE | P186: FALSE | Q186: Si | S186: 3228
A187: Ministerio de Agricultura | B187: Servicio Agrícola y Ganadero | C187: Orella, Nro. 562, Pisos 2, Región de Tarapacá | D187: 721 | E187: Electricidad | F187: ELIQSA - Empresa Eléctrica de Iquique S.A | G187: 9117210 | H187: 3775640 | I187: PEDRO CACCIOLA | J187: 98120111 | K187: 3775884 | L187: 2437 | M187: BT-1a (BT-1) | N187: 0,00 | O187: FALSE | P187: FALSE | Q187: Si | S187: 721
A188: Ministerio de Agricultura | B188: Servicio Agrícola y Ganadero | C188: Orella, Nro. 562, Pisos 2, Región de Tarapacá | D188: 721 | E188: Electricidad | F188: ELIQSA - Empresa Eléctrica de Iquique S.A | G188: 9117210 | H188: 3775640 | I188: PEDRO CACCIOLA | J188: 98120112 | K188: 3775887 | L188: 2437 | M188: BT-1a (BT-1) | N188: 0,00 | O188: FALSE | P188: FALSE | Q188: Si | S188: 721
A189: Ministerio de Agricultura | B189: Servicio Agrícola y Ganadero | C189: Orella, Nro. 562, Pisos 2, Región de Tarapacá | D189: 721 | E189: Electricidad | F189: ELIQSA - Empresa Eléctrica de Iquique S.A | G189: 9117210 | H189: 3775640 | I189: PEDRO CACCIOLA | J189: 98120119 | K189: 3775888 | L189: 2437 | M189: BT-1a (BT-1) | N189: 0,00 | O189: FALSE | P189: FALSE | Q189: Si | S189: 721
A190: Ministerio de Agricultura | B190: Servicio Agrícola y Ganadero | C190: Teniente Coronel José Bernardo Cuevas, Nro. 480, Pisos 1, Región del Libertador Gral. Bernardo O’Higgins | D190: 3206 | E190: Electricidad | F190: CGE - CGE Distribución | G190: 1535646 | H190: 3775641 | I190: SERVICIO AGRICOLA Y GANADERO | J190: 22215956 | K190: 3775885 | L190: 3487 | M190: BT-1a (BT-1) | N190: 0,00 | O190: FALSE | P190: FALSE | Q190: Si | S190: 3206
A191: Ministerio de Agricultura | B191: Servicio Agrícola y Ganadero | C191: General Lagos, Nro. 270, Pisos 1, Región de la Araucanía | D191: 3276 | E191: Electricidad | F191: FRONTEL - Empresa eléctrica de la Frontera | G191: 10268824 | H191: 3775650 | J191: 9061171999 | K191: 3775896 | L191: 1705 | M191: BT-1a (BT-1) | N191: 0,00 | O191: FALSE | P191: FALSE | Q191: Si | S191: 3276
A192: Ministerio de Agricultura | B192: Servicio Agrícola y Ganadero | C192: Francisco Bilbao, Nro. 931, Pisos 1,2,3, Región de la Araucanía | D192: 3284 | E192: Electricidad | F192: CGE - CGE Distribución | G192: 2652104 | H192: 3775656 | I192: Servicio Agrícola y Ganadero | J192: 46042301 | K192: 3775902 | L192: 3455 | M192: BT-1a (BT-1) | N192: 0,00 | O192: FALSE | P192: FALSE | Q192: Si | S192: 3284
A193: Ministerio de Agricultura | B193: Servicio Agrícola y Ganadero | C193: Maipú, Nro. 60, Pisos , Región de Tarapacá | D193: 3223 | E193: Electricidad | F193: ELIQSA - Empresa Eléctrica de Iquique S.A | G193: 9140127 | H193: 3775663 | J193: 410911D | K193: 3775913 | L193: 2179 | M193: BT-1a (BT-1) | N193: 0,00 | O193: FALSE | P193: FALSE | Q193: Si | S193: 3223
A194: Ministerio de Agricultura | B194: Servicio Agrícola y Ganadero | C194: Chacabuco, Nro. 546, Pisos 2 Y 4, Región de Atacama | D194: 882 | E194: Electricidad | F194: EMELAT - Empresa Eléctrica de Atacama | G194: 9359228 | H194: 3775674 | I194: SERVICIO AGRICOLA Y GANADERO | J194: 7727 | K194: 3775924 | L194: 3385 | M194: BT-1a (BT-1) | N194: 0,00 | O194: FALSE | P194: FALSE | Q194: Si | S194: 882
A195: Ministerio de Agricultura | B195: Servicio Agrícola y Ganadero | C195: Chacabuco, Nro. 546, Pisos 2 Y 4, Región de Atacama | D195: 882 | E195: Electricidad | F195: EMELAT - Empresa Eléctrica de Atacama | G195: 9359232 | H195: 3775675 | I195: SERVICIO AGRICOLA GANADERO | J195: 8235 | K195: 3775925 | L195: 3385 | M195: BT-1a (BT-1) | N195: 0,00 | O195: FALSE | P195: FALSE | Q195: Si | S195: 882
A196: Ministerio de Agricultura | B196: Servicio Agrícola y Ganadero | C196: Chacabuco, Nro. 546, Pisos 2 Y 4, Región de Atacama | D196: 882 | E196: Electricidad | F196: EMELAT - Empresa Eléctrica de Atacama | G196: 9359032 | H196: 3775670 | I196: SERVICIO AGRICOLA Y GANADERO | J196: 8021 | K196: 3775920 | L196: 3385 | M196: BT-1a (BT-1) | N196: 0,00 | O196: FALSE | P196: FALSE | Q196: Si | S196: 882
A197: Ministerio de Agricultura | B197: Servicio Agrícola y Ganadero | C197: Chacabuco, Nro. 641, Pisos 1, Región de Atacama | D197: 877 | E197: Electricidad | F197: EMELAT - Empresa Eléctrica de Atacama | G197: 9430110 | H197: 43447 | I197: SAG | J197: 36143416 | K197: 43515 | L197: 1255 | M197: BT-1a (BT-1) | N197: 0,00 | O197: FALSE | P197: FALSE | Q197: Si | S197: 877
A198: Ministerio de Agricultura | B198: Servicio Agrícola y Ganadero | C198: 1 oriente, Nro. 1120, Pisos 4, Región del Maule | D198: 714 | E198: Electricidad | F198: CGE - CGE Distribución | G198: 5483542 | H198: 72138 | I198: SERVICIO JURIDICO LEGAL TALCA LTDA. | J198: 61039952 | K198: 72229 | L198: 7 | M198: BT-1a (BT-1) | N198: 0,00 | O198: FALSE | P198: FALSE | Q198: Si | R198: TRUE | S198: 714
A199: Ministerio de Agricultura | B199: Corporación Nacional Forestal | C199: Avenida Presidente Bulnes, Nro. 291, Pisos , Región Metropolitana de Santiago | D199: 4999 | E199: Electricidad | F199: Enel Distribución (ex Chilectra) | G199: 291489-1 | H199: 3778580 | I199: Paseo Bulnes 2091 | J199: 29038397 | K199: 3779116 | L199: 800 | M199: BT-1a (BT-1) | N199: 0,00 | O199: FALSE | P199: FALSE | Q199: Si | S199: 4999
A200: Ministerio de Agricultura | B200: Corporación Nacional Forestal | C200: Avenida Presidente Bulnes, Nro. 265, Pisos , Región Metropolitana de Santiago | D200: 4998 | E200: Electricidad | F200: Enel Distribución (ex Chilectra) | G200: 291464-6 | H200: 3778571 | I200: Paseo Bulnes 265 | J200: 424438 | K200: 3779106 | L200: 798 | M200: BT-1a (BT-1) | N200: 0,00 | O200: FALSE | P200: FALSE | Q200: Si | S200: 4998
... 4300 more rows

Sheet Edificios
A1: id_unidad | B1: id_servicio | C1: nombre unidad | D1: calle edificio | E1: direccion edificio | F1: numero direccion edificio | G1: pisos | H1: region | I1: comunaid | J1: ministerio | K1: servicio | L1: id_edificio | M1: reportaPMG | N1: anyo_construccion | O1: tipo_propiedad | P1: n_funcionarios | Q1: superficie | R1: Nro Rol | S1: Funcionarios | T1: AnyoConstruccion | U1: Tipo de Propiedad | V1: dotacion profesionales | W1: dotacion tecnicos | X1: dotacion otros | Y1: dotacion_total_personal | Z1: numero camas | AA1: numero pabellones | AB1: numero jornadas | AC1: numero alumnos por jornada | AD1: turnos | AE1: dias produccion semanal | AF1: hora produccion semanal | AG1: horario desde | AH1: horario hasta | AI1: imagen | AJ1: tiene sello | AK1: fecha sello | AL1: latitude | AM1: longitude | AN1: tipo sub beneficiario id | AO1: Comparte medidor electricidad | AP1: Comparte medidor gas por cañeria | AQ1: CreatedAt | AR1: UpdatedAt | AS1: validado | AT1: fecha_validado | AU1: motivo validado | AV1: castigado | AW1: fecha castigado | AX1: motivo castigado | AY1: deleted_at | AZ1: aire acondicionado | BA1: calefaccion | BB1: tipo_de_uso | BC1: id edificio | BD1: nombre edificio (direccion) | BE1: recibe boleta electronica | BF1: recibe boleta de gas | BG1: AccesoFactura | BH1: ResponsableConsumos | BI1: SinRol | BJ1: JustificaRol | BK1: Compromiso2022 | BL1: Justificacion | BM1: ObservacionCompromiso2022 | BN1: EstadoCompromiso2022
A2: 7921 | B2: 3 | D2: 1 de mayo | E2: 1 de mayo S/N | F2: S/N | I2: 40 | J2: False | M2: False | N2: 1900 | Q2: 1 | S2: 0 | T2: 1900 | U2: Propia | AL2: 0 | AM2: 0 | AN2: 6 | AO2: False | AP2: False | AQ2: 1/04/2019 5:45:54 p. m. | AR2: 1/04/2019 5:45:54 p. m. | BB2: Oficinas administrativas | BC2: 1 | BD2: 1 de mayo S/N | BG2: Sin información | BI2: False | BK2: Sin información
A3: 7922 | B3: 3 | D3: 1 de mayo | E3: 1 de mayo S/N | F3: S/N | I3: 40 | J3: False | M3: False | N3: 1900 | Q3: 1 | S3: 0 | T3: 1900 | U3: Propia | AL3: 0 | AM3: 0 | AN3: 6 | AO3: False | AP3: False | AQ3: 1/04/2019 5:45:54 p. m. | AR3: 1/04/2019 5:45:54 p. m. | BB3: Oficinas administrativas | BC3: 1 | BD3: 1 de mayo S/N | BG3: Sin información | BI3: False | BK3: Sin información
A4: 7924 | B4: 3 | D4: 1 de mayo | E4: 1 de mayo S/N | F4: S/N | I4: 40 | J4: False | M4: False | N4: 1900 | Q4: 1 | S4: 0 | T4: 1900 | U4: Propia | AL4: 0 | AM4: 0 | AN4: 6 | AO4: False | AP4: False | AQ4: 1/04/2019 5:45:54 p. m. | AR4: 1/04/2019 5:45:54 p. m. | BB4: Oficinas administrativas | BC4: 1 | BD4: 1 de mayo S/N | BG4: Sin información | BI4: False | BK4: Sin información
A5: 7925 | B5: 3 | D5: 1 de mayo | E5: 1 de mayo S/N | F5: S/N | I5: 40 | J5: False | M5: False | N5: 1900 | Q5: 1 | S5: 0 | T5: 1900 | U5: Propia | AL5: 0 | AM5: 0 | AN5: 6 | AO5: False | AP5: False | AQ5: 1/04/2019 5:45:54 p. m. | AR5: 1/04/2019 5:45:54 p. m. | BB5: Oficinas administrativas | BC5: 1 | BD5: 1 de mayo S/N | BG5: Sin información | BI5: False | BK5: Sin información
A6: 7928 | B6: 3 | D6: 1 de mayo | E6: 1 de mayo S/N | F6: S/N | I6: 40 | J6: False | M6: False | N6: 1999 | Q6: 1 | S6: 0 | T6: 1999 | U6: Propia | AL6: 0 | AM6: 0 | AN6: 6 | AO6: False | AP6: False | AQ6: 1/04/2019 5:45:54 p. m. | AR6: 1/04/2019 5:45:54 p. m. | BB6: Establecimientos de educación preescolar, básica y media | BC6: 1 | BD6: 1 de mayo S/N | BG6: Sin información | BI6: False | BK6: Sin información
A7: 7929 | B7: 3 | D7: 1 de mayo | E7: 1 de mayo S/N | F7: S/N | I7: 40 | J7: False | M7: False | N7: 1976 | Q7: 1968.2 | S7: 0 | T7: 1976 | U7: Propia | AL7: 0 | AM7: 0 | AN7: 6 | AO7: False | AP7: False | AQ7: 1/04/2019 5:45:54 p. m. | AR7: 1/04/2019 5:45:54 p. m. | BB7: Oficinas administrativas | BC7: 1 | BD7: 1 de mayo S/N | BG7: Sin información | BI7: False | BK7: Sin información
A8: 7930 | B8: 3 | D8: 1 de mayo | E8: 1 de mayo S/N | F8: S/N | I8: 40 | J8: False | M8: False | N8: 1900 | Q8: 1 | S8: 0 | T8: 1900 | U8: Propia | AL8: 0 | AM8: 0 | AN8: 6 | AO8: False | AP8: False | AQ8: 1/04/2019 5:45:54 p. m. | AR8: 1/04/2019 5:45:54 p. m. | BB8: Oficinas administrativas | BC8: 1 | BD8: 1 de mayo S/N | BG8: Sin información | BI8: False | BK8: Sin información
A9: 7933 | B9: 3 | D9: 1 de mayo | E9: 1 de mayo S/N | F9: S/N | I9: 40 | J9: False | M9: False | N9: 1900 | Q9: 10219 | S9: 0 | T9: 1900 | U9: Propia | AL9: 0 | AM9: 0 | AN9: 6 | AO9: False | AP9: False | AQ9: 1/04/2019 5:45:54 p. m. | AR9: 1/04/2019 5:45:54 p. m. | BB9: Oficinas administrativas | BC9: 1 | BD9: 1 de mayo S/N | BG9: Sin información | BI9: False | BK9: Sin información
A10: 7934 | B10: 3 | D10: 1 de mayo | E10: 1 de mayo S/N | F10: S/N | I10: 40 | J10: False | M10: False | N10: 1900 | Q10: 1 | S10: 0 | T10: 1900 | U10: Propia | AL10: 0 | AM10: 0 | AN10: 6 | AO10: False | AP10: False | AQ10: 1/04/2019 5:45:54 p. m. | AR10: 1/04/2019 5:45:54 p. m. | BB10: Oficinas administrativas | BC10: 1 | BD10: 1 de mayo S/N | BG10: Sin información | BI10: False | BK10: Sin información
A11: 7935 | B11: 3 | D11: 1 de mayo | E11: 1 de mayo S/N | F11: S/N | I11: 40 | J11: False | M11: False | N11: 1900 | Q11: 1 | S11: 0 | T11: 1900 | U11: Propia | AL11: 0 | AM11: 0 | AN11: 6 | AO11: False | AP11: False | AQ11: 1/04/2019 5:45:54 p. m. | AR11: 1/04/2019 5:45:54 p. m. | BB11: Oficinas administrativas | BC11: 1 | BD11: 1 de mayo S/N | BG11: Sin información | BI11: False | BK11: Sin información
A12: 7938 | B12: 3 | D12: 1 de mayo | E12: 1 de mayo S/N | F12: S/N | I12: 40 | J12: False | M12: False | N12: 1900 | Q12: 1 | S12: 0 | T12: 1900 | U12: Propia | AL12: 0 | AM12: 0 | AN12: 6 | AO12: False | AP12: False | AQ12: 1/04/2019 5:45:54 p. m. | AR12: 1/04/2019 5:45:54 p. m. | BB12: Oficinas administrativas | BC12: 1 | BD12: 1 de mayo S/N | BG12: Sin información | BI12: False | BK12: Sin información
A13: 7939 | B13: 3 | D13: 1 de mayo | E13: 1 de mayo S/N | F13: S/N | I13: 40 | J13: False | M13: False | N13: 1900 | Q13: 1 | S13: 0 | T13: 1900 | U13: Propia | AL13: 0 | AM13: 0 | AN13: 6 | AO13: False | AP13: False | AQ13: 1/04/2019 5:45:54 p. m. | AR13: 1/04/2019 5:45:54 p. m. | BB13: Oficinas administrativas | BC13: 1 | BD13: 1 de mayo S/N | BG13: Sin información | BI13: False | BK13: Sin información
A14: 7940 | B14: 3 | D14: 1 de mayo | E14: 1 de mayo S/N | F14: S/N | I14: 40 | J14: False | M14: False | N14: 1900 | Q14: 1 | S14: 0 | T14: 1900 | U14: Propia | AL14: 0 | AM14: 0 | AN14: 6 | AO14: False | AP14: False | AQ14: 1/04/2019 5:45:54 p. m. | AR14: 1/04/2019 5:45:54 p. m. | BB14: Oficinas administrativas | BC14: 1 | BD14: 1 de mayo S/N | BG14: Sin información | BI14: False | BK14: Sin información
A15: 7941 | B15: 3 | D15: 1 de mayo | E15: 1 de mayo S/N | F15: S/N | I15: 40 | J15: False | M15: False | N15: 1900 | Q15: 1 | S15: 0 | T15: 1900 | U15: Propia | AL15: 0 | AM15: 0 | AN15: 6 | AO15: False | AP15: False | AQ15: 1/04/2019 5:45:54 p. m. | AR15: 1/04/2019 5:45:54 p. m. | BB15: Oficinas administrativas | BC15: 1 | BD15: 1 de mayo S/N | BG15: Sin información | BI15: False | BK15: Sin información
A16: 7943 | B16: 3 | D16: 1 de mayo | E16: 1 de mayo S/N | F16: S/N | I16: 40 | J16: False | M16: False | N16: 1900 | Q16: 1 | S16: 0 | T16: 1900 | U16: Propia | AL16: 0 | AM16: 0 | AN16: 6 | AO16: False | AP16: False | AQ16: 1/04/2019 5:45:54 p. m. | AR16: 1/04/2019 5:45:54 p. m. | BB16: Oficinas administrativas | BC16: 1 | BD16: 1 de mayo S/N | BG16: Sin información | BI16: False | BK16: Sin información
A17: 7944 | B17: 3 | D17: 1 de mayo | E17: 1 de mayo S/N | F17: S/N | I17: 40 | J17: False | M17: False | N17: 1900 | Q17: 1 | S17: 0 | T17: 1900 | U17: Propia | AL17: 0 | AM17: 0 | AN17: 6 | AO17: False | AP17: False | AQ17: 1/04/2019 5:45:54 p. m. | AR17: 1/04/2019 5:45:54 p. m. | BB17: Oficinas administrativas | BC17: 1 | BD17: 1 de mayo S/N | BG17: Sin información | BI17: False | BK17: Sin información
A18: 7945 | B18: 3 | D18: 1 de mayo | E18: 1 de mayo S/N | F18: S/N | I18: 40 | J18: False | M18: False | N18: 1900 | Q18: 1 | S18: 0 | T18: 1900 | U18: Propia | AL18: 0 | AM18: 0 | AN18: 6 | AO18: False | AP18: False | AQ18: 1/04/2019 5:45:54 p. m. | AR18: 1/04/2019 5:45:54 p. m. | BB18: Establecimientos de salud de baja complejidad | BC18: 1 | BD18: 1 de mayo S/N | BG18: Sin información | BI18: False | BK18: Sin información
A19: 7946 | B19: 3 | D19: 1 de mayo | E19: 1 de mayo S/N | F19: S/N | I19: 40 | J19: False | M19: False | N19: 1928 | Q19: 38914 | S19: 0 | T19: 1928 | U19: Propia | AL19: 0 | AM19: 0 | AN19: 6 | AO19: False | AP19: False | AQ19: 1/04/2019 5:45:54 p. m. | AR19: 1/04/2019 5:45:54 p. m. | BB19: Oficinas administrativas | BC19: 1 | BD19: 1 de mayo S/N | BG19: Sin información | BI19: False | BK19: Sin información
A20: 7947 | B20: 3 | D20: 1 de mayo | E20: 1 de mayo S/N | F20: S/N | I20: 40 | J20: False | M20: False | N20: 1900 | Q20: 1 | S20: 0 | T20: 1900 | U20: Propia | AL20: 0 | AM20: 0 | AN20: 6 | AO20: False | AP20: False | AQ20: 1/04/2019 5:45:54 p. m. | AR20: 1/04/2019 5:45:54 p. m. | BB20: Oficinas administrativas | BC20: 1 | BD20: 1 de mayo S/N | BG20: Sin información | BI20: False | BK20: Sin información
A21: 7948 | B21: 3 | D21: 1 de mayo | E21: 1 de mayo S/N | F21: S/N | I21: 40 | J21: False | M21: False | N21: 1900 | Q21: 1 | S21: 0 | T21: 1900 | U21: Propia | AL21: 0 | AM21: 0 | AN21: 6 | AO21: False | AP21: False | AQ21: 1/04/2019 5:45:54 p. m. | AR21: 1/04/2019 5:45:54 p. m. | BB21: Oficinas administrativas | BC21: 1 | BD21: 1 de mayo S/N | BG21: Sin información | BI21: False | BK21: Sin información
A22: 7949 | B22: 3 | D22: 1 de mayo | E22: 1 de mayo S/N | F22: S/N | I22: 40 | J22: False | M22: False | N22: 1900 | Q22: 1 | S22: 0 | T22: 1900 | U22: Propia | AL22: 0 | AM22: 0 | AN22: 6 | AO22: False | AP22: False | AQ22: 1/04/2019 5:45:54 p. m. | AR22: 1/04/2019 5:45:54 p. m. | BB22: Establecimientos de salud de baja complejidad | BC22: 1 | BD22: 1 de mayo S/N | BG22: Sin información | BI22: False | BK22: Sin información
A23: 7951 | B23: 3 | D23: 1 de mayo | E23: 1 de mayo S/N | F23: S/N | I23: 40 | J23: False | M23: False | N23: 1900 | Q23: 1 | S23: 0 | T23: 1900 | U23: Propia | AL23: 0 | AM23: 0 | AN23: 6 | AO23: False | AP23: False | AQ23: 1/04/2019 5:45:54 p. m. | AR23: 1/04/2019 5:45:54 p. m. | BB23: Oficinas administrativas | BC23: 1 | BD23: 1 de mayo S/N | BG23: Sin información | BI23: False | BK23: Sin información
A24: 7953 | B24: 3 | D24: 1 de mayo | E24: 1 de mayo S/N | F24: S/N | I24: 40 | J24: False | M24: False | N24: 1900 | Q24: 1 | S24: 0 | T24: 1900 | U24: Propia | AL24: 0 | AM24: 0 | AN24: 6 | AO24: False | AP24: False | AQ24: 1/04/2019 5:45:54 p. m. | AR24: 1/04/2019 5:45:54 p. m. | BB24: Oficinas administrativas | BC24: 1 | BD24: 1 de mayo S/N | BG24: Sin información | BI24: False | BK24: Sin información
A25: 7956 | B25: 3 | D25: 1 de mayo | E25: 1 de mayo S/N | F25: S/N | I25: 40 | J25: False | M25: False | N25: 1900 | Q25: 1 | S25: 0 | T25: 1900 | U25: Propia | AL25: 0 | AM25: 0 | AN25: 6 | AO25: False | AP25: False | AQ25: 1/04/2019 5:45:54 p. m. | AR25: 1/04/2019 5:45:54 p. m. | BB25: Oficinas administrativas | BC25: 1 | BD25: 1 de mayo S/N | BG25: Sin información | BI25: False | BK25: Sin información
A26: 7958 | B26: 3 | D26: 1 de mayo | E26: 1 de mayo S/N | F26: S/N | I26: 40 | J26: False | M26: False | N26: 1900 | Q26: 1 | S26: 0 | T26: 1900 | U26: Propia | AL26: 0 | AM26: 0 | AN26: 6 | AO26: False | AP26: False | AQ26: 1/04/2019 5:45:54 p. m. | AR26: 1/04/2019 5:45:54 p. m. | BB26: Oficinas administrativas | BC26: 1 | BD26: 1 de mayo S/N | BG26: Sin información | BI26: False | BK26: Sin información
A27: 7959 | B27: 3 | D27: 1 de mayo | E27: 1 de mayo S/N | F27: S/N | I27: 40 | J27: False | M27: False | N27: 1900 | Q27: 1 | S27: 0 | T27: 1900 | U27: Propia | AL27: 0 | AM27: 0 | AN27: 6 | AO27: False | AP27: False | AQ27: 1/04/2019 5:45:54 p. m. | AR27: 1/04/2019 5:45:54 p. m. | BB27: Oficinas administrativas | BC27: 1 | BD27: 1 de mayo S/N | BG27: Sin información | BI27: False | BK27: Sin información
A28: 7960 | B28: 3 | D28: 1 de mayo | E28: 1 de mayo S/N | F28: S/N | I28: 40 | J28: False | M28: False | N28: 1900 | Q28: 1 | S28: 0 | T28: 1900 | U28: Propia | AL28: 0 | AM28: 0 | AN28: 6 | AO28: False | AP28: False | AQ28: 1/04/2019 5:45:54 p. m. | AR28: 1/04/2019 5:45:54 p. m. | BB28: Oficinas administrativas | BC28: 1 | BD28: 1 de mayo S/N | BG28: Sin información | BI28: False | BK28: Sin información
A29: 7961 | B29: 3 | D29: 1 de mayo | E29: 1 de mayo S/N | F29: S/N | I29: 40 | J29: False | M29: False | N29: 1900 | Q29: 1 | S29: 0 | T29: 1900 | U29: Propia | AL29: 0 | AM29: 0 | AN29: 6 | AO29: False | AP29: False | AQ29: 1/04/2019 5:45:54 p. m. | AR29: 1/04/2019 5:45:54 p. m. | BB29: Oficinas administrativas | BC29: 1 | BD29: 1 de mayo S/N | BG29: Sin información | BI29: False | BK29: Sin información
A30: 7962 | B30: 3 | D30: 1 de mayo | E30: 1 de mayo S/N | F30: S/N | I30: 40 | J30: False | M30: False | N30: 1900 | Q30: 1 | S30: 0 | T30: 1900 | U30: Propia | AL30: 0 | AM30: 0 | AN30: 6 | AO30: False | AP30: False | AQ30: 1/04/2019 5:45:54 p. m. | AR30: 1/04/2019 5:45:54 p. m. | BB30: Establecimientos de salud de alta complejidad | BC30: 1 | BD30: 1 de mayo S/N | BG30: Sin información | BI30: False | BK30: Sin información
A31: 7963 | B31: 3 | D31: 1 de mayo | E31: 1 de mayo S/N | F31: S/N | I31: 40 | J31: False | M31: False | N31: 1900 | Q31: 1 | S31: 0 | T31: 1900 | U31: Propia | AL31: 0 | AM31: 0 | AN31: 6 | AO31: False | AP31: False | AQ31: 1/04/2019 5:45:54 p. m. | AR31: 1/04/2019 5:45:54 p. m. | BB31: Oficinas administrativas | BC31: 1 | BD31: 1 de mayo S/N | BG31: Sin información | BI31: False | BK31: Sin información
A32: 7964 | B32: 3 | D32: 1 de mayo | E32: 1 de mayo S/N | F32: S/N | I32: 40 | J32: False | M32: False | N32: 1900 | Q32: 1 | S32: 0 | T32: 1900 | U32: Propia | AL32: 0 | AM32: 0 | AN32: 6 | AO32: False | AP32: False | AQ32: 1/04/2019 5:45:54 p. m. | AR32: 1/04/2019 5:45:54 p. m. | BB32: Oficinas administrativas | BC32: 1 | BD32: 1 de mayo S/N | BG32: Sin información | BI32: False | BK32: Sin información
A33: 7965 | B33: 3 | D33: 1 de mayo | E33: 1 de mayo S/N | F33: S/N | I33: 40 | J33: False | M33: False | N33: 1900 | Q33: 1 | S33: 0 | T33: 1900 | U33: Propia | AL33: 0 | AM33: 0 | AN33: 6 | AO33: False | AP33: False | AQ33: 1/04/2019 5:45:54 p. m. | AR33: 1/04/2019 5:45:54 p. m. | BB33: Oficinas administrativas | BC33: 1 | BD33: 1 de mayo S/N | BG33: Sin información | BI33: False | BK33: Sin información
A34: 7966 | B34: 3 | D34: 1 de mayo | E34: 1 de mayo S/N | F34: S/N | I34: 40 | J34: False | M34: False | N34: 1900 | Q34: 1 | S34: 0 | T34: 1900 | U34: Propia | AL34: 0 | AM34: 0 | AN34: 6 | AO34: False | AP34: False | AQ34: 1/04/2019 5:45:54 p. m. | AR34: 1/04/2019 5:45:54 p. m. | BB34: Oficinas administrativas | BC34: 1 | BD34: 1 de mayo S/N | BG34: Sin información | BI34: False | BK34: Sin información
A35: 7967 | B35: 3 | D35: 1 de mayo | E35: 1 de mayo S/N | F35: S/N | I35: 40 | J35: False | M35: False | N35: 1900 | Q35: 1 | S35: 0 | T35: 1900 | U35: Propia | AL35: 0 | AM35: 0 | AN35: 6 | AO35: False | AP35: False | AQ35: 1/04/2019 5:45:54 p. m. | AR35: 1/04/2019 5:45:54 p. m. | BB35: Oficinas administrativas | BC35: 1 | BD35: 1 de mayo S/N | BG35: Sin información | BI35: False | BK35: Sin información
A36: 7968 | B36: 3 | D36: 1 de mayo | E36: 1 de mayo S/N | F36: S/N | I36: 40 | J36: False | M36: False | N36: 1900 | Q36: 1 | S36: 0 | T36: 1900 | U36: Propia | AL36: 0 | AM36: 0 | AN36: 6 | AO36: False | AP36: False | AQ36: 1/04/2019 5:45:54 p. m. | AR36: 1/04/2019 5:45:54 p. m. | BB36: Oficinas administrativas | BC36: 1 | BD36: 1 de mayo S/N | BG36: Sin información | BI36: False | BK36: Sin información
A37: 7969 | B37: 3 | D37: 1 de mayo | E37: 1 de mayo S/N | F37: S/N | I37: 40 | J37: False | M37: False | N37: 1900 | Q37: 1 | S37: 0 | T37: 1900 | U37: Propia | AL37: 0 | AM37: 0 | AN37: 6 | AO37: False | AP37: False | AQ37: 1/04/2019 5:45:54 p. m. | AR37: 1/04/2019 5:45:54 p. m. | BB37: Oficinas administrativas | BC37: 1 | BD37: 1 de mayo S/N | BG37: Sin información | BI37: False | BK37: Sin información
A38: 7970 | B38: 3 | D38: 1 de mayo | E38: 1 de mayo S/N | F38: S/N | I38: 40 | J38: False | M38: False | N38: 1900 | Q38: 1 | S38: 0 | T38: 1900 | U38: Propia | AL38: 0 | AM38: 0 | AN38: 6 | AO38: False | AP38: False | AQ38: 1/04/2019 5:45:54 p. m. | AR38: 1/04/2019 5:45:54 p. m. | BB38: Oficinas administrativas | BC38: 1 | BD38: 1 de mayo S/N | BG38: Sin información | BI38: False | BK38: Sin información
A39: 7971 | B39: 3 | D39: 1 de mayo | E39: 1 de mayo S/N | F39: S/N | I39: 40 | J39: False | M39: False | N39: 1900 | Q39: 1 | S39: 0 | T39: 1900 | U39: Propia | AL39: 0 | AM39: 0 | AN39: 6 | AO39: False | AP39: False | AQ39: 1/04/2019 5:45:54 p. m. | AR39: 1/04/2019 5:45:54 p. m. | BB39: Oficinas administrativas | BC39: 1 | BD39: 1 de mayo S/N | BG39: Sin información | BI39: False | BK39: Sin información
A40: 7972 | B40: 3 | D40: 1 de mayo | E40: 1 de mayo S/N | F40: S/N | I40: 40 | J40: False | M40: False | N40: 1900 | Q40: 1 | S40: 0 | T40: 1900 | U40: Propia | AL40: 0 | AM40: 0 | AN40: 6 | AO40: False | AP40: False | AQ40: 1/04/2019 5:45:54 p. m. | AR40: 1/04/2019 5:45:54 p. m. | BB40: Oficinas administrativas | BC40: 1 | BD40: 1 de mayo S/N | BG40: Sin información | BI40: False | BK40: Sin información
A41: 7973 | B41: 3 | D41: 1 de mayo | E41: 1 de mayo S/N | F41: S/N | I41: 40 | J41: False | M41: False | N41: 1900 | Q41: 1 | S41: 0 | T41: 1900 | U41: Propia | AL41: 0 | AM41: 0 | AN41: 6 | AO41: False | AP41: False | AQ41: 1/04/2019 5:45:54 p. m. | AR41: 1/04/2019 5:45:54 p. m. | BB41: Oficinas administrativas | BC41: 1 | BD41: 1 de mayo S/N | BG41: Sin información | BI41: False | BK41: Sin información
A42: 7974 | B42: 3 | D42: 1 de mayo | E42: 1 de mayo S/N | F42: S/N | I42: 40 | J42: False | M42: False | N42: 1900 | Q42: 1 | S42: 0 | T42: 1900 | U42: Propia | AL42: 0 | AM42: 0 | AN42: 6 | AO42: False | AP42: False | AQ42: 1/04/2019 5:45:54 p. m. | AR42: 1/04/2019 5:45:54 p. m. | BB42: Oficinas administrativas | BC42: 1 | BD42: 1 de mayo S/N | BG42: Sin información | BI42: False | BK42: Sin información
A43: 7975 | B43: 3 | D43: 1 de mayo | E43: 1 de mayo S/N | F43: S/N | I43: 40 | J43: False | M43: False | N43: 1900 | Q43: 1 | S43: 0 | T43: 1900 | U43: Propia | AL43: 0 | AM43: 0 | AN43: 6 | AO43: False | AP43: False | AQ43: 1/04/2019 5:45:54 p. m. | AR43: 1/04/2019 5:45:54 p. m. | BB43: Oficinas administrativas | BC43: 1 | BD43: 1 de mayo S/N | BG43: Sin información | BI43: False | BK43: Sin información
A44: 7976 | B44: 3 | D44: 1 de mayo | E44: 1 de mayo S/N | F44: S/N | I44: 40 | J44: False | M44: False | N44: 1900 | Q44: 1 | S44: 0 | T44: 1900 | U44: Propia | AL44: 0 | AM44: 0 | AN44: 6 | AO44: False | AP44: False | AQ44: 1/04/2019 5:45:54 p. m. | AR44: 1/04/2019 5:45:54 p. m. | BB44: Establecimientos de educación preescolar, básica y media | BC44: 1 | BD44: 1 de mayo S/N | BG44: Sin información | BI44: False | BK44: Sin información
A45: 7977 | B45: 3 | D45: 1 de mayo | E45: 1 de mayo S/N | F45: S/N | I45: 40 | J45: False | M45: False | N45: 1900 | Q45: 1 | S45: 0 | T45: 1900 | U45: Propia | AL45: 0 | AM45: 0 | AN45: 6 | AO45: False | AP45: False | AQ45: 1/04/2019 5:45:54 p. m. | AR45: 1/04/2019 5:45:54 p. m. | BB45: Establecimientos de salud de alta complejidad | BC45: 1 | BD45: 1 de mayo S/N | BG45: Sin información | BI45: False | BK45: Sin información
A46: 7979 | B46: 3 | D46: 1 de mayo | E46: 1 de mayo S/N | F46: S/N | I46: 40 | J46: False | M46: False | N46: 1900 | Q46: 1 | S46: 0 | T46: 1900 | U46: Propia | AL46: 0 | AM46: 0 | AN46: 6 | AO46: False | AP46: False | AQ46: 1/04/2019 5:45:54 p. m. | AR46: 1/04/2019 5:45:54 p. m. | BB46: Oficinas administrativas | BC46: 1 | BD46: 1 de mayo S/N | BG46: Sin información | BI46: False | BK46: Sin información
A47: 7980 | B47: 3 | D47: 1 de mayo | E47: 1 de mayo S/N | F47: S/N | I47: 40 | J47: False | M47: False | N47: 1900 | Q47: 1 | S47: 0 | T47: 1900 | U47: Propia | AL47: 0 | AM47: 0 | AN47: 6 | AO47: False | AP47: False | AQ47: 1/04/2019 5:45:54 p. m. | AR47: 1/04/2019 5:45:54 p. m. | BB47: Oficinas administrativas | BC47: 1 | BD47: 1 de mayo S/N | BG47: Sin información | BI47: False | BK47: Sin información
A48: 7990 | B48: 3 | D48: 1 de mayo | E48: 1 de mayo S/N | F48: S/N | I48: 40 | J48: False | M48: False | N48: 1900 | Q48: 1 | S48: 0 | T48: 1900 | U48: Propia | AL48: 0 | AM48: 0 | AN48: 6 | AO48: False | AP48: False | AQ48: 1/04/2019 5:45:54 p. m. | AR48: 1/04/2019 5:45:54 p. m. | BB48: Oficinas administrativas | BC48: 1 | BD48: 1 de mayo S/N | BG48: Sin información | BI48: False | BK48: Sin información
A49: 7993 | B49: 3 | D49: 1 de mayo | E49: 1 de mayo S/N | F49: S/N | I49: 40 | J49: False | M49: False | N49: 1900 | Q49: 1 | S49: 0 | T49: 1900 | U49: Propia | AL49: 0 | AM49: 0 | AN49: 6 | AO49: False | AP49: False | AQ49: 1/04/2019 5:45:54 p. m. | AR49: 1/04/2019 5:45:54 p. m. | BB49: Oficinas administrativas | BC49: 1 | BD49: 1 de mayo S/N | BG49: Sin información | BI49: False | BK49: Sin información
A50: 7994 | B50: 3 | D50: 1 de mayo | E50: 1 de mayo S/N | F50: S/N | I50: 40 | J50: False | M50: False | N50: 1900 | Q50: 1 | S50: 0 | T50: 1900 | U50: Propia | AL50: 0 | AM50: 0 | AN50: 6 | AO50: False | AP50: False | AQ50: 1/04/2019 5:45:54 p. m. | AR50: 1/04/2019 5:45:54 p. m. | BB50: Oficinas administrativas | BC50: 1 | BD50: 1 de mayo S/N | BG50: Sin información | BI50: False | BK50: Sin información
A51: 7995 | B51: 3 | D51: 1 de mayo | E51: 1 de mayo S/N | F51: S/N | I51: 40 | J51: False | M51: False | N51: 1900 | Q51: 1 | S51: 0 | T51: 1900 | U51: Propia | AL51: 0 | AM51: 0 | AN51: 6 | AO51: False | AP51: False | AQ51: 1/04/2019 5:45:54 p. m. | AR51: 1/04/2019 5:45:54 p. m. | BB51: Oficinas administrativas | BC51: 1 | BD51: 1 de mayo S/N | BG51: Sin información | BI51: False | BK51: Sin información
A52: 7996 | B52: 3 | D52: 1 de mayo | E52: 1 de mayo S/N | F52: S/N | I52: 40 | J52: False | M52: False | N52: 1900 | Q52: 1 | S52: 0 | T52: 1900 | U52: Propia | AL52: 0 | AM52: 0 | AN52: 6 | AO52: False | AP52: False | AQ52: 1/04/2019 5:45:54 p. m. | AR52: 1/04/2019 5:45:54 p. m. | BB52: Oficinas administrativas | BC52: 1 | BD52: 1 de mayo S/N | BG52: Sin información | BI52: False | BK52: Sin información
A53: 7997 | B53: 3 | D53: 1 de mayo | E53: 1 de mayo S/N | F53: S/N | I53: 40 | J53: False | M53: False | N53: 1900 | Q53: 1 | S53: 0 | T53: 1900 | U53: Propia | AL53: 0 | AM53: 0 | AN53: 6 | AO53: False | AP53: False | AQ53: 1/04/2019 5:45:54 p. m. | AR53: 1/04/2019 5:45:54 p. m. | BB53: Oficinas administrativas | BC53: 1 | BD53: 1 de mayo S/N | BG53: Sin información | BI53: False | BK53: Sin información
A54: 7998 | B54: 3 | D54: 1 de mayo | E54: 1 de mayo S/N | F54: S/N | I54: 40 | J54: False | M54: False | N54: 1900 | Q54: 1 | S54: 0 | T54: 1900 | U54: Propia | AL54: 0 | AM54: 0 | AN54: 6 | AO54: False | AP54: False | AQ54: 1/04/2019 5:45:54 p. m. | AR54: 1/04/2019 5:45:54 p. m. | BB54: Oficinas administrativas | BC54: 1 | BD54: 1 de mayo S/N | BG54: Sin información | BI54: False | BK54: Sin información
A55: 7999 | B55: 3 | D55: 1 de mayo | E55: 1 de mayo S/N | F55: S/N | I55: 40 | J55: False | M55: False | N55: 1900 | Q55: 1 | S55: 0 | T55: 1900 | U55: Propia | AL55: 0 | AM55: 0 | AN55: 6 | AO55: False | AP55: False | AQ55: 1/04/2019 5:45:54 p. m. | AR55: 1/04/2019 5:45:54 p. m. | BB55: Oficinas administrativas | BC55: 1 | BD55: 1 de mayo S/N | BG55: Sin información | BI55: False | BK55: Sin información
A56: 8000 | B56: 3 | D56: 1 de mayo | E56: 1 de mayo S/N | F56: S/N | I56: 40 | J56: False | M56: False | N56: 1900 | Q56: 1 | S56: 0 | T56: 1900 | U56: Propia | AL56: 0 | AM56: 0 | AN56: 6 | AO56: False | AP56: False | AQ56: 1/04/2019 5:45:54 p. m. | AR56: 1/04/2019 5:45:54 p. m. | BB56: Oficinas administrativas | BC56: 1 | BD56: 1 de mayo S/N | BG56: Sin información | BI56: False | BK56: Sin información
A57: 8002 | B57: 3 | D57: 1 de mayo | E57: 1 de mayo S/N | F57: S/N | I57: 40 | J57: False | M57: False | N57: 1900 | Q57: 1 | S57: 0 | T57: 1900 | U57: Propia | AL57: 0 | AM57: 0 | AN57: 6 | AO57: False | AP57: False | AQ57: 1/04/2019 5:45:54 p. m. | AR57: 1/04/2019 5:45:54 p. m. | BB57: Oficinas administrativas | BC57: 1 | BD57: 1 de mayo S/N | BG57: Sin información | BI57: False | BK57: Sin información
A58: 8003 | B58: 3 | D58: 1 de mayo | E58: 1 de mayo S/N | F58: S/N | I58: 40 | J58: False | M58: False | N58: 1900 | Q58: 1 | S58: 0 | T58: 1900 | U58: Propia | AL58: 0 | AM58: 0 | AN58: 6 | AO58: False | AP58: False | AQ58: 1/04/2019 5:45:54 p. m. | AR58: 1/04/2019 5:45:54 p. m. | BB58: Oficinas administrativas | BC58: 1 | BD58: 1 de mayo S/N | BG58: Sin información | BI58: False | BK58: Sin información
A59: 8004 | B59: 3 | D59: 1 de mayo | E59: 1 de mayo S/N | F59: S/N | I59: 40 | J59: False | M59: False | N59: 1900 | Q59: 1 | S59: 0 | T59: 1900 | U59: Propia | AL59: 0 | AM59: 0 | AN59: 6 | AO59: False | AP59: False | AQ59: 1/04/2019 5:45:54 p. m. | AR59: 1/04/2019 5:45:54 p. m. | BB59: Oficinas administrativas | BC59: 1 | BD59: 1 de mayo S/N | BG59: Sin información | BI59: False | BK59: Sin información
A60: 8005 | B60: 3 | D60: 1 de mayo | E60: 1 de mayo S/N | F60: S/N | I60: 40 | J60: False | M60: False | N60: 1900 | Q60: 1 | S60: 0 | T60: 1900 | U60: Propia | AL60: 0 | AM60: 0 | AN60: 6 | AO60: False | AP60: False | AQ60: 1/04/2019 5:45:54 p. m. | AR60: 1/04/2019 5:45:54 p. m. | BB60: Oficinas administrativas | BC60: 1 | BD60: 1 de mayo S/N | BG60: Sin información | BI60: False | BK60: Sin información
A61: 8006 | B61: 3 | D61: 1 de mayo | E61: 1 de mayo S/N | F61: S/N | I61: 40 | J61: False | M61: False | N61: 1900 | Q61: 1 | S61: 0 | T61: 1900 | U61: Propia | AL61: 0 | AM61: 0 | AN61: 6 | AO61: False | AP61: False | AQ61: 1/04/2019 5:45:54 p. m. | AR61: 1/04/2019 5:45:54 p. m. | BB61: Oficinas administrativas | BC61: 1 | BD61: 1 de mayo S/N | BG61: Sin información | BI61: False | BK61: Sin información
A62: 8010 | B62: 3 | D62: 1 de mayo | E62: 1 de mayo S/N | F62: S/N | I62: 40 | J62: False | M62: False | N62: 1900 | Q62: 1 | S62: 0 | T62: 1900 | U62: Propia | AL62: 0 | AM62: 0 | AN62: 6 | AO62: False | AP62: False | AQ62: 1/04/2019 5:45:54 p. m. | AR62: 1/04/2019 5:45:54 p. m. | BB62: Oficinas administrativas | BC62: 1 | BD62: 1 de mayo S/N | BG62: Sin información | BI62: False | BK62: Sin información
A63: 8011 | B63: 3 | D63: 1 de mayo | E63: 1 de mayo S/N | F63: S/N | I63: 40 | J63: False | M63: False | N63: 1900 | Q63: 1 | S63: 0 | T63: 1900 | U63: Propia | AL63: 0 | AM63: 0 | AN63: 6 | AO63: False | AP63: False | AQ63: 1/04/2019 5:45:54 p. m. | AR63: 1/04/2019 5:45:54 p. m. | BB63: Oficinas administrativas | BC63: 1 | BD63: 1 de mayo S/N | BG63: Sin información | BI63: False | BK63: Sin información
A64: 8012 | B64: 3 | D64: 1 de mayo | E64: 1 de mayo S/N | F64: S/N | I64: 40 | J64: False | M64: False | N64: 1900 | Q64: 1 | S64: 0 | T64: 1900 | U64: Propia | AL64: 0 | AM64: 0 | AN64: 6 | AO64: False | AP64: False | AQ64: 1/04/2019 5:45:54 p. m. | AR64: 1/04/2019 5:45:54 p. m. | BB64: Oficinas administrativas | BC64: 1 | BD64: 1 de mayo S/N | BG64: Sin información | BI64: False | BK64: Sin información
A65: 8013 | B65: 3 | D65: 1 de mayo | E65: 1 de mayo S/N | F65: S/N | I65: 40 | J65: False | M65: False | N65: 1900 | Q65: 1 | S65: 0 | T65: 1900 | U65: Propia | AL65: 0 | AM65: 0 | AN65: 6 | AO65: False | AP65: False | AQ65: 1/04/2019 5:45:54 p. m. | AR65: 1/04/2019 5:45:54 p. m. | BB65: Oficinas administrativas | BC65: 1 | BD65: 1 de mayo S/N | BG65: Sin información | BI65: False | BK65: Sin información
A66: 8014 | B66: 3 | D66: 1 de mayo | E66: 1 de mayo S/N | F66: S/N | I66: 40 | J66: False | M66: False | N66: 1900 | Q66: 1 | S66: 0 | T66: 1900 | U66: Propia | AL66: 0 | AM66: 0 | AN66: 6 | AO66: False | AP66: False | AQ66: 1/04/2019 5:45:54 p. m. | AR66: 1/04/2019 5:45:54 p. m. | BB66: Oficinas administrativas | BC66: 1 | BD66: 1 de mayo S/N | BG66: Sin información | BI66: False | BK66: Sin información
A67: 8015 | B67: 3 | D67: 1 de mayo | E67: 1 de mayo S/N | F67: S/N | I67: 40 | J67: False | M67: False | N67: 1900 | Q67: 1 | S67: 0 | T67: 1900 | U67: Propia | AL67: 0 | AM67: 0 | AN67: 6 | AO67: False | AP67: False | AQ67: 1/04/2019 5:45:54 p. m. | AR67: 1/04/2019 5:45:54 p. m. | BB67: Oficinas administrativas | BC67: 1 | BD67: 1 de mayo S/N | BG67: Sin información | BI67: False | BK67: Sin información
A68: 8017 | B68: 3 | D68: 1 de mayo | E68: 1 de mayo S/N | F68: S/N | I68: 40 | J68: False | M68: False | N68: 1900 | Q68: 1 | S68: 0 | T68: 1900 | U68: Propia | AL68: 0 | AM68: 0 | AN68: 6 | AO68: False | AP68: False | AQ68: 1/04/2019 5:45:54 p. m. | AR68: 1/04/2019 5:45:54 p. m. | BB68: Oficinas administrativas | BC68: 1 | BD68: 1 de mayo S/N | BG68: Sin información | BI68: False | BK68: Sin información
A69: 8018 | B69: 3 | D69: 1 de mayo | E69: 1 de mayo S/N | F69: S/N | I69: 40 | J69: False | M69: False | N69: 1900 | Q69: 1 | S69: 0 | T69: 1900 | U69: Propia | AL69: 0 | AM69: 0 | AN69: 6 | AO69: False | AP69: False | AQ69: 1/04/2019 5:45:54 p. m. | AR69: 1/04/2019 5:45:54 p. m. | BB69: Oficinas administrativas | BC69: 1 | BD69: 1 de mayo S/N | BG69: Sin información | BI69: False | BK69: Sin información
A70: 8019 | B70: 3 | D70: 1 de mayo | E70: 1 de mayo S/N | F70: S/N | I70: 40 | J70: False | M70: False | N70: 1900 | Q70: 1 | S70: 0 | T70: 1900 | U70: Propia | AL70: 0 | AM70: 0 | AN70: 6 | AO70: False | AP70: False | AQ70: 1/04/2019 5:45:54 p. m. | AR70: 1/04/2019 5:45:54 p. m. | BB70: Oficinas administrativas | BC70: 1 | BD70: 1 de mayo S/N | BG70: Sin información | BI70: False | BK70: Sin información
A71: 8023 | B71: 3 | D71: 1 de mayo | E71: 1 de mayo S/N | F71: S/N | I71: 40 | J71: False | M71: False | N71: 1900 | Q71: 1 | S71: 0 | T71: 1900 | U71: Propia | AL71: 0 | AM71: 0 | AN71: 6 | AO71: False | AP71: False | AQ71: 1/04/2019 5:45:54 p. m. | AR71: 1/04/2019 5:45:54 p. m. | BB71: Establecimientos de educación preescolar, básica y media | BC71: 1 | BD71: 1 de mayo S/N | BG71: Sin información | BI71: False | BK71: Sin información
A72: 8024 | B72: 3 | D72: 1 de mayo | E72: 1 de mayo S/N | F72: S/N | I72: 40 | J72: False | M72: False | N72: 1900 | Q72: 1 | S72: 0 | T72: 1900 | U72: Propia | AL72: 0 | AM72: 0 | AN72: 6 | AO72: False | AP72: False | AQ72: 1/04/2019 5:45:54 p. m. | AR72: 1/04/2019 5:45:54 p. m. | BB72: Oficinas administrativas | BC72: 1 | BD72: 1 de mayo S/N | BG72: Sin información | BI72: False | BK72: Sin información
A73: 8025 | B73: 3 | D73: 1 de mayo | E73: 1 de mayo S/N | F73: S/N | I73: 40 | J73: False | M73: False | N73: 1900 | Q73: 1 | S73: 0 | T73: 1900 | U73: Propia | AL73: 0 | AM73: 0 | AN73: 6 | AO73: False | AP73: False | AQ73: 1/04/2019 5:45:54 p. m. | AR73: 1/04/2019 5:45:54 p. m. | BB73: Oficinas administrativas | BC73: 1 | BD73: 1 de mayo S/N | BG73: Sin información | BI73: False | BK73: Sin información
A74: 8026 | B74: 3 | D74: 1 de mayo | E74: 1 de mayo S/N | F74: S/N | I74: 40 | J74: False | M74: False | N74: 1900 | Q74: 1 | S74: 0 | T74: 1900 | U74: Propia | AL74: 0 | AM74: 0 | AN74: 6 | AO74: False | AP74: False | AQ74: 1/04/2019 5:45:54 p. m. | AR74: 1/04/2019 5:45:54 p. m. | BB74: Oficinas administrativas | BC74: 1 | BD74: 1 de mayo S/N | BG74: Sin información | BI74: False | BK74: Sin información
A75: 8027 | B75: 3 | D75: 1 de mayo | E75: 1 de mayo S/N | F75: S/N | I75: 40 | J75: False | M75: False | N75: 1900 | Q75: 1 | S75: 0 | T75: 1900 | U75: Propia | AL75: 0 | AM75: 0 | AN75: 6 | AO75: False | AP75: False | AQ75: 1/04/2019 5:45:54 p. m. | AR75: 1/04/2019 5:45:54 p. m. | BB75: Oficinas administrativas | BC75: 1 | BD75: 1 de mayo S/N | BG75: Sin información | BI75: False | BK75: Sin información
A76: 8028 | B76: 3 | D76: 1 de mayo | E76: 1 de mayo S/N | F76: S/N | I76: 40 | J76: False | M76: False | N76: 1900 | Q76: 1 | S76: 0 | T76: 1900 | U76: Propia | AL76: 0 | AM76: 0 | AN76: 6 | AO76: False | AP76: False | AQ76: 1/04/2019 5:45:54 p. m. | AR76: 1/04/2019 5:45:54 p. m. | BB76: Oficinas administrativas | BC76: 1 | BD76: 1 de mayo S/N | BG76: Sin información | BI76: False | BK76: Sin información
A77: 8029 | B77: 3 | D77: 1 de mayo | E77: 1 de mayo S/N | F77: S/N | I77: 40 | J77: False | M77: False | N77: 1900 | Q77: 1 | S77: 0 | T77: 1900 | U77: Propia | AL77: 0 | AM77: 0 | AN77: 6 | AO77: False | AP77: False | AQ77: 1/04/2019 5:45:54 p. m. | AR77: 1/04/2019 5:45:54 p. m. | BB77: Oficinas administrativas | BC77: 1 | BD77: 1 de mayo S/N | BG77: Sin información | BI77: False | BK77: Sin información
A78: 8032 | B78: 3 | D78: 1 de mayo | E78: 1 de mayo S/N | F78: S/N | I78: 40 | J78: False | M78: False | N78: 1900 | Q78: 1 | S78: 0 | T78: 1900 | U78: Propia | AL78: 0 | AM78: 0 | AN78: 6 | AO78: False | AP78: False | AQ78: 1/04/2019 5:45:54 p. m. | AR78: 1/04/2019 5:45:54 p. m. | BB78: Oficinas administrativas | BC78: 1 | BD78: 1 de mayo S/N | BG78: Sin información | BI78: False | BK78: Sin información
A79: 8033 | B79: 3 | D79: 1 de mayo | E79: 1 de mayo S/N | F79: S/N | I79: 40 | J79: False | M79: False | N79: 1900 | Q79: 1 | S79: 0 | T79: 1900 | U79: Propia | AL79: 0 | AM79: 0 | AN79: 6 | AO79: False | AP79: False | AQ79: 1/04/2019 5:45:54 p. m. | AR79: 1/04/2019 5:45:54 p. m. | BB79: Oficinas administrativas | BC79: 1 | BD79: 1 de mayo S/N | BG79: Sin información | BI79: False | BK79: Sin información
A80: 8034 | B80: 3 | D80: 1 de mayo | E80: 1 de mayo S/N | F80: S/N | I80: 40 | J80: False | M80: False | N80: 1900 | Q80: 1 | S80: 0 | T80: 1900 | U80: Propia | AL80: 0 | AM80: 0 | AN80: 6 | AO80: False | AP80: False | AQ80: 1/04/2019 5:45:54 p. m. | AR80: 1/04/2019 5:45:54 p. m. | BB80: Oficinas administrativas | BC80: 1 | BD80: 1 de mayo S/N | BG80: Sin información | BI80: False | BK80: Sin información
A81: 8035 | B81: 3 | D81: 1 de mayo | E81: 1 de mayo S/N | F81: S/N | I81: 40 | J81: False | M81: False | N81: 1900 | Q81: 1 | S81: 0 | T81: 1900 | U81: Propia | AL81: 0 | AM81: 0 | AN81: 6 | AO81: False | AP81: False | AQ81: 1/04/2019 5:45:54 p. m. | AR81: 1/04/2019 5:45:54 p. m. | BB81: Oficinas administrativas | BC81: 1 | BD81: 1 de mayo S/N | BG81: Sin información | BI81: False | BK81: Sin información
A82: 8036 | B82: 3 | D82: 1 de mayo | E82: 1 de mayo S/N | F82: S/N | I82: 40 | J82: False | M82: False | N82: 1900 | Q82: 1 | S82: 0 | T82: 1900 | U82: Propia | AL82: 0 | AM82: 0 | AN82: 6 | AO82: False | AP82: False | AQ82: 1/04/2019 5:45:54 p. m. | AR82: 1/04/2019 5:45:54 p. m. | BB82: Oficinas administrativas | BC82: 1 | BD82: 1 de mayo S/N | BG82: Sin información | BI82: False | BK82: Sin información
A83: 8037 | B83: 3 | D83: 1 de mayo | E83: 1 de mayo S/N | F83: S/N | I83: 40 | J83: False | M83: False | N83: 1900 | Q83: 1 | S83: 0 | T83: 1900 | U83: Propia | AL83: 0 | AM83: 0 | AN83: 6 | AO83: False | AP83: False | AQ83: 1/04/2019 5:45:54 p. m. | AR83: 1/04/2019 5:45:54 p. m. | BB83: Oficinas administrativas | BC83: 1 | BD83: 1 de mayo S/N | BG83: Sin información | BI83: False | BK83: Sin información
A84: 8038 | B84: 3 | D84: 1 de mayo | E84: 1 de mayo S/N | F84: S/N | I84: 40 | J84: False | M84: False | N84: 1900 | Q84: 1 | S84: 0 | T84: 1900 | U84: Propia | AL84: 0 | AM84: 0 | AN84: 6 | AO84: False | AP84: False | AQ84: 1/04/2019 5:45:54 p. m. | AR84: 1/04/2019 5:45:54 p. m. | BB84: Oficinas administrativas | BC84: 1 | BD84: 1 de mayo S/N | BG84: Sin información | BI84: False | BK84: Sin información
A85: 8039 | B85: 3 | D85: 1 de mayo | E85: 1 de mayo S/N | F85: S/N | I85: 40 | J85: False | M85: False | N85: 1900 | Q85: 1 | S85: 0 | T85: 1900 | U85: Propia | AL85: 0 | AM85: 0 | AN85: 6 | AO85: False | AP85: False | AQ85: 1/04/2019 5:45:54 p. m. | AR85: 1/04/2019 5:45:54 p. m. | BB85: Oficinas administrativas | BC85: 1 | BD85: 1 de mayo S/N | BG85: Sin información | BI85: False | BK85: Sin información
A86: 8040 | B86: 3 | D86: 1 de mayo | E86: 1 de mayo S/N | F86: S/N | I86: 40 | J86: False | M86: False | N86: 1900 | Q86: 1 | S86: 0 | T86: 1900 | U86: Propia | AL86: 0 | AM86: 0 | AN86: 6 | AO86: False | AP86: False | AQ86: 1/04/2019 5:45:54 p. m. | AR86: 1/04/2019 5:45:54 p. m. | BB86: Oficinas administrativas | BC86: 1 | BD86: 1 de mayo S/N | BG86: Sin información | BI86: False | BK86: Sin información
A87: 8042 | B87: 3 | D87: 1 de mayo | E87: 1 de mayo S/N | F87: S/N | I87: 40 | J87: False | M87: False | N87: 1900 | Q87: 1 | S87: 0 | T87: 1900 | U87: Propia | AL87: 0 | AM87: 0 | AN87: 6 | AO87: False | AP87: False | AQ87: 1/04/2019 5:45:54 p. m. | AR87: 1/04/2019 5:45:54 p. m. | BB87: Oficinas administrativas | BC87: 1 | BD87: 1 de mayo S/N | BG87: Sin información | BI87: False | BK87: Sin información
A88: 8043 | B88: 3 | D88: 1 de mayo | E88: 1 de mayo S/N | F88: S/N | I88: 40 | J88: False | M88: False | N88: 1900 | Q88: 1 | S88: 0 | T88: 1900 | U88: Propia | AL88: 0 | AM88: 0 | AN88: 6 | AO88: False | AP88: False | AQ88: 1/04/2019 5:45:54 p. m. | AR88: 1/04/2019 5:45:54 p. m. | BB88: Oficinas administrativas | BC88: 1 | BD88: 1 de mayo S/N | BG88: Sin información | BI88: False | BK88: Sin información
A89: 8045 | B89: 3 | D89: 1 de mayo | E89: 1 de mayo S/N | F89: S/N | I89: 40 | J89: False | M89: False | N89: 1900 | Q89: 1 | S89: 0 | T89: 1900 | U89: Propia | AL89: 0 | AM89: 0 | AN89: 6 | AO89: False | AP89: False | AQ89: 1/04/2019 5:45:54 p. m. | AR89: 1/04/2019 5:45:54 p. m. | BB89: Oficinas administrativas | BC89: 1 | BD89: 1 de mayo S/N | BG89: Sin información | BI89: False | BK89: Sin información
A90: 8048 | B90: 3 | D90: 1 de mayo | E90: 1 de mayo S/N | F90: S/N | I90: 40 | J90: False | M90: False | N90: 1900 | Q90: 1 | S90: 0 | T90: 1900 | U90: Propia | AL90: 0 | AM90: 0 | AN90: 6 | AO90: False | AP90: False | AQ90: 1/04/2019 5:45:54 p. m. | AR90: 1/04/2019 5:45:54 p. m. | BB90: Oficinas administrativas | BC90: 1 | BD90: 1 de mayo S/N | BG90: Sin información | BI90: False | BK90: Sin información
A91: 8049 | B91: 3 | D91: 1 de mayo | E91: 1 de mayo S/N | F91: S/N | I91: 40 | J91: False | M91: False | N91: 1900 | Q91: 1 | S91: 0 | T91: 1900 | U91: Propia | AL91: 0 | AM91: 0 | AN91: 6 | AO91: False | AP91: False | AQ91: 1/04/2019 5:45:54 p. m. | AR91: 1/04/2019 5:45:54 p. m. | BB91: Oficinas administrativas | BC91: 1 | BD91: 1 de mayo S/N | BG91: Sin información | BI91: False | BK91: Sin información
A92: 8050 | B92: 3 | D92: 1 de mayo | E92: 1 de mayo S/N | F92: S/N | I92: 40 | J92: False | M92: False | N92: 1900 | Q92: 1 | S92: 0 | T92: 1900 | U92: Propia | AL92: 0 | AM92: 0 | AN92: 6 | AO92: False | AP92: False | AQ92: 1/04/2019 5:45:54 p. m. | AR92: 1/04/2019 5:45:54 p. m. | BB92: Oficinas administrativas | BC92: 1 | BD92: 1 de mayo S/N | BG92: Sin información | BI92: False | BK92: Sin información
A93: 8051 | B93: 3 | D93: 1 de mayo | E93: 1 de mayo S/N | F93: S/N | I93: 40 | J93: False | M93: False | N93: 1900 | Q93: 1 | S93: 0 | T93: 1900 | U93: Propia | AL93: 0 | AM93: 0 | AN93: 6 | AO93: False | AP93: False | AQ93: 1/04/2019 5:45:54 p. m. | AR93: 1/04/2019 5:45:54 p. m. | BB93: Oficinas administrativas | BC93: 1 | BD93: 1 de mayo S/N | BG93: Sin información | BI93: False | BK93: Sin información
A94: 8052 | B94: 3 | D94: 1 de mayo | E94: 1 de mayo S/N | F94: S/N | I94: 40 | J94: False | M94: False | N94: 1900 | Q94: 1 | S94: 0 | T94: 1900 | U94: Propia | AL94: 0 | AM94: 0 | AN94: 6 | AO94: False | AP94: False | AQ94: 1/04/2019 5:45:54 p. m. | AR94: 1/04/2019 5:45:54 p. m. | BB94: Oficinas administrativas | BC94: 1 | BD94: 1 de mayo S/N | BG94: Sin información | BI94: False | BK94: Sin información
A95: 8053 | B95: 3 | D95: 1 de mayo | E95: 1 de mayo S/N | F95: S/N | I95: 40 | J95: False | M95: False | N95: 1900 | Q95: 1 | S95: 0 | T95: 1900 | U95: Propia | AL95: 0 | AM95: 0 | AN95: 6 | AO95: False | AP95: False | AQ95: 1/04/2019 5:45:54 p. m. | AR95: 1/04/2019 5:45:54 p. m. | BB95: Oficinas administrativas | BC95: 1 | BD95: 1 de mayo S/N | BG95: Sin información | BI95: False | BK95: Sin información
A96: 8059 | B96: 3 | D96: 1 de mayo | E96: 1 de mayo S/N | F96: S/N | I96: 40 | J96: False | M96: False | N96: 1900 | Q96: 1 | S96: 0 | T96: 1900 | U96: Propia | AL96: 0 | AM96: 0 | AN96: 6 | AO96: False | AP96: False | AQ96: 1/04/2019 5:45:54 p. m. | AR96: 1/04/2019 5:45:54 p. m. | BB96: Oficinas administrativas | BC96: 1 | BD96: 1 de mayo S/N | BG96: Sin información | BI96: False | BK96: Sin información
A97: 8060 | B97: 3 | D97: 1 de mayo | E97: 1 de mayo S/N | F97: S/N | I97: 40 | J97: False | M97: False | N97: 1900 | Q97: 1 | S97: 0 | T97: 1900 | U97: Propia | AL97: 0 | AM97: 0 | AN97: 6 | AO97: False | AP97: False | AQ97: 1/04/2019 5:45:54 p. m. | AR97: 1/04/2019 5:45:54 p. m. | BB97: Oficinas administrativas | BC97: 1 | BD97: 1 de mayo S/N | BG97: Sin información | BI97: False | BK97: Sin información
A98: 8061 | B98: 3 | D98: 1 de mayo | E98: 1 de mayo S/N | F98: S/N | I98: 40 | J98: False | M98: False | N98: 1900 | Q98: 1 | S98: 0 | T98: 1900 | U98: Propia | AL98: 0 | AM98: 0 | AN98: 6 | AO98: False | AP98: False | AQ98: 1/04/2019 5:45:54 p. m. | AR98: 1/04/2019 5:45:54 p. m. | BB98: Oficinas administrativas | BC98: 1 | BD98: 1 de mayo S/N | BG98: Sin información | BI98: False | BK98: Sin información
A99: 8062 | B99: 3 | D99: 1 de mayo | E99: 1 de mayo S/N | F99: S/N | I99: 40 | J99: False | M99: False | N99: 1900 | Q99: 1 | S99: 0 | T99: 1900 | U99: Propia | AL99: 0 | AM99: 0 | AN99: 6 | AO99: False | AP99: False | AQ99: 1/04/2019 5:45:54 p. m. | AR99: 1/04/2019 5:45:54 p. m. | BB99: Oficinas administrativas | BC99: 1 | BD99: 1 de mayo S/N | BG99: Sin información | BI99: False | BK99: Sin información
A100: 8064 | B100: 3 | D100: 1 de mayo | E100: 1 de mayo S/N | F100: S/N | I100: 40 | J100: False | M100: False | N100: 1900 | Q100: 1 | S100: 0 | T100: 1900 | U100: Propia | AL100: 0 | AM100: 0 | AN100: 6 | AO100: False | AP100: False | AQ100: 1/04/2019 5:45:54 p. m. | AR100: 1/04/2019 5:45:54 p. m. | BB100: Oficinas administrativas | BC100: 1 | BD100: 1 de mayo S/N | BG100: Sin información | BI100: False | BK100: Sin información
A101: 8065 | B101: 3 | D101: 1 de mayo | E101: 1 de mayo S/N | F101: S/N | I101: 40 | J101: False | M101: False | N101: 1900 | Q101: 1 | S101: 0 | T101: 1900 | U101: Propia | AL101: 0 | AM101: 0 | AN101: 6 | AO101: False | AP101: False | AQ101: 1/04/2019 5:45:54 p. m. | AR101: 1/04/2019 5:45:54 p. m. | BB101: Oficinas administrativas | BC101: 1 | BD101: 1 de mayo S/N | BG101: Sin información | BI101: False | BK101: Sin información
A102: 8074 | B102: 3 | D102: 1 de mayo | E102: 1 de mayo S/N | F102: S/N | I102: 40 | J102: False | M102: False | N102: 1900 | Q102: 1 | S102: 0 | T102: 1900 | U102: Propia | AL102: 0 | AM102: 0 | AN102: 6 | AO102: False | AP102: False | AQ102: 1/04/2019 5:45:54 p. m. | AR102: 1/04/2019 5:45:54 p. m. | BB102: Oficinas administrativas | BC102: 1 | BD102: 1 de mayo S/N | BG102: Sin información | BI102: False | BK102: Sin información
A103: 8083 | B103: 3 | D103: 1 de mayo | E103: 1 de mayo S/N | F103: S/N | I103: 40 | J103: False | M103: False | N103: 1900 | Q103: 1 | S103: 0 | T103: 1900 | U103: Propia | AL103: 0 | AM103: 0 | AN103: 6 | AO103: False | AP103: False | AQ103: 1/04/2019 5:45:54 p. m. | AR103: 1/04/2019 5:45:54 p. m. | BB103: Oficinas administrativas | BC103: 1 | BD103: 1 de mayo S/N | BG103: Sin información | BI103: False | BK103: Sin información
A104: 8085 | B104: 3 | D104: 1 de mayo | E104: 1 de mayo S/N | F104: S/N | I104: 40 | J104: False | M104: False | N104: 1900 | Q104: 1 | S104: 0 | T104: 1900 | U104: Propia | AL104: 0 | AM104: 0 | AN104: 6 | AO104: False | AP104: False | AQ104: 1/04/2019 5:45:54 p. m. | AR104: 1/04/2019 5:45:54 p. m. | BB104: Oficinas administrativas | BC104: 1 | BD104: 1 de mayo S/N | BG104: Sin información | BI104: False | BK104: Sin información
A105: 8086 | B105: 3 | D105: 1 de mayo | E105: 1 de mayo S/N | F105: S/N | I105: 40 | J105: False | M105: False | N105: 1900 | Q105: 1 | S105: 0 | T105: 1900 | U105: Propia | AL105: 0 | AM105: 0 | AN105: 6 | AO105: False | AP105: False | AQ105: 1/04/2019 5:45:54 p. m. | AR105: 1/04/2019 5:45:54 p. m. | BB105: Oficinas administrativas | BC105: 1 | BD105: 1 de mayo S/N | BG105: Sin información | BI105: False | BK105: Sin información
A106: 8087 | B106: 3 | D106: 1 de mayo | E106: 1 de mayo S/N | F106: S/N | I106: 40 | J106: False | M106: False | N106: 1900 | Q106: 1 | S106: 0 | T106: 1900 | U106: Propia | AL106: 0 | AM106: 0 | AN106: 6 | AO106: False | AP106: False | AQ106: 1/04/2019 5:45:54 p. m. | AR106: 1/04/2019 5:45:54 p. m. | BB106: Oficinas administrativas | BC106: 1 | BD106: 1 de mayo S/N | BG106: Sin información | BI106: False | BK106: Sin información
A107: 8088 | B107: 3 | D107: 1 de mayo | E107: 1 de mayo S/N | F107: S/N | I107: 40 | J107: False | M107: False | N107: 1900 | Q107: 1 | S107: 0 | T107: 1900 | U107: Propia | AL107: 0 | AM107: 0 | AN107: 6 | AO107: False | AP107: False | AQ107: 1/04/2019 5:45:54 p. m. | AR107: 1/04/2019 5:45:54 p. m. | BB107: Oficinas administrativas | BC107: 1 | BD107: 1 de mayo S/N | BG107: Sin información | BI107: False | BK107: Sin información
A108: 8089 | B108: 3 | D108: 1 de mayo | E108: 1 de mayo S/N | F108: S/N | I108: 40 | J108: False | M108: False | N108: 1900 | Q108: 1 | S108: 0 | T108: 1900 | U108: Propia | AL108: 0 | AM108: 0 | AN108: 6 | AO108: False | AP108: False | AQ108: 1/04/2019 5:45:54 p. m. | AR108: 1/04/2019 5:45:54 p. m. | BB108: Oficinas administrativas | BC108: 1 | BD108: 1 de mayo S/N | BG108: Sin información | BI108: False | BK108: Sin información
A109: 8591 | B109: 3 | D109: 1 de mayo | E109: 1 de mayo S/N | F109: S/N | I109: 40 | J109: False | M109: False | N109: 2017 | Q109: 5600 | S109: 0 | T109: 2017 | U109: Propia | AL109: 0 | AM109: 0 | AN109: 6 | AO109: False | AP109: False | AQ109: 1/04/2019 5:45:54 p. m. | AR109: 1/04/2019 5:45:54 p. m. | BB109: Centros recreacionales y culturales (incluye bibliotecas y museos) | BC109: 1 | BD109: 1 de mayo S/N | BG109: Sin información | BI109: False | BK109: Sin información
A110: 8592 | B110: 3 | D110: 1 de mayo | E110: 1 de mayo S/N | F110: S/N | I110: 40 | J110: False | M110: False | N110: 2016 | Q110: 1 | S110: 0 | T110: 2016 | U110: Propia | AL110: 0 | AM110: 0 | AN110: 6 | AO110: False | AP110: False | AQ110: 1/04/2019 5:45:54 p. m. | AR110: 1/04/2019 5:45:54 p. m. | BB110: Oficinas administrativas | BC110: 1 | BD110: 1 de mayo S/N | BG110: Sin información | BI110: False | BK110: Sin información
A111: 8593 | B111: 3 | D111: 1 de mayo | E111: 1 de mayo S/N | F111: S/N | I111: 40 | J111: False | M111: False | N111: 2021 | Q111: 1 | S111: 0 | T111: 2021 | U111: Propia | AL111: 0 | AM111: 0 | AN111: 6 | AO111: False | AP111: False | AQ111: 1/04/2019 5:45:54 p. m. | AR111: 1/04/2019 5:45:54 p. m. | BB111: Oficinas administrativas | BC111: 1 | BD111: 1 de mayo S/N | BG111: Sin información | BI111: False | BK111: Sin información
A112: 8594 | B112: 3 | D112: 1 de mayo | E112: 1 de mayo S/N | F112: S/N | I112: 40 | J112: False | M112: False | N112: 2019 | Q112: 1 | S112: 0 | T112: 2019 | U112: Propia | AL112: 0 | AM112: 0 | AN112: 6 | AO112: False | AP112: False | AQ112: 1/04/2019 5:45:54 p. m. | AR112: 1/04/2019 5:45:54 p. m. | BB112: Oficinas administrativas | BC112: 1 | BD112: 1 de mayo S/N | BG112: Sin información | BI112: False | BK112: Sin información
A113: 8595 | B113: 3 | D113: 1 de mayo | E113: 1 de mayo S/N | F113: S/N | I113: 40 | J113: False | M113: False | N113: 0 | Q113: 1 | S113: 0 | T113: 0 | U113: Propia | AL113: 0 | AM113: 0 | AN113: 6 | AO113: False | AP113: False | AQ113: 1/04/2019 5:45:54 p. m. | AR113: 1/04/2019 5:45:54 p. m. | BB113: Establecimientos de salud de alta complejidad | BC113: 1 | BD113: 1 de mayo S/N | BG113: Sin información | BI113: False | BK113: Sin información
A114: 8596 | B114: 3 | D114: 1 de mayo | E114: 1 de mayo S/N | F114: S/N | I114: 40 | J114: False | M114: False | N114: 2019 | Q114: 6982 | S114: 0 | T114: 2019 | U114: Propia | AL114: 0 | AM114: 0 | AN114: 6 | AO114: False | AP114: False | AQ114: 1/04/2019 5:45:54 p. m. | AR114: 1/04/2019 5:45:54 p. m. | BB114: Oficinas administrativas | BC114: 1 | BD114: 1 de mayo S/N | BG114: Sin información | BI114: False | BK114: Sin información
A115: 8597 | B115: 3 | D115: 1 de mayo | E115: 1 de mayo S/N | F115: S/N | I115: 40 | J115: False | M115: False | N115: 2018 | Q115: 2000 | S115: 0 | T115: 2018 | U115: Propia | AL115: 0 | AM115: 0 | AN115: 6 | AO115: False | AP115: False | AQ115: 1/04/2019 5:45:54 p. m. | AR115: 1/04/2019 5:45:54 p. m. | BB115: Oficinas administrativas | BC115: 1 | BD115: 1 de mayo S/N | BG115: Sin información | BI115: False | BK115: Sin información
A116: 8599 | B116: 3 | D116: 1 de mayo | E116: 1 de mayo S/N | F116: S/N | I116: 40 | J116: False | M116: False | N116: 2020 | Q116: 1 | S116: 0 | T116: 2020 | U116: Propia | AL116: 0 | AM116: 0 | AN116: 6 | AO116: False | AP116: False | AQ116: 1/04/2019 5:45:54 p. m. | AR116: 1/04/2019 5:45:54 p. m. | BB116: Oficinas administrativas | BC116: 1 | BD116: 1 de mayo S/N | BG116: Sin información | BI116: False | BK116: Sin información
A117: 8600 | B117: 3 | D117: 1 de mayo | E117: 1 de mayo S/N | F117: S/N | I117: 40 | J117: False | M117: False | N117: 1 | Q117: 1 | S117: 0 | T117: 1 | U117: Propia | AL117: 0 | AM117: 0 | AN117: 6 | AO117: False | AP117: False | AQ117: 1/04/2019 5:45:54 p. m. | AR117: 1/04/2019 5:45:54 p. m. | BB117: Oficinas administrativas | BC117: 1 | BD117: 1 de mayo S/N | BG117: Sin información | BI117: False | BK117: Sin información
A118: 8601 | B118: 3 | D118: 1 de mayo | E118: 1 de mayo S/N | F118: S/N | I118: 40 | J118: False | M118: False | N118: 2013 | Q118: 2494 | S118: 0 | T118: 2013 | U118: Propia | AL118: 0 | AM118: 0 | AN118: 6 | AO118: False | AP118: False | AQ118: 1/04/2019 5:45:54 p. m. | AR118: 1/04/2019 5:45:54 p. m. | BB118: Oficinas administrativas | BC118: 1 | BD118: 1 de mayo S/N | BG118: Sin información | BI118: False | BK118: Sin información
A119: 8603 | B119: 3 | D119: 1 de mayo | E119: 1 de mayo S/N | F119: S/N | I119: 40 | J119: False | M119: False | N119: 2018 | Q119: 1 | S119: 0 | T119: 2018 | U119: Propia | AL119: 0 | AM119: 0 | AN119: 6 | AO119: False | AP119: False | AQ119: 1/04/2019 5:45:54 p. m. | AR119: 1/04/2019 5:45:54 p. m. | BB119: Oficinas administrativas | BC119: 1 | BD119: 1 de mayo S/N | BG119: Sin información | BI119: False | BK119: Sin información
A120: 8604 | B120: 3 | D120: 1 de mayo | E120: 1 de mayo S/N | F120: S/N | I120: 40 | J120: False | M120: False | N120: 2017 | Q120: 16142 | S120: 0 | T120: 2017 | U120: Propia | AL120: 0 | AM120: 0 | AN120: 6 | AO120: False | AP120: False | AQ120: 1/04/2019 5:45:54 p. m. | AR120: 1/04/2019 5:45:54 p. m. | BB120: Oficinas administrativas | BC120: 1 | BD120: 1 de mayo S/N | BG120: Sin información | BI120: False | BK120: Sin información
A121: 8605 | B121: 3 | D121: 1 de mayo | E121: 1 de mayo S/N | F121: S/N | I121: 40 | J121: False | M121: False | N121: 2012 | Q121: 10160 | S121: 0 | T121: 2012 | U121: Propia | AL121: 0 | AM121: 0 | AN121: 6 | AO121: False | AP121: False | AQ121: 1/04/2019 5:45:54 p. m. | AR121: 1/04/2019 5:45:54 p. m. | BB121: Oficinas administrativas | BC121: 1 | BD121: 1 de mayo S/N | BG121: Sin información | BI121: False | BK121: Sin información
A122: 8606 | B122: 3 | D122: 1 de mayo | E122: 1 de mayo S/N | F122: S/N | I122: 40 | J122: False | M122: False | N122: 1 | Q122: 1 | S122: 0 | T122: 1 | U122: Propia | AL122: 0 | AM122: 0 | AN122: 6 | AO122: False | AP122: False | AQ122: 1/04/2019 5:45:54 p. m. | AR122: 1/04/2019 5:45:54 p. m. | BB122: Oficinas administrativas | BC122: 1 | BD122: 1 de mayo S/N | BG122: Sin información | BI122: False | BK122: Sin información
A123: 8607 | B123: 3 | D123: 1 de mayo | E123: 1 de mayo S/N | F123: S/N | I123: 40 | J123: False | M123: False | N123: 1 | Q123: 1 | S123: 0 | T123: 1 | U123: Propia | AL123: 0 | AM123: 0 | AN123: 6 | AO123: False | AP123: False | AQ123: 1/04/2019 5:45:54 p. m. | AR123: 1/04/2019 5:45:54 p. m. | BB123: Oficinas administrativas | BC123: 1 | BD123: 1 de mayo S/N | BG123: Sin información | BI123: False | BK123: Sin información
A124: 8609 | B124: 3 | D124: 1 de mayo | E124: 1 de mayo S/N | F124: S/N | I124: 40 | J124: False | M124: False | N124: 2010 | Q124: 5000 | S124: 0 | T124: 2010 | U124: Propia | AL124: 0 | AM124: 0 | AN124: 6 | AO124: False | AP124: False | AQ124: 1/04/2019 5:45:54 p. m. | AR124: 1/04/2019 5:45:54 p. m. | BB124: Oficinas administrativas | BC124: 1 | BD124: 1 de mayo S/N | BG124: Sin información | BI124: False | BK124: Sin información
A125: 8610 | B125: 3 | D125: 1 de mayo | E125: 1 de mayo S/N | F125: S/N | I125: 40 | J125: False | M125: False | N125: 1 | Q125: 1 | S125: 0 | T125: 1 | U125: Propia | AL125: 0 | AM125: 0 | AN125: 6 | AO125: False | AP125: False | AQ125: 1/04/2019 5:45:54 p. m. | AR125: 1/04/2019 5:45:54 p. m. | BB125: Oficinas administrativas | BC125: 1 | BD125: 1 de mayo S/N | BG125: Sin información | BI125: False | BK125: Sin información
A126: 8611 | B126: 3 | D126: 1 de mayo | E126: 1 de mayo S/N | F126: S/N | I126: 40 | J126: False | M126: False | N126: 1 | Q126: 1 | S126: 0 | T126: 1 | U126: Propia | AL126: 0 | AM126: 0 | AN126: 6 | AO126: False | AP126: False | AQ126: 1/04/2019 5:45:54 p. m. | AR126: 1/04/2019 5:45:54 p. m. | BB126: Oficinas administrativas | BC126: 1 | BD126: 1 de mayo S/N | BG126: Sin información | BI126: False | BK126: Sin información
A127: 8612 | B127: 3 | D127: 1 de mayo | E127: 1 de mayo S/N | F127: S/N | I127: 40 | J127: False | M127: False | N127: 2014 | Q127: 2600 | S127: 0 | T127: 2014 | U127: Propia | AL127: 0 | AM127: 0 | AN127: 6 | AO127: False | AP127: False | AQ127: 1/04/2019 5:45:54 p. m. | AR127: 1/04/2019 5:45:54 p. m. | BB127: Oficinas administrativas | BC127: 1 | BD127: 1 de mayo S/N | BG127: Sin información | BI127: False | BK127: Sin información
A128: 8613 | B128: 3 | D128: 1 de mayo | E128: 1 de mayo S/N | F128: S/N | I128: 40 | J128: False | M128: False | N128: 1900 | Q128: 1 | S128: 0 | T128: 1900 | U128: Propia | AL128: 0 | AM128: 0 | AN128: 6 | AO128: False | AP128: False | AQ128: 1/04/2019 5:45:54 p. m. | AR128: 1/04/2019 5:45:54 p. m. | BB128: Oficinas administrativas | BC128: 1 | BD128: 1 de mayo S/N | BG128: Sin información | BI128: False | BK128: Sin información
A129: 8615 | B129: 3 | D129: 1 de mayo | E129: 1 de mayo S/N | F129: S/N | I129: 40 | J129: False | M129: False | N129: 1980 | Q129: 18720 | S129: 0 | T129: 1980 | U129: Propia | AL129: 0 | AM129: 0 | AN129: 6 | AO129: False | AP129: False | AQ129: 1/04/2019 5:45:54 p. m. | AR129: 1/04/2019 5:45:54 p. m. | BB129: Oficinas administrativas | BC129: 1 | BD129: 1 de mayo S/N | BG129: Sin información | BI129: False | BK129: Sin información
A130: 8616 | B130: 3 | D130: 1 de mayo | E130: 1 de mayo S/N | F130: S/N | I130: 40 | J130: False | M130: False | N130: 0 | Q130: 1 | S130: 0 | T130: 0 | U130: Propia | AL130: 0 | AM130: 0 | AN130: 6 | AO130: False | AP130: False | AQ130: 1/04/2019 5:45:54 p. m. | AR130: 1/04/2019 5:45:54 p. m. | BB130: Establecimientos Penitenciarios | BC130: 1 | BD130: 1 de mayo S/N | BG130: Sin información | BI130: False | BK130: Sin información
A131: 8617 | B131: 3 | D131: 1 de mayo | E131: 1 de mayo S/N | F131: S/N | I131: 40 | J131: False | M131: False | N131: 1900 | Q131: 1 | S131: 0 | T131: 1900 | U131: Propia | AL131: 0 | AM131: 0 | AN131: 6 | AO131: False | AP131: False | AQ131: 1/04/2019 5:45:54 p. m. | AR131: 1/04/2019 5:45:54 p. m. | BB131: Establecimientos Penitenciarios | BC131: 1 | BD131: 1 de mayo S/N | BG131: Sin información | BI131: False | BK131: Sin información
A132: 8618 | B132: 3 | D132: 1 de mayo | E132: 1 de mayo S/N | F132: S/N | I132: 40 | J132: False | M132: False | N132: 1 | Q132: 1 | S132: 0 | T132: 1 | U132: Propia | AL132: 0 | AM132: 0 | AN132: 6 | AO132: False | AP132: False | AQ132: 1/04/2019 5:45:54 p. m. | AR132: 1/04/2019 5:45:54 p. m. | BB132: Oficinas administrativas | BC132: 1 | BD132: 1 de mayo S/N | BG132: Sin información | BI132: False | BK132: Sin información
A133: 8619 | B133: 3 | D133: 1 de mayo | E133: 1 de mayo S/N | F133: S/N | I133: 40 | J133: False | M133: False | N133: 1900 | Q133: 1 | S133: 0 | T133: 1900 | U133: Propia | AL133: 0 | AM133: 0 | AN133: 6 | AO133: False | AP133: False | AQ133: 1/04/2019 5:45:54 p. m. | AR133: 1/04/2019 5:45:54 p. m. | BB133: Oficinas administrativas | BC133: 1 | BD133: 1 de mayo S/N | BG133: Sin información | BI133: False | BK133: Sin información
A134: 8620 | B134: 3 | D134: 1 de mayo | E134: 1 de mayo S/N | F134: S/N | I134: 40 | J134: False | M134: False | N134: 0 | Q134: 38000 | S134: 0 | T134: 0 | U134: Propia | AL134: 0 | AM134: 0 | AN134: 6 | AO134: False | AP134: False | AQ134: 1/04/2019 5:45:54 p. m. | AR134: 1/04/2019 5:45:54 p. m. | BB134: Oficinas administrativas | BC134: 1 | BD134: 1 de mayo S/N | BG134: Sin información | BI134: False | BK134: Sin información
A135: 8621 | B135: 3 | D135: 1 de mayo | E135: 1 de mayo S/N | F135: S/N | I135: 40 | J135: False | M135: False | N135: 1900 | Q135: 1 | S135: 0 | T135: 1900 | U135: Propia | AL135: 0 | AM135: 0 | AN135: 6 | AO135: False | AP135: False | AQ135: 1/04/2019 5:45:54 p. m. | AR135: 1/04/2019 5:45:54 p. m. | BB135: Oficinas administrativas | BC135: 1 | BD135: 1 de mayo S/N | BG135: Sin información | BI135: False | BK135: Sin información
A136: 8622 | B136: 3 | D136: 1 de mayo | E136: 1 de mayo S/N | F136: S/N | I136: 40 | J136: False | M136: False | N136: 1900 | Q136: 1 | S136: 0 | T136: 1900 | U136: Propia | AL136: 0 | AM136: 0 | AN136: 6 | AO136: False | AP136: False | AQ136: 1/04/2019 5:45:54 p. m. | AR136: 1/04/2019 5:45:54 p. m. | BB136: Oficinas administrativas | BC136: 1 | BD136: 1 de mayo S/N | BG136: Sin información | BI136: False | BK136: Sin información
A137: 8623 | B137: 3 | D137: 1 de mayo | E137: 1 de mayo S/N | F137: S/N | I137: 40 | J137: False | M137: False | N137: 1900 | Q137: 1 | S137: 0 | T137: 1900 | U137: Propia | AL137: 0 | AM137: 0 | AN137: 6 | AO137: False | AP137: False | AQ137: 1/04/2019 5:45:54 p. m. | AR137: 1/04/2019 5:45:54 p. m. | BB137: Oficinas administrativas | BC137: 1 | BD137: 1 de mayo S/N | BG137: Sin información | BI137: False | BK137: Sin información
A138: 8627 | B138: 3 | D138: 1 de mayo | E138: 1 de mayo S/N | F138: S/N | I138: 40 | J138: False | M138: False | N138: 1900 | Q138: 1 | S138: 0 | T138: 1900 | U138: Propia | AL138: 0 | AM138: 0 | AN138: 6 | AO138: False | AP138: False | AQ138: 1/04/2019 5:45:54 p. m. | AR138: 1/04/2019 5:45:54 p. m. | BB138: Oficinas administrativas | BC138: 1 | BD138: 1 de mayo S/N | BG138: Sin información | BI138: False | BK138: Sin información
A139: 8628 | B139: 3 | D139: 1 de mayo | E139: 1 de mayo S/N | F139: S/N | I139: 40 | J139: False | M139: False | N139: 1900 | Q139: 1 | S139: 0 | T139: 1900 | U139: Propia | AL139: 0 | AM139: 0 | AN139: 6 | AO139: False | AP139: False | AQ139: 1/04/2019 5:45:54 p. m. | AR139: 1/04/2019 5:45:54 p. m. | BB139: Oficinas administrativas | BC139: 1 | BD139: 1 de mayo S/N | BG139: Sin información | BI139: False | BK139: Sin información
A140: 8629 | B140: 3 | D140: 1 de mayo | E140: 1 de mayo S/N | F140: S/N | I140: 40 | J140: False | M140: False | N140: 1900 | Q140: 1 | S140: 0 | T140: 1900 | U140: Propia | AL140: 0 | AM140: 0 | AN140: 6 | AO140: False | AP140: False | AQ140: 1/04/2019 5:45:54 p. m. | AR140: 1/04/2019 5:45:54 p. m. | BB140: Oficinas administrativas | BC140: 1 | BD140: 1 de mayo S/N | BG140: Sin información | BI140: False | BK140: Sin información
A141: 8630 | B141: 3 | D141: 1 de mayo | E141: 1 de mayo S/N | F141: S/N | I141: 40 | J141: False | M141: False | N141: 1900 | Q141: 1 | S141: 0 | T141: 1900 | U141: Propia | AL141: 0 | AM141: 0 | AN141: 6 | AO141: False | AP141: False | AQ141: 1/04/2019 5:45:54 p. m. | AR141: 1/04/2019 5:45:54 p. m. | BB141: Oficinas administrativas | BC141: 1 | BD141: 1 de mayo S/N | BG141: Sin información | BI141: False | BK141: Sin información
A142: 8631 | B142: 3 | D142: 1 de mayo | E142: 1 de mayo S/N | F142: S/N | I142: 40 | J142: False | M142: False | N142: 1900 | Q142: 1 | S142: 0 | T142: 1900 | U142: Propia | AL142: 0 | AM142: 0 | AN142: 6 | AO142: False | AP142: False | AQ142: 1/04/2019 5:45:54 p. m. | AR142: 1/04/2019 5:45:54 p. m. | BB142: Oficinas administrativas | BC142: 1 | BD142: 1 de mayo S/N | BG142: Sin información | BI142: False | BK142: Sin información
A143: 8633 | B143: 3 | D143: 1 de mayo | E143: 1 de mayo S/N | F143: S/N | I143: 40 | J143: False | M143: False | N143: 1900 | Q143: 1 | S143: 0 | T143: 1900 | U143: Propia | AL143: 0 | AM143: 0 | AN143: 6 | AO143: False | AP143: False | AQ143: 1/04/2019 5:45:54 p. m. | AR143: 1/04/2019 5:45:54 p. m. | BB143: Oficinas administrativas | BC143: 1 | BD143: 1 de mayo S/N | BG143: Sin información | BI143: False | BK143: Sin información
A144: 8634 | B144: 3 | D144: 1 de mayo | E144: 1 de mayo S/N | F144: S/N | I144: 40 | J144: False | M144: False | N144: 1900 | Q144: 1 | S144: 0 | T144: 1900 | U144: Propia | AL144: 0 | AM144: 0 | AN144: 6 | AO144: False | AP144: False | AQ144: 1/04/2019 5:45:54 p. m. | AR144: 1/04/2019 5:45:54 p. m. | BB144: Oficinas administrativas | BC144: 1 | BD144: 1 de mayo S/N | BG144: Sin información | BI144: False | BK144: Sin información
A145: 8636 | B145: 3 | D145: 1 de mayo | E145: 1 de mayo S/N | F145: S/N | I145: 40 | J145: False | M145: False | N145: 1900 | Q145: 1 | S145: 0 | T145: 1900 | U145: Propia | AL145: 0 | AM145: 0 | AN145: 6 | AO145: False | AP145: False | AQ145: 1/04/2019 5:45:54 p. m. | AR145: 1/04/2019 5:45:54 p. m. | BB145: Oficinas administrativas | BC145: 1 | BD145: 1 de mayo S/N | BG145: Sin información | BI145: False | BK145: Sin información
A146: 8637 | B146: 3 | D146: 1 de mayo | E146: 1 de mayo S/N | F146: S/N | I146: 40 | J146: False | M146: False | N146: 1900 | Q146: 1 | S146: 0 | T146: 1900 | U146: Propia | AL146: 0 | AM146: 0 | AN146: 6 | AO146: False | AP146: False | AQ146: 1/04/2019 5:45:54 p. m. | AR146: 1/04/2019 5:45:54 p. m. | BB146: Oficinas administrativas | BC146: 1 | BD146: 1 de mayo S/N | BG146: Sin información | BI146: False | BK146: Sin información
A147: 8638 | B147: 3 | D147: 1 de mayo | E147: 1 de mayo S/N | F147: S/N | I147: 40 | J147: False | M147: False | N147: 1900 | Q147: 1 | S147: 0 | T147: 1900 | U147: Propia | AL147: 0 | AM147: 0 | AN147: 6 | AO147: False | AP147: False | AQ147: 1/04/2019 5:45:54 p. m. | AR147: 1/04/2019 5:45:54 p. m. | BB147: Oficinas administrativas | BC147: 1 | BD147: 1 de mayo S/N | BG147: Sin información | BI147: False | BK147: Sin información
A148: 8639 | B148: 3 | D148: 1 de mayo | E148: 1 de mayo S/N | F148: S/N | I148: 40 | J148: False | M148: False | N148: 1900 | Q148: 1 | S148: 0 | T148: 1900 | U148: Propia | AL148: 0 | AM148: 0 | AN148: 6 | AO148: False | AP148: False | AQ148: 1/04/2019 5:45:54 p. m. | AR148: 1/04/2019 5:45:54 p. m. | BB148: Oficinas administrativas | BC148: 1 | BD148: 1 de mayo S/N | BG148: Sin información | BI148: False | BK148: Sin información
A149: 8640 | B149: 3 | D149: 1 de mayo | E149: 1 de mayo S/N | F149: S/N | I149: 40 | J149: False | M149: False | N149: 1900 | Q149: 1 | S149: 0 | T149: 1900 | U149: Propia | AL149: 0 | AM149: 0 | AN149: 6 | AO149: False | AP149: False | AQ149: 1/04/2019 5:45:54 p. m. | AR149: 1/04/2019 5:45:54 p. m. | BB149: Oficinas administrativas | BC149: 1 | BD149: 1 de mayo S/N | BG149: Sin información | BI149: False | BK149: Sin información
A150: 8641 | B150: 3 | D150: 1 de mayo | E150: 1 de mayo S/N | F150: S/N | I150: 40 | J150: False | M150: False | N150: 1900 | Q150: 1 | S150: 0 | T150: 1900 | U150: Propia | AL150: 0 | AM150: 0 | AN150: 6 | AO150: False | AP150: False | AQ150: 1/04/2019 5:45:54 p. m. | AR150: 1/04/2019 5:45:54 p. m. | BB150: Oficinas administrativas | BC150: 1 | BD150: 1 de mayo S/N | BG150: Sin información | BI150: False | BK150: Sin información
A151: 8642 | B151: 3 | D151: 1 de mayo | E151: 1 de mayo S/N | F151: S/N | I151: 40 | J151: False | M151: False | N151: 1900 | Q151: 1 | S151: 0 | T151: 1900 | U151: Propia | AL151: 0 | AM151: 0 | AN151: 6 | AO151: False | AP151: False | AQ151: 1/04/2019 5:45:54 p. m. | AR151: 1/04/2019 5:45:54 p. m. | BB151: Oficinas administrativas | BC151: 1 | BD151: 1 de mayo S/N | BG151: Sin información | BI151: False | BK151: Sin información
A152: 8643 | B152: 3 | D152: 1 de mayo | E152: 1 de mayo S/N | F152: S/N | I152: 40 | J152: False | M152: False | N152: 1900 | Q152: 1 | S152: 0 | T152: 1900 | U152: Propia | AL152: 0 | AM152: 0 | AN152: 6 | AO152: False | AP152: False | AQ152: 1/04/2019 5:45:54 p. m. | AR152: 1/04/2019 5:45:54 p. m. | BB152: Oficinas administrativas | BC152: 1 | BD152: 1 de mayo S/N | BG152: Sin información | BI152: False | BK152: Sin información
A153: 8644 | B153: 3 | D153: 1 de mayo | E153: 1 de mayo S/N | F153: S/N | I153: 40 | J153: False | M153: False | N153: 1900 | Q153: 1 | S153: 0 | T153: 1900 | U153: Propia | AL153: 0 | AM153: 0 | AN153: 6 | AO153: False | AP153: False | AQ153: 1/04/2019 5:45:54 p. m. | AR153: 1/04/2019 5:45:54 p. m. | BB153: Oficinas administrativas | BC153: 1 | BD153: 1 de mayo S/N | BG153: Sin información | BI153: False | BK153: Sin información
A154: 8645 | B154: 3 | D154: 1 de mayo | E154: 1 de mayo S/N | F154: S/N | I154: 40 | J154: False | M154: False | N154: 1900 | Q154: 1 | S154: 0 | T154: 1900 | U154: Propia | AL154: 0 | AM154: 0 | AN154: 6 | AO154: False | AP154: False | AQ154: 1/04/2019 5:45:54 p. m. | AR154: 1/04/2019 5:45:54 p. m. | BB154: Oficinas administrativas | BC154: 1 | BD154: 1 de mayo S/N | BG154: Sin información | BI154: False | BK154: Sin información
A155: 8646 | B155: 3 | D155: 1 de mayo | E155: 1 de mayo S/N | F155: S/N | I155: 40 | J155: False | M155: False | N155: 1900 | Q155: 1 | S155: 0 | T155: 1900 | U155: Propia | AL155: 0 | AM155: 0 | AN155: 6 | AO155: False | AP155: False | AQ155: 1/04/2019 5:45:54 p. m. | AR155: 1/04/2019 5:45:54 p. m. | BB155: Oficinas administrativas | BC155: 1 | BD155: 1 de mayo S/N | BG155: Sin información | BI155: False | BK155: Sin información
A156: 8647 | B156: 3 | D156: 1 de mayo | E156: 1 de mayo S/N | F156: S/N | I156: 40 | J156: False | M156: False | N156: 1900 | Q156: 1 | S156: 0 | T156: 1900 | U156: Propia | AL156: 0 | AM156: 0 | AN156: 6 | AO156: False | AP156: False | AQ156: 1/04/2019 5:45:54 p. m. | AR156: 1/04/2019 5:45:54 p. m. | BB156: Oficinas administrativas | BC156: 1 | BD156: 1 de mayo S/N | BG156: Sin información | BI156: False | BK156: Sin información
A157: 8648 | B157: 3 | D157: 1 de mayo | E157: 1 de mayo S/N | F157: S/N | I157: 40 | J157: False | M157: False | N157: 1900 | Q157: 1 | S157: 0 | T157: 1900 | U157: Propia | AL157: 0 | AM157: 0 | AN157: 6 | AO157: False | AP157: False | AQ157: 1/04/2019 5:45:54 p. m. | AR157: 1/04/2019 5:45:54 p. m. | BB157: Establecimientos de educación preescolar, básica y media | BC157: 1 | BD157: 1 de mayo S/N | BG157: Sin información | BI157: False | BK157: Sin información
A158: 8650 | B158: 3 | D158: 1 de mayo | E158: 1 de mayo S/N | F158: S/N | I158: 40 | J158: False | M158: False | N158: 1900 | Q158: 1 | S158: 0 | T158: 1900 | U158: Propia | AL158: 0 | AM158: 0 | AN158: 6 | AO158: False | AP158: False | AQ158: 1/04/2019 5:45:54 p. m. | AR158: 1/04/2019 5:45:54 p. m. | BB158: Oficinas administrativas | BC158: 1 | BD158: 1 de mayo S/N | BG158: Sin información | BI158: False | BK158: Sin información
A159: 8652 | B159: 3 | D159: 1 de mayo | E159: 1 de mayo S/N | F159: S/N | I159: 40 | J159: False | M159: False | N159: 1990 | Q159: 59165 | S159: 0 | T159: 1990 | U159: Propia | AL159: 0 | AM159: 0 | AN159: 6 | AO159: False | AP159: False | AQ159: 1/04/2019 5:45:54 p. m. | AR159: 1/04/2019 5:45:54 p. m. | BB159: Oficinas administrativas | BC159: 1 | BD159: 1 de mayo S/N | BG159: Sin información | BI159: False | BK159: Sin información
A160: 8653 | B160: 3 | D160: 1 de mayo | E160: 1 de mayo S/N | F160: S/N | I160: 40 | J160: False | M160: False | N160: 1 | Q160: 1 | S160: 0 | T160: 1 | U160: Propia | AL160: 0 | AM160: 0 | AN160: 6 | AO160: False | AP160: False | AQ160: 1/04/2019 5:45:54 p. m. | AR160: 1/04/2019 5:45:54 p. m. | BB160: Oficinas administrativas | BC160: 1 | BD160: 1 de mayo S/N | BG160: Sin información | BI160: False | BK160: Sin información
A161: 8654 | B161: 3 | D161: 1 de mayo | E161: 1 de mayo S/N | F161: S/N | I161: 40 | J161: False | M161: False | N161: 1992 | Q161: 1 | S161: 0 | T161: 1992 | U161: Propia | AL161: 0 | AM161: 0 | AN161: 6 | AO161: False | AP161: False | AQ161: 1/04/2019 5:45:54 p. m. | AR161: 1/04/2019 5:45:54 p. m. | BB161: Oficinas administrativas | BC161: 1 | BD161: 1 de mayo S/N | BG161: Sin información | BI161: False | BK161: Sin información
A162: 8655 | B162: 3 | D162: 1 de mayo | E162: 1 de mayo S/N | F162: S/N | I162: 40 | J162: False | M162: False | N162: 1900 | Q162: 1 | S162: 0 | T162: 1900 | U162: Propia | AL162: 0 | AM162: 0 | AN162: 6 | AO162: False | AP162: False | AQ162: 1/04/2019 5:45:54 p. m. | AR162: 1/04/2019 5:45:54 p. m. | BB162: Oficinas administrativas | BC162: 1 | BD162: 1 de mayo S/N | BG162: Sin información | BI162: False | BK162: Sin información
A163: 8563 | B163: 3 | D163: 1 de mayo | E163: 1 de mayo S/N | F163: S/N | I163: 40 | J163: False | M163: False | N163: 1900 | Q163: 1 | S163: 0 | T163: 1900 | U163: Propia | AL163: 0 | AM163: 0 | AN163: 6 | AO163: False | AP163: False | AQ163: 1/04/2019 5:45:54 p. m. | AR163: 1/04/2019 5:45:54 p. m. | BB163: Oficinas administrativas | BC163: 1 | BD163: 1 de mayo S/N | BG163: Sin información | BI163: False | BK163: Sin información
A164: 8565 | B164: 3 | D164: 1 de mayo | E164: 1 de mayo S/N | F164: S/N | I164: 40 | J164: False | M164: False | N164: 1900 | Q164: 1 | S164: 0 | T164: 1900 | U164: Propia | AL164: 0 | AM164: 0 | AN164: 6 | AO164: False | AP164: False | AQ164: 1/04/2019 5:45:54 p. m. | AR164: 1/04/2019 5:45:54 p. m. | BB164: Oficinas administrativas | BC164: 1 | BD164: 1 de mayo S/N | BG164: Sin información | BI164: False | BK164: Sin información
A165: 8566 | B165: 3 | D165: 1 de mayo | E165: 1 de mayo S/N | F165: S/N | I165: 40 | J165: False | M165: False | N165: 1900 | Q165: 1 | S165: 0 | T165: 1900 | U165: Propia | AL165: 0 | AM165: 0 | AN165: 6 | AO165: False | AP165: False | AQ165: 1/04/2019 5:45:54 p. m. | AR165: 1/04/2019 5:45:54 p. m. | BB165: Oficinas administrativas | BC165: 1 | BD165: 1 de mayo S/N | BG165: Sin información | BI165: False | BK165: Sin información
A166: 8568 | B166: 3 | D166: 1 de mayo | E166: 1 de mayo S/N | F166: S/N | I166: 40 | J166: False | M166: False | N166: 1900 | Q166: 1 | S166: 0 | T166: 1900 | U166: Propia | AL166: 0 | AM166: 0 | AN166: 6 | AO166: False | AP166: False | AQ166: 1/04/2019 5:45:54 p. m. | AR166: 1/04/2019 5:45:54 p. m. | BB166: Oficinas administrativas | BC166: 1 | BD166: 1 de mayo S/N | BG166: Sin información | BI166: False | BK166: Sin información
A167: 8569 | B167: 3 | D167: 1 de mayo | E167: 1 de mayo S/N | F167: S/N | I167: 40 | J167: False | M167: False | N167: 1900 | Q167: 1 | S167: 0 | T167: 1900 | U167: Propia | AL167: 0 | AM167: 0 | AN167: 6 | AO167: False | AP167: False | AQ167: 1/04/2019 5:45:54 p. m. | AR167: 1/04/2019 5:45:54 p. m. | BB167: Oficinas administrativas | BC167: 1 | BD167: 1 de mayo S/N | BG167: Sin información | BI167: False | BK167: Sin información
A168: 8570 | B168: 3 | D168: 1 de mayo | E168: 1 de mayo S/N | F168: S/N | I168: 40 | J168: False | M168: False | N168: 1900 | Q168: 1 | S168: 0 | T168: 1900 | U168: Propia | AL168: 0 | AM168: 0 | AN168: 6 | AO168: False | AP168: False | AQ168: 1/04/2019 5:45:54 p. m. | AR168: 1/04/2019 5:45:54 p. m. | BB168: Oficinas administrativas | BC168: 1 | BD168: 1 de mayo S/N | BG168: Sin información | BI168: False | BK168: Sin información
A169: 8588 | B169: 3 | D169: 1 de mayo | E169: 1 de mayo S/N | F169: S/N | I169: 40 | J169: False | M169: False | N169: 1 | Q169: 1 | S169: 0 | T169: 1 | U169: Propia | AL169: 0 | AM169: 0 | AN169: 6 | AO169: False | AP169: False | AQ169: 1/04/2019 5:45:54 p. m. | AR169: 1/04/2019 5:45:54 p. m. | BB169: Oficinas administrativas | BC169: 1 | BD169: 1 de mayo S/N | BG169: Sin información | BI169: False | BK169: Sin información
A170: 8589 | B170: 3 | D170: 1 de mayo | E170: 1 de mayo S/N | F170: S/N | I170: 40 | J170: False | M170: False | N170: 1 | Q170: 1 | S170: 0 | T170: 1 | U170: Propia | AL170: 0 | AM170: 0 | AN170: 6 | AO170: False | AP170: False | AQ170: 1/04/2019 5:45:54 p. m. | AR170: 1/04/2019 5:45:54 p. m. | BB170: Oficinas administrativas | BC170: 1 | BD170: 1 de mayo S/N | BG170: Sin información | BI170: False | BK170: Sin información
A171: 8659 | B171: 3 | D171: 1 de mayo | E171: 1 de mayo S/N | F171: S/N | I171: 40 | J171: False | M171: False | N171: 1900 | Q171: 1 | S171: 0 | T171: 1900 | U171: Propia | AL171: 0 | AM171: 0 | AN171: 6 | AO171: False | AP171: False | AQ171: 1/04/2019 5:45:54 p. m. | AR171: 1/04/2019 5:45:54 p. m. | BB171: Oficinas administrativas | BC171: 1 | BD171: 1 de mayo S/N | BG171: Sin información | BI171: False | BK171: Sin información
A172: 8660 | B172: 3 | D172: 1 de mayo | E172: 1 de mayo S/N | F172: S/N | I172: 40 | J172: False | M172: False | N172: 1900 | Q172: 1 | S172: 0 | T172: 1900 | U172: Propia | AL172: 0 | AM172: 0 | AN172: 6 | AO172: False | AP172: False | AQ172: 1/04/2019 5:45:54 p. m. | AR172: 1/04/2019 5:45:54 p. m. | BB172: Oficinas administrativas | BC172: 1 | BD172: 1 de mayo S/N | BG172: Sin información | BI172: False | BK172: Sin información
A173: 8693 | B173: 3 | D173: 1 de mayo | E173: 1 de mayo S/N | F173: S/N | I173: 40 | J173: False | M173: False | N173: 1900 | Q173: 1 | S173: 0 | T173: 1900 | U173: Propia | AL173: 0 | AM173: 0 | AN173: 6 | AO173: False | AP173: False | AQ173: 1/04/2019 5:45:54 p. m. | AR173: 1/04/2019 5:45:54 p. m. | BB173: Oficinas administrativas | BC173: 1 | BD173: 1 de mayo S/N | BG173: Sin información | BI173: False | BK173: Sin información
A174: 10766 | B174: 3 | D174: 1 de mayo | E174: 1 de mayo S/N | F174: S/N | I174: 40 | J174: False | M174: False | N174: 1900 | Q174: 1 | S174: 0 | T174: 1900 | U174: Propia | AL174: 0 | AM174: 0 | AN174: 6 | AO174: False | AP174: False | AQ174: 1/04/2019 5:45:54 p. m. | AR174: 1/04/2019 5:45:54 p. m. | BB174: Oficinas administrativas | BC174: 1 | BD174: 1 de mayo S/N | BG174: Sin información | BI174: False | BK174: Sin información
A175: 10767 | B175: 3 | D175: 1 de mayo | E175: 1 de mayo S/N | F175: S/N | I175: 40 | J175: False | M175: False | N175: 1900 | Q175: 1 | S175: 0 | T175: 1900 | U175: Propia | AL175: 0 | AM175: 0 | AN175: 6 | AO175: False | AP175: False | AQ175: 1/04/2019 5:45:54 p. m. | AR175: 1/04/2019 5:45:54 p. m. | BB175: Oficinas administrativas | BC175: 1 | BD175: 1 de mayo S/N | BG175: Sin información | BI175: False | BK175: Sin información
A176: 10768 | B176: 3 | D176: 1 de mayo | E176: 1 de mayo S/N | F176: S/N | I176: 40 | J176: False | M176: False | N176: 1900 | Q176: 1 | S176: 0 | T176: 1900 | U176: Propia | AL176: 0 | AM176: 0 | AN176: 6 | AO176: False | AP176: False | AQ176: 1/04/2019 5:45:54 p. m. | AR176: 1/04/2019 5:45:54 p. m. | BB176: Oficinas administrativas | BC176: 1 | BD176: 1 de mayo S/N | BG176: Sin información | BI176: False | BK176: Sin información
A177: 10770 | B177: 3 | D177: 1 de mayo | E177: 1 de mayo S/N | F177: S/N | I177: 40 | J177: False | M177: False | N177: 1900 | Q177: 1 | S177: 0 | T177: 1900 | U177: Propia | AL177: 0 | AM177: 0 | AN177: 6 | AO177: False | AP177: False | AQ177: 1/04/2019 5:45:54 p. m. | AR177: 1/04/2019 5:45:54 p. m. | BB177: Oficinas administrativas | BC177: 1 | BD177: 1 de mayo S/N | BG177: Sin información | BI177: False | BK177: Sin información
A178: 10772 | B178: 3 | D178: 1 de mayo | E178: 1 de mayo S/N | F178: S/N | I178: 40 | J178: False | M178: False | N178: 1900 | Q178: 1 | S178: 0 | T178: 1900 | U178: Propia | AL178: 0 | AM178: 0 | AN178: 6 | AO178: False | AP178: False | AQ178: 1/04/2019 5:45:54 p. m. | AR178: 1/04/2019 5:45:54 p. m. | BB178: Oficinas administrativas | BC178: 1 | BD178: 1 de mayo S/N | BG178: Sin información | BI178: False | BK178: Sin información
A179: 10773 | B179: 3 | D179: 1 de mayo | E179: 1 de mayo S/N | F179: S/N | I179: 40 | J179: False | M179: False | N179: 1899 | Q179: 1 | S179: 0 | T179: 1899 | U179: Propia | AL179: 0 | AM179: 0 | AN179: 6 | AO179: False | AP179: False | AQ179: 1/04/2019 5:45:54 p. m. | AR179: 1/04/2019 5:45:54 p. m. | BB179: Oficinas administrativas | BC179: 1 | BD179: 1 de mayo S/N | BG179: Sin información | BI179: False | BK179: Sin información
A180: 414 | B180: 3 | C180: Avenida Almirante Blanco Encalada, Nro. 1724, Piso 4, Región Metropolitana de Santiago | D180: Avenida Almirante Blanco Encalada | E180: Avenida Almirante Blanco Encalada 1724 | F180: 1724 | G180: 4 | I180: 295 | J180: False | M180: False | N180: 0 | Q180: 0 | R180: 0 | S180: 0 | T180: 0 | U180: Propia | AL180: 0 | AM180: 0 | AN180: 4 | AO180: False | AP180: False | AQ180: 1/04/2019 5:45:54 p. m. | AR180: 1/04/2019 5:45:54 p. m. | BB180: Oficinas administrativas | BC180: 411 | BD180: Avenida Almirante Blanco Encalada 1724 | BG180: Sin información | BI180: False | BK180: Sin información
A181: 731 | B181: 3 | C181: Avenida Arturo Prat Chacón, Nro. 2250, Piso 1,2, Región de Tarapacá | D181: Avenida Arturo Prat Chacón | E181: Avenida Arturo Prat Chacón 2250 | F181: 2250 | G181: 1,2 | I181: 5 | J181: False | M181: False | N181: 0 | Q181: 0 | R181: 0 | S181: 0 | T181: 0 | U181: Propia | AL181: 0 | AM181: 0 | AN181: 4 | AO181: False | AP181: False | AQ181: 1/04/2019 5:45:54 p. m. | AR181: 1/04/2019 5:45:54 p. m. | BB181: Oficinas administrativas | BC181: 438 | BD181: Avenida Arturo Prat Chacón 2250 | BG181: Sin información | BI181: False | BK181: Sin información
A182: 11 | B182: 3 | C182: Avenida Beaucheff, Nro. 1425, Piso 1, Región Metropolitana de Santiago | D182: Avenida Beaucheff | E182: Avenida Beaucheff 1425 | F182: 1425 | G182: 1 | I182: 295 | J182: False | M182: False | N182: 0 | Q182: 0 | R182: 0 | S182: 0 | T182: 0 | U182: Propia | AL182: 0 | AM182: 0 | AN182: 4 | AO182: False | AP182: False | AQ182: 1/04/2019 5:45:54 p. m. | AR182: 1/04/2019 5:45:54 p. m. | BB182: Oficinas administrativas | BC182: 472 | BD182: Avenida Beaucheff 1425 | BG182: Sin información | BI182: False | BK182: Sin información
A183: 538 | B183: 3 | C183: Avenida General Baquedano, Nro. 768, Piso 1, Región del Libertador Gral. Bernardo O’Higgins | D183: Avenida General Baquedano | E183: Avenida General Baquedano 768 | F183: 768 | G183: 1 | I183: 83 | J183: False | M183: False | N183: 0 | Q183: 0 | R183: 0 | S183: 0 | T183: 0 | U183: Propia | AL183: 0 | AM183: 0 | AN183: 6 | AO183: True | AP183: False | AQ183: 1/04/2019 5:45:54 p. m. | AR183: 1/04/2019 5:45:54 p. m. | BB183: Oficinas administrativas | BC183: 622 | BD183: Avenida General Baquedano 768 | BG183: Sin información | BI183: False | BK183: Sin información
A184: 12 | B184: 3 | C184: Gobernador Carlos Bories, Nro. 472, Piso 1, Región de Magallanes y de la Antártica Chilena | D184: Gobernador Carlos Bories | E184: Gobernador Carlos Bories 472 | F184: 472 | G184: 1 | I184: 284 | J184: False | M184: False | N184: 0 | Q184: 0 | R184: 0 | S184: 0 | T184: 0 | U184: Propia | AL184: 0 | AM184: 0 | AN184: 4 | AO184: True | AP184: False | AQ184: 1/04/2019 5:45:55 p. m. | AR184: 1/04/2019 5:45:55 p. m. | BB184: Oficinas administrativas | BC184: 1731 | BD184: Gobernador Carlos Bories 472 | BG184: Sin información | BI184: False | BK184: Sin información
A185: 14 | B185: 3 | C185: Plaza, Nro. 235, Piso 2, Región Aysén del Gral. Carlos Ibáñez del Campo | D185: Plaza | E185: Plaza 235 | F185: 235 | G185: 2 | I185: 274 | J185: False | M185: False | N185: 0 | Q185: 0 | R185: 0 | S185: 0 | T185: 0 | U185: Propia | AL185: 0 | AM185: 0 | AN185: 4 | AO185: True | AP185: False | AQ185: 1/04/2019 5:45:56 p. m. | AR185: 1/04/2019 5:45:56 p. m. | BB185: Oficinas administrativas | BC185: 2609 | BD185: Plaza 235 | BG185: Sin información | BI185: False | BK185: Sin información
A186: 138 | B186: 21 | C186: Costanera Pedro Montt, Nro. 355, Piso 1, Región de Los Lagos | D186: Costanera Pedro Montt | E186: Costanera Pedro Montt 355 | F186: 355 | G186: 1 | I186: 260 | J186: False | M186: False | N186: 0 | Q186: 0 | R186: 0 | S186: 0 | T186: 0 | U186: Propia | AL186: 0 | AM186: 0 | AN186: 4 | AO186: False | AP186: False | AQ186: 1/04/2019 5:45:55 p. m. | AR186: 1/04/2019 5:45:55 p. m. | BB186: Oficinas administrativas | BC186: 1364 | BD186: Costanera Pedro Montt 355 | BG186: Sin información | BI186: False | BK186: Sin información
A187: 15 | B187: 21 | C187: Diego Portales, Nro. 2300, Piso 1, Región de Los Lagos | D187: Diego Portales | E187: Diego Portales 2300 | F187: 2300 | G187: 1 | I187: 244 | J187: False | M187: False | N187: 0 | Q187: 0 | R187: 0 | S187: 0 | T187: 0 | U187: Propia | AL187: 0 | AM187: 0 | AN187: 4 | AO187: True | AP187: False | AQ187: 1/04/2019 5:45:55 p. m. | AR187: 1/04/2019 5:45:55 p. m. | BB187: Oficinas administrativas | BC187: 1430 | BD187: Diego Portales 2300 | BG187: Sin información | BI187: False | BK187: Sin información
A188: 5627 | B188: 21 | C188: Subida Alessandri, Nro. S/N, Piso Torre=10, Placa=3, Servicio=2, Habitabilidad=3, Poli psiq=1, Cons=1,, Región de Valparaíso | D188: Subida Alessandri | E188: Subida Alessandri S/N | F188: S/N | G188: Torre=10, Placa=3, Servicio=2, Habitabilidad=3, Poli psiq=1, Cons=1, | I188: 51 | J188: False | M188: False | N188: 1990 | Q188: 45000 | R188: 0 | S188: 1600 | T188: 1990 | U188: Propia | AL188: 0 | AM188: 0 | AN188: 5 | AO188: False | AP188: False | AQ188: 1/04/2019 5:45:56 p. m. | AR188: 1/04/2019 5:45:56 p. m. | BB188: Establecimientos de salud de alta complejidad | BC188: 3025 | BD188: Subida Alessandri S/N | BG188: Sin información | BI188: False | BK188: Sin información
A189: 5616 | B189: 21 | C189: Avenida Presidente Manuel Bulnes, Nro. 256, Piso 1,2,3,4, Región de Magallanes y de la Antártica Chilena | D189: Avenida Presidente Manuel Bulnes | E189: Avenida Presidente Manuel Bulnes 256 | F189: 256 | G189: 1,2,3,4 | I189: 284 | J189: False | M189: False | N189: 0 | Q189: 130000 | R189: 0 | S189: 0 | T189: 0 | U189: Propia | AL189: 0 | AM189: 0 | AN189: 6 | AO189: False | AP189: False | AQ189: 1/04/2019 5:45:57 p. m. | AR189: 1/04/2019 5:45:57 p. m. | BB189: Oficinas administrativas | BC189: 3547 | BD189: Avenida Presidente Manuel Bulnes 256 | BG189: Sin información | BI189: False | BK189: Sin información
A190: 1041 | B190: 25 | C190: Eleuterio Ramírez, Nro. 1035, Piso 2, Región Aysén del Gral. Carlos Ibáñez del Campo | D190: Eleuterio Ramírez | E190: Eleuterio Ramírez 1035 | F190: 1035 | G190: 2 | I190: 276 | J190: False | M190: False | N190: 0 | Q190: 0 | R190: 0 | S190: 0 | T190: 0 | U190: Propia | AL190: 0 | AM190: 0 | AN190: 4 | AO190: False | AP190: False | AQ190: 1/04/2019 5:45:57 p. m. | AR190: 1/04/2019 5:45:57 p. m. | BB190: Oficinas administrativas | BC190: 3585 | BD190: Eleuterio Ramírez 1035 | BG190: Sin información | BI190: False | BK190: Sin información
A191: 509 | B191: 25 | C191: Rafael Sotomayor, Nro. 869, Piso 2, Región Aysén del Gral. Carlos Ibáñez del Campo | D191: Rafael Sotomayor | E191: Rafael Sotomayor 869 | F191: 869 | G191: 2 | I191: 277 | J191: False | M191: False | N191: 0 | Q191: 0 | R191: 0 | S191: 0 | T191: 0 | U191: Propia | AL191: 0 | AM191: 0 | AN191: 4 | AO191: False | AP191: False | AQ191: 1/04/2019 5:45:56 p. m. | AR191: 1/04/2019 5:45:56 p. m. | BB191: Oficinas administrativas | BC191: 2678 | BD191: Rafael Sotomayor 869 | BG191: Sin información | BI191: False | BK191: Sin información
A192: 713 | B192: 25 | C192: Simón Bolívar, Nro. 26, Piso 1,2,3,4, Región Aysén del Gral. Carlos Ibáñez del Campo | D192: Simón Bolívar | E192: Simón Bolívar 26 | F192: 26 | G192: 1,2,3,4 | I192: 274 | J192: False | M192: False | N192: 0 | Q192: 0 | R192: 0 | S192: 0 | T192: 0 | U192: Propia | AL192: 0 | AM192: 0 | AN192: 4 | AO192: False | AP192: False | AQ192: 1/04/2019 5:45:56 p. m. | AR192: 1/04/2019 5:45:56 p. m. | BB192: Oficinas administrativas | BC192: 3000 | BD192: Simón Bolívar 26 | BG192: Sin información | BI192: False | BK192: Sin información
A193: 20 | B193: 25 | C193: Doctor Jose Ibar, Nro. 68, Piso 3, Región Aysén del Gral. Carlos Ibáñez del Campo | D193: Doctor Jose Ibar | E193: Doctor Jose Ibar 68 | F193: 68 | G193: 3 | I193: 274 | J193: False | M193: False | N193: 0 | Q193: 0 | R193: 0 | S193: 0 | T193: 0 | U193: Propia | AL193: 0 | AM193: 0 | AN193: 4 | AO193: False | AP193: False | AQ193: 1/04/2019 5:45:57 p. m. | AR193: 1/04/2019 5:45:57 p. m. | BB193: Oficinas administrativas | BC193: 3452 | BD193: Doctor Jose Ibar 68 | BG193: Sin información | BI193: False | BK193: Sin información
A194: 353 | B194: 25 | C194: Doctor Alejandro Gutierrez, Nro. 1278, Piso , Región Aysén del Gral. Carlos Ibáñez del Campo | D194: Doctor Alejandro Gutierrez | E194: Doctor Alejandro Gutierrez 1278 | F194: 1278 | I194: 274 | J194: False | M194: False | N194: 0 | Q194: 0 | R194: 0 | S194: 0 | T194: 0 | U194: Propia | AL194: 0 | AM194: 0 | AN194: 5 | AO194: False | AP194: False | AQ194: 1/04/2019 5:45:55 p. m. | AR194: 1/04/2019 5:45:55 p. m. | BB194: Oficinas administrativas | BC194: 1453 | BD194: Doctor Alejandro Gutierrez 1278 | BG194: Sin información | BI194: False | BK194: Sin información
A195: 891 | B195: 25 | C195: Doctor Jose Ibar, Nro. 168, Piso 1,2,3, Región Aysén del Gral. Carlos Ibáñez del Campo | D195: Doctor Jose Ibar | E195: Doctor Jose Ibar 168 | F195: 168 | G195: 1,2,3 | I195: 274 | J195: False | M195: False | N195: 0 | Q195: 0 | R195: 0 | S195: 0 | T195: 0 | U195: Propia | AL195: 0 | AM195: 0 | AN195: 4 | AO195: False | AP195: False | AQ195: 1/04/2019 5:45:55 p. m. | AR195: 1/04/2019 5:45:55 p. m. | BB195: Oficinas administrativas | BC195: 1459 | BD195: Doctor Jose Ibar 168 | BG195: Sin información | BI195: False | BK195: Sin información
A196: 1246 | B196: 25 | C196: Francisco Bilbao, Nro. 1955, Piso 1,2, Región Aysén del Gral. Carlos Ibáñez del Campo | D196: Francisco Bilbao | E196: Francisco Bilbao 1955 | F196: 1955 | G196: 1,2 | I196: 274 | J196: False | M196: False | N196: 0 | Q196: 0 | R196: 0 | S196: 0 | T196: 0 | U196: Propia | AL196: 0 | AM196: 0 | AN196: 4 | AO196: False | AP196: False | AQ196: 1/04/2019 5:45:55 p. m. | AR196: 1/04/2019 5:45:55 p. m. | BB196: Oficinas administrativas | BC196: 1623 | BD196: Francisco Bilbao 1955 | BG196: Sin información | BI196: False | BK196: Sin información
A197: 1104 | B197: 25 | C197: Lautaro, Nro. 275, Piso 1, Región Aysén del Gral. Carlos Ibáñez del Campo | D197: Lautaro | E197: Lautaro 275 | F197: 275 | G197: 1 | I197: 282 | J197: False | M197: False | N197: 0 | Q197: 0 | R197: 0 | S197: 0 | T197: 0 | U197: Propia | AL197: 0 | AM197: 0 | AN197: 4 | AO197: False | AP197: False | AQ197: 1/04/2019 5:45:55 p. m. | AR197: 1/04/2019 5:45:55 p. m. | BB197: Oficinas administrativas | BC197: 2031 | BD197: Lautaro 275 | BG197: Sin información | BI197: False | BK197: Sin información
A198: 541 | B198: 25 | C198: Avenida Bernardo O'Higgins, Nro. 755, Piso 1, Región Aysén del Gral. Carlos Ibáñez del Campo | D198: Avenida Bernardo O'Higgins | E198: Avenida Bernardo O'Higgins 755 | F198: 755 | G198: 1 | I198: 279 | J198: False | M198: False | N198: 0 | Q198: 0 | R198: 0 | S198: 0 | T198: 0 | U198: Propia | AL198: 0 | AM198: 0 | AN198: 4 | AO198: False | AP198: False | AQ198: 1/04/2019 5:45:54 p. m. | AR198: 1/04/2019 5:45:54 p. m. | BB198: Oficinas administrativas | BC198: 485 | BD198: Avenida Bernardo O'Higgins 755 | BG198: Sin información | BI198: False | BK198: Sin información
A199: 1581 | B199: 26 | C199: 18 de septiembre, Nro. 1000, Piso , Región de Arica y Parinacota | D199: 18 de septiembre | E199: 18 de septiembre 1000 | F199: 1000 | I199: 1 | J199: False | M199: False | N199: 0 | Q199: 0 | R199: 0 | S199: 0 | T199: 0 | U199: Propia | AL199: 0 | AM199: 0 | AN199: 4 | AO199: False | AP199: False | AQ199: 1/04/2019 5:45:57 p. m. | AR199: 1/04/2019 5:45:57 p. m. | BB199: Oficinas administrativas | BC199: 3490 | BD199: 18 de septiembre 1000 | BG199: Sin información | BI199: False | BK199: Sin información
A200: 921 | B200: 26 | C200: Arturo Prat, Nro. 305, Piso Piso 1, Piso 2, Región de Arica y Parinacota | D200: Arturo Prat | E200: Arturo Prat 305 | F200: 305 | G200: Piso 1, Piso 2 | I200: 1 | J200: False | M200: False | N200: 0 | Q200: 0 | R200: 0 | S200: 0 | T200: 0 | U200: Propia | AL200: -184773328 | AM200: -70320864 | AN200: 4 | AO200: False | AP200: False | AQ200: 1/04/2019 5:45:57 p. m. | AR200: 16/04/2020 11:01:51 a. m. | BB200: Oficinas administrativas | BC200: 3345 | BD200: Arturo Prat 305 | BG200: Sin información | BI200: False | BK200: Sin información
... 925 more rows

Sheet Consumos

Sheet Res1

Sheet Res1-2

Sheet Res2

Sheet Aux1

Sheet Aux2

Sheet Resumen_global
B1: Reporte Intensidad de Consumo Global
B2: Servicio: | C2: SUBSECRETARÍA DE ENERGÍA
B3: Reporte generado al 18/10/2017
A4: 1 | B4: Intensidad de consumo mensual del Servicio [kWh/m2] (para seguimiento parcial del indicador EE del PMG)
C5: Servicio
C6: Edificios incluidos | I6: Superficie Total | O6: Intensidad consumo
C7: n° | I7: [m2] | O7: [kWh/m2]
C8: 2018 | D8: 2019 | E8: 2020 | F8: 2021 | G8: 2022 | H8: 2023 | I8: 2018 | J8: 2019 | K8: 2020 | L8: 2021 | M8: 2022 | N8: 2023 | O8: 2018 | P8: 2019 | Q8: 2020 | R8: 2021 | S8: 2022 | T8: 2023
A9: Ene | B9: Enero
A10: Feb | B10: Febrero
A11: Mar | B11: Marzo
A12: Abr | B12: Abril
A13: May | B13: Mayo
A14: Jun | B14: Junio
A15: Jul | B15: Julio
A16: Ago | B16: Agosto
A17: Sep | B17: Septiembre
A18: Oct | B18: Octubre
A19: Nov | B19: Noviembre
A20: Dic | B20: Diciembre
B21: Promedio
B22: * Este cálculo considera edificios que tienen medidor exclusivo y que tienen consumo declarado en el mes mayor a cero.
A26: 2 | B26: Intensidad de consumo mensual del Servicio [kWh/m2] - Edificios que consumen sólo electricidad
C28: Servicio | U28: Todos los servicios
C29: Edificios incluidos | I29: Superficie Total | O29: Intensidad consumo | U29: Edificios incluidos | AA29: Superficie Total | AG29: Intensidad consumo
C30: n° | I30: [m2] | O30: [kWh/m2] | U30: n° | AA30: [m2] | AG30: [kWh/m2]
C31: 2018 | D31: 2019 | E31: 2020 | F31: 2021 | G31: 2022 | H31: 2023 | I31: 2018 | J31: 2019 | K31: 2020 | L31: 2021 | M31: 2022 | N31: 2023 | O31: 2018 | P31: 2019 | Q31: 2020 | R31: 2021 | S31: 2022 | T31: 2023 | U31: 2018 | V31: 2019 | W31: 2020 | X31: 2021 | Y31: 2022 | Z31: 2023 | AA31: 2018 | AB31: 2019 | AC31: 2020 | AD31: 2021 | AE31: 2022 | AF31: 2023 | AG31: 2018 | AH31: 2019 | AI31: 2020 | AJ31: 2021 | AK31: 2022 | AL31: 2023 | AM31: servicio 2018 | AN31: servicio 2019 | AO31: servicio 2020 | AP31: servicio 2021 | AQ31: todos servicios 2018 | AR31: todos servicios 2019 | AS31: todos servicios 2020 | AT31: todos servicios 2021
A32: Ene | B32: Enero
A33: Feb | B33: Febrero
A34: Mar | B34: Marzo
A35: Abr | B35: Abril
A36: May | B36: Mayo
A37: Jun | B37: Junio
A38: Jul | B38: Julio
A39: Ago | B39: Agosto
A40: Sep | B40: Septiembre
A41: Oct | B41: Octubre
A42: Nov | B42: Noviembre
A43: Dic | B43: Diciembre
B44: Promedio
B45: * Este cálculo considera edificios que tienen medidor exclusivo, solamente con la información de los meses de consumo completos declarados.
AN46: Solo considera el consumo de electricidad, de edificios que no consumen GN.
A48: 3 | B48: Intensidad de consumo mensual del Servicio [kWh/m2] - Edificios que consumen electricidad y gas natural
C50: Servicio | U50: Todos los servicios
C51: Edificios incluidos | I51: Superficie Total | O51: Intensidad consumo | U51: Edificios incluidos | AA51: Superficie Total | AG51: Intensidad consumo
C52: n° | I52: [m2] | O52: [kWh/m2] | U52: n° | AA52: [m2] | AG52: [kWh/m2]
C53: 2018 | D53: 2019 | E53: 2020 | F53: 2021 | G53: 2022 | H53: 2023 | I53: 2018 | J53: 2019 | K53: 2020 | L53: 2021 | M53: 2022 | N53: 2023 | O53: 2018 | P53: 2019 | Q53: 2020 | R53: 2021 | S53: 2022 | T53: 2023 | U53: 2018 | V53: 2019 | W53: 2020 | X53: 2021 | Y53: 2022 | Z53: 2023 | AA53: 2018 | AB53: 2019 | AC53: 2020 | AD53: 2021 | AE53: 2022 | AF53: 2023 | AG53: 2018 | AH53: 2019 | AI53: 2020 | AJ53: 2021 | AK53: 2022 | AL53: 2023
A54: Ene | B54: Enero
A55: Feb | B55: Febrero
A56: Mar | B56: Marzo
A57: Abr | B57: Abril
A58: May | B58: Mayo
A59: Jun | B59: Junio
A60: Jul | B60: Julio
A61: Ago | B61: Agosto
A62: Sep | B62: Septiembre
A63: Oct | B63: Octubre
A64: Nov | B64: Noviembre
A65: Dic | B65: Diciembre
B66: Promedio
B67: * Este cálculo considera edificios que tienen medidor exclusivo, solamente con la información de los meses de consumo completos declarados.
AN69: Solo considera consumo de electricidad y GN, de edificios que consumen electricidad y GN.

Sheet Comparacion
B1: Reporte comparativo de Intensidad de Consumo promedio mensual de los Servicios
B2: Servicio: | C2: SUBSECRETARÍA DE ENERGÍA
B3: Reporte generado al 18/10/2017
B23: Intensidad de consumo promedio mensual [kWh/m2]
B24: * Este cálculo considera edificios con medidor exclusivo, solamente con la información de los meses de consumo completos declarados.
A26: N° | B26: Servicio | C26: PMG | D26: Intensidad promedio mensual año 2022
D27: Edificios que solo consumen electricidad | H27: Edificios que consumen electricidad y gas natural
D28: N° datos considerados | E28: N° edificios promedio mes | F28: Superficie total promedio mes | G28: Intensidad promedio [kWh/m2/mes] | H28: N° datos considerados | I28: N° edificios promedio mes | J28: Superficie total promedio mes | K28: Intensidad promedio [kWh/m2/mes] | P28: prome elec | Q28: prom gn | R28: datos elect | S28: datos gn
A29: 1 | P29: =$P$68 -> 6 | Q29: =$Q$68 -> 7
A30: 2 | P30: 6 | Q30: 7
A31: 3 | P31: 6 | Q31: 7
A32: 4 | P32: 6 | Q32: 7
A33: 5 | P33: 6 | Q33: 7
A34: 6 | P34: 6 | Q34: 7
A35: 7 | P35: 6 | Q35: 7
A36: 8 | P36: 6 | Q36: 7
A37: 9 | P37: 6 | Q37: 7
A38: 10 | P38: 6 | Q38: 7
A39: 11 | P39: 6 | Q39: 7
A40: 12 | P40: 6 | Q40: 7
A41: 13 | P41: 6 | Q41: 7
A42: 14 | P42: 6 | Q42: 7
A43: 15 | P43: 6 | Q43: 7
A44: 16 | P44: 6 | Q44: 7
A45: 17 | P45: 6 | Q45: 7
A46: 18 | P46: 6 | Q46: 7
A47: 19 | P47: 6 | Q47: 7
A48: 20 | P48: 6 | Q48: 7
A49: 21 | P49: 6 | Q49: 7
A50: 22 | P50: 6 | Q50: 7
A51: 23 | P51: 6 | Q51: 7
A52: 24 | P52: 6 | Q52: 7
A53: 25 | P53: 6 | Q53: 7
A54: 26 | P54: 6 | Q54: 7
A55: 27 | P55: 6 | Q55: 7
A56: 28 | P56: 6 | Q56: 7
A57: 29 | P57: 6 | Q57: 7
A58: 30 | P58: 6 | Q58: 7
A59: 31 | P59: 6 | Q59: 7
A60: 32 | P60: 6 | Q60: 7
A61: 33 | P61: 6 | Q61: 7
A62: 34 | P62: 6 | Q62: 7
A63: 35 | P63: 6 | Q63: 7
A64: 36 | P64: 6 | Q64: 7
A65: 37 | P65: 6 | Q65: 7
A66: 38 | P66: 6 | Q66: 7
A67: 39 | P67: =$P$68 -> 6 | Q67: =$Q$68 -> 7
A68: 40 | P68: 6 | Q68: 7
A69: 41 | P69: =$P$68 -> 6 | Q69: =$Q$68 -> 7
A70: 42 | P70: 6 | Q70: 7
A71: 43 | P71: 6 | Q71: 7
A72: 44 | P72: 6 | Q72: 7
A73: 45 | P73: 6 | Q73: 7
A74: 46 | P74: 6 | Q74: 7
A75: 47 | P75: 6 | Q75: 7
A76: 48 | P76: 6 | Q76: 7
A77: 49 | P77: 6 | Q77: 7
A78: 50 | P78: 6 | Q78: 7
A79: 51 | P79: 6 | Q79: 7
A80: 52 | P80: 6 | Q80: 7
A81: 53 | P81: 6 | Q81: 7
A82: 54 | P82: 6 | Q82: 7
A83: 55 | P83: 6 | Q83: 7
A84: 56 | P84: 6 | Q84: 7
A85: 57 | P85: 6 | Q85: 7
A86: 58 | P86: 6 | Q86: 7
A87: 59 | P87: 6 | Q87: 7
A88: 60 | P88: 6 | Q88: 7
A89: 61 | P89: 6 | Q89: 7
A90: 62 | P90: 6 | Q90: 7
A91: 63 | P91: 6 | Q91: 7
A92: 64 | P92: 6 | Q92: 7
A93: 65 | P93: 6 | Q93: 7
A94: 66 | P94: 6 | Q94: 7
A95: 67 | P95: 6 | Q95: 7
A96: 68 | P96: 6 | Q96: 7
A97: 69 | P97: 6 | Q97: 7
A98: 70 | P98: 6 | Q98: 7
A99: 71 | P99: 6 | Q99: 7
A100: 72 | P100: 6 | Q100: 7
A101: 73 | P101: 6 | Q101: 7
A102: 74 | P102: 6 | Q102: 7
A103: 75 | P103: 6 | Q103: 7
A104: 76 | P104: 6 | Q104: 7
A105: 77 | P105: 6 | Q105: 7
A106: 78 | P106: 6 | Q106: 7
A107: 79 | P107: 6 | Q107: 7
A108: 80 | P108: 6 | Q108: 7
A109: 81 | P109: 6 | Q109: 7
A110: 82 | P110: 6 | Q110: 7
A111: 83 | P111: 6 | Q111: 7
A112: 84 | P112: 6 | Q112: 7
A113: 85 | P113: 6 | Q113: 7
A114: 86 | P114: 6 | Q114: 7
A115: 87 | P115: 6 | Q115: 7
A116: 88 | P116: 6 | Q116: 7
A117: 89 | P117: 6 | Q117: 7
A118: 90 | P118: 6 | Q118: 7
A119: 91 | P119: 6 | Q119: 7
A120: 92 | P120: 6 | Q120: 7
A121: 93 | P121: 6 | Q121: 7
A122: 94 | P122: 6 | Q122: 7
A123: 95 | P123: 6 | Q123: 7
A124: 96 | P124: 6 | Q124: 7
A125: 97 | P125: 6 | Q125: 7
A126: 98 | P126: 6 | Q126: 7
A127: 99 | P127: 6 | Q127: 7
A128: 100 | P128: 6 | Q128: 7
A129: 101 | P129: 6 | Q129: 7
A130: 102 | P130: 6 | Q130: 7
A131: 103 | P131: 6 | Q131: 7
A132: 104 | P132: 6 | Q132: 7
A133: 105 | P133: =$P$68 -> 6 | Q133: =$Q$68 -> 7
A134: 106 | P134: 6 | Q134: 7
A135: 107 | P135: 6 | Q135: 7
A136: 108 | P136: 6 | Q136: 7
A137: 109 | P137: 6 | Q137: 7
A138: 110 | P138: 6 | Q138: 7
A139: 111 | P139: 6 | Q139: 7
A140: 112 | P140: 6 | Q140: 7
A141: 113 | P141: 6 | Q141: 7
A142: 114 | P142: 6 | Q142: 7
A143: 115 | P143: 6 | Q143: 7
A144: 116 | P144: 6 | Q144: 7
A145: 117 | P145: 6 | Q145: 7
A146: 118 | P146: 6 | Q146: 7
A147: 119 | P147: 6 | Q147: 7
A148: 120 | P148: 6 | Q148: 7
A149: 121 | P149: 6 | Q149: 7
A150: 122 | P150: 6 | Q150: 7
A151: 123 | P151: 6 | Q151: 7
A152: 124 | P152: 6 | Q152: 7
A153: 125 | P153: 6 | Q153: 7
A154: 126 | P154: 6 | Q154: 7
A155: 127 | P155: 6 | Q155: 7
A156: 128 | P156: 6 | Q156: 7
A157: 129 | P157: 6 | Q157: 7
A158: 130 | P158: 6 | Q158: 7
A159: 131 | P159: 6 | Q159: 7
A160: 132 | P160: 6 | Q160: 7
A161: 133 | P161: 6 | Q161: 7
A162: 134 | P162: 6 | Q162: 7
A163: 135 | P163: 6 | Q163: 7
A164: 136 | P164: 6 | Q164: 7
A165: 137 | P165: 6 | Q165: 7
A166: 138 | P166: 6 | Q166: 7
A167: 139 | P167: 6 | Q167: 7
A168: 140 | P168: 6 | Q168: 7
A169: 141 | P169: 6 | Q169: 7
A170: 142 | P170: 6 | Q170: 7
A171: 143 | P171: 6 | Q171: 7
A172: 144 | P172: 6 | Q172: 7
A173: 145 | P173: 6 | Q173: 7
A174: 146 | P174: 6 | Q174: 7
A175: 147 | P175: 6 | Q175: 7
A176: 148 | P176: 6 | Q176: 7
A177: 149 | P177: 6 | Q177: 7
A178: 150 | P178: 6 | Q178: 7
A179: 151 | P179: 6 | Q179: 7
A180: 152 | P180: 6 | Q180: 7
A181: 153 | P181: 6 | Q181: 7
A182: 154 | P182: 6 | Q182: 7
A183: 155 | P183: 6 | Q183: 7
A184: 156 | P184: 6 | Q184: 7
A185: 157 | P185: 6 | Q185: 7
A186: 158 | P186: 6 | Q186: 7
A187: 159 | P187: 6 | Q187: 7
A188: 160 | P188: 6 | Q188: 7
A189: 161 | P189: 6 | Q189: 7
A190: 162 | P190: 6 | Q190: 7
A191: 163 | P191: 6 | Q191: 7
A192: 164 | P192: 6 | Q192: 7
A193: 165 | P193: 6 | Q193: 7
A194: 166 | P194: 6 | Q194: 7
A195: 167 | P195: 6 | Q195: 7
A196: 168 | P196: 6 | Q196: 7
A197: 169 | P197: =$P$68 -> 6 | Q197: =$Q$68 -> 7
A198: 170 | P198: 6 | Q198: 7
A199: 171 | P199: 6 | Q199: 7
A200: 172 | P200: 6 | Q200: 7
A201: 173 | P201: 6 | Q201: 7
A202: 174 | P202: 6 | Q202: 7
A203: 175 | P203: 6 | Q203: 7
A204: 176 | P204: 6 | Q204: 7
A205: 177 | P205: 6 | Q205: 7
A206: 178 | P206: 6 | Q206: 7
A207: 179 | P207: 6 | Q207: 7
A208: 180 | P208: 6 | Q208: 7
A209: 181 | P209: 6 | Q209: 7
A210: 182 | P210: 6 | Q210: 7
A211: 183 | P211: 6 | Q211: 7
A212: 184 | P212: 6 | Q212: 7
A213: 185 | P213: 6 | Q213: 7
A214: 186 | P214: 6 | Q214: 7
A215: 187 | P215: 6 | Q215: 7
A216: 188 | P216: 6 | Q216: 7
A217: 189 | P217: 6 | Q217: 7
A218: 190 | P218: 6 | Q218: 7
A219: 191 | P219: 6 | Q219: 7
A220: 192 | P220: 6 | Q220: 7
... 1015 more rows

Sheet Resumen_Edificios_Elect
B1: Reporte Intensidad de Consumo promedio mensual por edificio
B2: Servicio: | C2: SUBSECRETARÍA DE ENERGÍA
B3: Reporte generado al 18/10/2017
B4: Considera solamente edificios con medidor exclusivo y que consumen solo electricidad
M9: 15 | N9: 1 | O9: 2 | P9: 3 | Q9: 4 | R9: 5 | S9: 13 | T9: 6 | U9: 7 | V9: 16 | W9: 8 | X9: 9 | Y9: 10 | Z9: 14 | AA9: 11 | AB9: 12
B25: * Este cálculo considera solamente edificios con medidor exclusivo y con información de los meses de consumo completos declarados a partir de enero 2017, sin
B26: considerar meses con consumos duplicados.
A27: ID | B27: Edificio | C27: Región | D27: Superficie | E27: Meses | F27: ¿Tiene consumos | G27: Intensidad Promedio
D28: [m2] | E28: considerados | F28: duplicados? | G28: Mensual [kWh/m2]
H29: =$G$401 -> 
H93: =$G$401 -> 
H157: =$G$401 -> 
H221: =$G$401 -> 
H285: =$G$401 -> 
H349: =$G$401 -> 
G401: =AVERAGE(G29:G400) -> 

Sheet Resumen_Edificios_ElectyGN
B1: Reporte Intensidad de Consumo promedio mensual por edificio
B2: Servicio: | C2: SUBSECRETARÍA DE ENERGÍA
B3: Reporte generado al 18/10/2017
B4: Considera solamente edificios con medidor exclusivo y que consumen electricidad y gas natural
M9: 15 | N9: 1 | O9: 2 | P9: 3 | Q9: 4 | R9: 5 | S9: 13 | T9: 6 | U9: 7 | V9: 16 | W9: 8 | X9: 9 | Y9: 10 | Z9: 14 | AA9: 11 | AB9: 12
B25: * Este cálculo considera solamente edificios con medidor exclusivo y con información de los meses de consumo completos declarados a partir de enero 2017, sin
B26: considerar meses con consumos duplicados.
A27: ID | B27: Edificio | C27: Región | D27: Superficie | E27: Meses | F27: ¿Tiene consumos | G27: Intensidad Promedio
D28: [m2] | E28: considerados | F28: duplicados? | G28: Mensual [kWh/m2]
H29: =$G$401 -> 
H93: =$G$401 -> 
H157: =$G$401 -> 
H221: =$G$401 -> 
H285: =$G$401 -> 
H349: =$G$401 -> 
G401: =AVERAGE(G29:G400) -> 

Sheet Rep_regional
L1: (el consumo del mes es el agregado de todos los medidores y sin restricción de mes completo)
L2: 2017 | O2: Consumo [KWh] | X2: 2018 | AA2: Consumo [KWh] | AJ2: 2019 | AM2: Consumo [KWh] | AV2: 2020 | AY2: Consumo [KWh] | BH2: 2021 | BK2: Consumo [KWh] | BT2: 2022 | BW2: Consumo [KWh] | CF2: 2023 | CI2: Consumo [KWh] | CR2: Total 2017 | CS2: Total 2018 | CT2: Total 2019 | CU2: Total 2020 | CV2: Total 2021 | CW2: Total 2022 | CX2: Total 2023
A3: Región | B3: Comuna | C3: Id Servicio | D3: Servicio | E3: Edificio | F3: Id edificio | G3: Superficie | H3: Id Unidad | I3: Energetico | J3: Reporta consumo? | K3: Clasificación Edificio | L3: 1 | M3: 2 | N3: 3 | O3: 4 | P3: 5 | Q3: 6 | R3: 7 | S3: 8 | T3: 9 | U3: 10 | V3: 11 | W3: 12 | X3: 1 | Y3: 2 | Z3: 3 | AA3: 4 | AB3: 5 | AC3: 6 | AD3: 7 | AE3: 8 | AF3: 9 | AG3: 10 | AH3: 11 | AI3: 12 | AJ3: 1 | AK3: 2 | AL3: 3 | AM3: 4 | AN3: 5 | AO3: 6 | AP3: 7 | AQ3: 8 | AR3: 9 | AS3: 10 | AT3: 11 | AU3: 12 | AV3: 1 | AW3: 2 | AX3: 3 | AY3: 4 | AZ3: 5 | BA3: 6 | BB3: 7 | BC3: 8 | BD3: 9 | BE3: 10 | BF3: 11 | BG3: 12 | BH3: 1 | BI3: 2 | BJ3: 3 | BK3: 4 | BL3: 5 | BM3: 6 | BN3: 7 | BO3: 8 | BP3: 9 | BQ3: 10 | BR3: 11 | BS3: 12 | BT3: 1 | BU3: 2 | BV3: 3 | BW3: 4 | BX3: 5 | BY3: 6 | BZ3: 7 | CA3: 8 | CB3: 9 | CC3: 10 | CD3: 11 | CE3: 12 | CF3: 1 | CG3: 2 | CH3: 3 | CI3: 4 | CJ3: 5 | CK3: 6 | CL3: 7 | CM3: 8 | CN3: 9 | CO3: 10 | CP3: 11 | CQ3: 12 | CR3: [kWh] | CS3: [kWh] | CT3: [kWh] | CU3: [kWh] | CV3: [kWh] | CW3: [kWh] | CX3: [kWh]

Sheet Rep_Graf
B1: Graficos generados al
C2: Intensidad promedio 2020 [KWh/m2/mes]
B3: Región | C3: Ed. Eléctricos | E3: Ed. Térmicos
C4: Edificios | D4: Intensidad | E4: Edificios | F4: Intensidad
B5: 15 | D5: 1 | F5: 3
B6: 1 | D6: 1 | F6: 3
B7: 2 | D7: 1 | F7: 3
B8: 3 | D8: 1 | F8: 3
B9: 4 | D9: 1 | F9: 3
B10: 5 | D10: 1 | F10: 3
B11: 13 | D11: 1 | F11: 3
B12: 6 | D12: 1 | F12: 3
B13: 7 | D13: 1 | F13: 3
B14: 16 | D14: 1 | F14: 3
B15: 8 | D15: 1 | F15: 3
B16: 9 | D16: 1 | F16: 3
B17: 10 | D17: 1 | F17: 3
B18: 14 | D18: 1 | F18: 3
B19: 11 | D19: 1 | F19: 3
B20: 12 | D20: 1 | F20: 3
B21: Nacional
B22: Considera edificios con medidor exclusivo que pertenecen a servicios con y sin PMG de EE.
B24: Región 15
B25: Edificios que consumen solamente electricidad | K25: Edificios Térmicos
B46: Región 1
B47: Edificios que consumen solamente electricidad | K47: Edificios Térmicos
B68: Región 2
B69: Edificios que consumen solamente electricidad | K69: Edificios Térmicos
B90: Región 3
B91: Edificios que consumen solamente electricidad | K91: Edificios Térmicos
B112: Región 4
B113: Edificios que consumen solamente electricidad | K113: Edificios Térmicos
B134: Región 5
B135: Edificios que consumen solamente electricidad | K135: Edificios Térmicos
B156: Región 13
B157: Edificios que consumen solamente electricidad | K157: Edificios Térmicos
B178: Región 6
B179: Edificios que consumen solamente electricidad | K179: Edificios Térmicos
B200: Región 7
B201: Edificios que consumen solamente electricidad | K201: Edificios Térmicos
B222: Región 16
B223: Edificios que consumen solamente electricidad | K223: Edificios Térmicos
B244: Región 8
B245: Edificios que consumen solamente electricidad | K245: Edificios Térmicos
B266: Región 9
B267: Edificios que consumen solamente electricidad | K267: Edificios Térmicos
B288: Región 10
B289: Edificios que consumen solamente electricidad | K289: Edificios Térmicos
B310: Región 14
B311: Edificios que consumen solamente electricidad | K311: Edificios Térmicos
B332: Región 11
B333: Edificios que consumen solamente electricidad | K333: Edificios Térmicos
B354: Región 12
B355: Edificios que consumen solamente electricidad | K355: Edificios Térmicos
B376: Region 15 | C376: Edificios Electricos
B377: ID | C377: INTENSIDAD PROMEDIO
A378: 15e
B1380: Region 15 | C1380: Edificios Mixtos
B1381: ID | C1381: INTENSIDAD PROMEDIO
A1382: 15m
B2384: Region 1 | C2384: Edificios Electricos
B2385: ID | C2385: INTENSIDAD PROMEDIO
A2386: 1e
B3388: Region 1 | C3388: Edificios Mixtos
B3389: ID | C3389: INTENSIDAD PROMEDIO
A3390: 1m
B4392: Region 2 | C4392: Edificios Electricos
B4393: ID | C4393: INTENSIDAD PROMEDIO
A4394: 2e
B5396: Region 2 | C5396: Edificios Mixtos
B5397: ID | C5397: INTENSIDAD PROMEDIO
A5398: 2m
B6400: Region 3 | C6400: Edificios Electricos
B6401: ID | C6401: INTENSIDAD PROMEDIO
A6402: 3e
B7404: Region 3 | C7404: Edificios Mixtos
B7405: ID | C7405: INTENSIDAD PROMEDIO
A7406: 3m
B8408: Region 4 | C8408: Edificios Electricos
B8409: ID | C8409: INTENSIDAD PROMEDIO
A8410: 4e
B9412: Region 4 | C9412: Edificios Mixtos
B9413: ID | C9413: INTENSIDAD PROMEDIO
A9414: 4m
B10416: Region 5 | C10416: Edificios Electricos
B10417: ID | C10417: INTENSIDAD PROMEDIO
A10418: 5e
B11420: Region 5 | C11420: Edificios Mixtos
B11421: ID | C11421: INTENSIDAD PROMEDIO
A11422: 5m
B12424: Region 13 | C12424: Edificios Electricos
B12425: ID | C12425: INTENSIDAD PROMEDIO
A12426: 13e
B13428: Region 13 | C13428: Edificios Mixtos
B13429: ID | C13429: INTENSIDAD PROMEDIO
A13430: 13m
B14432: Region 6 | C14432: Edificios Electricos
B14433: ID | C14433: INTENSIDAD PROMEDIO
A14434: 6e
B15436: Region 6 | C15436: Edificios Mixtos
B15437: ID | C15437: INTENSIDAD PROMEDIO
A15438: 6m
B16440: Region 7 | C16440: Edificios Electricos
B16441: ID | C16441: INTENSIDAD PROMEDIO
A16442: 7e
B17444: Region 7 | C17444: Edificios Mixtos
B17445: ID | C17445: INTENSIDAD PROMEDIO
A17446: 7m
B18448: Region 8 | C18448: Edificios Electricos
B18449: ID | C18449: INTENSIDAD PROMEDIO
A18450: 8e
B19452: Region 8 | C19452: Edificios Mixtos
B19453: ID | C19453: INTENSIDAD PROMEDIO
A19454: 8m
B20456: Region 9 | C20456: Edificios Electricos
B20457: ID | C20457: INTENSIDAD PROMEDIO
A20458: 9e
B21460: Region 9 | C21460: Edificios Mixtos
B21461: ID | C21461: INTENSIDAD PROMEDIO
A21462: 9m
B22464: Region 10 | C22464: Edificios Electricos
B22465: ID | C22465: INTENSIDAD PROMEDIO
A22466: 10e
B23468: Region 10 | C23468: Edificios Mixtos
B23469: ID | C23469: INTENSIDAD PROMEDIO
A23470: 10m
B24472: Region 14 | C24472: Edificios Electricos
B24473: ID | C24473: INTENSIDAD PROMEDIO
A24474: 14e
B25476: Region 14 | C25476: Edificios Mixtos
B25477: ID | C25477: INTENSIDAD PROMEDIO
A25478: 14m
B26480: Region 11 | C26480: Edificios Electricos
B26481: ID | C26481: INTENSIDAD PROMEDIO
A26482: 11e
B27484: Region 11 | C27484: Edificios Mixtos
B27485: ID | C27485: INTENSIDAD PROMEDIO
A27486: 11m
B28488: Region 12 | C28488: Edificios Electricos
B28489: ID | C28489: INTENSIDAD PROMEDIO
A28490: 12e
B29492: Region 12 | C29492: Edificios Mixtos
B29493: ID | C29493: INTENSIDAD PROMEDIO
A29494: 12m
A30498: 16e
A31502: 16m

Sheet Rep_glob
A1: Id servicio | B1: Estado PMG | C1: Id edificio | D1: Tipo | E1: Region | F1: Superficie | G1: Cons Electrico 2017 | H1: meses completos 2017 | I1: Consumo GN 2017 | J1: meses completos 2017 | K1: Consumo Gasolina 2017 | L1: meses completos 2017 | M1: Consumo GLP 2017 | N1: meses completos 2017 | O1: Consumo Leña 2017 | P1: meses completos 2017 | Q1: Consumo Kerosene 2017 | R1: meses completos 2017 | S1: Consumo Diesel 2017 | T1: meses completos 2017 | U1: Consumo Petróleo 5-6 2017 | V1: meses completos 2017 | W1: Consumo Pellet de leña 2017 | X1: meses completos 2017 | Y1: Consumo Biomasa 2017 | Z1: meses completos 2017 | AA1: Consumo IFO 080K 2017 | AB1: meses completos 2017 | AC1: Consumo Carbón 2017 | AD1: meses completos 2017 | AE1: Consumo medio 2017 | AF1: Cons Electrico 2018 | AG1: meses completos 2018 | AH1: Consumo GN 2018 | AI1: meses completos 2018 | AJ1: Consumo Gasolina 2018 | AK1: meses completos 2018 | AL1: Consumo GLP 2018 | AM1: meses completos 2018 | AN1: Consumo Leña 2018 | AO1: meses completos 2018 | AP1: Consumo Kerosene 2018 | AQ1: meses completos 2018 | AR1: Consumo Diesel 2018 | AS1: meses completos 2018 | AT1: Consumo Petróleo 5-6 2018 | AU1: meses completos 2018 | AV1: Consumo Pellet de leña 2018 | AW1: meses completos 2018 | AX1: Consumo Biomasa 2018 | AY1: meses completos 2018 | AZ1: Consumo IFO 080K 2018 | BA1: meses completos 2018 | BB1: Consumo Carbón 2018 | BC1: meses completos 2018 | BD1: Consumo medio 2018
A2: 376 | B2: PMG | C2: 4665 | D2: Electrico | E2: 5 | F2: 1531 | G2: 50530.44943 | H2: 6 | I2: 0 | J2: 0 | AE2: 8421.741571
A3: 376 | B3: PMG | C3: 4666 | D3: Electrico | E3: 2 | F3: 750 | G3: 22858.11694 | H3: 6 | I3: 0 | J3: 0 | AE3: 3809.686156
A4: 376 | B4: PMG | C4: 4667 | D4: Electrico | E4: 2 | F4: 167 | G4: 1273.137931 | H4: 6 | I4: 0 | J4: 0 | AE4: 212.1896552
A5: 376 | B5: PMG | C5: 4668 | D5: Electrico | E5: 9 | F5: 247 | G5: 4283.605117 | H5: 6 | I5: 0 | J5: 0 | AE5: 713.9341861
A6: 376 | B6: PMG | C6: 4669 | D6: Electrico | E6: 9 | F6: 150 | G6: 3317.747984 | H6: 6 | I6: 0 | J6: 0 | AE6: 552.9579973
A7: 376 | B7: PMG | C7: 4670 | D7: Electrico | E7: 9 | F7: 1018 | G7: 37587 | H7: 6 | I7: 0 | J7: 0 | AE7: 6264.5
A8: 376 | B8: PMG | C8: 4672 | D8: Electrico | E8: 9 | F8: 80 | G8: 2949.75 | H8: 6 | I8: 0 | J8: 0 | AE8: 491.625
A9: 376 | B9: PMG | C9: 4675 | D9: Electrico | E9: 3 | F9: 740 | G9: 9690.013793 | H9: 6 | I9: 0 | J9: 0 | AE9: 1615.002299
A10: 376 | B10: PMG | C10: 4676 | D10: Electrico | E10: 15 | F10: 485 | G10: 20412.93993 | H10: 6 | I10: 0 | J10: 0 | AE10: 3402.156656
A11: 376 | B11: PMG | C11: 4678 | D11: Electrico | E11: 4 | F11: 211 | G11: 5954.978865 | H11: 6 | I11: 0 | J11: 0 | AE11: 992.4964776
A12: 376 | B12: PMG | C12: 4679 | D12: Electrico | E12: 3 | F12: 164 | G12: 1279.442529 | H12: 6 | I12: 0 | J12: 0 | AE12: 213.2404215
A13: 376 | B13: PMG | C13: 4680 | D13: Electrico | E13: 11 | F13: 454 | G13: 5646.636364 | H13: 6 | I13: 0 | J13: 0 | AE13: 941.1060606
A14: 376 | B14: PMG | C14: 4681 | D14: Electrico | E14: 11 | F14: 220 | G14: 3817.483871 | H14: 6 | I14: 0 | J14: 0 | AE14: 636.2473118
A15: 376 | B15: PMG | C15: 4682 | D15: Electrico | E15: 8 | F15: 1610 | G15: 34084.81609 | H15: 6 | I15: 0 | J15: 0 | AE15: 5680.802682
A16: 376 | B16: PMG | C16: 4683 | D16: Electrico | E16: 8 | F16: 202 | G16: 3512.16129 | H16: 6 | I16: 0 | J16: 0 | AE16: 585.3602151
A17: 376 | B17: PMG | C17: 4684 | D17: Electrico | E17: 8 | F17: 117 | G17: 1972.198851 | H17: 6 | I17: 0 | J17: 0 | AE17: 328.6998084
A18: 376 | B18: PMG | C18: 4685 | D18: Electrico | E18: 8 | F18: 100 | G18: 1382.636364 | H18: 6 | I18: 0 | J18: 0 | AE18: 230.4393939
A19: 376 | B19: PMG | C19: 4686 | D19: Electrico | E19: 4 | F19: 522 | G19: 37663.93548 | H19: 6 | I19: 0 | J19: 0 | AE19: 6277.322581
A20: 376 | B20: PMG | C20: 4687 | D20: Electrico | E20: 4 | F20: 212 | G20: 1318.079637 | H20: 6 | I20: 0 | J20: 0 | AE20: 219.6799395
A21: 376 | B21: PMG | C21: 4688 | D21: Electrico | E21: 13 | F21: 339 | G21: 17169.0767 | H21: 7 | I21: 0 | J21: 0 | AE21: 2452.725244
A22: 376 | B22: PMG | C22: 4689 | D22: Electrico | E22: 13 | F22: 255 | G22: 8824 | H22: 6 | I22: 0 | J22: 0 | AE22: 1470.666667
A23: 376 | B23: PMG | C23: 4690 | D23: Electrico | E23: 13 | F23: 305 | G23: 17041.5883 | H23: 6 | I23: 0 | J23: 0 | AE23: 2840.264716
A24: 376 | B24: PMG | C24: 4691 | D24: Electrico | E24: 13 | F24: 543 | G24: 23068.92372 | H24: 6 | I24: 0 | J24: 0 | AE24: 3844.82062
A25: 376 | B25: PMG | C25: 4693 | D25: Electrico | E25: 13 | F25: 300 | G25: 21942.48876 | H25: 6 | I25: 0 | J25: 0 | AE25: 3657.08146
A26: 376 | B26: PMG | C26: 4694 | D26: Electrico | E26: 13 | F26: 400 | G26: 12525.36667 | H26: 6 | I26: 0 | J26: 0 | AE26: 2087.561111
A27: 376 | B27: PMG | C27: 4695 | D27: Electrico | E27: 13 | F27: 536 | G27: 20489.15361 | H27: 6 | I27: 0 | J27: 0 | AE27: 3414.858934
A28: 376 | B28: PMG | C28: 4696 | D28: Electrico | E28: 13 | F28: 1130 | G28: 95135.04702 | H28: 6 | I28: 0 | J28: 0 | AE28: 15855.84117
A29: 376 | B29: PMG | C29: 4697 | D29: Electrico | E29: 1 | F29: 517 | G29: 13456.2092 | H29: 6 | I29: 0 | J29: 0 | AE29: 2242.701533
A30: 376 | B30: PMG | C30: 4699 | D30: Electrico | E30: 1 | F30: 87 | G30: 239.0645161 | H30: 6 | I30: 0 | J30: 0 | AE30: 39.84408602
A31: 376 | B31: PMG | C31: 4700 | D31: Electrico | E31: 10 | F31: 256 | G31: 4388.848485 | H31: 6 | I31: 0 | J31: 0 | AE31: 731.4747475
A32: 376 | B32: PMG | C32: 4702 | D32: Electrico | E32: 10 | F32: 117 | G32: 2011.428422 | H32: 6 | I32: 0 | J32: 0 | AE32: 335.2380704
A33: 376 | B33: PMG | C33: 4704 | D33: Mixto | E33: 12 | F33: 957 | G33: 0 | H33: 0 | I33: 218348.2604 | J33: 6 | AE33: 40365.41655
A34: 376 | B34: PMG | C34: 4705 | D34: Electrico | E34: 7 | F34: 963 | G34: 41479.12236 | H34: 6 | I34: 0 | J34: 0 | AE34: 6913.18706
A35: 376 | B35: PMG | C35: 4706 | D35: Mixto | E35: 13 | F35: 3933 | G35: 0 | H35: 0 | I35: 4680.949454 | J35: 6 | AE35: 19366.1857
A36: 376 | B36: PMG | C36: 4709 | D36: Electrico | E36: 6 | F36: 325 | G36: 6931.37931 | H36: 6 | I36: 0 | J36: 0 | AE36: 1155.229885
A37: 376 | B37: PMG | C37: 4710 | D37: Electrico | E37: 6 | F37: 340 | G37: 7056.137931 | H37: 6 | I37: 0 | J37: 0 | AE37: 1176.022989
A38: 376 | B38: PMG | C38: 4711 | D38: Electrico | E38: 6 | F38: 263 | G38: 4628.862069 | H38: 6 | I38: 0 | J38: 0 | AE38: 771.4770115
A39: 376 | B39: PMG | C39: 4712 | D39: Electrico | E39: 6 | F39: 300 | G39: 1905.439655 | H39: 6 | I39: 0 | J39: 0 | AE39: 317.5732759
A40: 376 | B40: PMG | C40: 3462 | D40: Electrico | E40: 10 | F40: 759 | G40: 16134.27273 | H40: 6 | I40: 0 | J40: 0 | AE40: 2689.045455
A41: 437 | B41: PMG | C41: 4663 | D41: Mixto | E41: 5 | F41: 4165 | G41: 0 | H41: 0 | I41: 122863.464 | J41: 10 | AE41: 24887.78216
A42: 446 | B42: PMG | C42: 1280 | D42: Electrico | E42: 1 | F42: 359 | G42: 14155.73474 | H42: 8 | I42: 0 | J42: 0 | AE42: 1769.466842
A43: 446 | B43: PMG | C43: 1281 | D43: Electrico | E43: 10 | F43: 85 | G43: 6913.265851 | H43: 13 | I43: 0 | J43: 0 | AE43: 531.7896808
A44: 446 | B44: PMG | C44: 1282 | D44: Electrico | E44: 11 | F44: 547 | G44: 36035.50147 | H44: 12 | I44: 0 | J44: 0 | AE44: 3002.958456
A45: 446 | B45: PMG | C45: 1027 | D45: Electrico | E45: 2 | F45: 300 | G45: 7821.90625 | H45: 13 | I45: 0 | J45: 0 | AE45: 601.6850962
A46: 446 | B46: PMG | C46: 1285 | D46: Electrico | E46: 15 | F46: 668 | G46: 23763.94304 | H46: 9 | I46: 0 | J46: 0 | AE46: 2640.438116
A47: 446 | B47: PMG | C47: 1596 | D47: Electrico | E47: 5 | F47: 1000 | G47: 3121.683824 | H47: 8 | I47: 0 | J47: 0 | AE47: 390.2104779
A48: 446 | B48: PMG | C48: 896 | D48: Electrico | E48: 9 | F48: 1288 | G48: 48109 | H48: 10 | I48: 0 | J48: 0 | AE48: 4810.9
A49: 446 | B49: PMG | C49: 3212 | D49: Electrico | E49: 7 | F49: 951 | G49: 44826.44828 | H49: 12 | I49: 0 | J49: 0 | AE49: 3735.537356
A50: 446 | B50: PMG | C50: 911 | D50: Mixto | E50: 13 | F50: 5489 | G50: 0 | H50: 0 | I50: 254.368233 | J50: 8 | AE50: 52166.17103
A51: 446 | B51: PMG | C51: 926 | D51: Mixto | E51: 12 | F51: 500 | G51: 0 | H51: 0 | I51: 150388.2761 | J51: 11 | AE51: 15154.38338
A52: 446 | B52: PMG | C52: 1183 | D52: Electrico | E52: 3 | F52: 435 | G52: 22675.72414 | H52: 11 | I52: 0 | J52: 0 | AE52: 2061.429467
A53: 446 | B53: PMG | C53: 1187 | D53: Electrico | E53: 6 | F53: 884 | G53: 35688 | H53: 14 | I53: 0 | J53: 0 | AE53: 2549.142857
A54: 446 | B54: PMG | C54: 1476 | D54: Electrico | E54: 10 | F54: 241 | G54: 6360.695925 | H54: 7 | I54: 0 | J54: 0 | AE54: 908.6708464
A55: 446 | B55: PMG | C55: 1263 | D55: Electrico | E55: 10 | F55: 254 | G55: 10162.31489 | H55: 9 | I55: 0 | J55: 0 | AE55: 1129.146099
A56: 446 | B56: PMG | C56: 1519 | D56: Electrico | E56: 4 | F56: 532 | G56: 6896.758621 | H56: 13 | I56: 0 | J56: 0 | AE56: 530.5198939
A57: 446 | B57: PMG | C57: 1271 | D57: Electrico | E57: 10 | F57: 681 | G57: 29620.32036 | H57: 13 | I57: 0 | J57: 0 | AE57: 2278.486181
A58: 446 | B58: PMG | C58: 1273 | D58: Electrico | E58: 8 | F58: 1912 | G58: 37935.77393 | H58: 12 | I58: 0 | J58: 0 | AE58: 3161.314494
A59: 446 | B59: PMG | C59: 1277 | D59: Electrico | E59: 5 | F59: 843 | G59: 13413.44951 | H59: 7 | I59: 0 | J59: 0 | AE59: 1916.207072
A60: 447 | B60: PMG | C60: 3378 | D60: Electrico | E60: 6 | F60: 245 | G60: 3978.241379 | H60: 8 | I60: 0 | J60: 0 | AE60: 497.2801724
A61: 447 | B61: PMG | C61: 3134 | D61: Electrico | E61: 4 | F61: 259 | G61: 5247.740358 | H61: 6 | I61: 0 | J61: 0 | AE61: 874.6233929
A62: 447 | B62: PMG | C62: 3926 | D62: Electrico | E62: 13 | F62: 1928 | G62: 56903.55457 | H62: 6 | I62: 0 | J62: 0 | AE62: 9483.925762
A63: 447 | B63: PMG | C63: 1422 | D63: Electrico | E63: 11 | F63: 121 | G63: 1920.721212 | H63: 6 | I63: 0 | J63: 0 | AE63: 320.120202
A64: 447 | B64: PMG | C64: 2536 | D64: Electrico | E64: 14 | F64: 170 | G64: 6570.207143 | H64: 13 | I64: 0 | J64: 0 | AE64: 505.4005495
A65: 447 | B65: PMG | C65: 3323 | D65: Mixto | E65: 12 | F65: 350 | G65: 0 | H65: 0 | I65: 54735.71069 | J65: 6 | AE65: 9548.192309
A66: 448 | B66: PMG | C66: 1190 | D66: Electrico | E66: 13 | F66: 1058 | G66: 175834.7917 | H66: 12 | I66: 0 | J66: 0 | AE66: 14652.89931
A67: 449 | B67: PMG | C67: 2314 | D67: Electrico | E67: 13 | F67: 700 | G67: 59672.52874 | H67: 10 | I67: 0 | J67: 0 | AE67: 5967.252874
A68: 449 | B68: PMG | C68: 2317 | D68: Electrico | E68: 13 | F68: 2374 | G68: 197148.0042 | H68: 10 | I68: 0 | J68: 0 | AE68: 19714.80042
A69: 449 | B69: PMG | C69: 2575 | D69: Mixto | E69: 13 | F69: 2745 | G69: 0 | H69: 0 | I69: 12332.93431 | J69: 9 | AE69: 37388.84843
A70: 449 | B70: PMG | C70: 3096 | D70: Electrico | E70: 10 | F70: 472 | G70: 20873.5625 | H70: 11 | I70: 0 | J70: 0 | AE70: 1897.596591
A71: 449 | B71: PMG | C71: 3904 | D71: Electrico | E71: 3 | F71: 240 | G71: 7590.707469 | H71: 13 | I71: 0 | J71: 0 | AE71: 583.9005746
A72: 449 | B72: PMG | C72: 2918 | D72: Electrico | E72: 14 | F72: 200 | G72: 9948.034483 | H72: 12 | I72: 0 | J72: 0 | AE72: 829.0028736
A73: 449 | B73: PMG | C73: 2933 | D73: Electrico | E73: 3 | F73: 1429 | G73: 22350.96774 | H73: 10 | I73: 0 | J73: 0 | AE73: 2235.096774
A74: 449 | B74: PMG | C74: 4762 | D74: Electrico | E74: 5 | F74: 358 | G74: 8179.37931 | H74: 12 | I74: 0 | J74: 0 | AE74: 681.6149425
A75: 449 | B75: PMG | C75: 2479 | D75: Electrico | E75: 6 | F75: 400 | G75: 5435.325431 | H75: 9 | I75: 0 | J75: 0 | AE75: 603.9250479
A76: 449 | B76: PMG | C76: 2481 | D76: Mixto | E76: 12 | F76: 199 | G76: 0 | H76: 0 | I76: 137291.8006 | J76: 12 | AE76: 11941.9108
A77: 449 | B77: PMG | C77: 2482 | D77: Electrico | E77: 15 | F77: 167 | G77: 5972.240741 | H77: 11 | I77: 0 | J77: 0 | AE77: 542.9309764
A78: 449 | B78: PMG | C78: 2484 | D78: Electrico | E78: 4 | F78: 450 | G78: 10561.15462 | H78: 10 | I78: 0 | J78: 0 | AE78: 1056.115462
A79: 449 | B79: PMG | C79: 2485 | D79: Electrico | E79: 1 | F79: 819 | G79: 11550.20801 | H79: 13 | I79: 0 | J79: 0 | AE79: 888.4775391
A80: 449 | B80: PMG | C80: 2527 | D80: Electrico | E80: 7 | F80: 220 | G80: 8582.378079 | H80: 13 | I80: 0 | J80: 0 | AE80: 660.1829291
A81: 449 | B81: PMG | C81: 2530 | D81: Electrico | E81: 5 | F81: 444 | G81: 0 | H81: 0 | I81: 0 | J81: 0 | AE81: -
A82: 449 | B82: PMG | C82: 2531 | D82: Electrico | E82: 11 | F82: 180 | G82: 16176.59375 | H82: 10 | I82: 0 | J82: 0 | AE82: 1617.659375
A83: 449 | B83: PMG | C83: 2534 | D83: Electrico | E83: 2 | F83: 638 | G83: 16963.73359 | H83: 9 | I83: 0 | J83: 0 | AE83: 1884.859288
A84: 449 | B84: PMG | C84: 2535 | D84: Electrico | E84: 8 | F84: 173 | G84: 16089.10456 | H84: 13 | I84: 0 | J84: 0 | AE84: 1237.623428
A85: 449 | B85: PMG | C85: 2537 | D85: Electrico | E85: 9 | F85: 2540 | G85: 252126.129 | H85: 10 | I85: 0 | J85: 0 | AE85: 25212.6129
A86: 449 | B86: PMG | C86: 2551 | D86: Electrico | E86: 13 | F86: 868 | G86: 38819.81818 | H86: 11 | I86: 0 | J86: 0 | AE86: 3529.07438
A87: 449 | B87: PMG | C87: 2558 | D87: Electrico | E87: 4 | F87: 295 | G87: 18939.32592 | H87: 10 | I87: 0 | J87: 0 | AE87: 1893.932592
A88: 450 | B88: PMG | C88: 4648 | D88: Electrico | E88: 13 | F88: 1492 | G88: 70953.5 | H88: 7 | I88: 0 | J88: 0 | AE88: 10136.21429
A89: 450 | B89: PMG | C89: 3122 | D89: Electrico | E89: 2 | F89: 208 | G89: 20909.22581 | H89: 8 | I89: 0 | J89: 0 | AE89: 2613.653226
A90: 450 | B90: PMG | C90: 3124 | D90: Electrico | E90: 4 | F90: 486 | G90: 38291.72903 | H90: 7 | I90: 0 | J90: 0 | AE90: 5470.247005
A91: 450 | B91: PMG | C91: 3389 | D91: Electrico | E91: 13 | F91: 420 | G91: 181668.9989 | H91: 7 | I91: 0 | J91: 0 | AE91: 25952.71413
A92: 450 | B92: PMG | C92: 3390 | D92: Electrico | E92: 13 | F92: 70 | G92: 4012.686422 | H92: 7 | I92: 0 | J92: 0 | AE92: 573.2409175
A93: 450 | B93: PMG | C93: 3392 | D93: Electrico | E93: 5 | F93: 419 | G93: 14040 | H93: 8 | I93: 0 | J93: 0 | AE93: 1755
A94: 450 | B94: PMG | C94: 3393 | D94: Electrico | E94: 6 | F94: 507 | G94: 72502 | H94: 8 | I94: 0 | J94: 0 | AE94: 9062.75
A95: 450 | B95: PMG | C95: 3397 | D95: Electrico | E95: 7 | F95: 361 | G95: 85798.70968 | H95: 8 | I95: 0 | J95: 0 | AE95: 10724.83871
A96: 450 | B96: PMG | C96: 3398 | D96: Electrico | E96: 8 | F96: 28 | G96: 886.708046 | H96: 8 | I96: 0 | J96: 0 | AE96: 110.8385057
A97: 450 | B97: PMG | C97: 3404 | D97: Electrico | E97: 10 | F97: 200 | G97: 79170.35585 | H97: 8 | I97: 0 | J97: 0 | AE97: 9896.294481
A98: 450 | B98: PMG | C98: 3405 | D98: Electrico | E98: 13 | F98: 1200 | G98: 166738.75 | H98: 8 | I98: 0 | J98: 0 | AE98: 20842.34375
A99: 450 | B99: PMG | C99: 3406 | D99: Electrico | E99: 13 | F99: 200 | G99: 4029.909091 | H99: 6 | I99: 0 | J99: 0 | AE99: 671.6515152
A100: 450 | B100: PMG | C100: 3407 | D100: Electrico | E100: 13 | F100: 200 | G100: 11204.7 | H100: 7 | I100: 0 | J100: 0 | AE100: 1600.671429
A101: 450 | B101: PMG | C101: 3409 | D101: Electrico | E101: 13 | F101: 150 | G101: 14054.35129 | H101: 7 | I101: 0 | J101: 0 | AE101: 2007.76447
A102: 450 | B102: PMG | C102: 3410 | D102: Electrico | E102: 13 | F102: 160 | G102: 14689.35 | H102: 7 | I102: 0 | J102: 0 | AE102: 2098.478571
A103: 450 | B103: PMG | C103: 3411 | D103: Electrico | E103: 13 | F103: 900 | G103: 55044.375 | H103: 7 | I103: 0 | J103: 0 | AE103: 7863.482143
A104: 450 | B104: PMG | C104: 3412 | D104: Electrico | E104: 13 | F104: 1080 | G104: 169844.2742 | H104: 7 | I104: 0 | J104: 0 | AE104: 24263.46774
A105: 450 | B105: PMG | C105: 3414 | D105: Electrico | E105: 6 | F105: 139 | G105: 3936.951724 | H105: 7 | I105: 0 | J105: 0 | AE105: 562.4216749
A106: 450 | B106: PMG | C106: 3416 | D106: Electrico | E106: 3 | F106: 70 | G106: 2394.171429 | H106: 7 | I106: 0 | J106: 0 | AE106: 342.0244898
A107: 450 | B107: PMG | C107: 3424 | D107: Electrico | E107: 13 | F107: 1080 | G107: 84149.34594 | H107: 6 | I107: 0 | J107: 0 | AE107: 14024.89099
A108: 450 | B108: PMG | C108: 3427 | D108: Electrico | E108: 8 | F108: 271 | G108: 3516.824373 | H108: 6 | I108: 0 | J108: 0 | AE108: 586.1373955
A109: 450 | B109: PMG | C109: 3429 | D109: Electrico | E109: 10 | F109: 99 | G109: 4278.517281 | H109: 7 | I109: 0 | J109: 0 | AE109: 611.2167544
A110: 450 | B110: PMG | C110: 3430 | D110: Electrico | E110: 9 | F110: 86 | G110: 5060.976641 | H110: 6 | I110: 0 | J110: 0 | AE110: 843.4961068
A111: 451 | B111: PMG | C111: 112 | D111: Electrico | E111: 2 | F111: 200 | G111: 4490.244444 | H111: 14 | I111: 0 | J111: 0 | AE111: 320.731746
A112: 451 | B112: PMG | C112: 120 | D112: Electrico | E112: 13 | F112: 1881 | G112: 125070.7586 | H112: 13 | I112: 0 | J112: 0 | AE112: 9620.827586
A113: 451 | B113: PMG | C113: 172 | D113: Electrico | E113: 4 | F113: 48 | G113: 2226.996043 | H113: 12 | I113: 0 | J113: 0 | AE113: 185.5830036
A114: 451 | B114: PMG | C114: 175 | D114: Electrico | E114: 10 | F114: 476 | G114: 14257.38265 | H114: 13 | I114: 0 | J114: 0 | AE114: 1096.721742
A115: 451 | B115: PMG | C115: 971 | D115: Electrico | E115: 8 | F115: 120 | G115: 7016.77957 | H115: 13 | I115: 0 | J115: 0 | AE115: 539.7522746
A116: 451 | B116: PMG | C116: 5117 | D116: Electrico | E116: 13 | F116: 640 | G116: 0 | H116: 0 | I116: 0 | J116: 0 | AE116: -
A117: 452 | B117: PMG | C117: 2374 | D117: Electrico | E117: 13 | F117: 520 | G117: 33117.33333 | H117: 11 | I117: 0 | J117: 0 | AE117: 3010.666667
A118: 453 | B118: PMG | C118: 3097 | D118: Electrico | E118: 13 | F118: 352 | G118: 15010.52874 | H118: 10 | I118: 0 | J118: 0 | AE118: 1501.052874
A119: 453 | B119: PMG | C119: 3099 | D119: Electrico | E119: 13 | F119: 130 | G119: 3337.068966 | H119: 10 | I119: 0 | J119: 0 | AE119: 333.7068966
A120: 453 | B120: PMG | C120: 3101 | D120: Electrico | E120: 13 | F120: 750 | G120: 25263.0721 | H120: 10 | I120: 0 | J120: 0 | AE120: 2526.30721
A121: 453 | B121: PMG | C121: 3102 | D121: Electrico | E121: 13 | F121: 565 | G121: 18921.91667 | H121: 11 | I121: 0 | J121: 0 | AE121: 1720.174242
A122: 453 | B122: PMG | C122: 3123 | D122: Electrico | E122: 1 | F122: 120 | G122: 2597.604004 | H122: 11 | I122: 0 | J122: 0 | AE122: 236.1458186
A123: 453 | B123: PMG | C123: 3126 | D123: Electrico | E123: 5 | F123: 238 | G123: 6785.793103 | H123: 11 | I123: 0 | J123: 0 | AE123: 616.8902821
A124: 453 | B124: PMG | C124: 3127 | D124: Electrico | E124: 14 | F124: 222 | G124: 11205.1392 | H124: 13 | I124: 0 | J124: 0 | AE124: 861.933785
A125: 453 | B125: PMG | C125: 3396 | D125: Electrico | E125: 13 | F125: 300 | G125: 6099.752083 | H125: 10 | I125: 0 | J125: 0 | AE125: 609.9752083
A126: 453 | B126: PMG | C126: 3142 | D126: Electrico | E126: 4 | F126: 264 | G126: 5200.16092 | H126: 13 | I126: 0 | J126: 0 | AE126: 400.0123784
A127: 453 | B127: PMG | C127: 3143 | D127: Electrico | E127: 10 | F127: 187 | G127: 9737.322581 | H127: 11 | I127: 0 | J127: 0 | AE127: 885.2111437
A128: 453 | B128: PMG | C128: 3146 | D128: Electrico | E128: 13 | F128: 802 | G128: 33682.87292 | H128: 10 | I128: 0 | J128: 0 | AE128: 3368.287292
A129: 453 | B129: PMG | C129: 3165 | D129: Electrico | E129: 11 | F129: 176 | G129: 12006 | H129: 13 | I129: 0 | J129: 0 | AE129: 923.5384615
A130: 453 | B130: PMG | C130: 3168 | D130: Electrico | E130: 3 | F130: 192 | G130: 2874.368952 | H130: 9 | I130: 0 | J130: 0 | AE130: 319.374328
A131: 453 | B131: PMG | C131: 5108 | D131: Electrico | E131: 7 | F131: 413 | G131: 0 | H131: 0 | I131: 0 | J131: 0 | AE131: -
A132: 454 | B132: PMG | C132: 746 | D132: Mixto | E132: 13 | F132: 971 | G132: 0 | H132: 0 | I132: 58102.87241 | J132: 9 | AE132: 16233.17901
A133: 454 | B133: PMG | C133: 748 | D133: Mixto | E133: 13 | F133: 480 | G133: 0 | H133: 0 | I133: 2116.211417 | J133: 8 | AE133: 3092.667526
A134: 456 | B134: PMG | C134: 3351 | D134: Electrico | E134: 13 | F134: 1850 | G134: 180673.1977 | H134: 8 | I134: 0 | J134: 0 | AE134: 22584.14971
A135: 456 | B135: PMG | C135: 3821 | D135: Electrico | E135: 13 | F135: 762 | G135: 35114.5 | H135: 9 | I135: 0 | J135: 0 | AE135: 3901.611111
A136: 458 | B136: PMG | C136: 10 | D136: Electrico | E136: 13 | F136: 2662 | G136: 183016.5 | H136: 11 | I136: 0 | J136: 0 | AE136: 16637.86364
A137: 458 | B137: PMG | C137: 17 | D137: Mixto | E137: 12 | F137: 150 | G137: 0 | H137: 0 | I137: 89158.66205 | J137: 10 | AE137: 9321.762511
A138: 458 | B138: PMG | C138: 2077 | D138: Electrico | E138: 1 | F138: 86 | G138: 4333.503448 | H138: 11 | I138: 0 | J138: 0 | AE138: 393.9548589
A139: 458 | B139: PMG | C139: 30 | D139: Electrico | E139: 5 | F139: 92 | G139: 5332.511853 | H139: 10 | I139: 0 | J139: 0 | AE139: 533.2511853
A140: 458 | B140: PMG | C140: 47 | D140: Electrico | E140: 8 | F140: 96 | G140: 2836.97619 | H140: 10 | I140: 0 | J140: 0 | AE140: 283.697619
A141: 458 | B141: PMG | C141: 1636 | D141: Electrico | E141: 11 | F141: 180 | G141: 4116.44181 | H141: 10 | I141: 0 | J141: 0 | AE141: 411.644181
A142: 458 | B142: PMG | C142: 892 | D142: Electrico | E142: 7 | F142: 56 | G142: 2108.137931 | H142: 10 | I142: 0 | J142: 0 | AE142: 210.8137931
A143: 458 | B143: PMG | C143: 670 | D143: Electrico | E143: 2 | F143: 115 | G143: 2160.388889 | H143: 10 | I143: 0 | J143: 0 | AE143: 216.0388889
A144: 458 | B144: PMG | C144: 3527 | D144: Electrico | E144: 15 | F144: 80 | G144: 3792.827586 | H144: 11 | I144: 0 | J144: 0 | AE144: 344.8025078
A145: 458 | B145: PMG | C145: 3528 | D145: Electrico | E145: 3 | F145: 115 | G145: 3546.133333 | H145: 9 | I145: 0 | J145: 0 | AE145: 394.0148148
A146: 458 | B146: PMG | C146: 3529 | D146: Electrico | E146: 4 | F146: 225 | G146: 3145.755556 | H146: 10 | I146: 0 | J146: 0 | AE146: 314.5755556
A147: 458 | B147: PMG | C147: 3530 | D147: Electrico | E147: 7 | F147: 40 | G147: 1129.303448 | H147: 10 | I147: 0 | J147: 0 | AE147: 112.9303448
A148: 458 | B148: PMG | C148: 3531 | D148: Electrico | E148: 7 | F148: 80 | G148: 2266.496552 | H148: 10 | I148: 0 | J148: 0 | AE148: 226.6496552
A149: 458 | B149: PMG | C149: 3532 | D149: Electrico | E149: 8 | F149: 54 | G149: 1082.691799 | H149: 10 | I149: 0 | J149: 0 | AE149: 108.2691799
A150: 458 | B150: PMG | C150: 3533 | D150: Electrico | E150: 9 | F150: 120 | G150: 4296.241379 | H150: 10 | I150: 0 | J150: 0 | AE150: 429.6241379
A151: 458 | B151: PMG | C151: 3534 | D151: Electrico | E151: 9 | F151: 60 | G151: 2 | H151: 2 | I151: 0 | J151: 0 | AE151: 1
A152: 458 | B152: PMG | C152: 3536 | D152: Electrico | E152: 10 | F152: 82 | G152: 2167.151786 | H152: 10 | I152: 0 | J152: 0 | AE152: 216.7151786
A153: 458 | B153: PMG | C153: 3537 | D153: Electrico | E153: 10 | F153: 82 | G153: 2994.4375 | H153: 10 | I153: 0 | J153: 0 | AE153: 299.44375
A154: 458 | B154: PMG | C154: 3538 | D154: Electrico | E154: 14 | F154: 103 | G154: 3007.964516 | H154: 10 | I154: 0 | J154: 0 | AE154: 300.7964516
A155: 458 | B155: PMG | C155: 3539 | D155: Electrico | E155: 14 | F155: 13 | G155: 4 | H155: 4 | I155: 0 | J155: 0 | AE155: 1
A156: 458 | B156: PMG | C156: 1791 | D156: Electrico | E156: 15 | F156: 78 | G156: 3112.310345 | H156: 11 | I156: 0 | J156: 0 | AE156: 282.9373041
A157: 459 | B157: PMG | C157: 488 | D157: Electrico | E157: 13 | F157: 1362 | G157: 149541.5 | H157: 11 | I157: 0 | J157: 0 | AE157: 13594.68182
A158: 460 | B158: PMG | C158: 2175 | D158: Electrico | E158: 13 | F158: 16668 | G158: 1926762.901 | H158: 12 | I158: 0 | J158: 0 | AE158: 160563.5751
A159: 460 | B159: PMG | C159: 2206 | D159: Electrico | E159: 13 | F159: 11002 | G159: 950946.8302 | H159: 12 | I159: 0 | J159: 0 | AE159: 79245.56918
A160: 461 | B160: PMG | C160: 4352 | D160: Electrico | E160: 10 | F160: 60 | G160: 2422.225562 | H160: 7 | I160: 0 | J160: 0 | AE160: 346.0322232
A161: 461 | B161: PMG | C161: 3088 | D161: Electrico | E161: 7 | F161: 132 | G161: 2286.938821 | H161: 5 | I161: 0 | J161: 0 | AE161: 457.3877642
A162: 461 | B162: PMG | C162: 3354 | D162: Electrico | E162: 1 | F162: 350 | G162: 4035.290323 | H162: 12 | I162: 0 | J162: 0 | AE162: 336.2741935
A163: 461 | B163: PMG | C163: 3105 | D163: Electrico | E163: 14 | F163: 115 | G163: 9404.125392 | H163: 8 | I163: 0 | J163: 0 | AE163: 1175.515674
A164: 461 | B164: PMG | C164: 3107 | D164: Electrico | E164: 8 | F164: 171 | G164: 7496.77037 | H164: 14 | I164: 0 | J164: 0 | AE164: 535.4835979
A165: 461 | B165: PMG | C165: 3113 | D165: Electrico | E165: 10 | F165: 340 | G165: 3591.419913 | H165: 7 | I165: 0 | J165: 0 | AE165: 513.0599876
A166: 461 | B166: PMG | C166: 3167 | D166: Electrico | E166: 11 | F166: 120 | G166: 3587.07837 | H166: 7 | I166: 0 | J166: 0 | AE166: 512.4397671
A167: 461 | B167: PMG | C167: 2934 | D167: Electrico | E167: 15 | F167: 390 | G167: 2949.685484 | H167: 12 | I167: 0 | J167: 0 | AE167: 245.8071237
A168: 461 | B168: PMG | C168: 2946 | D168: Electrico | E168: 3 | F168: 108 | G168: 3262.62069 | H168: 13 | I168: 0 | J168: 0 | AE168: 250.9708223
A169: 461 | B169: PMG | C169: 2204 | D169: Mixto | E169: 12 | F169: 90 | G169: 0 | H169: 0 | I169: 27637.9001 | J169: 5 | AE169: 5912.066339
A170: 461 | B170: PMG | C170: 2984 | D170: Electrico | E170: 2 | F170: 110 | G170: 6154.740741 | H170: 11 | I170: 0 | J170: 0 | AE170: 559.5218855
A171: 461 | B171: PMG | C171: 2217 | D171: Electrico | E171: 9 | F171: 174 | G171: 9328.806034 | H171: 9 | I171: 0 | J171: 0 | AE171: 1036.534004
A172: 461 | B172: PMG | C172: 3258 | D172: Electrico | E172: 8 | F172: 140 | G172: 27361.24138 | H172: 12 | I172: 0 | J172: 0 | AE172: 2280.103448
A173: 461 | B173: PMG | C173: 1223 | D173: Electrico | E173: 13 | F173: 30265 | G173: 563097.1818 | H173: 13 | I173: 0 | J173: 0 | AE173: 43315.16783
A174: 461 | B174: PMG | C174: 972 | D174: Mixto | E174: 5 | F174: 135 | G174: 0 | H174: 0 | I174: 2513.203724 | J174: 11 | AE174: 699.686232
A175: 461 | B175: PMG | C175: 4077 | D175: Electrico | E175: 4 | F175: 144 | G175: 3335.252874 | H175: 9 | I175: 0 | J175: 0 | AE175: 370.5836526
A176: 462 | B176: PMG | C176: 1074 | D176: Electrico | E176: 5 | F176: 197.1 | G176: 20092.03448 | H176: 12 | I176: 0 | J176: 0 | AE176: 1674.336207
A177: 462 | B177: PMG | C177: 1334 | D177: Electrico | E177: 13 | F177: 628 | G177: 25514.83333 | H177: 10 | I177: 0 | J177: 0 | AE177: 2551.483333
A178: 462 | B178: PMG | C178: 2929 | D178: Electrico | E178: 8 | F178: 830 | G178: 17800.05376 | H178: 11 | I178: 0 | J178: 0 | AE178: 1618.186706
A179: 462 | B179: PMG | C179: 2932 | D179: Mixto | E179: 12 | F179: 348 | G179: 0 | H179: 0 | I179: 134618.9621 | J179: 13 | AE179: 10685.11671
A180: 462 | B180: PMG | C180: 2947 | D180: Electrico | E180: 10 | F180: 409.2 | G180: 16931.42131 | H180: 10 | I180: 0 | J180: 0 | AE180: 1693.142131
A181: 462 | B181: PMG | C181: 645 | D181: Electrico | E181: 13 | F181: 5816 | G181: 469849.8874 | H181: 8 | I181: 0 | J181: 0 | AE181: 58731.23592
A182: 462 | B182: PMG | C182: 3726 | D182: Electrico | E182: 14 | F182: 275 | G182: 3286.273637 | H182: 1 | I182: 0 | J182: 0 | AE182: 3286.273637
A183: 462 | B183: PMG | C183: 659 | D183: Electrico | E183: 9 | F183: 400 | G183: 605.160178 | H183: 1 | I183: 0 | J183: 0 | AE183: 605.160178
A184: 462 | B184: PMG | C184: 671 | D184: Electrico | E184: 7 | F184: 300 | G184: 5760.931034 | H184: 7 | I184: 0 | J184: 0 | AE184: 822.9901478
A185: 462 | B185: PMG | C185: 684 | D185: Electrico | E185: 11 | F185: 270 | G185: 8056.287147 | H185: 12 | I185: 0 | J185: 0 | AE185: 671.3572623
A186: 462 | B186: PMG | C186: 699 | D186: Electrico | E186: 15 | F186: 150 | G186: 2635.517241 | H186: 10 | I186: 0 | J186: 0 | AE186: 263.5517241
A187: 462 | B187: PMG | C187: 707 | D187: Electrico | E187: 4 | F187: 232 | G187: 4134.747497 | H187: 9 | I187: 0 | J187: 0 | AE187: 459.4163886
A188: 462 | B188: PMG | C188: 3035 | D188: Electrico | E188: 6 | F188: 302 | G188: 11941.24138 | H188: 11 | I188: 0 | J188: 0 | AE188: 1085.567398
A189: 462 | B189: PMG | C189: 3819 | D189: Electrico | E189: 1 | F189: 254 | G189: 250.0533927 | H189: 1 | I189: 0 | J189: 0 | AE189: 250.0533927
A190: 462 | B190: PMG | C190: 3823 | D190: Electrico | E190: 3 | F190: 339 | G190: 7504.042269 | H190: 9 | I190: 0 | J190: 0 | AE190: 833.7824744
A191: 463 | B191: PMG | C191: 3073 | D191: Electrico | E191: 7 | F191: 150 | G191: 8149.387097 | H191: 10 | I191: 0 | J191: 0 | AE191: 814.9387097
A192: 463 | B192: PMG | C192: 3074 | D192: Mixto | E192: 8 | F192: 522 | G192: 0 | H192: 0 | I192: 36119.68125 | J192: 6 | AE192: 7194.12676
A193: 463 | B193: PMG | C193: 3075 | D193: Electrico | E193: 9 | F193: 321 | G193: 10694.82759 | H193: 10 | I193: 0 | J193: 0 | AE193: 1069.482759
A194: 463 | B194: PMG | C194: 3076 | D194: Electrico | E194: 14 | F194: 305 | G194: 7625.507331 | H194: 10 | I194: 0 | J194: 0 | AE194: 762.5507331
A195: 463 | B195: PMG | C195: 3077 | D195: Electrico | E195: 10 | F195: 312 | G195: 8243.678495 | H195: 10 | I195: 0 | J195: 0 | AE195: 824.3678495
A196: 463 | B196: PMG | C196: 3078 | D196: Electrico | E196: 11 | F196: 420 | G196: 9603.605376 | H196: 10 | I196: 0 | J196: 0 | AE196: 960.3605376
A197: 463 | B197: PMG | C197: 3079 | D197: Mixto | E197: 12 | F197: 400 | G197: 0 | H197: 0 | I197: 147468.348 | J197: 9 | AE197: 17007.61019
A198: 463 | B198: PMG | C198: 2979 | D198: Electrico | E198: 13 | F198: 2208 | G198: 143784.375 | H198: 10 | I198: 0 | J198: 0 | AE198: 14378.4375
A199: 463 | B199: PMG | C199: 759 | D199: Electrico | E199: 15 | F199: 75 | G199: 5667.413793 | H199: 8 | I199: 0 | J199: 0 | AE199: 708.4267241
A200: 463 | B200: PMG | C200: 3065 | D200: Electrico | E200: 1 | F200: 403 | G200: 5797.448276 | H200: 10 | I200: 0 | J200: 0 | AE200: 579.7448276
... 2781 more rows

Sheet Rep_glob1
B1: Servicio: | C1: Junta Nacional de Jardines Infantiles | H1: Caso de Éxito: implementación en Eficiencia Energética | N1: 9 | O1: 10 | P1: 11 | Q1: 12 | R1: 13 | AC1: Matriz "Calculo_edificios" | AH1: meses completos | AJ1: meses completos
A2: REPORTE: Información Global del Servicio | H2: Mejoramiento térmico en edificio Teletón RM | AC2: id servicio | AD2: servicio pmg | AE2: id edificio | AF2: tipo_ed | AG2: superficie | AH2: cons electrico | AI2: meses | AJ2: cons electrico | AK2: cons gn | AL2: meses | AM2: consumo promedio mens | AN2: cons elect+gn servicio 2017
B3: Reporte generado al 15-03-2018
F5: Tu Servicio | G5: Todos los servicios
B6: Cantidad de edificios registrados | E6: n° | F6: 39 | G6: 2577
C7: Solo Electricidad | E7: n° | F7: 37 | G7: 2426
C8: Mixtos (Electricidad y GN) | E8: n° | F8: 2 | G8: 151
B9: Superficie total registrada | E9: m2 | F9: 21605 | G9: 1759357.66
C10: Solo Electricidad | E10: m2 | F10: 16715 | G10: 1503313.66 | AA10: 0 - 500 kWh
C11: Mixtos (Electricidad y GN) | E11: m2 | F11: 4890 | G11: 256044 | AA11: 500 - 1.000 kWh
AA12: 1.000 - 5.000 kWh
AA13: 5.000 - 10.000 kWh
AA14: 10.000 - 50.000 kWh
AA16: 50.000 - 100.000 kWh
AA17: 100.000 - 500.000 kWh
AA18: 500.000 o más kWh
B25: Información global: | F25: 2017 | G25: 2018 (Ene - Jul)
B26: Emisiones Totales estimadas | E26: tonCO2/año
B27: Gasto Total estimado | E27: MM$/año
B28: Consumo Total | E28: kWh/año
B29: Consumo Electricidad | E29: kWh/año
B30: Consumo Gas natural | E30: kWh/año
E31: kWh/año
E32: kWh/año
E33: kWh/año
E34: kWh/año
E35: kWh/año
E36: kWh/año
E37: kWh/año
E38: kWh/año
E39: kWh/año
E40: kWh/año
B43: Nota: solo se consideran edificios que reportan al PMG | G43: Página 1 de 2 | M43: Página 2 de 2
C46: Tu Servicio | D46: Todos los servicios
B47: Todos los edificios | C47: 47174.27837 | D47: 47818.42217 | E47: kWh/edificio/año
B48: Ed. Solo Electricidad | C48: 30351.82782 | D48: 33886.98109 | E48: kWh/edificio/año
B49: Ed. Mixtos | C49: 358389.6135 | D49: 272227.5811 | E49: kWh/edificio/año
B50: Todos los edificios | C50: 68.32337882 | D50: 80.43172286 | E50: kWh/m2/año
B51: Ed. Solo Electricidad | C51: 56.73983958 | D51: 62.12128031 | E51: kWh/m2/año
B52: Ed. Mixtos | C52: 282.6188548 | D52: 375.378311 | E52: kWh/m2/año
B53: Todos los edificios | C53: 27.90100001 | D53: 31.66233183 | E53: tonCO2/m2/año
B54: Ed. Solo Electricidad | C54: 25.84499693 | D54: 28.29624318 | E54: tonCO2/m2/año
B55: Ed. Mixtos | C55: 65.93705702 | D55: 85.88365165 | E55: tonCO2/m2/año
B57: Emisiones Totales estimadas | D57: 50 | E57: ton CO2/año
B58: Emisiones electricidad | C58: Electricidad | D58: 30 | E58: ton CO2/año
B59: Emisiones Gas natural | C59: Gas natural | D59: 20 | E59: ton CO2/año
B60: Gasto Total estimado | D60: 40 | E60: MM$/año
B61: Gasto de electricidad | C61: Electricidad | D61: 10 | E61: MM$/año
B62: Gasto de GN | C62: Gas natural | D62: 50 | E62: MM$/año
B67: precio medio gn metrogas año 2017
B68: 39872 | C68: 58 | D68: =B68/C68 -> 687.4482759 | E68: $/m3
B69: precio gn= | C69: =F68*J68 -> 0 | D69: $/kWh
B71: Gas Natural | C71: 56100 | D71: kg/TJ | E71: Factor Emisión por combustión IPCC 2006
C72: =C71*0.9 -> 50490 | D72: kg/TJ @pci
C73: 4.184 | D73: J/cal
C74: =C72*C73 -> 211250.16 | D74: kg/Tcal
C75: 860 | D75: kcal/kwh
C76: =((C74/1000)/1000000000)*C75 -> 0.0001816751376 | D76: ton/kwh | E76: femision GN
B79: =(52901*0.346+18797*0.764)/(52901+18797) -> 0.455586683 | C79: ton/MWh | D79: 0,764 TonCO2/MWh en SING y 0,346 TonCO2/MWh en SIC el 2015 (huella carbono minenergia). GxSIC_2015= 52901 GWh y GxSING_2015= 18797 GWh
B80: =B79/1000 -> 0.000455586683 | C80: ton/kwh | D80: femision electricidad
B283: id | C283: cons promedio | D283: gasto | E283: emisiones
C284: kwh/mes | D284: $/mes | E284: co2/mes
B285: 100 | C285: 10000
B286: 101 | C286: 10000
B287: 102 | C287: 10000
B288: 103 | C288: 10000
B289: 104 | C289: 10000
B290: 105 | C290: 10000
B291: 106 | C291: 10000
B292: 107 | C292: 10000
B293: 108 | C293: 10000
B294: 109 | C294: 10000
B295: 110 | C295: 10000
B296: 111 | C296: 10000
B297: 112 | C297: 10000
B298: 113 | C298: 10000
B299: 114 | C299: 10000
B300: 115 | C300: 10000
B301: 116 | C301: 10000
B302: 117 | C302: 10000
B303: 118 | C303: 10000
B304: 119 | C304: 10000
B305: 120 | C305: 10000
B306: 121 | C306: 10000
B307: 122 | C307: 10000
B308: 123 | C308: 10000
B309: 124 | C309: 10000
B310: 125 | C310: 10000
B311: 126 | C311: 10000
B312: 127 | C312: 10000
B313: 128 | C313: 10000
B314: 129 | C314: 10000
B315: 130 | C315: 10000
B316: 131 | C316: 10000
B317: 132 | C317: 10000
B318: 133 | C318: 10000
B319: 134 | C319: 10000
B320: 135 | C320: 10000
B321: 136 | C321: 10000
B322: 137 | C322: 10000
B323: 138 | C323: 10000
B324: 139 | C324: 10000
B325: 140 | C325: 10000
B326: 141 | C326: 10000
B327: 142 | C327: 10000
B328: 143 | C328: 10000
B329: 144 | C329: 10000
B330: 145 | C330: 10000
B331: 146 | C331: 10000
B332: 147 | C332: 10000
B333: 148 | C333: 10000
B334: 149 | C334: 10000
B335: 150 | C335: 10000
B336: 151 | C336: 10000
B337: 152 | C337: 10000
B338: 153 | C338: 10000
B339: 154 | C339: 10000
B340: 155 | C340: 10000
B341: 156 | C341: 10000
B342: 157 | C342: 10000
B343: 158 | C343: 10000
B344: 159 | C344: 10000
B345: 160 | C345: 10000
B346: 161 | C346: 10000
B347: 162 | C347: 10000
B348: 163 | C348: 10000
B349: 164 | C349: 10000
B350: 165 | C350: 10000
B351: 166 | C351: 10000
B352: 167 | C352: 10000
B353: 168 | C353: 10000
B354: 169 | C354: 10000
B355: 170 | C355: 10000
B356: 171 | C356: 10000
B357: 172 | C357: 10000
B358: 173 | C358: 10000
B359: 174 | C359: 10000
B360: 175 | C360: 10000
B361: 176 | C361: 10000
B362: 177 | C362: 10000
B363: 178 | C363: 10000
B364: 179 | C364: 10000
B365: 180 | C365: 10000
B366: 181 | C366: 10000
B367: 182 | C367: 10000
B368: 183 | C368: 10000
B369: 184 | C369: 10000
B370: 185 | C370: 10000
B371: 186 | C371: 10000
B372: 187 | C372: 10000
B373: 188 | C373: 10000
B374: 189 | C374: 10000
B375: 190 | C375: 10000
B376: 191 | C376: 10000
B377: 192 | C377: 10000
B378: 193 | C378: 10000
B379: 194 | C379: 10000
B380: 195 | C380: 10000
B381: 196 | C381: 10000
B382: 197 | C382: 10000
B383: 198 | C383: 10000
B384: 199 | C384: 10000
B385: 200 | C385: 10000
B386: 201 | C386: 10000
B387: 202 | C387: 10000
B388: 203 | C388: 10000
B389: 204 | C389: 10000
B390: 205 | C390: 10000
B391: 206 | C391: 10000
B392: 207 | C392: 10000
B393: 208 | C393: 10000
B394: 209 | C394: 10000
B395: 210 | C395: 10000
B396: 211 | C396: 10000
B397: 212 | C397: 10000
B398: 213 | C398: 10000
B399: 214 | C399: 10000
B400: 215 | C400: 10000
B401: 216 | C401: 10000
B402: 217 | C402: 10000
B403: 218 | C403: 10000
B404: 219 | C404: 10000
B405: 220 | C405: 10000
B406: 221 | C406: 10000
B407: 222 | C407: 10000
B408: 223 | C408: 10000
B409: 224 | C409: 10000
B410: 225 | C410: 10000
B411: 226 | C411: 10000
B412: 227 | C412: 10000
B413: 228 | C413: 10000
B414: 229 | C414: 10000
B415: 230 | C415: 10000
B416: 231 | C416: 10000
B417: 232 | C417: 10000
B418: 233 | C418: 10000
B419: 234 | C419: 10000
B420: 235 | C420: 10000
B421: 236 | C421: 10000
B422: 237 | C422: 10000
... 263 more rows

Sheet Resumen_Glob
A1: ID servicio | B1: Servicio | C1: N°Edificios Totales que reportan o con medido exclusivo | D1: N°Edificios: Electricos | E1: N°Edificios: Mixtos | F1: Superficie Total | G1: Superficie Eléctricos | H1: Superficie Mixto | I1: Consumo Electricidad kwh/año | J1: Consumo GN kwh/año | K1: Consumo Electricidad y GN kwh/año | L1: Emisiones totales TonCO2/año | M1: Gasto Total MM$ | N1: Consumo medio Todos kwh/edificio/año | O1: Consumo medio electricos kwh/edificio/año | P1: Consumo medio mixtos kwh/edificio/año | Q1: Int media todos kwh/m2/año | R1: Int media electricos kwh/m2/año | S1: Int media mixtos kwh/m2/año | T1: Int emis media todos kwh/m2/año | U1: Int emis media electricos kwh/m2/año | V1: Int emis media mixtos kwh/m2/año
A2: todos PMG | B2: todos PMG | C2: 2577 | D2: 2426 | E2: 151 | F2: 1759357.66 | G2: 1503313.66 | H2: 256044 | I2: 101132072 | J2: 19944172.88 | K2: 121076244.9 | L2: 49689.51503 | M2: 14369.39711 | N2: 47818.42217 | O2: 33886.98109 | P2: 272227.5811 | Q2: 80.43172286 | R2: 62.12128031 | S2: 375.378311 | T2: 31.66233183 | U2: 28.29624318 | V2: 85.88365165
A3: 376 | B3: Junta Nacional de Jardines Infantiles | C3: 39 | D3: 37 | E3: 2 | F3: 21605 | G3: 16715 | H3: 4890 | I3: 1393738.437 | J3: 446058.4197 | K3: 1839796.856 | L3: 715.8966727 | M3: 197.7639426 | N3: 47174.27837 | O3: 30351.82782 | P3: 358389.6135 | Q3: 68.32337882 | R3: 56.73983958 | S3: 282.6188548 | T3: 27.90100001 | U3: 25.84499693 | V3: 65.93705702
A4: 437 | B4: Presidencia de la República | C4: 1 | D4: 0 | E4: 1 | F4: 4165 | G4: 0 | H4: 4165 | I4: 151217.2291 | J4: 147436.1568 | K4: 298653.3859 | L4: 95.66859753 | M4: 36.58806907 | N4: 298653.3859 | O4: - | P4: 298653.3859 | Q4: 71.70549481 | R4: - | S4: 71.70549481 | T4: 22.96965127 | U4: - | V4: 22.96965127
A5: 446 | B5: Subsecretaría de Bienes Nacionales | C5: 18 | D5: 16 | E5: 2 | F5: 16969 | G5: 10980 | H5: 5989 | I5: 1027619.998 | J5: 164441.49 | K5: 1192061.488 | L5: 497.9599279 | M5: 140.3556706 | N5: 66225.63823 | O5: 24013.4272 | P5: 403923.3265 | Q5: 63.07155193 | R5: 41.09609642 | S5: 238.875196 | T5: 23.73696667 | U5: 18.71927192 | V5: 63.87852463
A6: 447 | B6: Secretaría y Administración General Min. Minería | C6: 6 | D6: 5 | E6: 1 | F6: 3073 | G6: 2723 | H6: 350 | I6: 145283.0873 | J6: 109471.4214 | K6: 254754.5087 | L6: 86.06740352 | M6: 19.85431209 | N6: 42459.08478 | O6: 28035.24019 | P6: 114578.3077 | Q6: 86.44960657 | R6: 38.26620919 | S6: 327.3665935 | T6: 25.10480762 | U6: 17.43025829 | V6: 63.47755426
A7: 448 | B7: Comisión Chilena del Cobre | C7: 1 | D7: 1 | E7: 0 | F7: 1058 | G7: 1058 | H7: 0 | I7: 175834.7917 | J7: 0 | K7: 175834.7917 | L7: 80.0927476 | M7: 21.72210236 | N7: 175834.7917 | O7: 175834.7917 | P7: - | Q7: 166.1954553 | R7: 166.1954553 | S7: - | T7: 75.70202987 | U7: 75.70202987 | V7: -
A8: 449 | B8: Servicio Nacional de Geología y Minería | C8: 21 | D8: 19 | E8: 2 | F8: 15911 | G8: 12967 | H8: 2944 | I8: 1290673.305 | J8: 153735.713 | K8: 1444409.018 | L8: 615.8354696 | M8: 178.3668189 | N8: 72220.45092 | O8: 47357.77264 | P8: 295984.5554 | Q8: 93.13591637 | R8: 54.39747697 | S8: 441.781871 | T8: 32.89655202 | U8: 24.77805076 | V8: 105.9630634
A9: 450 | B9: Secretaría y Administración General de Transportes | C9: 23 | D9: 23 | E9: 0 | F9: 9826 | G9: 9826 | H9: 0 | I9: 1831366.06 | J9: 0 | K9: 1831366.06 | L9: 834.1872401 | M9: 241.8446189 | N9: 79624.61128 | O9: 79624.61128 | P9: - | Q9: 173.3771225 | R9: 173.3771225 | S9: - | T9: 78.97327928 | U9: 78.97327928 | V9: -
A10: 451 | B10: Subsecretaría de Telecomunicaciones | C10: 6 | D10: 6 | E10: 0 | F10: 3365 | G10: 3365 | H10: 0 | I10: 141163.3962 | J10: 0 | K10: 141163.3962 | L10: 64.29992698 | M10: 18.4576818 | N10: 28232.67925 | O10: 28232.67925 | P10: - | Q10: 41.72804418 | R10: 41.72804418 | S10: - | T10: 19.00712412 | U10: 19.00712412 | V10: -
A11: 452 | B11: Junta de Aeronáutica Civil | C11: 1 | D11: 1 | E11: 0 | F11: 520 | G11: 520 | H11: 0 | I11: 36128 | J11: 0 | K11: 36128 | L11: 16.456304 | M11: 4.463144674 | N11: 36128 | O11: 36128 | P11: - | Q11: 69.47692308 | R11: 69.47692308 | S11: - | T11: 31.64673846 | U11: 31.64673846 | V11: -
A12: 453 | B12: Secretaría General de Gobierno | C12: 14 | D12: 14 | E12: 0 | F12: 4711 | G12: 4711 | H12: 0 | I12: 171631.319 | J12: 0 | K12: 171631.319 | L12: 78.17806582 | M12: 23.26032734 | N12: 13202.40916 | O12: 13202.40916 | P12: - | Q12: 37.91961477 | R12: 37.91961477 | S12: - | T12: 17.27238453 | U12: 17.27238453 | V12: -
A13: 454 | B13: Consejo Nacional de Televisión | C13: 2 | D13: 0 | E13: 2 | F13: 1451 | G13: 0 | H13: 1451 | I13: 151265.3447 | J13: 80644.81368 | K13: 231910.1584 | L13: 83.55452715 | M13: 23.62493581 | N13: 115955.0792 | O13: - | P13: 115955.0792 | Q13: 138.9663503 | R13: - | S13: 138.9663503 | T13: 51.47136847 | U13: - | V13: 51.47136847
A14: 456 | B14: Secretaría General de la Presidencia de la República | C14: 2 | D14: 2 | E14: 0 | F14: 2612 | G14: 2612 | H14: 0 | I14: 317829.1299 | J14: 0 | K14: 317829.1299 | L14: 144.7711687 | M14: 39.26365668 | N14: 158914.5649 | O14: 158914.5649 | P14: - | Q14: 103.9672383 | R14: 103.9672383 | S14: - | T14: 47.35707704 | U14: 47.35707704 | V14: -
A15: 458 | B15: Subsecretaría de Energía | C15: 21 | D15: 20 | E15: 1 | F15: 4569 | G15: 4419 | H15: 150 | I15: 265511.0322 | J15: 106990.3945 | K15: 372501.4266 | L15: 140.3804298 | M15: 35.53074461 | N15: 17738.16317 | O15: 13032.01383 | P15: 111861.1501 | Q15: 70.26823871 | R15: 36.4946006 | S15: 745.7410008 | T15: 22.70750971 | U15: 16.62329057 | V15: 144.3918925
A16: 459 | B16: Comisión Nacional de Energía | C16: 1 | D16: 1 | E16: 0 | F16: 1362 | G16: 1362 | H16: 0 | I16: 163136.1818 | J16: 0 | K16: 163136.1818 | L16: 74.30853082 | M16: 20.15335422 | N16: 163136.1818 | O16: 163136.1818 | P16: - | Q16: 119.7769323 | R16: 119.7769323 | S16: - | T16: 54.55839267 | U16: 54.55839267 | V16: -
A17: 460 | B17: Comisión Chilena de Energía Nuclear | C17: 2 | D17: 2 | E17: 0 | F17: 27670 | G17: 27670 | H17: 0 | I17: 2877709.731 | J17: 0 | K17: 2877709.731 | L17: 1310.796783 | M17: 355.5036222 | N17: 1438854.866 | O17: 1438854.866 | P17: - | Q17: 101.0152615 | R17: 101.0152615 | S17: - | T17: 46.01245159 | U17: 46.01245159 | V17: -
A18: 461 | B18: Superintendencia de Electricidad y Combustibles | C18: 16 | D18: 14 | E18: 2 | F18: 32844 | G18: 32619 | H18: 225 | I18: 633486.9775 | J18: 69072.63704 | K18: 702559.6146 | L18: 301.1038164 | M18: 83.26161393 | N18: 43909.97591 | O18: 44515.61312 | P18: 39670.51543 | Q18: 100.8653275 | R18: 54.52681405 | S18: 425.2349218 | T18: 32.98452869 | U18: 24.8369638 | V18: 90.01748288
A19: 462 | B19: Subsecretaría del Medio Ambiente | C19: 15 | D19: 14 | E19: 1 | F19: 10750.3 | G19: 10402.3 | H19: 348 | I19: 898516.1861 | J19: 124263.6573 | K19: 1022779.843 | L19: 431.8528293 | M19: 118.157923 | N19: 68185.32289 | O19: 63897.03163 | P19: 128221.4006 | Q19: 71.13300541 | R19: 49.8959129 | S19: 368.4523004 | T19: 25.88319328 | U19: 22.72758833 | V19: 70.06166258
A20: 463 | B20: Servicio de Evaluación Ambiental | C20: 14 | D20: 12 | E20: 2 | F20: 6231 | G20: 5309 | H20: 922 | I20: 312271.2117 | J20: 268863.8264 | K20: 581135.0381 | L20: 191.0920942 | M20: 50.46588984 | N20: 41509.64558 | O20: 24226.1829 | P20: 145210.4217 | Q20: 92.80332923 | R20: 51.96967326 | S20: 337.805265 | T20: 29.95187978 | U20: 23.67218617 | V20: 67.63004148
A21: 464 | B21: Superintendencia del Medio Ambiente | C21: 1 | D21: 1 | E21: 0 | F21: 2064 | G21: 2064 | H21: 0 | I21: 111161.5799 | J21: 0 | K21: 111161.5799 | L21: 50.63409966 | M21: 13.73256791 | N21: 111161.5799 | O21: 111161.5799 | P21: - | Q21: 53.85735462 | R21: 53.85735462 | S21: - | T21: 24.53202503 | U21: 24.53202503 | V21: -
A22: 466 | B22: Instituto Nacional de Deportes | C22: 12 | D22: 11 | E22: 1 | F22: 9559 | G22: 9234 | H22: 325 | I22: 520119.2555 | J22: 29131.38631 | K22: 549250.6418 | L22: 242.2074938 | M22: 71.08528567 | N22: 45770.88682 | O22: 43111.94614 | P22: 75019.23427 | Q22: 59.53619024 | R22: 43.96416998 | S22: 230.8284131 | T22: 25.07356194 | U22: 20.02567942 | V22: 80.60026965
A23: 467 | B23: Secretaría y Administración General y Servicio Exterior | C23: 1 | D23: 1 | E23: 0 | F23: 4408 | G23: 4408 | H23: 0 | I23: 148416.7351 | J23: 0 | K23: 148416.7351 | L23: 67.60382283 | M23: 18.33495795 | N23: 148416.7351 | O23: 148416.7351 | P23: - | Q23: 33.66985823 | R23: 33.66985823 | S23: - | T23: 15.33662043 | U23: 15.33662043 | V23: -
A24: 468 | B24: Dirección General de Relaciones Económicas Internacionales | C24: 16 | D24: 16 | E24: 0 | F24: 4468 | G24: 4468 | H24: 0 | I24: 309909.6633 | J24: 0 | K24: 309909.6633 | L24: 141.1638516 | M24: 41.81089885 | N24: 20660.64422 | O24: 20660.64422 | P24: - | Q24: 49.58610255 | R24: 49.58610255 | S24: - | T24: 22.58646971 | U24: 22.58646971 | V24: -
A25: 469 | B25: Dirección de Fronteras y Límites del Estado | C25: 1 | D25: 1 | E25: 0 | F25: 186 | G25: 186 | H25: 0 | I25: 20780.57143 | J25: 0 | K25: 20780.57143 | L25: 9.465550286 | M25: 2.567169417 | N25: 20780.57143 | O25: 20780.57143 | P25: - | Q25: 111.7235023 | R25: 111.7235023 | S25: - | T25: 50.8900553 | U25: 50.8900553 | V25: -
A26: 470 | B26: Instituto Antártico Chileno | C26: 2 | D26: 0 | E26: 2 | F26: 2337 | G26: 0 | H26: 2337 | I26: 189746.7691 | J26: 685840.8646 | K26: 875587.6336 | L26: 211.0469384 | M26: 29.43322088 | N26: 437793.8168 | O26: - | P26: 437793.8168 | Q26: 395.1313461 | R26: - | S26: 395.1313461 | T26: 105.7407504 | U26: - | V26: 105.7407504
A27: 491 | B27: Servicio de Gobierno Interior | C27: 56 | D27: 52 | E27: 4 | F27: 49937 | G27: 47213 | H27: 2724 | I27: 1432038.668 | J27: 707262.1649 | K27: 2139300.833 | L27: 780.8031488 | M27: 219.0047161 | N27: 38896.37879 | O27: 26104.73279 | P27: 201989.8653 | Q27: 65.19939469 | R27: 42.41018584 | S27: 355.7618075 | T27: 23.2160392 | U27: 19.31783965 | V27: 72.91808348
A28: 493 | B28: Oficina Nacional de Emergencia | C28: 15 | D28: 13 | E28: 2 | F28: 11571 | G28: 4970 | H28: 6601 | I28: 1517778.404 | J28: 224698.3332 | K28: 1742476.737 | L28: 732.1757501 | M28: 201.691175 | N28: 116165.1158 | O28: 34471.77494 | P28: 647171.8314 | Q28: 138.2535297 | R28: 111.5480107 | S28: 311.8394033 | T28: 55.54706523 | U28: 50.81011889 | V28: 86.33721645
A29: 494 | B29: Subsecretaría de Desarrollo Regional y Administrativo | C29: 9 | D29: 8 | E29: 1 | F29: 1531 | G29: 1218 | H29: 313 | I29: 55041.59135 | J29: 120181.4226 | K29: 175223.0139 | L29: 46.90840934 | M29: 9.413998062 | N29: 19469.22377 | O29: 6247.436617 | P29: 125243.521 | Q29: 90.94183552 | R29: 52.29218437 | S29: 400.1390446 | T29: 29.74290082 | U29: 23.81908998 | V29: 77.13338756
A30: 496 | B30: Subsecretaría de Prevención del Delito | C30: 26 | D30: 25 | E30: 1 | F30: 5465 | G30: 5193 | H30: 272 | I30: 306502.045 | J30: 149283.1245 | K30: 455785.1695 | L30: 166.7364252 | M30: 45.90411212 | N30: 17530.19883 | O30: 11880.03277 | P30: 158784.3503 | Q30: 79.61575546 | R30: 59.44974593 | S30: 583.7659938 | T30: 30.48532171 | U30: 27.07935927 | V30: 115.6343826
A31: 500 | B31: Servicio Nacional para Prevención y Rehabilitación Consumo de Drogas y Alcohol | C31: 15 | D31: 14 | E31: 1 | F31: 5325 | G31: 5125 | H31: 200 | I31: 214533.0312 | J31: 104823.7538 | K31: 319356.785 | L31: 116.7662718 | M31: 30.97753589 | N31: 21290.45233 | O31: 14855.64407 | P31: 111377.768 | Q31: 69.94499298 | R31: 35.16328961 | S31: 556.8888402 | T31: 22.29302971 | U31: 16.01687842 | V31: 110.1591478
A32: 501 | B32: Subsecretaría del Interior | C32: 5 | D32: 5 | E32: 0 | F32: 4758 | G32: 4758 | H32: 0 | I32: 456249.7961 | J32: 0 | K32: 456249.7961 | L32: 207.8217821 | M32: 56.36373028 | N32: 91249.95921 | O32: 91249.95921 | P32: - | Q32: 130.5799735 | R32: 130.5799735 | S32: - | T32: 59.47917794 | U32: 59.47917794 | V32: -
A33: 502 | B33: Gobierno Regional Región I Tarapacá | C33: 1 | D33: 1 | E33: 0 | F33: 1125 | G33: 1125 | H33: 0 | I33: 108049.6552 | J33: 0 | K33: 108049.6552 | L33: 49.21661793 | M33: 14.39915469 | N33: 108049.6552 | O33: 108049.6552 | P33: - | Q33: 96.04413793 | R33: 96.04413793 | S33: - | T33: 43.74810483 | U33: 43.74810483 | V33: -
A34: 504 | B34: Gobierno Regional Región III Atacama | C34: 1 | D34: 1 | E34: 0 | F34: 1730 | G34: 1730 | H34: 0 | I34: 82458.45517 | J34: 0 | K34: 82458.45517 | L34: 37.55982633 | M34: 12.07148091 | N34: 82458.45517 | O34: 82458.45517 | P34: - | Q34: 47.66384692 | R34: 47.66384692 | S34: - | T34: 21.71088227 | U34: 21.71088227 | V34: -
A35: 505 | B35: Gobierno Regional Región IV Coquimbo | C35: 1 | D35: 1 | E35: 0 | F35: 525 | G35: 525 | H35: 0 | I35: 20366.9997 | J35: 0 | K35: 20366.9997 | L35: 9.277168362 | M35: 3.208157977 | N35: 20366.9997 | O35: 20366.9997 | P35: - | Q35: 38.79428514 | R35: 38.79428514 | S35: - | T35: 17.67079688 | U35: 17.67079688 | V35: -
A36: 506 | B36: Gobierno Regional Región V Valparaíso | C36: 1 | D36: 1 | E36: 0 | F36: 351 | G36: 351 | H36: 0 | I36: 14539.41439 | J36: 0 | K36: 14539.41439 | L36: 6.622703256 | M36: 2.356524494 | N36: 14539.41439 | O36: 14539.41439 | P36: - | Q36: 41.42283303 | R36: 41.42283303 | S36: - | T36: 18.86810044 | U36: 18.86810044 | V36: -
A37: 507 | B37: Gobierno Regional Región VI Libertador General Bernardo OHiggins | C37: 1 | D37: 1 | E37: 0 | F37: 648 | G37: 648 | H37: 0 | I37: 73082.90302 | J37: 0 | K37: 73082.90302 | L37: 33.28926232 | M37: 10.12765333 | N37: 73082.90302 | O37: 73082.90302 | P37: - | Q37: 112.7822577 | R37: 112.7822577 | S37: - | T37: 51.3723184 | U37: 51.3723184 | V37: -
A38: 508 | B38: Gobierno Regional Región VII Maule | C38: 3 | D38: 3 | E38: 0 | F38: 364 | G38: 364 | H38: 0 | I38: 8623.226935 | J38: 0 | K38: 8623.226935 | L38: 3.927879869 | M38: 1.335941048 | N38: 2874.408978 | O38: 2874.408978 | P38: - | Q38: 23.281117 | R38: 23.281117 | S38: - | T38: 10.6045488 | U38: 10.6045488 | V38: -
A39: 511 | B39: Gobierno Regional Región X Los lagos | C39: 3 | D39: 3 | E39: 0 | F39: 454 | G39: 454 | H39: 0 | I39: 24608.30512 | J39: 0 | K39: 24608.30512 | L39: 11.20908298 | M39: 4.173130958 | N39: 8202.768373 | O39: 8202.768373 | P39: - | Q39: 63.22007674 | R39: 63.22007674 | S39: - | T39: 28.79674496 | U39: 28.79674496 | V39: -
A40: 512 | B40: Gobierno Regional Región XI Aysén del Gral. Carlos Ibáñez del Campo | C40: 1 | D40: 1 | E40: 0 | F40: 2601 | G40: 2601 | H40: 0 | I40: 133600.9091 | J40: 0 | K40: 133600.9091 | L40: 60.85521409 | M40: 22.98748972 | N40: 133600.9091 | O40: 133600.9091 | P40: - | Q40: 51.36520919 | R40: 51.36520919 | S40: - | T40: 23.39685278 | U40: 23.39685278 | V40: -
A41: 513 | B41: Gobierno Regional Región XII Magallanes y Antártica Chilena | C41: 1 | D41: 0 | E41: 1 | F41: 192 | G41: 0 | H41: 192 | I41: 7170.537634 | J41: 123529.2168 | K41: 130699.7544 | L41: 25.71143859 | M41: 2.011624334 | N41: 130699.7544 | O41: - | P41: 130699.7544 | Q41: 680.7278877 | R41: - | S41: 680.7278877 | T41: 133.9137426 | U41: - | V41: 133.9137426
A42: 515 | B42: Gobierno Regional Región XIV Los Ríos | C42: 2 | D42: 2 | E42: 0 | F42: 3027 | G42: 3027 | H42: 0 | I42: 198249.6399 | J42: 0 | K42: 198249.6399 | L42: 90.30271097 | M42: 33.44300741 | N42: 99124.81994 | O42: 99124.81994 | P42: - | Q42: 54.46152442 | R42: 54.46152442 | S42: - | T42: 24.80722437 | U42: 24.80722437 | V42: -
A43: 525 | B43: Subsecretaría de Economía y Empresas de Menor Tamaño | C43: 15 | D43: 15 | E43: 0 | F43: 7935 | G43: 7935 | H43: 0 | I43: 559232.6043 | J43: 0 | K43: 559232.6043 | L43: 254.7304512 | M43: 70.46727553 | N43: 37282.17362 | O43: 37282.17362 | P43: - | Q43: 42.36782903 | R43: 42.36782903 | S43: - | T43: 19.29854612 | U43: 19.29854612 | V43: -
A44: 526 | B44: Servicio Nacional del Consumidor | C44: 14 | D44: 14 | E44: 0 | F44: 4388 | G44: 4388 | H44: 0 | I44: 206150.6001 | J44: 0 | K44: 206150.6001 | L44: 93.90159834 | M44: 27.55922217 | N44: 15857.73847 | O44: 15857.73847 | P44: - | Q44: 42.79885598 | R44: 42.79885598 | S44: - | T44: 19.4948789 | U44: 19.4948789 | V44: -
A45: 527 | B45: Subsecretaría de Pesca y Acuicultura | C45: 9 | D45: 7 | E45: 2 | F45: 5914.1 | G45: 3957.1 | H45: 1957 | I45: 233676.8805 | J45: 179201.9502 | K45: 412878.8307 | L45: 139.0008134 | M45: 39.38439677 | N45: 45875.42563 | O45: 28764.53096 | P45: 105763.557 | Q45: 121.035551 | R45: 35.81427296 | S45: 419.310024 | T45: 30.80113641 | U45: 16.31340134 | V45: 81.50820919
A46: 528 | B46: Servicio Nacional de Pesca y Acuicultura | C46: 49 | D46: 45 | E46: 4 | F46: 14038 | G46: 10144 | H46: 3894 | I46: 959684.8143 | J46: 543151.0789 | K46: 1502835.893 | L46: 535.8269839 | M46: 171.1284468 | N46: 30670.12027 | O46: 11222.09105 | P46: 249460.449 | Q46: 90.81943241 | R46: 52.24766956 | S46: 524.7517644 | T46: 31.39545132 | U46: 23.79881349 | V46: 116.8576269
A47: 529 | B47: Corporación de Fomento de la Producción | C47: 20 | D47: 18 | E47: 2 | F47: 22809 | G47: 7209 | H47: 15600 | I47: 1715278.197 | J47: 866284.8252 | K47: 2581563.022 | L47: 938.7131715 | M47: 271.6240207 | N47: 129078.1511 | O47: 21474.45485 | P47: 1097511.418 | Q47: 58.28967512 | R47: 49.13223991 | S47: 140.706592 | T47: 25.03050609 | U47: 22.37973528 | V47: 48.88744335
A48: 533 | B48: Fiscalía Nacional Económica | C48: 1 | D48: 1 | E48: 0 | F48: 1817 | G48: 1817 | H48: 0 | I48: 72273.82576 | J48: 0 | K48: 72273.82576 | L48: 32.92072763 | M48: 8.928491489 | N48: 72273.82576 | O48: 72273.82576 | P48: - | Q48: 39.77645886 | R48: 39.77645886 | S48: - | T48: 18.11817701 | U48: 18.11817701 | V48: -
A49: 534 | B49: Servicio Nacional de Turismo | C49: 27 | D49: 25 | E49: 2 | F49: 7599.8 | G49: 3948.8 | H49: 3651 | I49: 504216.0878 | J49: 46967.26516 | K49: 551183.3529 | L49: 238.2043801 | M49: 72.07327452 | N49: 20414.19826 | O49: 10726.9371 | P49: 141504.9627 | Q49: 107.3101447 | R49: 81.63058235 | S49: 428.3046738 | T49: 41.37160745 | U49: 37.18273026 | V49: 93.73257231
A50: 535 | B50: Servicio de Cooperación Técnica | C50: 23 | D50: 20 | E50: 3 | F50: 8078 | G50: 7365 | H50: 713 | I50: 432911.7117 | J50: 52593.56295 | K50: 485505.2747 | L50: 206.7475351 | M50: 63.26711497 | N50: 22068.42158 | O50: 21388.43749 | P50: 26374.98743 | Q50: 47.20835238 | R50: 37.67727513 | S50: 107.5718416 | T50: 18.90264037 | U50: 17.16199882 | V50: 29.92670349
A51: 537 | B51: Comité de Inversiones Extranjeras | C51: 1 | D51: 1 | E51: 0 | F51: 750 | G51: 750 | H51: 0 | I51: 77613.09091 | J51: 0 | K51: 77613.09091 | L51: 35.35276291 | M51: 9.588088279 | N51: 77613.09091 | O51: 77613.09091 | P51: - | Q51: 103.4841212 | R51: 103.4841212 | S51: - | T51: 47.13701721 | U51: 47.13701721 | V51: -
A52: 540 | B52: Superintendencia de Insolvencia y Reemprendimiento | C52: 2 | D52: 2 | E52: 0 | F52: 1565.6 | G52: 1565.6 | H52: 0 | I52: 158047.2573 | J52: 0 | K52: 158047.2573 | L52: 71.9905257 | M52: 19.52468375 | N52: 79023.62865 | O52: 79023.62865 | P52: - | Q52: 92.89749332 | R52: 92.89749332 | S52: - | T52: 42.31480821 | U52: 42.31480821 | V52: -
A53: 541 | B53: Secretaría y Administración General Min. de Hacienda | C53: 1 | D53: 1 | E53: 0 | F53: 100 | G53: 100 | H53: 0 | I53: 1550.343318 | J53: 0 | K53: 1550.343318 | L53: 0.7061813813 | M53: 0.2690682093 | N53: 1550.343318 | O53: 1550.343318 | P53: - | Q53: 15.50343318 | R53: 15.50343318 | S53: - | T53: 7.061813813 | U53: 7.061813813 | V53: -
A54: 543 | B54: Dirección de Presupuestos | C54: 1 | D54: 1 | E54: 0 | F54: 484 | G54: 484 | H54: 0 | I54: 43326.875 | J54: 0 | K54: 43326.875 | L54: 19.73539156 | M54: 5.352472083 | N54: 43326.875 | O54: 43326.875 | P54: - | Q54: 89.51833678 | R54: 89.51833678 | S54: - | T54: 40.7756024 | U54: 40.7756024 | V54: -
A55: 545 | B55: Servicio Nacional de Aduanas | C55: 4 | D55: 2 | E55: 2 | F55: 10574 | G55: 2886 | H55: 7688 | I55: 953578.939 | J55: 29612.25818 | K55: 983191.1972 | L55: 439.735754 | M55: 156.9805628 | N55: 245797.7993 | O55: 355903.3035 | P55: 135692.2951 | Q55: 95.26328086 | R55: 155.1622606 | S55: 35.36430109 | T55: 42.86178964 | U55: 70.67640972 | V55: 15.04716955
A56: 546 | B56: Servicio de Tesorerías | C56: 46 | D56: 45 | E56: 1 | F56: 29423 | G56: 21564 | H56: 7859 | I56: 2676972.69 | J56: 538000.6393 | K56: 3214973.329 | L56: 1317.115777 | M56: 404.4022146 | N56: 71443.85177 | O56: 38134.59278 | P56: 1537051.247 | Q56: 83.81011519 | R56: 81.26992516 | S56: 195.5784765 | T56: 37.75898692 | U56: 37.01845091 | V56: 70.34257131
A57: 547 | B57: Dirección de Compras y Contratación Pública | C57: 5 | D57: 5 | E57: 0 | F57: 2090 | G57: 2090 | H57: 0 | I57: 144069.1215 | J57: 0 | K57: 144069.1215 | L57: 65.62348487 | M57: 18.22280959 | N57: 28813.82431 | O57: 28813.82431 | P57: - | Q57: 46.27688423 | R57: 46.27688423 | S57: - | T57: 21.07912077 | U57: 21.07912077 | V57: -
A58: 548 | B58: Superintendencia de Valores y Seguros | C58: 2 | D58: 2 | E58: 0 | F58: 7383 | G58: 7383 | H58: 0 | I58: 656255.7744 | J58: 0 | K58: 656255.7744 | L58: 298.9245052 | M58: 81.07186848 | N58: 328127.8872 | O58: 328127.8872 | P58: - | Q58: 100.8280279 | R58: 100.8280279 | S58: - | T58: 45.92716672 | U58: 45.92716672 | V58: -
A59: 549 | B59: Superintendencia de Bancos e Instituciones Financieras | C59: 2 | D59: 2 | E59: 0 | F59: 8126 | G59: 8126 | H59: 0 | I59: 955224.7649 | J59: 0 | K59: 955224.7649 | L59: 435.1048804 | M59: 118.0056002 | N59: 477612.3824 | O59: 477612.3824 | P59: - | Q59: 106.1574353 | R59: 106.1574353 | S59: - | T59: 48.35471179 | U59: 48.35471179 | V59: -
A60: 550 | B60: Dirección Nacional del Servicio Civil | C60: 4 | D60: 4 | E60: 0 | F60: 2165 | G60: 2165 | H60: 0 | I60: 139558.4053 | J60: 0 | K60: 139558.4053 | L60: 63.56885362 | M60: 17.28469683 | N60: 34889.60133 | O60: 34889.60133 | P60: - | Q60: 23.8647057 | R60: 23.8647057 | S60: - | T60: 10.87037345 | U60: 10.87037345 | V60: -
A61: 552 | B61: Superintendencia de Casinos de Juego | C61: 1 | D61: 1 | E61: 0 | F61: 1690 | G61: 1690 | H61: 0 | I61: 172022.069 | J61: 0 | K61: 172022.069 | L61: 78.35605241 | M61: 21.25109004 | N61: 172022.069 | O61: 172022.069 | P61: - | Q61: 101.7882065 | R61: 101.7882065 | S61: - | T61: 46.36452806 | U61: 46.36452806 | V61: -
A62: 554 | B62: Subsecretaría de Educación | C62: 63 | D62: 61 | E62: 2 | F62: 97618 | G62: 95229 | H62: 2389 | I62: 4535797.799 | J62: 1109060.97 | K62: 5644858.77 | L62: 2267.572276 | M62: 630.1469983 | N62: 91046.10919 | O62: 72590.23019 | P62: 644722.4791 | Q62: 84.33014196 | R62: 64.18873225 | S62: 688.5724332 | T62: 33.99554583 | U62: 29.23796754 | V62: 176.7228946
A63: 555 | B63: Superintentencia de Educación | C63: 16 | D63: 15 | E63: 1 | F63: 9977.6 | G63: 9804.6 | H63: 173 | I63: 637078.7495 | J63: 46620.43793 | K63: 683699.1875 | L63: 298.660304 | M63: 88.52514346 | N63: 42731.19922 | O63: 41913.02944 | P63: 55003.74585 | Q63: 74.65214403 | R63: 58.43290513 | S63: 317.9407275 | T63: 29.39253574 | U63: 26.61618829 | V63: 71.03774756
A64: 556 | B64: Agencia de Calidad de la Educación | C64: 5 | D64: 4 | E64: 1 | F64: 3505 | G64: 3379 | H64: 126 | I64: 229983.8102 | J64: 68227.24646 | K64: 298211.0567 | L64: 117.1545162 | M64: 30.55380681 | N64: 59642.21133 | O64: 56324.12082 | P64: 72914.57339 | Q64: 176.9473012 | R64: 76.51235391 | S64: 578.6870904 | T64: 50.9477178 | U64: 34.85137721 | V64: 115.3330801
A65: 557 | B65: Dirección de Bibliotecas, Archivos y Museos | C65: 24 | D65: 20 | E65: 4 | F65: 5579 | G65: 4599 | H65: 980 | I65: 343456.8551 | J65: 181380.5757 | K65: 524837.4308 | L65: 189.4014481 | M65: 45.83110575 | N65: 21868.22628 | O65: 15201.84073 | P65: 55200.15404 | Q65: 88.07270175 | R65: 42.30996384 | S65: 316.8863913 | T65: 27.47779634 | U65: 19.27218853 | V65: 68.5058354
A66: 558 | B66: Comisión Nacional de Investigación Científica y Tecnólogica | C66: 1 | D66: 1 | E66: 0 | F66: 5392 | G66: 5392 | H66: 0 | I66: 1035939.196 | J66: 0 | K66: 1035939.196 | L66: 471.8703039 | M66: 127.9768187 | N66: 1035939.196 | O66: 1035939.196 | P66: - | Q66: 192.1252219 | R66: 192.1252219 | S66: - | T66: 87.51303856 | U66: 87.51303856 | V66: -
A67: 559 | B67: Junta Nacional de Auxilio Escolar y Becas | C67: 30 | D67: 29 | E67: 1 | F67: 10824 | G67: 10319 | H67: 505 | I67: 618273.1776 | J67: 198653.5475 | K67: 816926.7251 | L67: 317.718782 | M67: 91.47361111 | N67: 28169.88707 | O67: 21386.27593 | P67: 218110.9991 | Q67: 60.77677009 | R67: 47.522263 | S67: 431.9029686 | T67: 23.96983166 | U67: 21.6463908 | V67: 89.02617583
A68: 564 | B68: Consejo Nacional de Educación | C68: 1 | D68: 1 | E68: 0 | F68: 643 | G68: 643 | H68: 0 | I68: 60499.83471 | J68: 0 | K68: 60499.83471 | L68: 27.55767471 | M68: 7.473967977 | N68: 60499.83471 | O68: 60499.83471 | P68: - | Q68: 94.08994512 | R68: 94.08994512 | S68: - | T68: 42.85797 | U68: 42.85797 | V68: -
A69: 566 | B69: Secretaría y Administración General Min. de Justicia | C69: 12 | D69: 10 | E69: 2 | F69: 13691 | G69: 6509 | H69: 7182 | I69: 914273.3857 | J69: 150863.8229 | K69: 1065137.209 | L69: 443.8634838 | M69: 120.7878697 | N69: 88761.43405 | O69: 34914.31755 | P69: 357997.0166 | Q69: 117.4123775 | R69: 59.84799271 | S69: 405.2343014 | T69: 37.62172529 | U69: 27.26076068 | V69: 89.42654836
A70: 567 | B70: Servicio de Registro Civil E Identificación | C70: 310 | D70: 306 | E70: 4 | F70: 93315.9 | G70: 71427.9 | H70: 21888 | I70: 5863607.747 | J70: 700177.1348 | K70: 6563784.882 | L70: 2798.095514 | M70: 811.8880036 | N70: 21662.65638 | O70: 11987.81181 | P70: 744857.2881 | Q70: 54.10513086 | R70: 50.40870561 | S70: 330.4129186 | T70: 23.68269009 | U70: 22.96116541 | V70: 77.61666034
A71: 568 | B71: Servicio Médico Legal | C71: 34 | D71: 31 | E71: 3 | F71: 22957.6 | G71: 14060.6 | H71: 8897 | I71: 3033005.612 | J71: 678030.9835 | K71: 3711036.596 | L71: 1504.732286 | M71: 431.899578 | N71: 109148.1352 | O71: 54650.23914 | P71: 672293.0608 | Q71: 158.8361453 | R71: 124.0473836 | S71: 518.3200159 | T71: 62.78937933 | U71: 56.50358323 | V71: 127.7426057
A72: 569 | B72: Gendarmería de Chile | C72: 21 | D72: 17 | E72: 4 | F72: 27857.7 | G72: 20546.7 | H72: 7311 | I72: 1953636.935 | J72: 710912.7033 | K72: 2664549.639 | L72: 1019.054462 | M72: 262.8598536 | N72: 140239.4547 | O72: 73281.90098 | P72: 497346.4077 | Q72: 85.99600644 | R72: 58.68918305 | S72: 231.6323979 | T72: 33.9288932 | U72: 26.73292288 | V72: 72.30740156
A73: 571 | B73: Defensoría Penal Pública | C73: 66 | D73: 64 | E73: 2 | F73: 16278 | G73: 15572 | H73: 706 | I73: 1002609.72 | J73: 270019.7502 | K73: 1272629.47 | L73: 505.7513161 | M73: 150.8519588 | N73: 19578.91493 | O73: 15233.02436 | P73: 156474.4677 | Q73: 79.58375766 | R73: 68.72190976 | S73: 421.7319667 | T73: 33.07238227 | U73: 31.30282989 | V73: 88.81328208
A74: 604 | B74: Dirección General de Aeronáutica Civil | C74: 16 | D74: 16 | E74: 0 | F74: 34423 | G74: 34423 | H74: 0 | I74: 4923289.305 | J74: 0 | K74: 4923289.305 | L74: 2242.558278 | M74: 645.4502956 | N74: 351663.5218 | O74: 351663.5218 | P74: - | Q74: 327.4986427 | R74: 327.4986427 | S74: - | T74: 149.1756318 | U74: 149.1756318 | V74: -
A75: 624 | B75: Dirección de Arquitectura | C75: 2 | D75: 2 | E75: 0 | F75: 598 | G75: 598 | H75: 0 | I75: 18671.67488 | J75: 0 | K75: 18671.67488 | L75: 8.504947906 | M75: 2.182690979 | N75: 9335.837438 | O75: 9335.837438 | P75: - | Q75: 27.35283055 | R75: 27.35283055 | S75: - | T75: 12.45921431 | U75: 12.45921431 | V75: -
A76: 625 | B76: Dirección de Obras Hidráulicas | C76: 9 | D76: 8 | E76: 1 | F76: 3035 | G76: 2945 | H76: 90 | I76: 189975.2028 | J76: 17953.74772 | K76: 207928.9505 | L76: 89.79590082 | M76: 24.10104877 | N76: 23103.21672 | O76: 23673.82661 | P76: 18538.33762 | Q76: 54.32616692 | R76: 35.36924664 | S76: 205.9815291 | T76: 18.676759 | U76: 16.11069185 | V76: 39.20529623
A77: 626 | B77: Dirección de Vialidad | C77: 110 | D77: 106 | E77: 4 | F77: 212787 | G77: 210923 | H77: 1864 | I77: 2930889.316 | J77: 380349.1723 | K77: 3311238.488 | L77: 1404.129528 | M77: 426.5287675 | N77: 30946.15409 | O77: 27549.89535 | P77: 118399.8167 | Q77: 112.6266383 | R77: 101.3521984 | S77: 402.9434645 | T77: 47.72700378 | U77: 46.16592639 | V77: 87.9247465
A78: 627 | B78: Dirección de Obras Portuarias | C78: 3 | D78: 3 | E78: 0 | F78: 720 | G78: 720 | H78: 0 | I78: 37150.39835 | J78: 0 | K78: 37150.39835 | L78: 16.92200645 | M78: 5.817414027 | N78: 12383.46612 | O78: 12383.46612 | P78: - | Q78: 70.06345485 | R78: 70.06345485 | S78: - | T78: 31.91390368 | U78: 31.91390368 | V78: -
A79: 628 | B79: Dirección de Aeropuertos | C79: 4 | D79: 4 | E79: 0 | F79: 1724 | G79: 1724 | H79: 0 | I79: 70999.37507 | J79: 0 | K79: 70999.37507 | L79: 32.34021535 | M79: 9.642379406 | N79: 17749.84377 | O79: 17749.84377 | P79: - | Q79: 57.41452457 | R79: 57.41452457 | S79: - | T79: 26.15231594 | U79: 26.15231594 | V79: -
A80: 632 | B80: Dirección General de Aguas | C80: 12 | D80: 11 | E80: 1 | F80: 4445 | G80: 2828 | H80: 1617 | I80: 207397.0159 | J80: 4080.595798 | K80: 211477.6117 | L80: 95.21078499 | M80: 29.16686481 | N80: 17623.13431 | O80: 13076.76296 | P80: 67633.21917 | Q80: 52.01276051 | R80: 52.9387972 | S80: 41.82635694 | T80: 23.6342332 | U80: 24.11362212 | V80: 18.36095498
A81: 633 | B81: Instituto Nacional de Hidráulica | C81: 2 | D81: 2 | E81: 0 | F81: 35969 | G81: 35969 | H81: 0 | I81: 165281.4824 | J81: 0 | K81: 165281.4824 | L81: 75.28571525 | M81: 20.41837821 | N81: 82640.74121 | O81: 82640.74121 | P81: - | Q81: 16.89263679 | R81: 16.89263679 | S81: - | T81: 7.694596057 | U81: 7.694596057 | V81: -
A82: 634 | B82: Superintendencia de Servicios Sanitarios | C82: 14 | D82: 12 | E82: 2 | F82: 4298 | G82: 2245 | H82: 2053 | I82: 398870.4397 | J82: 175866.5505 | K82: 574736.9902 | L82: 213.6404375 | M82: 55.11540618 | N82: 41052.64216 | O82: 8882.967462 | P82: 234070.6903 | Q82: 121.3776492 | R82: 47.06254917 | S82: 567.2682494 | T82: 36.96680021 | U82: 21.43699115 | V82: 130.1456546
A83: 635 | B83: Subsecretaría de Agricultura | C83: 12 | D83: 12 | E83: 0 | F83: 7014.7 | G83: 7014.7 | H83: 0 | I83: 372675.1961 | J83: 0 | K83: 372675.1961 | L83: 169.7535518 | M83: 49.87325078 | N83: 31056.26634 | O83: 31056.26634 | P83: - | Q83: 55.51752543 | R83: 55.51752543 | S83: - | T83: 25.28823283 | U83: 25.28823283 | V83: -
A84: 636 | B84: Oficina de Estudios y Políticas Agrarias | C84: 2 | D84: 2 | E84: 0 | F84: 2246 | G84: 2246 | H84: 0 | I84: 269620.7357 | J84: 0 | K84: 269620.7357 | L84: 122.8122451 | M84: 33.30813637 | N84: 134810.3679 | O84: 134810.3679 | P84: - | Q84: 95.17727795 | R84: 95.17727795 | S84: - | T84: 43.35325011 | U84: 43.35325011 | V84: -
A85: 637 | B85: Instituto de Desarrollo Agropecuario | C85: 127 | D85: 122 | E85: 5 | F85: 33854 | G85: 26744 | H85: 7110 | I85: 2440207.911 | J85: 1937044.863 | K85: 4377252.774 | L85: 1463.475755 | M85: 453.7692679 | N85: 34466.55727 | O85: 12586.98645 | P85: 568328.0853 | Q85: 65.41798745 | R85: 50.62249311 | S85: 426.4280492 | T85: 25.89740101 | U85: 23.05854561 | V85: 95.16547264
A86: 638 | B86: Servicio Agrícola y Ganadero | C86: 125 | D86: 119 | E86: 6 | F86: 64032.96 | G86: 55753.96 | H86: 8279 | I86: 3394093.995 | J86: 1523076.757 | K86: 4917170.752 | L86: 1822.752861 | M86: 481.9102274 | N86: 39337.36601 | O86: 22107.5596 | P86: 381061.8599 | Q86: 63.18464459 | R86: 48.0179018 | S86: 363.9917099 | T86: 24.94180561 | U86: 21.87215427 | V86: 85.82322381
A87: 639 | B87: Corporación Nacional Forestal | C87: 53 | D87: 46 | E87: 7 | F87: 22348 | G87: 15740 | H87: 6608 | I87: 1257666.066 | J87: 1274832.948 | K87: 2532499.015 | L87: 804.5040399 | M87: 253.6827412 | N87: 47783.00028 | O87: 16288.67549 | P87: 254745.706 | Q87: 115.6462858 | R87: 54.60965668 | S87: 516.7441346 | T87: 37.17051732 | U87: 24.87469862 | V87: 117.9716116
A88: 640 | B88: Comisión Nacional de Riego | C88: 8 | D88: 8 | E88: 0 | F88: 3070.3 | G88: 3070.3 | H88: 0 | I88: 230111.9975 | J88: 0 | K88: 230111.9975 | L88: 104.8160148 | M88: 29.57795056 | N88: 28763.99968 | O88: 28763.99968 | P88: - | Q88: 42.59873561 | R88: 42.59873561 | S88: - | T88: 19.40372407 | U88: 19.40372407 | V88: -
A89: 641 | B89: Subsecretaría del Trabajo | C89: 8 | D89: 8 | E89: 0 | F89: 830 | G89: 830 | H89: 0 | I89: 38518.97532 | J89: 0 | K89: 38518.97532 | L89: 17.54539326 | M89: 5.944625472 | N89: 5502.71076 | O89: 5502.71076 | P89: - | Q89: 52.30069237 | R89: 52.30069237 | S89: - | T89: 23.82296537 | U89: 23.82296537 | V89: -
A90: 642 | B90: Dirección del Trabajo | C90: 103 | D90: 97 | E90: 6 | F90: 48490 | G90: 46207 | H90: 2283 | I90: 2437795.192 | J90: 606927.5523 | K90: 3044722.744 | L90: 1220.694446 | M90: 344.1793054 | N90: 29560.41499 | O90: 24322.84114 | P90: 114234.5256 | Q90: 68.12429911 | R90: 45.05578815 | S90: 441.0652263 | T90: 24.59269074 | U90: 20.5229115 | V90: 90.3874551
A91: 644 | B91: Dirección General del Crédito Prendario | C91: 19 | D91: 16 | E91: 3 | F91: 48801 | G91: 25154 | H91: 23647 | I91: 796156.5576 | J91: 20168.3916 | K91: 816324.9492 | L91: 366.3139087 | M91: 112.5074587 | N91: 42964.47101 | O91: 34890.18435 | P91: 86027.33323 | Q91: 39.8088636 | R91: 44.57621309 | S91: 14.3829997 | T91: 18.07465901 | U91: 20.30446506 | V91: 6.182360092
A92: 645 | B92: Servicio Nacional de Capacitación y Empleo | C92: 17 | D92: 15 | E92: 2 | F92: 6881 | G92: 6281 | H92: 600 | I92: 735846.7086 | J92: 131388.7716 | K92: 867235.4802 | L92: 359.0515156 | M92: 102.9945678 | N92: 51013.85178 | O92: 46109.96292 | P92: 87793.01824 | Q92: 86.72753094 | R92: 60.27716914 | S92: 285.1052444 | T92: 32.89595251 | U92: 27.45625054 | V92: 73.69371723
A93: 646 | B93: Superintendencia de Seguridad Social | C93: 9 | D93: 8 | E93: 1 | F93: 4871 | G93: 4718 | H93: 153 | I93: 485273.3563 | J93: 156707.1924 | K93: 641980.5487 | L93: 249.5157107 | M93: 61.87638217 | N93: 71331.17208 | O93: 59838.45738 | P93: 163272.8897 | Q93: 182.0187062 | R93: 71.37816069 | S93: 1067.14307 | T93: 51.75016751 | U93: 32.51275219 | V93: 205.64949
A94: 647 | B94: Superintendencia de Pensiones | C94: 5 | D94: 5 | E94: 0 | F94: 4891 | G94: 4891 | H94: 0 | I94: 550615.7705 | J94: 0 | K94: 550615.7705 | L94: 250.8054835 | M94: 68.94041333 | N94: 110123.1541 | O94: 110123.1541 | P94: - | Q94: 76.27003344 | R94: 76.27003344 | S94: - | T94: 34.74100023 | U94: 34.74100023 | V94: -
A95: 648 | B95: Instituto de Previsión Social | C95: 116 | D95: 114 | E95: 2 | F95: 75074 | G95: 64301 | H95: 10773 | I95: 3438417.052 | J95: 101711.536 | K95: 3540128.588 | L95: 1584.679953 | M95: 476.2612271 | N95: 30518.3499 | O95: 25823.0784 | P95: 298148.8251 | Q95: 56.95627873 | R95: 56.40243125 | S95: 88.52558506 | T95: 25.6658415 | U95: 25.69130743 | V95: 24.21428312
A96: 649 | B96: Instituto de Seguridad Laboral | C96: 16 | D96: 16 | E96: 0 | F96: 7301.5 | G96: 7301.5 | H96: 0 | I96: 345135.8934 | J96: 0 | K96: 345135.8934 | L96: 157.2093995 | M96: 45.05826848 | N96: 23009.05956 | O96: 23009.05956 | P96: - | Q96: 35.87636395 | R96: 35.87636395 | S96: - | T96: 16.34168378 | U96: 16.34168378 | V96: -
A97: 652 | B97: Fondo Nacional de Salud | C97: 70 | D97: 69 | E97: 1 | F97: 23687 | G97: 23257 | H97: 430 | I97: 1934394.63 | J97: 202370.1756 | K97: 2136764.805 | L97: 917.8874147 | M97: 270.2271525 | N97: 30967.60587 | O97: 28232.20301 | P97: 216975.0006 | Q97: 95.81467789 | R97: 89.80323162 | S97: 504.5930245 | T97: 41.77607806 | U97: 40.905372 | V97: 100.98409
A98: 654 | B98: Central de Abastecimiento del Sistema Nacional de Salud | C98: 1 | D98: 0 | E98: 1 | F98: 2412 | G98: 0 | H98: 2412 | I98: 278664.8276 | J98: 94502.06928 | K98: 373166.8969 | L98: 144.102855 | M98: 40.21199744 | N98: 373166.8969 | O98: - | P98: 373166.8969 | Q98: 154.7126438 | R98: - | S98: 154.7126438 | T98: 59.74413555 | U98: - | V98: 59.74413555
A99: 655 | B99: Subsecretaría de Salud Pública | C99: 141 | D99: 131 | E99: 10 | F99: 65019 | G99: 57884 | H99: 7135 | I99: 3577623.208 | J99: 515004.3913 | K99: 4092627.599 | L99: 1723.183669 | M99: 539.7759825 | N99: 30315.76 | O99: 26204.52015 | P99: 95581.69256 | Q99: 103.7668596 | R99: 69.9448779 | S99: 640.6908193 | T99: 38.62663867 | U99: 31.85989189 | V99: 146.048744
A100: 656 | B100: Subsecretaría de Redes Asistenciales | C100: 1 | D100: 1 | E100: 0 | F100: 205 | G100: 205 | H100: 0 | I100: 11634.50769 | J100: 0 | K100: 11634.50769 | L100: 5.299518254 | M100: 1.437292157 | N100: 11634.50769 | O100: 11634.50769 | P100: - | Q100: 56.75369606 | R100: 56.75369606 | S100: - | T100: 25.85130856 | U100: 25.85130856 | V100: -
A101: 657 | B101: Superintendencia de Salud | C101: 14 | D101: 13 | E101: 1 | F101: 6024 | G101: 5914 | H101: 110 | I101: 372717.3065 | J101: 19432.16 | K101: 392149.4665 | L101: 173.3035566 | M101: 49.81482922 | N101: 28010.67618 | O101: 28175.35691 | P101: 25869.82667 | Q101: 73.24251453 | R101: 60.78576624 | S101: 235.1802424 | T101: 29.90707874 | U101: 27.68791652 | V101: 58.75618762
A102: 679 | B102: Subsecretaría de Vivienda y Urbanismo | C102: 22 | D102: 22 | E102: 0 | F102: 27190.5 | G102: 27190.5 | H102: 0 | I102: 2066940.236 | J102: 0 | K102: 2066940.236 | L102: 941.4912775 | M102: 271.8677721 | N102: 93951.82891 | O102: 93951.82891 | P102: - | Q102: 61.39542052 | R102: 61.39542052 | S102: - | T102: 27.96561405 | U102: 27.96561405 | V102: -
A103: 680 | B103: Parque Metropolitano | C103: 1 | D103: 0 | E103: 1 | F103: 5077 | G103: 0 | H103: 5077 | I103: 954830.1509 | J103: 1929.08895 | K103: 956759.2399 | L103: 435.2756492 | M103: 118.0749733 | N103: 956759.2399 | O103: - | P103: 956759.2399 | Q103: 188.4497223 | R103: - | S103: 188.4497223 | T103: 85.73481371 | U103: - | V103: 85.73481371
A104: 681 | B104: SERVIU I Región | C104: 1 | D104: 1 | E104: 0 | F104: 2955 | G104: 2955 | H104: 0 | I104: 155335.5 | J104: 0 | K104: 155335.5 | L104: 70.75532025 | M104: 20.70066665 | N104: 155335.5 | O104: 155335.5 | P104: - | Q104: 52.56700508 | R104: 52.56700508 | S104: - | T104: 23.94427081 | U104: 23.94427081 | V104: -
A105: 682 | B105: SERVIU II Región | C105: 6 | D105: 6 | E105: 0 | F105: 2510 | G105: 2510 | H105: 0 | I105: 82884.19745 | J105: 0 | K105: 82884.19745 | L105: 37.75375194 | M105: 10.52263605 | N105: 13814.03291 | O105: 13814.03291 | P105: - | Q105: 29.93739472 | R105: 29.93739472 | S105: - | T105: 13.63648329 | U105: 13.63648329 | V105: -
A106: 683 | B106: SERVIU III Región | C106: 5 | D106: 5 | E106: 0 | F106: 4140 | G106: 4140 | H106: 0 | I106: 74024.10018 | J106: 0 | K106: 74024.10018 | L106: 33.71797763 | M106: 10.83673603 | N106: 14804.82004 | O106: 14804.82004 | P106: - | Q106: 26.97653189 | R106: 26.97653189 | S106: - | T106: 12.28781027 | U106: 12.28781027 | V106: -
A107: 684 | B107: SERVIU IV Región | C107: 3 | D107: 3 | E107: 0 | F107: 2239 | G107: 2239 | H107: 0 | I107: 146375.4228 | J107: 0 | K107: 146375.4228 | L107: 66.6740051 | M107: 23.05668422 | N107: 48791.80761 | O107: 48791.80761 | P107: - | Q107: 71.73561442 | R107: 71.73561442 | S107: - | T107: 32.67557237 | U107: 32.67557237 | V107: -
A108: 685 | B108: SERVIU V Región | C108: 9 | D108: 9 | E108: 0 | F108: 5641 | G108: 5641 | H108: 0 | I108: 261017.7632 | J108: 0 | K108: 261017.7632 | L108: 118.8935911 | M108: 42.30533195 | N108: 32627.2204 | O108: 32627.2204 | P108: - | Q108: 51.5357622 | R108: 51.5357622 | S108: - | T108: 23.47453968 | U108: 23.47453968 | V108: -
A109: 686 | B109: SERVIU VI Región | C109: 4 | D109: 4 | E109: 0 | F109: 6121.4 | G109: 6121.4 | H109: 0 | I109: 429392.4222 | J109: 0 | K109: 429392.4222 | L109: 195.5882483 | M109: 59.50417151 | N109: 107348.1055 | O109: 107348.1055 | P109: - | Q109: 64.63915095 | R109: 64.63915095 | S109: - | T109: 29.44313326 | U109: 29.44313326 | V109: -
A110: 687 | B110: SERVIU VII Región | C110: 7 | D110: 7 | E110: 0 | F110: 1831 | G110: 1831 | H110: 0 | I110: 186972.8378 | J110: 0 | K110: 186972.8378 | L110: 85.16612761 | M110: 28.96649835 | N110: 26710.4054 | O110: 26710.4054 | P110: - | Q110: 115.639308 | R110: 115.639308 | S110: - | T110: 52.6737048 | U110: 52.6737048 | V110: -
A111: 688 | B111: SERVIU VIII Región | C111: 9 | D111: 7 | E111: 2 | F111: 7212 | G111: 5075 | H111: 2137 | I111: 445464.341 | J111: 243127.8428 | K111: 688592.1838 | L111: 247.0853364 | M111: 98.35550671 | N111: 76510.24264 | O111: 48496.63451 | P111: 174557.8711 | Q111: 99.83292982 | R111: 80.86650824 | S111: 166.2154054 | T111: 38.42250045 | U111: 36.8346945 | V111: 43.97982128
A112: 689 | B112: SERVIU IX Región | C112: 4 | D112: 4 | E112: 0 | F112: 2545 | G112: 2545 | H112: 0 | I112: 191579.0318 | J112: 0 | K112: 191579.0318 | L112: 87.26424898 | M112: 30.46313327 | N112: 47894.75795 | O112: 47894.75795 | P112: - | Q112: 73.00818427 | R112: 73.00818427 | S112: - | T112: 33.25522794 | U112: 33.25522794 | V112: -
A113: 690 | B113: SERVIU X Región | C113: 6 | D113: 6 | E113: 0 | F113: 1804.8 | G113: 1804.8 | H113: 0 | I113: 141712.2563 | J113: 0 | K113: 141712.2563 | L113: 64.54993274 | M113: 24.03187871 | N113: 23618.70938 | O113: 23618.70938 | P113: - | Q113: 71.20902349 | R113: 71.20902349 | S113: - | T113: 32.4357102 | U113: 32.4357102 | V113: -
A114: 691 | B114: SERVIU XI Región | C114: 3 | D114: 3 | E114: 0 | F114: 1420 | G114: 1420 | H114: 0 | I114: 68115.90192 | J114: 0 | K114: 68115.90192 | L114: 31.02679333 | M114: 11.72008189 | N114: 22705.30064 | O114: 22705.30064 | P114: - | Q114: 36.94281708 | R114: 36.94281708 | S114: - | T114: 16.82745318 | U114: 16.82745318 | V114: -
A115: 692 | B115: SERVIU XII Región | C115: 2 | D115: 0 | E115: 2 | F115: 511 | G115: 0 | H115: 511 | I115: 15282.55388 | J115: 244877.2974 | K115: 260159.8512 | L115: 51.45540822 | M115: 4.117840072 | N115: 130079.9256 | O115: - | P115: 130079.9256 | Q115: 628.7553086 | R115: - | S115: 628.7553086 | T115: 123.9956349 | U115: - | V115: 123.9956349
A116: 693 | B116: SERVIU Región Metropolitana | C116: 8 | D116: 8 | E116: 0 | F116: 17651 | G116: 17651 | H116: 0 | I116: 802951.5687 | J116: 0 | K116: 802951.5687 | L116: 365.7444395 | M116: 99.19422657 | N116: 100368.9461 | O116: 100368.9461 | P116: - | Q116: 75.00035687 | R116: 75.00035687 | S116: - | T116: 34.16266255 | U116: 34.16266255 | V116: -
A117: 694 | B117: SERVIU XIV Región | C117: 2 | D117: 2 | E117: 0 | F117: 1281 | G117: 1281 | H117: 0 | I117: 59526.67017 | J117: 0 | K117: 59526.67017 | L117: 27.11439826 | M117: 10.04163676 | N117: 29763.33509 | O117: 29763.33509 | P117: - | Q117: 48.58822705 | R117: 48.58822705 | S117: - | T117: 22.13193742 | U117: 22.13193742 | V117: -
A118: 695 | B118: SERVIU XV Región | C118: 2 | D118: 2 | E118: 0 | F118: 1796 | G118: 1796 | H118: 0 | I118: 95491.06642 | J118: 0 | K118: 95491.06642 | L118: 43.49618076 | M118: 10.53937473 | N118: 47745.53321 | O118: 47745.53321 | P118: - | Q118: 44.90530404 | R118: 44.90530404 | S118: - | T118: 20.45436599 | U118: 20.45436599 | V118: -
A119: 696 | B119: Subsecretaría de Servicios Sociales | C119: 25 | D119: 25 | E119: 0 | F119: 18812 | G119: 18812 | H119: 0 | I119: 377895.6876 | J119: 0 | K119: 377895.6876 | L119: 172.1314857 | M119: 55.73935124 | N119: 15115.8275 | O119: 15115.8275 | P119: - | Q119: 31.97969101 | R119: 31.97969101 | S119: - | T119: 14.56674926 | U119: 14.56674926 | V119: -
A120: 697 | B120: Fondo de Solidaridad e Inversión Social | C120: 26 | D120: 24 | E120: 2 | F120: 12440 | G120: 11918 | H120: 522 | I120: 656602.47 | J120: 347956.7898 | K120: 1004559.26 | L120: 362.3061738 | M120: 94.46610114 | N120: 38636.89461 | O120: 26703.9174 | P120: 181832.6211 | Q120: 96.2601862 | R120: 45.21826091 | S120: 708.7632896 | T120: 29.55126737 | U120: 20.59691785 | V120: 137.0034616
A121: 699 | B121: Instituto Nacional de la Juventud | C121: 16 | D121: 15 | E121: 1 | F121: 5543 | G121: 5363 | H121: 180 | I121: 246470.7574 | J121: 68684.46181 | K121: 315155.2192 | L121: 124.7473967 | M121: 33.36597287 | N121: 19697.2012 | O121: 16024.05029 | P121: 74794.46489 | Q121: 57.73815713 | R121: 33.88571394 | S121: 415.5248049 | T121: 19.76993694 | U121: 15.4349427 | V121: 84.79485062
A122: 700 | B122: Corporación Nacional de Desarrollo Indígena | C122: 19 | D122: 17 | E122: 2 | F122: 8967 | G122: 6884 | H122: 2083 | I122: 578511.2157 | J122: 185125.5386 | K122: 763636.7543 | L122: 297.1491691 | M122: 97.25195676 | N122: 44919.80908 | O122: 28409.66328 | P122: 168745.9025 | Q122: 100.4083485 | R122: 80.94702164 | S122: 246.3683003 | T122: 39.50526117 | U122: 36.87136836 | V122: 59.25945727
A123: 701 | B123: Servicio Nacional de la Discapacidad | C123: 14 | D123: 13 | E123: 1 | F123: 3752 | G123: 3542 | H123: 210 | I123: 99613.96534 | J123: 92342.37501 | K123: 191956.3403 | L123: 62.15277075 | M123: 14.51384063 | N123: 15996.3617 | O123: 8736.640055 | P123: 95853.29974 | Q123: 103.9654422 | R123: 71.92191108 | S123: 456.4442845 | T123: 37.32318659 | U123: 32.7604305 | V123: 87.51350359
A124: 702 | B124: Servicio Nacional del Adulto Mayor | C124: 13 | D124: 12 | E124: 1 | F124: 2481 | G124: 2331 | H124: 150 | I124: 89544.46626 | J124: 112309.4916 | K124: 201853.9579 | L124: 61.19413901 | M124: 14.36593894 | N124: 16821.16316 | O124: 7578.481348 | P124: 118490.6631 | Q124: 98.89207858 | R124: 36.06974448 | S124: 789.9377537 | T124: 27.96182023 | U124: 16.42976861 | V124: 154.8143881
A125: 703 | B125: Subsecretaría de Evaluación Social | C125: 1 | D125: 1 | E125: 0 | F125: 3516 | G125: 3516 | H125: 0 | I125: 428234.0394 | J125: 0 | K125: 428234.0394 | L125: 195.060605 | M125: 52.9027478 | N125: 428234.0394 | O125: 428234.0394 | P125: - | Q125: 121.7958019 | R125: 121.7958019 | S125: - | T125: 55.47798776 | U125: 55.47798776 | V125: -
A126: 709 | B126: Servicio Nacional de Menores | C126: 37 | D126: 34 | E126: 3 | F126: 75446.6 | G126: 70135.6 | H126: 5311 | I126: 5888596.733 | J126: 400852.7759 | K126: 6289449.509 | L126: 2755.090761 | M126: 862.3975362 | N126: 184983.8091 | O126: 181132.1744 | P126: 224784.0338 | Q126: 99.03783304 | R126: 91.80027705 | S126: 173.8259115 | T126: 42.83496557 | U126: 41.8150262 | V126: 53.37433906
A127: 710 | B127: Instituto Nacional de Estadísticas (INE) | C127: 46 | D127: 43 | E127: 3 | F127: 22501 | G127: 15985 | H127: 6516 | I127: 1978601.541 | J127: 270165.3294 | K127: 2248766.87 | L127: 950.3420422 | M127: 263.8743327 | N127: 48886.23631 | O127: 26368.39628 | P127: 371641.9434 | Q127: 74.54587242 | R127: 58.85876788 | S127: 299.3943708 | T127: 29.85378837 | U127: 26.81016877 | V127: 73.47900263
A128: 716 | B128: Servicio Nacional de la Mujer | C128: 17 | D128: 16 | E128: 1 | F128: 8938.3 | G128: 8385.3 | H128: 553 | I128: 568083.611 | J128: 157041.7853 | K128: 725125.3963 | L128: 287.2965772 | M128: 75.98605209 | N128: 48341.69308 | O128: 40044.36969 | P128: 164504.2206 | Q128: 63.57602971 | R128: 46.86888993 | S128: 297.4759867 | T128: 23.77527203 | U128: 21.34877936 | V128: 57.74616942
A129: 719 | B129: Consejo de Defensa del Estado | C129: 19 | D129: 17 | E129: 2 | F129: 7732 | G129: 4108 | H129: 3624 | I129: 671339.0382 | J129: 100131.3043 | K129: 771470.3425 | L129: 323.9887899 | M129: 91.22042354 | N129: 40603.70224 | O129: 12737.66009 | P129: 277465.0605 | Q129: 105.6859397 | R129: 70.5754661 | S129: 404.1249655 | T129: 38.9392281 | U129: 32.14712481 | V129: 96.67210603
A130: 720 | B130: Dirección de Previsión de Carabineros de Chile | C130: 12 | D130: 8 | E130: 4 | F130: 12714 | G130: 1033 | H130: 11681 | I130: 520225.967 | J130: 184510.6078 | K130: 704736.5748 | L130: 270.4885054 | M130: 71.50587682 | N130: 58728.0479 | O130: 4316.292004 | P130: 167551.5597 | Q130: 117.1812621 | R130: 45.76203203 | S130: 260.0197221 | T130: 33.58347705 | U130: 20.84460559 | V130: 59.06121998
A131: 721 | B131: Caja de Previsión de la Defensa Nacional | C131: 10 | D131: 7 | E131: 3 | F131: 13941 | G131: 2933 | H131: 11008 | I131: 974926.0258 | J131: 186381.6803 | K131: 1161307.706 | L131: 477.9443561 | M131: 130.7468721 | N131: 116130.7706 | O131: 15161.79389 | P131: 351725.0496 | Q131: 101.0169962 | R131: 41.78158284 | S131: 239.2329608 | T131: 30.48143027 | U131: 19.03151098 | V131: 57.1979086
A132: 722 | B132: Consejo Nacional de la Cultura y las Artes | C132: 22 | D132: 21 | E132: 1 | F132: 19710 | G132: 14310 | H132: 5400 | I132: 1138619.96 | J132: 1832.086138 | K132: 1140452.046 | L132: 518.9742817 | M132: 165.260558 | N132: 51838.72936 | O132: 35179.68006 | P132: 401678.7646 | Q132: 52.32733804 | R132: 51.27697526 | S132: 74.38495641 | T132: 23.83088004 | U132: 23.35666223 | V132: 33.78945409

Sheet Energeticos
A1: id_unidad | B1: Electricidad | C1: Gas Natural | D1: Diesel | E1: Gas Licuado de Petróleo | F1: Petróleo 5-6 | G1: Biomasa | H1: Gasolina | I1: Leña | J1: Kerosene | K1: Pellet de leña | L1: Carbón | M1: IFO 080K
A2: 2917 | B2: si
A3: 261 | B3: si | E3: si
A4: 3178 | B4: si
A5: 7162 | B5: si
A6: 7423 | B6: si
A7: 1566 | B7: si | C7: si
A8: 23 | B8: si
A9: 2894 | B9: si
A10: 238 | B10: si
A11: 8513 | B11: si | E11: si
A12: 8728 | B12: si
A13: 46 | B13: si
A14: 1543 | B14: si
A15: 8797 | B15: si
A16: 69 | B16: si
A17: 3155 | B17: si | D17: si
A18: 1520 | B18: si
A19: 1397 | B19: si
A20: 8774 | B20: si | E20: si
A21: 1758 | B21: si
A22: 1420 | B22: si
A23: 3009 | B23: si
A24: 2748 | B24: si
A25: 3086 | B25: si
A26: 4414 | B26: si
A27: 1781 | B27: si
A28: 2986 | B28: si
A29: 2771 | B29: si
A30: 4314 | B30: si
A31: 3109 | B31: si
A32: 4437 | B32: si
A33: 5642 | B33: si
A34: 1466 | B34: si | E34: si
A35: 2794 | B35: si
A36: 3040 | B36: si
A37: 4122 | B37: si
A38: 4291 | B38: si
A39: 1635 | B39: si
A40: 1712 | B40: si
